Workbook

Sheet Project LSR 325
C1: Platinum Cured Silicone ONLY!
AE3: =1/(D24+273.15) -> 0.002536461636 | AF3: =LN(1/G24) -> -4.427238977 | AG3: =LN(1/F24) -> -3.446807893 | AH3: =SLOPE(AF3:AF5,AE3:AE5) -> -5122.519514 | AI3: =SLOPE(AG3:AG5,AE3:AE5) -> -3948.741457
B4: Imp | C4: Metric | AE4: =1/(D25+273.15) -> 0.002369387513 | AF4: =LN(1/G25) -> -3.306886702 | AG4: =LN(1/F25) -> -2.557227311 | AH4: =INTERCEPT(AF3:AF5,AE3:AE5) -> 8.650047133 | AI4: =INTERCEPT(AG3:AG5,AE3:AE5) -> 6.642199404
B5: =C5/25.4 -> 0.1141732283 | C5: 2.9 | D5: in, mm | E5: Thickness | AE5: =1/(D26+273.15) -> 0.00222296321 | AF5: =LN(1/G26) -> -2.833213344 | AG5: =LN(1/F26) -> -2.219203484
C6: =0.0006*C8 - 0.4448 -> 0.2752 | D6: W/m-K | E6: Thermal Conductivity, k
C7: 1450 | D7: J/kg - K | E7: Heat Capacity, cp | Z7: 55.71428571
C8: 1200 | D8: kg/m3 | E8: Density, p | Z8: 20
Z9: 55.71428571
C10: 15 | D10: # | E10: Number of nodes
B12: =(C12*9/5)+32 -> 325.04 | C12: 162.8 | D12: F, C | E12: Mold Temperature, TmL
B13: =(C13*9/5)+32 -> 325.04 | C13: 162.8 | D13: F, C | E13: Mold Temperature, TmR
B14: 69.8 | C14: 21 | D14: F, C | E14: Initial Rubber Temperature, Tr
C16: 80 | D16: sec | E16: Total T
C18: =8.3144621*-AH3 -> 42590.99436 | D18: J/mole | E18: Ea2 | F18: Activation Energy
C19: =POWER(2.71828,AH4) -> 5710.382653 | D19: s-1 | E19: A2 | F19: Arrhenius Constant
C20: =8.3144621*-AI3 -> 32831.66119 | D20: J/mole | E20: Ea1 | F20: Activation Energy
C21: =POWER(2.71828,AI4) -> 766.7761722 | D21: s-1 | E21: A1 | F21: Arrhenius Constant
B22: 3 Temp Rheology Study (ASTM D5289)
C23: Cure Set | D23: Temperature, C | F23: ts(1), sec | G23: t(90), sec
C24: Low | D24: 121.1 | F24: 31.4 | G24: 83.7
C25: Med | D25: 148.9 | F25: 12.9 | G25: 27.3
C26: High | D26: 176.7 | F26: 9.2 | G26: 17
D28: Temperature (time, x), C | S28: 90% SOC (time, x), %
C29: time, s | D29: 0.09666666667 | E29: 0.29 | F29: 0.4833333333 | G29: 0.6766666667 | H29: 0.87 | I29: 1.063333333 | J29: 1.256666667 | K29: 1.45 | L29: 1.643333333 | M29: 1.836666667 | N29: 2.03 | O29: 2.223333333 | P29: 2.416666667 | Q29: 2.61 | R29: 2.803333333 | S29: 0.09666666667 | T29: 0.29 | U29: 0.4833333333 | V29: 0.6766666667 | W29: 0.87 | X29: 1.063333333 | Y29: 1.256666667 | Z29: 1.45 | AA29: 1.643333333 | AB29: 1.836666667 | AC29: 2.03 | AD29: 2.223333333 | AE29: 2.416666667 | AF29: 2.61 | AG29: 2.803333333
C30: 0 | D30: 21 | E30: 21 | F30: 21 | G30: 21 | H30: 21 | I30: 21 | J30: 21 | K30: 21 | L30: 21 | M30: 21 | N30: 21 | O30: 21 | P30: 21 | Q30: 21 | R30: 21 | S30: 0 | T30: 0 | U30: 0 | V30: 0 | W30: 0 | X30: 0 | Y30: 0 | Z30: 0 | AA30: 0 | AB30: 0 | AC30: 0 | AD30: 0 | AE30: 0 | AF30: 0 | AG30: 0
C31: 0.16 | D31: 89.16231508 | E31: 42.565888 | F31: 27.823291 | G31: 23.15901547 | H31: 21.68370724 | I31: 21.21826675 | J31: 21.07521651 | K31: 21.04326459 | L31: 21.07521651 | M31: 21.21826675 | N31: 21.68370724 | O31: 23.15901547 | P31: 27.823291 | Q31: 42.565888 | R31: 89.16231508 | S31: 0.002037617568 | T31: 0.0004076952738 | U31: 0.0002208926875 | V31: 0.0001796632107 | W31: 0.0001680695386 | X31: 0.0001645466468 | Y31: 0.000163476614 | Z31: 0.0001632384206 | AA31: 0.000163476614 | AB31: 0.0001645466468 | AC31: 0.0001680695386 | AD31: 0.0001796632107 | AE31: 0.0002208926875 | AF31: 0.0004076952738 | AG31: 0.002037617568
C32: 0.32 | D32: 116.0519091 | E32: 62.27292131 | F32: 37.6021479 | G32: 27.37520569 | H32: 23.37577459 | I32: 21.87560648 | J32: 21.34636003 | K32: 21.21760531 | L32: 21.34636003 | M32: 21.87560648 | N32: 23.37577459 | O32: 27.37520569 | P32: 37.6021479 | Q32: 62.27292131 | R32: 116.0519091 | S32: 0.006358775701 | T32: 0.00125769103 | U32: 0.0005546687141 | V32: 0.0003962386372 | W32: 0.0003494630329 | X32: 0.0003340605463 | Y32: 0.0003289605585 | Z32: 0.0003277543807 | AA32: 0.0003289605585 | AB32: 0.0003340605463 | AC32: 0.0003494630329 | AD32: 0.0003962386372 | AE32: 0.0005546687141 | AF32: 0.00125769103 | AG32: 0.006358775701
C33: 0.48 | D33: 128.2131098 | E33: 77.00199435 | F33: 47.546412 | G33: 32.77897508 | H33: 25.99315951 | I33: 23.07334446 | J33: 21.92264471 | K33: 21.62314449 | L33: 21.92264471 | M33: 23.07334446 | N33: 25.99315951 | O33: 32.77897508 | P33: 47.546412 | Q33: 77.00199435 | R33: 128.2131098 | S33: 0.01221898541 | T33: 0.002651642156 | U33: 0.00104955333 | V33: 0.000669356703 | W33: 0.0005532453941 | X33: 0.0005129753755 | Y33: 0.0004988099359 | Z33: 0.000495309354 | AA33: 0.0004988099359 | AB33: 0.0005129753755 | AC33: 0.0005532453941 | AD33: 0.000669356703 | AE33: 0.00104955333 | AF33: 0.002651642156 | AG33: 0.01221898541
C34: 0.64 | D34: 134.6098464 | E34: 87.67781957 | F34: 56.51448835 | G34: 38.59742737 | H34: 29.27449385 | I34: 24.79824538 | J34: 22.86975663 | K34: 22.34019672 | L34: 22.86975663 | M34: 24.79824538 | N34: 29.27449385 | O34: 38.59742737 | P34: 56.51448835 | Q34: 87.67781957 | R34: 134.6098464 | S34: 0.01903195819 | T34: 0.004595796039 | U34: 0.0017411238 | V34: 0.001016813171 | W34: 0.0007883743292 | X34: 0.0007062166448 | Y34: 0.0006760635259 | Z34: 0.0006683748227 | AA34: 0.0006760635259 | AB34: 0.0007062166448 | AC34: 0.0007883743292 | AD34: 0.001016813171 | AE34: 0.0017411238 | AF34: 0.004595796039 | AG34: 0.01903195819
C35: 0.8 | D35: 138.4780359 | E35: 95.54760528 | F35: 64.24121805 | G35: 44.3475737 | H35: 32.94716572 | I35: 26.97146668 | J35: 24.20571762 | K35: 23.41324572 | L35: 24.20571762 | M35: 26.97146668 | N35: 32.94716572 | O35: 44.3475737 | P35: 64.24121805 | Q35: 95.54760528 | R35: 138.4780359 | S35: 0.02646203314 | T35: 0.007048121742 | U35: 0.002650527699 | V35: 0.001453757881 | W35: 0.00106333633 | X35: 0.0009188902789 | Y35: 0.0008642372864 | Z35: 0.0008499872153 | AA35: 0.0008642372864 | AB35: 0.0009188902789 | AC35: 0.00106333633 | AD35: 0.001453757881 | AE35: 0.002650527699 | AF35: 0.007048121742 | AG35: 0.02646203314
C36: 0.96 | D36: 141.0906233 | E36: 101.5307842 | F36: 70.80838154 | G36: 49.78598801 | H36: 36.79638799 | I36: 29.49227015 | J36: 25.91149753 | K36: 24.85024201 | L36: 25.91149753 | M36: 29.49227015 | N36: 36.79638799 | O36: 49.78598801 | P36: 70.80838154 | Q36: 101.5307842 | R36: 141.0906233 | S36: 0.03431837599 | T36: 0.009952820199 | U36: 0.00378688007 | V36: 0.001992340908 | W36: 0.001386011482 | X36: 0.001156157942 | Y36: 0.001067187061 | Z36: 0.001043613963 | AA36: 0.001067187061 | AB36: 0.001156157942 | AC36: 0.001386011482 | AD36: 0.001992340908 | AE36: 0.00378688007 | AF36: 0.009952820199 | AG36: 0.03431837599
C37: 1.12 | D37: 143.0020616 | E37: 106.2294693 | F37: 76.39705555 | G37: 54.81937599 | H37: 40.67624705 | I37: 32.26385228 | J37: 27.94521457 | K37: 26.63047251 | L37: 27.94521457 | M37: 32.26385228 | N37: 40.67624705 | O37: 54.81937599 | P37: 76.39705555 | Q37: 106.2294693 | R37: 143.0020616 | S37: 0.04248505316 | T37: 0.01325577877 | U37: 0.005151024198 | V37: 0.00264183985 | W37: 0.001763642329 | X37: 0.001423202637 | Y37: 0.001289033163 | Z37: 0.001253060312 | AA37: 0.001289033163 | AB37: 0.001423202637 | AC37: 0.001763642329 | AD37: 0.00264183985 | AE37: 0.005151024198 | AF37: 0.01325577877 | AG37: 0.04248505316
C38: 1.28 | D38: 144.4815503 | E38: 110.029925 | F38: 81.19175163 | G38: 59.43556965 | H38: 44.49772264 | I38: 35.20437467 | J38: 30.25431645 | K38: 28.71491022 | L38: 30.25431645 | M38: 35.20437467 | N38: 44.49772264 | O38: 59.43556965 | P38: 81.19175163 | Q38: 110.029925 | R38: 144.4815503 | S38: 0.05088614427 | T38: 0.01690950522 | U38: 0.006738853222 | V38: 0.00340909586 | W38: 0.002202866559 | X38: 0.001725227845 | Y38: 0.001534122873 | Z38: 0.001482413032 | AA38: 0.001534122873 | AB38: 0.001725227845 | AC38: 0.002202866559 | AD38: 0.00340909586 | AE38: 0.006738853222 | AF38: 0.01690950522 | AG38: 0.05088614427
C39: 1.44 | D39: 145.674026 | E39: 113.1834208 | F39: 85.35067696 | G39: 63.66086131 | H39: 48.212 | I39: 38.24930092 | J39: 32.784101 | K39: 31.05551176 | L39: 32.784101 | M39: 38.24930092 | N39: 48.212 | O39: 63.66086131 | P39: 85.35067696 | Q39: 113.1834208 | R39: 145.674026 | S39: 0.05946867022 | T39: 0.02087379478 | U39: 0.008543678358 | V39: 0.004299057193 | W39: 0.002709787318 | X39: 0.002067463834 | Y39: 0.001807009856 | Z39: 0.001736006848 | AA39: 0.001807009856 | AB39: 0.002067463834 | AC39: 0.002709787318 | AD39: 0.004299057193 | AE39: 0.008543678358 | AF39: 0.02087379478 | AG39: 0.05946867022
C40: 1.6 | D40: 146.6648083 | E40: 115.8578567 | F40: 89.00117273 | G40: 67.53644257 | H40: 51.79612805 | I40: 41.34973912 | J40: 35.48284311 | K40: 33.60211602 | L40: 35.48284311 | M40: 41.34973912 | N40: 51.79612805 | O40: 67.53644257 | P40: 89.00117273 | Q40: 115.8578567 | R40: 146.6648083 | S40: 0.0681938046 | T40: 0.02511500414 | U40: 0.01055773861 | V40: 0.005315294996 | W40: 0.003290057978 | X40: 0.00245517062 | Y40: 0.002112437509 | Z40: 0.00201840075 | AA40: 0.002112437509 | AB40: 0.00245517062 | AC40: 0.003290057978 | AD40: 0.005315294996 | AE40: 0.01055773861 | AF40: 0.02511500414 | AG40: 0.0681938046
C41: 1.76 | D41: 147.5078694 | E41: 118.1688493 | F41: 92.24327376 | G41: 71.10643381 | H41: 55.2426387 | I41: 44.4695018 | J41: 38.304401 | K41: 36.30687382 | L41: 38.304401 | M41: 44.4695018 | N41: 55.2426387 | O41: 71.10643381 | P41: 92.24327376 | Q41: 118.1688493 | R41: 147.5078694 | S41: 0.07703201764 | T41: 0.02960502137 | U41: 0.01277309408 | V41: 0.00646042897 | W41: 0.003948963943 | X41: 0.002893634245 | Y41: 0.002455319918 | Z41: 0.002334355933 | AA41: 0.002455319918 | AB41: 0.002893634245 | AC41: 0.003948963943 | AD41: 0.00646042897 | AE41: 0.01277309408 | AF41: 0.02960502137 | AG41: 0.07703201764
C42: 1.92 | D42: 148.2393158 | E42: 120.198328 | F42: 95.15497576 | G42: 74.41234419 | H42: 58.55269762 | I42: 47.58216362 | J42: 41.20917741 | K42: 39.12668246 | L42: 41.20917741 | M42: 47.58216362 | N42: 58.55269762 | O42: 74.41234419 | P42: 95.15497576 | Q42: 120.198328 | R42: 148.2393158 | S42: 0.08596019769 | T42: 0.03432028794 | U42: 0.01518211762 | V42: 0.007736448758 | W42: 0.004691491445 | X42: 0.003388156183 | Y42: 0.002840718231 | Z42: 0.002688811284 | AA42: 0.002840718231 | AB42: 0.003388156183 | AC42: 0.004691491445 | AD42: 0.007736448758 | AE42: 0.01518211762 | AF42: 0.03432028794 | AG42: 0.08596019769
C43: 2.08 | D43: 148.8843597 | E43: 122.0058393 | F43: 97.79709798 | G43: 77.49089536 | H43: 61.73185748 | I43: 50.66858814 | J43: 44.16411287 | K43: 42.02421616 | L43: 44.16411287 | M43: 50.66858814 | N43: 61.73185748 | O43: 77.49089536 | P43: 97.79709798 | Q43: 122.0058393 | R43: 148.8843597 | S43: 0.09495983632 | T43: 0.03924096302 | U43: 0.0177777372 | V43: 0.009144940899 | W43: 0.005522379481 | X43: 0.003944036947 | Y43: 0.003273812505 | Z43: 0.003086855105 | AA43: 0.003273812505 | AB43: 0.003944036947 | AC43: 0.005522379481 | AD43: 0.009144940899 | AE43: 0.0177777372 | AF43: 0.03924096302 | AG43: 0.09495983632
C44: 2.24 | D44: 149.461195 | E44: 123.6355978 | F44: 100.2172305 | G44: 80.37351268 | H44: 64.78755612 | I44: 53.71501005 | J44: 47.14217231 | K44: 44.96806832 | L44: 47.14217231 | M44: 53.71501005 | N44: 64.78755612 | O44: 80.37351268 | P44: 100.2172305 | Q44: 123.6355978 | R44: 149.461195 | S44: 0.1040158241 | T44: 0.04435023378 | U44: 0.02055352828 | V44: 0.01068723963 | W44: 0.006446155115 | X44: 0.004566555395 | Y44: 0.003759870044 | Z44: 0.003533693346 | AA44: 0.003759870044 | AB44: 0.004566555395 | AC44: 0.006446155115 | AD44: 0.01068723963 | AE44: 0.02055352828 | AF44: 0.04435023378 | AG44: 0.1040158241
C45: 2.4 | D45: 149.983288 | E45: 125.1210198 | F45: 102.4527897 | G45: 83.08658569 | H45: 67.727718 | I45: 56.71160758 | J45: 50.12161255 | K45: 47.93239076 | L45: 50.12161255 | M45: 56.71160758 | N45: 67.727718 | O45: 83.08658569 | P45: 102.4527897 | Q45: 125.1210198 | R45: 149.983288 | S45: 0.1131156181 | T45: 0.04963375208 | U45: 0.02350371875 | V45: 0.01236452045 | W45: 0.007467154469 | X45: 0.005260945263 | Y45: 0.004304211554 | Z45: 0.004034615307 | AA45: 0.004304211554 | AB45: 0.005260945263 | AC45: 0.007467154469 | AD45: 0.01236452045 | AE45: 0.02350371875 | AF45: 0.04963375208 | AG45: 0.1131156181
C46: 2.56 | D46: 150.4608046 | E46: 126.4877282 | F46: 104.5333444 | G46: 85.65203776 | H46: 70.56002434 | I46: 59.6514605 | J46: 53.08519759 | K46: 50.89628905 | L46: 53.08519759 | M46: 59.6514605 | N46: 70.56002434 | O46: 85.65203776 | P46: 104.5333444 | Q46: 126.4877282 | R46: 150.4608046 | S46: 0.1222486469 | T46: 0.05507917515 | U46: 0.02662314539 | V46: 0.01417785281 | W46: 0.008589532463 | X46: 0.006032370271 | Y46: 0.004912176418 | Z46: 0.004594958 | AA46: 0.004912176418 | AB46: 0.006032370271 | AC46: 0.008589532463 | AD46: 0.01417785281 | AE46: 0.02662314539 | AF46: 0.05507917515 | AG46: 0.1222486469
C47: 2.72 | D47: 150.9015394 | E47: 127.7556042 | F47: 106.4823815 | G47: 88.08797817 | H47: 73.29157326 | I47: 62.52979449 | J47: 56.01945027 | K47: 53.84313517 | L47: 56.01945027 | M47: 62.52979449 | N47: 73.29157326 | O47: 88.08797817 | P47: 106.4823815 | Q47: 127.7556042 | R47: 150.9015394 | S47: 0.1314058743 | T47: 0.06067579064 | U47: 0.02990718579 | V47: 0.01612822479 | W47: 0.009817264327 | X47: 0.006885898894 | Y47: 0.005589088165 | Z47: 0.005220070293 | AA47: 0.005589088165 | AB47: 0.006885898894 | AC47: 0.009817264327 | AD47: 0.01612822479 | AE47: 0.02990718579 | AF47: 0.06067579064 | AG47: 0.1314058743
C48: 2.88 | D48: 151.3115435 | E48: 128.940226 | F48: 108.3186506 | G48: 90.40933095 | H48: 75.92875844 | I48: 65.34343236 | J48: 58.91398165 | K48: 56.75988981 | L48: 58.91398165 | M48: 65.34343236 | N48: 75.92875844 | O48: 90.40933095 | P48: 108.3186506 | Q48: 128.940226 | R48: 151.3115435 | S48: 0.1405794735 | T48: 0.0664142102 | U48: 0.03335168041 | V48: 0.01821654943 | W48: 0.01115414151 | X48: 0.00782647966 | Y48: 0.006340221023 | Z48: 0.005915277792 | AA48: 0.006340221023 | AB48: 0.00782647966 | AC48: 0.01115414151 | AD48: 0.01821654943 | AE48: 0.03335168041 | AF48: 0.0664142102 | AG48: 0.1405794735
C49: 3.04 | D49: 151.6955627 | E49: 130.0539023 | F49: 110.0571942 | G49: 92.62839677 | H49: 78.47726379 | I49: 68.090393 | J49: 61.76091219 | K49: 59.63648157 | L49: 61.76091219 | M49: 68.090393 | N49: 78.47726379 | O49: 92.62839677 | P49: 110.0571942 | Q49: 130.0539023 | R49: 151.6955627 | S49: 0.1497625785 | T49: 0.07228611888 | U49: 0.03695285359 | V49: 0.02044365979 | W49: 0.01260376408 | X49: 0.0088589176 | Y49: 0.007170768166 | Z49: 0.006685849171 | AA49: 0.007170768166 | AB49: 0.0088589176 | AC49: 0.01260376408 | AD49: 0.02044365979 | AE49: 0.03695285359 | AF49: 0.07228611888 | AG49: 0.1497625785
C50: 3.2 | D50: 152.0573507 | E50: 131.1064299 | F50: 111.7101417 | G50: 94.75533463 | H50: 80.94211474 | I50: 70.76959553 | J50: 64.55438437 | K50: 62.46526289 | L50: 64.55438437 | M50: 70.76959553 | N50: 80.94211474 | O50: 94.75533463 | P50: 111.7101417 | Q50: 131.1064299 | R50: 152.0573507 | S50: 0.1589490942 | T50: 0.07828407016 | U50: 0.04070723853 | V50: 0.0228102975 | W50: 0.01416953127 | X50: 0.009987852259 | Y50: 0.008085812095 | Z50: 0.007536964509 | AA50: 0.008085812095 | AB50: 0.009987852259 | AC50: 0.01416953127 | AD50: 0.0228102975 | AE50: 0.04070723853 | AF50: 0.07828407016 | AG50: 0.1589490942
C51: 3.36 | D51: 152.3998993 | E51: 132.1056584 | F51: 113.2873249 | G51: 96.798565 | H51: 83.32775243 | I51: 73.38063885 | J51: 67.29015894 | K51: 65.24054666 | L51: 67.29015894 | M51: 73.38063885 | N51: 83.32775243 | O51: 96.798565 | P51: 113.2873249 | Q51: 132.1056584 | R51: 152.3998993 | S51: 0.1681335483 | T51: 0.08440131869 | U51: 0.04461160901 | V51: 0.02531709831 | W51: 0.01585463134 | X51: 0.01121773758 | Y51: 0.009090297416 | Z51: 0.008473685944 | AA51: 0.009090297416 | AB51: 0.01121773758 | AC51: 0.01585463134 | AD51: 0.02531709831 | AE51: 0.04461160901 | AF51: 0.08440131869 | AG51: 0.1681335483
C52: 3.52 | D52: 152.7256095 | E52: 133.0579178 | F52: 114.796758 | G52: 98.76510188 | H52: 85.63811316 | I52: 75.92363581 | J52: 69.9652845 | K52: 67.95821936 | L52: 69.9652845 | M52: 75.92363581 | N52: 85.63811316 | O52: 98.76510188 | P52: 114.796758 | Q52: 133.0579178 | R52: 152.7256095 | S52: 0.1773109757 | T52: 0.09063168391 | U52: 0.04866291893 | V52: 0.02796457676 | W52: 0.01766203157 | X52: 0.0125528238 | Y52: 0.01018900617 | Z52: 0.009500930886 | AA52: 0.01018900617 | AB52: 0.0125528238 | AC52: 0.01766203157 | AD52: 0.02796457676 | AE52: 0.04866291893 | AF52: 0.09063168391 | AG52: 0.1773109757
C53: 3.68 | D53: 153.0364208 | E53: 133.9683452 | F53: 116.2450136 | G53: 100.6608236 | H53: 87.87670374 | I53: 78.39908735 | J53: 72.5778292 | K53: 70.61542235 | L53: 72.5778292 | M53: 78.39908735 | N53: 87.87670374 | O53: 100.6608236 | P53: 116.2450136 | Q53: 133.9683452 | R53: 153.0364208 | S53: 0.186476829 | T53: 0.09696943915 | U53: 0.05285825005 | V53: 0.03075311143 | W53: 0.01959446898 | X53: 0.01399714141 | Y53: 0.01138653572 | Z53: 0.01062344785 | AA53: 0.01138653572 | AB53: 0.01399714141 | AC53: 0.01959446898 | AD53: 0.03075311143 | AE53: 0.05285825005 | AF53: 0.09696943915 | AG53: 0.186476829
C54: 3.84 | D54: 153.3339103 | E54: 134.8411368 | F54: 117.6375176 | G54: 102.4906923 | H54: 90.0466689 | I54: 80.80778605 | J54: 75.12666439 | K54: 73.21029211 | L54: 75.12666439 | M54: 80.80778605 | N54: 90.0466689 | O54: 102.4906923 | P54: 117.6375176 | Q54: 134.8411368 | R54: 153.3339103 | S54: 0.1956269063 | T54: 0.1034092219 | U54: 0.05719476776 | V54: 0.03368293157 | W54: 0.02165444223 | X54: 0.01555448728 | Y54: 0.01268727929 | Z54: 0.01184579493 | AA54: 0.01268727929 | AB54: 0.01555448728 | AC54: 0.02165444223 | AD54: 0.03368293157 | AE54: 0.05719476776 | AF54: 0.1034092219 | AG54: 0.1956269063
C55: 4 | D55: 153.6193693 | E55: 135.6797443 | F55: 118.978782 | G55: 104.2589304 | H55: 92.15084945 | I55: 83.15074209 | J55: 77.61129091 | K55: 75.74174987 | L55: 77.61129091 | M55: 83.15074209 | N55: 92.15084945 | O55: 104.2589304 | P55: 118.978782 | Q55: 135.6797443 | R55: 153.6193693 | S55: 0.2047572963 | T55: 0.1099459614 | U55: 0.06166968411 | V55: 0.03675410579 | W55: 0.02384420478 | X55: 0.01722841282 | Y55: 0.01409540889 | Z55: 0.0131723209 | AA55: 0.01409540889 | AB55: 0.01722841282 | AC55: 0.02384420478 | AD55: 0.03675410579 | AE55: 0.06166968411 | AF55: 0.1099459614 | AG55: 0.2047572963
C56: 4.16 | D56: 153.8938627 | E56: 136.4870279 | F56: 120.2725888 | G56: 105.969163 | H56: 94.19183133 | I56: 85.42912579 | J56: 80.03170006 | K56: 78.20933239 | L56: 80.03170006 | M56: 85.42912579 | N56: 94.19183133 | O56: 105.969163 | P56: 120.2725888 | Q56: 136.4870279 | R56: 153.8938627 | S56: 0.2138643333 | T56: 0.1165748202 | U56: 0.0662802276 | V56: 0.03996653266 | W56: 0.02616575953 | X56: 0.01902221413 | Y56: 0.01561486077 | Z56: 0.01460714881 | AA56: 0.01561486077 | AB56: 0.01902221413 | AC56: 0.02616575953 | AD56: 0.03996653266 | AE56: 0.0662802276 | AF56: 0.1165748202 | AG56: 0.2138643333
C57: 4.32 | D57: 154.1582755 | E57: 137.2653765 | F57: 121.522135 | G57: 107.6245319 | H57: 96.17198645 | I57: 87.64422315 | J57: 82.38826276 | K57: 80.61305622 | L57: 82.38826276 | M57: 87.64422315 | N57: 96.17198645 | O57: 107.6245319 | P57: 121.522135 | Q57: 137.2653765 | R57: 154.1582755 | S57: 0.222944563 | T57: 0.123291148 | U57: 0.07102361892 | V57: 0.04331993367 | W57: 0.02862085495 | X57: 0.02093892413 | Y57: 0.0172493231 | Z57: 0.01615416196 | AA57: 0.0172493231 | AB57: 0.02093892413 | AC57: 0.02862085495 | AD57: 0.04331993367 | AE57: 0.07102361892 | AF57: 0.123291148 | AG57: 0.222944563
C58: 4.48 | D58: 154.413349 | E58: 138.0168027 | F58: 122.7301483 | G58: 109.2277862 | H58: 98.09350621 | I58: 89.79740119 | J58: 84.68164132 | K58: 82.95330938 | L58: 84.68164132 | M58: 89.79740119 | N58: 98.09350621 | O58: 109.2277862 | P58: 122.7301483 | Q58: 138.0168027 | R58: 154.413349 | S58: 0.2319947146 | T58: 0.1300904444 | U58: 0.07589705174 | V58: 0.04681384817 | W58: 0.03121098266 | X58: 0.02298130649 | Y58: 0.0190022258 | Z58: 0.01781699219 | AA58: 0.0190022258 | AB58: 0.02298130649 | AC58: 0.03121098266 | AD58: 0.04681384817 | AE58: 0.07589705174 | AF58: 0.1300904444 | AG58: 0.2319947146
C59: 4.64 | D59: 154.6597102 | E59: 138.7430175 | F59: 123.8989783 | G59: 110.781356 | H59: 99.95842911 | I59: 91.89008103 | J59: 86.9127194 | K59: 85.23076495 | L59: 86.9127194 | M59: 91.89008103 | N59: 99.95842911 | O59: 110.781356 | P59: 123.8989783 | Q59: 138.7430175 | R59: 154.6597102 | S59: 0.2410116793 | T59: 0.1369683303 | U59: 0.08089767808 | V59: 0.05044763031 | W59: 0.03393737649 | X59: 0.02515185126 | Y59: 0.02087673252 | Z59: 0.01959901034 | AA59: 0.02087673252 | AB59: 0.02515185126 | AC59: 0.03393737649 | AD59: 0.05044763031 | AE59: 0.08089767808 | AF59: 0.1369683303 | AG59: 0.2410116793
C60: 4.8 | D60: 154.8978937 | E60: 139.4454895 | F60: 125.0306693 | G60: 112.2874099 | H60: 101.7686631 | I60: 93.92371689 | J60: 89.08254644 | K60: 87.44631251 | L60: 89.08254644 | M60: 93.92371689 | N60: 101.7686631 | O60: 112.2874099 | P60: 125.0306693 | Q60: 139.4454895 | R60: 154.8978937 | S60: 0.2499924932 | T60: 0.1439205247 | U60: 0.08602259737 | V60: 0.05422044778 | W60: 0.0368010128 | X60: 0.02745277214 | Y60: 0.02287573438 | Z60: 0.02150331865 | AA60: 0.02287573438 | AB60: 0.02745277214 | AC60: 0.0368010128 | AD60: 0.05422044778 | AE60: 0.08602259737 | AF60: 0.1439205247 | AG60: 0.2499924932
C61: 4.96 | D61: 155.1283605 | E61: 140.1254916 | F61: 126.1270179 | G61: 113.7479027 | H61: 103.5260038 | I61: 95.89977987 | J61: 91.1922938 | K61: 89.60100371 | L61: 91.1922938 | M61: 95.89977987 | N61: 103.5260038 | O61: 113.7479027 | P61: 126.1270179 | Q61: 140.1254916 | R61: 155.1283605 | S61: 0.258934324 | T61: 0.1509428276 | U61: 0.0912688488 | V61: 0.05813128212 | W61: 0.03980261209 | X61: 0.02988600521 | Y61: 0.02500184557 | Z61: 0.02353274505 | AA61: 0.02500184557 | AB61: 0.02988600521 | AC61: 0.03980261209 | AD61: 0.05813128212 | AE61: 0.0912688488 | AF61: 0.1509428276 | AG61: 0.258934324
C62: 5.12 | D62: 155.3515115 | E62: 140.7841389 | F62: 127.1896192 | G62: 115.1646116 | H62: 105.2321497 | I62: 97.81974528 | J62: 93.24322004 | K62: 91.69600923 | L62: 93.24322004 | M62: 97.81974528 | N62: 105.2321497 | O62: 115.1646116 | P62: 127.1896192 | Q62: 140.7841389 | R62: 155.3515115 | S62: 0.2678344598 | T62: 0.1580311067 | U62: 0.09663340626 | V62: 0.0621789305 | W62: 0.04294264174 | X62: 0.03245320908 | Y62: 0.02725740055 | Z62: 0.02568983924 | AA62: 0.02725740055 | AB62: 0.03245320908 | AC62: 0.04294264174 | AD62: 0.0621789305 | AE62: 0.09663340626 | AF62: 0.1580311067 | AG62: 0.2678344598
C63: 5.28 | D63: 155.5676993 | E63: 141.4224175 | F63: 128.2199033 | G63: 116.539167 | H63: 106.8887136 | I63: 99.68508293 | J63: 95.23664366 | K63: 93.73258477 | L63: 95.23664366 | M63: 99.68508293 | N63: 106.8887136 | O63: 116.539167 | P63: 128.2199033 | Q63: 141.4224175 | R63: 155.5676993 | S63: 0.2766903014 | T63: 0.1651812873 | U63: 0.1021131756 | V63: 0.06636200865 | W63: 0.04622131976 | X63: 0.03515576625 | Y63: 0.0296444528 | Z63: 0.02797687032 | AA63: 0.0296444528 | AB63: 0.03515576625 | AC63: 0.04622131976 | AD63: 0.06636200865 | AE63: 0.1021131756 | AF63: 0.1651812873 | AG63: 0.2766903014
C64: 5.44 | D64: 155.7772372 | E64: 142.0412089 | F64: 129.2191645 | G64: 117.8730758 | H64: 108.4972332 | I64: 101.4972497 | J64: 97.17392167 | K64: 95.7120443 | L64: 97.17392167 | M64: 101.4972497 | N64: 108.4972332 | O64: 117.8730758 | P64: 129.2191645 | Q64: 142.0412089 | R64: 155.7772372 | S64: 0.2854993555 | T64: 0.1723893453 | U64: 0.1077049938 | V64: 0.07067895493 | W64: 0.04963861949 | X64: 0.03799478561 | Y64: 0.0321647749 | Z64: 0.03039582591 | AA64: 0.0321647749 | AB64: 0.03799478561 | AC64: 0.04963861949 | AD64: 0.07067895493 | AE64: 0.1077049938 | AF64: 0.1723893453 | AG64: 0.2854993555
C65: 5.6 | D65: 155.980406 | E65: 142.6413081 | F65: 130.1885849 | G65: 119.1677411 | H65: 110.0591789 | I65: 103.2576838 | J65: 99.05643275 | K65: 97.63573901 | L65: 99.05643275 | M65: 103.2576838 | N65: 110.0591789 | O65: 119.1677411 | P65: 130.1885849 | Q65: 142.6413081 | R65: 155.980406 | S65: 0.2942592291 | T65: 0.1796513026 | U65: 0.1134056291 | V65: 0.07512803517 | W65: 0.05319427507 | X65: 0.04097110604 | Y65: 0.0348198599 | Z65: 0.03294841261 | AA65: 0.0348198599 | AB65: 0.04097110604 | AC65: 0.05319427507 | AD65: 0.07512803517 | AE65: 0.1134056291 | AF65: 0.1796513026 | AG65: 0.2942592291
C66: 5.76 | D66: 156.1774603 | E66: 143.2234391 | F66: 131.1292528 | G66: 120.4244773 | H66: 111.5759603 | I66: 104.9678008 | J66: 100.8855642 | K66: 99.50504088 | L66: 100.8855642 | M66: 104.9678008 | N66: 111.5759603 | O66: 120.4244773 | P66: 131.1292528 | Q66: 143.2234391 | R66: 156.1774603 | S66: 0.302967626 | T66: 0.1869632235 | U66: 0.1192117835 | V66: 0.07970734839 | W66: 0.05688778763 | X66: 0.04408530087 | Y66: 0.03761092383 | Z66: 0.03563605772 | AA66: 0.03761092383 | AB66: 0.04408530087 | AC66: 0.05688778763 | AD66: 0.07970734839 | AE66: 0.1192117835 | AF66: 0.1869632235 | AG66: 0.302967626
C67: 5.92 | D67: 156.3686322 | E67: 143.7882667 | F67: 132.042178 | G67: 121.6445228 | H67: 113.0489321 | I67: 106.6289898 | J67: 102.6627019 | K67: 101.3213298 | L67: 102.6627019 | M67: 106.6289898 | N67: 113.0489321 | O67: 121.6445228 | P67: 132.042178 | Q67: 143.7882667 | R67: 156.3686322 | S67: 0.3116223429 | T67: 0.194321213 | U67: 0.1251200949 | V67: 0.08441483299 | W67: 0.06071843212 | X67: 0.04733768319 | Y67: 0.04053890926 | Z67: 0.03845991203 | AA67: 0.04053890926 | AB67: 0.04733768319 | AC67: 0.06071843212 | AD67: 0.08441483299 | AE67: 0.1251200949 | AF67: 0.194321213 | AG67: 0.3116223429
C68: 6.08 | D68: 156.554136 | E68: 144.336406 | F68: 132.9283035 | G68: 122.8290498 | H68: 114.4793982 | I68: 108.2426122 | J68: 104.3892222 | K68: 103.0859838 | L68: 104.3892222 | M68: 108.2426122 | N68: 114.4793982 | O68: 122.8290498 | P68: 132.9283035 | Q68: 144.336406 | R68: 156.554136 | S68: 0.320221267 | T68: 0.2017214163 | U68: 0.1311271408 | V68: 0.08924827347 | W68: 0.06468526457 | X68: 0.0507283119 | Y68: 0.04360448979 | Z68: 0.04142085366 | AA68: 0.04360448979 | AB68: 0.0507283119 | AC68: 0.06468526457 | AD68: 0.08924827347 | AE68: 0.1311271408 | AF68: 0.2017214163 | AG68: 0.320221267
C69: 6.24 | D69: 156.7341704 | E69: 144.8684303 | F69: 133.788515 | G69: 123.9791727 | H69: 115.8686159 | I69: 109.809999 | J69: 106.0664861 | K69: 104.8003709 | L69: 106.0664861 | M69: 109.809999 | N69: 115.8686159 | O69: 123.9791727 | P69: 133.788515 | Q69: 144.8684303 | R69: 156.7341704 | S69: 0.3287623739 | T69: 0.2091600187 | U69: 0.1372294425 | V69: 0.09420530758 | W69: 0.0687871299 | X69: 0.05425699837 | Y69: 0.0468080753 | Z69: 0.04451949277 | AA69: 0.0468080753 | AB69: 0.05425699837 | AC69: 0.0687871299 | AD69: 0.09420530758 | AE69: 0.1372294425 | AF69: 0.2091600187 | AG69: 0.3287623739
C70: 6.4 | D70: 156.9089208 | E70: 145.384877 | F70: 134.6236494 | G70: 125.0959546 | H70: 117.2177991 | I70: 111.3324507 | J70: 107.6958349 | K70: 106.465844 | L70: 107.6958349 | M70: 111.3324507 | N70: 117.2177991 | O70: 125.0959546 | P70: 134.6236494 | Q70: 145.384877 | R70: 156.9089208 | S70: 0.3372437256 | T70: 0.2166332468 | U70: 0.1434234698 | V70: 0.09928343371 | W70: 0.07302266998 | X70: 0.05792331367 | Y70: 0.05014981804 | Z70: 0.04775617708 | AA70: 0.05014981804 | AB70: 0.05792331367 | AC70: 0.07302266998 | AD70: 0.09928343371 | AE70: 0.1434234698 | AF70: 0.2166332468 | AG70: 0.3372437256
C71: 6.56 | D71: 157.0785618 | E71: 145.8862531 | F71: 135.4345004 | G71: 126.1804128 | H71: 118.528121 | I71: 112.811236 | J71: 109.2785865 | K71: 108.0837356 | L71: 109.2785865 | M71: 112.811236 | N71: 118.528121 | O71: 126.1804128 | P71: 135.4345004 | Q71: 145.8862531 | R71: 157.0785618 | S71: 0.345663469 | T71: 0.2241373693 | U71: 0.1497056457 | V71: 0.1044800184 | W71: 0.07739033196 | X71: 0.06172659623 | Y71: 0.05362961925 | Z71: 0.05113099805 | AA71: 0.05362961925 | AB71: 0.06172659623 | AC71: 0.07739033196 | AD71: 0.1044800184 | AE71: 0.1497056457 | AF71: 0.2241373693 | AG71: 0.345663469
C72: 6.72 | D72: 157.2432581 | E72: 146.3730386 | F72: 136.221824 | G72: 127.2335233 | H72: 119.8007162 | I72: 114.247592 | J72: 110.8160331 | K72: 109.6553552 | L72: 110.8160331 | M72: 114.247592 | N72: 119.8007162 | O72: 127.2335233 | P72: 136.221824 | Q72: 146.3730386 | R72: 157.2432581 | S72: 0.3540198347 | T72: 0.2316686992 | U72: 0.1560723515 | V72: 0.1097923043 | W72: 0.08188837693 | X72: 0.06566595995 | Y72: 0.05724713638 | Z72: 0.05464379776 | AA72: 0.05724713638 | AB72: 0.06566595995 | AC72: 0.08188837693 | AD72: 0.1097923043 | AE72: 0.1560723515 | AF72: 0.2316686992 | AG72: 0.3540198347
C73: 6.88 | D73: 157.4031661 | E73: 146.84569 | F73: 136.9863423 | G73: 128.2562241 | H73: 121.0366832 | I73: 115.6427238 | J73: 112.3094394 | K73: 111.1819864 | L73: 112.3094394 | M73: 115.6427238 | N73: 121.0366832 | O73: 128.2562241 | P73: 136.9863423 | Q73: 146.84569 | R73: 157.4031661 | S73: 0.3623111354 | T73: 0.2392235954 | U73: 0.1625199325 | V73: 0.1152174178 | W73: 0.0865148886 | X73: 0.06974030258 | Y73: 0.06100179081 | Z73: 0.05829417623 | AA73: 0.06100179081 | AB73: 0.06974030258 | AC73: 0.0865148886 | AD73: 0.1152174178 | AE73: 0.1625199325 | AF73: 0.2392235954 | AG73: 0.3623111354
C74: 7.04 | D74: 157.5584348 | E74: 147.3046433 | F74: 137.7287475 | G74: 129.249419 | H74: 122.2370861 | I74: 116.9978047 | J74: 113.7600415 | K74: 112.6648856 | L74: 113.7600415 | M74: 116.9978047 | N74: 122.2370861 | O74: 129.249419 | P74: 137.7287475 | Q74: 147.3046433 | R74: 157.5584348 | S74: 0.3705357654 | T74: 0.246798465 | U74: 0.1690447032 | V74: 0.1207523767 | W74: 0.09126778213 | X74: 0.07394831438 | Y74: 0.06489277587 | Z74: 0.06208149921 | AA74: 0.06489277587 | AB74: 0.07394831438 | AC74: 0.09126778213 | AD74: 0.1207523767 | AE74: 0.1690447032 | AF74: 0.246798465 | AG74: 0.3705357654
C75: 7.2 | D75: 157.7092063 | E75: 147.7503157 | F75: 138.4497042 | G75: 130.2139795 | H75: 123.4029559 | I75: 118.3139768 | J75: 115.1690458 | K75: 114.1052804 | L75: 115.1690458 | M75: 118.3139768 | N75: 123.4029559 | O75: 130.2139795 | P75: 138.4497042 | Q75: 147.7503157 | R75: 157.7092063 | S75: 0.3786921988 | T75: 0.2543897656 | U75: 0.1756429527 | V75: 0.1263940986 | W75: 0.09614481304 | X75: 0.07828848694 | Y75: 0.0689190653 | Z75: 0.0660049064 | AA75: 0.0689190653 | AB75: 0.07828848694 | AC75: 0.09614481304 | AD75: 0.1263940986 | AE75: 0.1756429527 | AF75: 0.2543897656 | AG75: 0.3786921988
C76: 7.36 | D76: 157.8556173 | E76: 148.1831076 | F76: 139.1498518 | G76: 131.1507471 | H76: 124.5352922 | I76: 119.5923512 | J76: 116.5376292 | K76: 115.5043692 | L76: 116.5376292 | M76: 119.5923512 | N76: 124.5352922 | O76: 131.1507471 | P76: 139.1498518 | Q76: 148.1831076 | R76: 157.8556173 | S76: 0.3867789891 | T76: 0.2619940073 | U76: 0.1823109504 | V76: 0.1321394083 | W76: 0.1011435861 | X76: 0.08275912218 | Y76: 0.07307942189 | Z76: 0.07006331989 | AA76: 0.07307942189 | AB76: 0.08275912218 | AC76: 0.1011435861 | AD76: 0.1321394083 | AE76: 0.1823109504 | AF76: 0.2619940073 | AG76: 0.3867789891
C77: 7.52 | D77: 157.9977985 | E77: 148.603404 | F77: 139.8298069 | G77: 132.0605355 | H77: 125.6350644 | I77: 120.8340084 | J77: 117.8669385 | K77: 116.8633208 | L77: 117.8669385 | M77: 120.8340084 | N77: 125.6350644 | O77: 132.0605355 | P77: 139.8298069 | Q77: 148.603404 | R77: 157.9977985 | S77: 0.3947947679 | T77: 0.2696077554 | U77: 0.1890449512 | V77: 0.1379850453 | W77: 0.1062615642 | X77: 0.08735834145 | Y77: 0.0773724063 | Z77: 0.07425545292 | AA77: 0.0773724063 | AB77: 0.08735834145 | AC77: 0.1062615642 | AD77: 0.1379850453 | AE77: 0.1890449512 | AF77: 0.2696077554 | AG77: 0.3947947679
C78: 7.68 | D78: 158.1358762 | E78: 149.0115758 | F78: 140.4901644 | G78: 132.9441319 | H78: 126.7032128 | I78: 122.0399991 | J78: 119.1580905 | K78: 118.183274 | L78: 119.1580905 | M78: 122.0399991 | N78: 126.7032128 | O78: 132.9441319 | P78: 140.4901644 | Q78: 149.0115758 | R78: 158.1358762 | S78: 0.4027382437 | T78: 0.2772276324 | U78: 0.1958412009 | V78: 0.1439276721 | W78: 0.1114960772 | X78: 0.09208409463 | Y78: 0.08179638617 | Z78: 0.07857981876 | AA78: 0.08179638617 | AB78: 0.09208409463 | AC78: 0.1114960772 | AD78: 0.1439276721 | AE78: 0.1958412009 | AF78: 0.2772276324 | AG78: 0.4027382437
C79: 7.84 | D79: 158.2699718 | E79: 149.4079809 | F79: 141.131499 | G79: 133.8022983 | H79: 127.7406499 | I79: 123.2113448 | J79: 120.4121724 | K79: 119.465338 | L79: 120.4121724 | M79: 123.2113448 | N79: 127.7406499 | O79: 133.8022983 | P79: 141.131499 | Q79: 149.4079809 | R79: 158.2699718 | S79: 0.4106082013 | T79: 0.2848503206 | U79: 0.2026959417 | V79: 0.149963881 | W79: 0.1168443305 | X79: 0.09693416929 | Y79: 0.08634954512 | Z79: 0.08303473978 | AA79: 0.08634954512 | AB79: 0.09693416929 | AC79: 0.1168443305 | AD79: 0.149963881 | AE79: 0.2026959417 | AF79: 0.2848503206 | AG79: 0.4106082013
C80: 8 | D80: 158.4002026 | E80: 149.7929649 | F80: 141.7543666 | G80: 134.6357732 | H80: 128.7482612 | I80: 124.3490383 | J80: 121.6302422 | K80: 120.7105925 | L80: 121.6302422 | M80: 124.3490383 | N80: 128.7482612 | O80: 134.6357732 | P80: 141.7543666 | Q80: 149.7929649 | R80: 158.4002026 | S80: 0.4184035001 | T80: 0.2924725638 | U80: 0.2096054169 | V80: 0.1560902018 | W80: 0.1223034141 | X80: 0.1019061998 | Y80: 0.09102989202 | Z80: 0.08761835658 | AA80: 0.09102989202 | AB80: 0.1019061998 | AC80: 0.1223034141 | AD80: 0.1560902018 | AE80: 0.2096054169 | AF80: 0.2924725638 | AG80: 0.4184035001
C81: 8.16 | D81: 158.526682 | E81: 150.1668619 | F81: 142.3593054 | G81: 135.4452719 | H81: 129.726906 | I81: 125.4540445 | J81: 122.8133289 | K81: 121.9200881 | L81: 122.8133289 | M81: 125.4540445 | N81: 129.726906 | O81: 135.4452719 | P81: 142.3593054 | Q81: 150.1668619 | R81: 158.526682 | S81: 0.4261230736 | T81: 0.3000911697 | U81: 0.2165658765 | V81: 0.1623031088 | W81: 0.1278703104 | X81: 0.1069976764 | Y81: 0.09583527007 | Z81: 0.09232863716 | AA81: 0.09583527007 | AB81: 0.1069976764 | AC81: 0.1278703104 | AD81: 0.1623031088 | AE81: 0.2165658765 | AF81: 0.3000911697 | AG81: 0.4261230736
C82: 8.32 | D82: 158.6495195 | E82: 150.5299954 | F82: 142.9468364 | G82: 136.2314882 | H82: 130.6774186 | I82: 126.5273008 | J82: 123.9624332 | K82: 123.0948465 | L82: 123.9624332 | M82: 126.5273008 | N82: 130.6774186 | O82: 136.2314882 | P82: 142.9468364 | Q82: 150.5299954 | R82: 158.6495195 | S82: 0.4337659276 | T82: 0.3077030119 | U82: 0.2235735815 | V82: 0.168599028 | W82: 0.1335419034 | X82: 0.1122059542 | Y82: 0.100763366 | Z82: 0.09716338612 | AA82: 0.100763366 | AB82: 0.1122059542 | AC82: 0.1335419034 | AD82: 0.168599028 | AE82: 0.2235735815 | AF82: 0.3077030119 | AG82: 0.4337659276
C83: 8.48 | D83: 158.7688213 | E83: 150.8826783 | F83: 143.5174644 | G83: 136.9950951 | H83: 131.600609 | I83: 127.5697185 | J83: 125.0785278 | K83: 124.2358615 | L83: 125.0785278 | M83: 127.5697185 | N83: 131.600609 | O83: 136.9950951 | P83: 143.5174644 | Q83: 150.8826783 | R83: 158.7688213 | S83: 0.4413311397 | T83: 0.3153050314 | U83: 0.2306248091 | V83: 0.174974344 | W83: 0.1393149861 | X83: 0.117528262 | Y83: 0.1058117194 | Z83: 0.1021202538 | AA83: 0.1058117194 | AB83: 0.117528262 | AC83: 0.1393149861 | AD83: 0.174974344 | AE83: 0.2306248091 | AF83: 0.3153050314 | AG83: 0.4413311397
C84: 8.64 | D84: 158.8846901 | E84: 151.2252139 | F84: 144.0716791 | G84: 137.7367452 | H84: 132.4972635 | I84: 128.5821826 | J84: 126.1625586 | K84: 125.3440991 | L84: 126.1625586 | M84: 128.5821826 | N84: 132.4972635 | O84: 137.7367452 | P84: 144.0716791 | Q84: 151.2252139 | R84: 158.8846901 | S84: 0.4488178575 | T84: 0.3228942391 | U84: 0.237715857 | V84: 0.1814254063 | W84: 0.1451862691 | X84: 0.1229617111 | Y84: 0.1109777312 | Z84: 0.1071967454 | AA84: 0.1109777312 | AB84: 0.1229617111 | AC84: 0.1451862691 | AD84: 0.1814254063 | AE84: 0.237715857 | AF84: 0.3228942391 | AG84: 0.4488178575
C85: 8.8 | D85: 158.9972255 | E85: 151.5578964 | F85: 144.6099549 | G85: 138.457072 | H85: 133.3681456 | I85: 129.565553 | J85: 127.2154446 | K85: 126.4204984 | L85: 127.2154446 | M85: 129.565553 | N85: 133.3681456 | O85: 138.457072 | P85: 144.6099549 | Q85: 151.5578964 | R85: 158.9972255 | S85: 0.4562252974 | T85: 0.3304677163 | U85: 0.244843048 | V85: 0.1879485362 | W85: 0.1511523882 | X85: 0.1285033039 | Y85: 0.1162586732 | Z85: 0.1123902299 | AA85: 0.1162586732 | AB85: 0.1285033039 | AC85: 0.1511523882 | AD85: 0.1879485362 | AE85: 0.244843048 | AF85: 0.3304677163 | AG85: 0.4562252974
C86: 8.96 | D86: 159.1065239 | E86: 151.8810106 | F86: 145.1327522 | G86: 139.1566901 | H86: 134.2139967 | I86: 130.5206651 | J86: 128.2380791 | K86: 127.4659722 | L86: 128.2380791 | M86: 130.5206651 | N86: 134.2139967 | O86: 139.1566901 | P86: 145.1327522 | Q86: 151.8810106 | R86: 159.1065239 | S86: 0.4635527436 | T86: 0.3380226174 | U86: 0.2520027339 | V86: 0.1945400329 | W86: 0.1572099122 | X86: 0.1341499422 | Y86: 0.1216516967 | Z86: 0.1176979493 | AA86: 0.1216516967 | AB86: 0.1341499422 | AC86: 0.1572099122 | AD86: 0.1945400329 | AE86: 0.2520027339 | AF86: 0.3380226174 | AG86: 0.4635527436
C87: 9.12 | D87: 159.212679 | E87: 152.1948331 | F87: 145.6405178 | G87: 139.8361961 | H87: 135.0355367 | I87: 131.4483305 | J87: 129.2313298 | K87: 128.4814072 | L87: 129.2313298 | M87: 131.4483305 | N87: 135.0355367 | O87: 139.8361961 | P87: 145.6405178 | Q87: 152.1948331 | R87: 159.212679 | S87: 0.4707995463 | T87: 0.3455561703 | U87: 0.2591913001 | V87: 0.2011961795 | W87: 0.1633553502 | X87: 0.139898436 | Y87: 0.1271538409 | Z87: 0.1231170268 | AA87: 0.1271538409 | AB87: 0.139898436 | AC87: 0.1633553502 | AD87: 0.2011961795 | AE87: 0.2591913001 | AF87: 0.3455561703 | AG87: 0.4707995463
C88: 9.28 | D88: 159.3157816 | E88: 152.4996321 | F88: 146.133685 | G88: 140.4961692 | H88: 135.8334648 | I88: 132.3493376 | J88: 130.1960402 | K88: 129.4676654 | L88: 130.1960402 | M88: 132.3493376 | N88: 135.8334648 | O88: 140.4961692 | P88: 146.133685 | Q88: 152.4996321 | R88: 159.3157816 | S88: 0.4779651208 | T88: 0.3530656779 | U88: 0.2664051689 | V88: 0.2079132491 | W88: 0.1695851591 | X88: 0.145745511 | Y88: 0.1327620419 | Z88: 0.1286444761 | AA88: 0.1327620419 | AB88: 0.145745511 | AC88: 0.1695851591 | AD88: 0.2079132491 | AE88: 0.2664051689 | AF88: 0.3530656779 | AG88: 0.4779651208
C89: 9.44 | D89: 159.4159197 | E89: 152.7956678 | F89: 146.6126747 | G89: 141.1371718 | H89: 136.6084599 | I89: 133.2244521 | J89: 131.1330295 | K89: 130.425584 | L89: 131.1330295 | M89: 133.2244521 | N89: 136.6084599 | O89: 141.1371718 | P89: 146.6126747 | Q89: 152.7956678 | R89: 159.4159197 | S89: 0.4850489455 | T89: 0.3605485195 | U89: 0.2736408038 | V89: 0.2146875104 | W89: 0.1758957504 | X89: 0.1516878168 | Y89: 0.1384731406 | Z89: 0.1342772096 | AA89: 0.1384731406 | AB89: 0.1516878168 | AC89: 0.1758957504 | AD89: 0.2146875104 | AE89: 0.2736408038 | AF89: 0.3605485195 | AG89: 0.4850489455
C90: 9.6 | D90: 159.5131789 | E90: 153.083193 | F90: 147.0778951 | G90: 141.7597498 | H90: 137.3611813 | I90: 134.0744178 | J90: 132.0430935 | K90: 131.3559767 | L90: 132.0430935 | M90: 134.0744178 | N90: 137.3611813 | O90: 141.7597498 | P90: 147.0778951 | Q90: 153.083193 | R90: 159.5131789 | S90: 0.4920505608 | T90: 0.3680021512 | U90: 0.2808947126 | V90: 0.2215152332 | W90: 0.1822834975 | X90: 0.1577219347 | Y90: 0.1442838912 | Z90: 0.1400120464 | AA90: 0.1442838912 | AB90: 0.1577219347 | AC90: 0.1822834975 | AD90: 0.2215152332 | AE90: 0.2808947126 | AF90: 0.3680021512 | AG90: 0.4920505608
C91: 9.76 | D91: 159.607642 | E91: 153.3624526 | F91: 147.5297428 | G91: 142.3644332 | H91: 138.0922694 | I91: 134.8999572 | J91: 132.9270056 | K91: 132.2596337 | L91: 132.9270056 | M91: 134.8999572 | N91: 138.0922694 | O91: 142.3644332 | P91: 147.5297428 | Q91: 153.3624526 | R91: 159.607642 | S91: 0.4989695676 | T91: 0.3754241069 | U91: 0.2881634508 | V91: 0.2283926939 | W91: 0.1887447419 | X91: 0.1638443851 | Y91: 0.1501909692 | Z91: 0.1458457212 | AA91: 0.1501909692 | AB91: 0.1638443851 | AC91: 0.1887447419 | AD91: 0.2283926939 | AE91: 0.2881634508 | AF91: 0.3754241069 | AG91: 0.4989695676
C92: 9.92 | D92: 159.6993897 | E92: 153.6336848 | F92: 147.9686026 | G92: 142.9517368 | H92: 138.8023462 | I92: 135.7017723 | J92: 133.7855168 | K92: 133.1373228 | L92: 133.7855168 | M92: 135.7017723 | N92: 138.8023462 | O92: 142.9517368 | P92: 147.9686026 | Q92: 153.6336848 | R92: 159.6993897 | S92: 0.5058056256 | T92: 0.3828119993 | U92: 0.2954436251 | V92: 0.2353161801 | W92: 0.1952758001 | X92: 0.1700516351 | Y92: 0.1561909789 | Z92: 0.1517748915 | AA92: 0.1561909789 | AB92: 0.1700516351 | AC92: 0.1952758001 | AD92: 0.2353161801 | AE92: 0.2954436251 | AF92: 0.3828119993 | AG92: 0.5058056256
C93: 10.08 | D93: 159.7885001 | E93: 153.8971206 | F93: 148.3948482 | G93: 143.5221605 | H93: 139.4920155 | I93: 136.4805445 | J93: 134.6193568 | K93: 133.9897898 | L93: 134.6193568 | M93: 136.4805445 | N93: 139.4920155 | O93: 143.5221605 | P93: 148.3948482 | Q93: 153.8971206 | R93: 159.7885001 | S93: 0.5125584519 | T93: 0.3901635197 | U93: 0.302731896 | V93: 0.2422819962 | W93: 0.2018729694 | X93: 0.1763401051 | Y93: 0.1622804614 | Z93: 0.1577961458 | AA93: 0.1622804614 | AB93: 0.1763401051 | AC93: 0.2018729694 | AD93: 0.2422819962 | AE93: 0.302731896 | AF93: 0.3901635197 | AG93: 0.5125584519
C94: 10.24 | D94: 159.8750491 | E94: 154.1529844 | F94: 148.8088425 | G94: 144.0761897 | H94: 140.1618641 | I94: 137.2369362 | J94: 135.4292342 | K94: 134.8177593 | L94: 135.4292342 | M94: 137.2369362 | N94: 140.1618641 | O94: 144.0761897 | P94: 148.8088425 | Q94: 154.1529844 | R94: 159.8750491 | S94: 0.5192278194 | T94: 0.397476439 | U94: 0.310024981 | V94: 0.2492864676 | W94: 0.2085325345 | X94: 0.1827061764 | Y94: 0.1684559017 | Z94: 0.163906011 | AA94: 0.1684559017 | AB94: 0.1827061764 | AC94: 0.2085325345 | AD94: 0.2492864676 | AE94: 0.310024981 | AF94: 0.397476439 | AG94: 0.5192278194
C95: 10.4 | D95: 159.9591105 | E95: 154.401494 | F95: 149.210938 | G95: 144.6142958 | H95: 140.8124615 | I95: 137.9715902 | J95: 136.2158375 | K95: 135.6219349 | L95: 136.2158375 | M95: 137.9715902 | N95: 140.8124615 | O95: 144.6142958 | P95: 149.210938 | Q95: 154.401494 | R95: 159.9591105 | S95: 0.5258135553 | T95: 0.4047486078 | U95: 0.3173196569 | V95: 0.2563259453 | W95: 0.2152507727 | X95: 0.1891461975 | Y95: 0.1747137362 | Z95: 0.1701009599 | AA95: 0.1747137362 | AB95: 0.1891461975 | AC95: 0.2152507727 | AD95: 0.2563259453 | AE95: 0.3173196569 | AF95: 0.4047486078 | AG95: 0.5258135553
C96: 10.56 | D96: 160.0407557 | E96: 154.642861 | F96: 149.6014767 | G96: 145.1369365 | H96: 141.4443612 | I96: 138.6851314 | J96: 136.9798355 | K96: 136.4030003 | L96: 136.9798355 | M96: 138.6851314 | N96: 141.4443612 | O96: 145.1369365 | P96: 149.6014767 | Q96: 154.642861 | R96: 160.0407557 | S96: 0.5323155393 | T96: 0.4119779562 | U96: 0.3246127623 | V96: 0.2633968106 | W96: 0.2220239603 | X96: 0.1956564907 | Y96: 0.1810503596 | Z96: 0.1763774183 | AA96: 0.1810503596 | AB96: 0.1956564907 | AC96: 0.2220239603 | AD96: 0.2633968106 | AE96: 0.3246127623 | AF96: 0.4119779562 | AG96: 0.5323155393
C97: 10.72 | D97: 160.1200543 | E97: 154.8772908 | F97: 149.9807911 | G97: 145.6445565 | H97: 142.0581005 | I97: 139.3781664 | J97: 137.7218774 | K97: 137.1616194 | L97: 137.7218774 | M97: 139.3781664 | N97: 142.0581005 | O97: 145.6445565 | P97: 149.9807911 | Q97: 154.8772908 | R97: 160.1200543 | S97: 0.5387337024 | T97: 0.4191624943 | U97: 0.3319012004 | V97: 0.2704954786 | W97: 0.2288483773 | X97: 0.2022333585 | Y97: 0.1874621313 | Z97: 0.1827317717 | AA97: 0.1874621313 | AB97: 0.2022333585 | AC97: 0.2288483773 | AD97: 0.2704954786 | AE97: 0.3319012004 | AF97: 0.4191624943 | AG97: 0.5387337024
C98: 10.88 | D98: 160.1970738 | E98: 155.1049829 | F98: 150.3492038 | G98: 146.1375876 | H98: 142.6542015 | I98: 140.0512844 | J98: 138.4425944 | K98: 137.8984372 | L98: 138.4425944 | M98: 140.0512844 | N98: 142.6542015 | O98: 146.1375876 | P98: 150.3492038 | Q98: 155.1049829 | R98: 160.1970738 | S98: 0.5450680248 | T98: 0.426300312 | U98: 0.3391819402 | V98: 0.2776184025 | W98: 0.2357203131 | X98: 0.2088730894 | Y98: 0.1939453828 | Z98: 0.1891603726 | AA98: 0.1939453828 | AB98: 0.2088730894 | AC98: 0.2357203131 | AD98: 0.2776184025 | AE98: 0.3391819402 | AF98: 0.426300312 | AG98: 0.5450680248
C99: 11.04 | D99: 160.2718797 | E99: 155.3261309 | F99: 150.7070282 | G99: 146.6164491 | H99: 143.2331709 | I99: 140.7050579 | J99: 139.1425991 | K99: 138.61408 | L99: 139.1425991 | M99: 140.7050579 | N99: 143.2331709 | O99: 146.6164491 | P99: 150.7070282 | Q99: 155.3261309 | R99: 160.2718797 | S99: 0.5513185347 | T99: 0.4333895783 | U99: 0.3464520194 | V99: 0.2847620775 | W99: 0.2426360715 | X99: 0.2155719642 | Y99: 0.2004964234 | Z99: 0.1956595466 | AA99: 0.2004964234 | AB99: 0.2155719642 | AC99: 0.2426360715 | AD99: 0.2847620775 | AE99: 0.3464520194 | AF99: 0.4333895783 | AG99: 0.5513185347
C100: 11.2 | D100: 160.3445356 | E100: 155.5409231 | F100: 151.0545689 | G100: 147.0815484 | H100: 143.7955013 | I100: 141.3400428 | J100: 139.8224866 | K100: 139.3091564 | L100: 139.8224866 | M100: 141.3400428 | N100: 143.7955013 | O100: 147.0815484 | P100: 151.0545689 | Q100: 155.5409231 | R100: 160.3445356 | S100: 0.5574853065 | T100: 0.4404285415 | U100: 0.3537085455 | V100: 0.291923044 | W100: 0.2495919752 | X100: 0.2223262615 | Y100: 0.2071115465 | Z100: 0.2022255987 | AA100: 0.2071115465 | AB100: 0.2223262615 | AC100: 0.2495919752 | AD100: 0.291923044 | AE100: 0.3537085455 | AF100: 0.4404285415 | AG100: 0.5574853065
C101: 11.36 | D101: 160.4151034 | E101: 155.7495422 | F101: 151.3921212 | G101: 147.5332809 | H101: 144.3416709 | I101: 141.9567789 | J101: 140.4828352 | K101: 139.9842573 | L101: 140.4828352 | M101: 141.9567789 | N101: 144.3416709 | O101: 147.5332809 | P101: 151.3921212 | Q101: 155.7495422 | R101: 160.4151034 | S101: 0.5635684592 | T101: 0.4474155288 | U101: 0.3609486978 | V101: 0.2990978909 | W101: 0.2565843708 | X101: 0.229132263 | Y101: 0.213787036 | Z101: 0.2088548197 | AA101: 0.213787036 | AB101: 0.229132263 | AC101: 0.2565843708 | AD101: 0.2990978909 | AE101: 0.3609486978 | AF101: 0.4474155288 | AG101: 0.5635684592
C102: 11.52 | D102: 160.4836431 | E102: 155.9521656 | F102: 151.7199725 | G102: 147.972031 | H102: 144.872144 | I102: 142.5557908 | J102: 141.1242062 | K102: 140.6399567 | L102: 141.1242062 | M102: 142.5557908 | N102: 144.872144 | O102: 147.972031 | P102: 151.7199725 | Q102: 155.9521656 | R102: 160.4836431 | S102: 0.569568155 | T102: 0.4543489451 | U102: 0.3681697286 | V102: 0.3062832592 | W102: 0.263609633 | X102: 0.2359862593 | Y102: 0.2205191712 | Z102: 0.2155434922 | AA102: 0.2205191712 | AB102: 0.2359862593 | AC102: 0.263609633 | AD102: 0.3062832592 | AE102: 0.3681697286 | AF102: 0.4543489451 | AG102: 0.569568155
C103: 11.68 | D103: 160.550213 | E103: 156.1489657 | F103: 152.0384014 | G103: 148.3981717 | H103: 145.3873718 | I103: 143.1375877 | J103: 141.747145 | K103: 141.2768123 | L103: 141.747145 | M103: 143.1375877 | N103: 145.3873718 | O103: 148.3981717 | P103: 152.0384014 | Q103: 156.1489657 | R103: 160.550213 | S103: 0.5754845974 | T103: 0.4612272731 | U103: 0.3753689645 | V103: 0.3134758446 | W103: 0.2706641689 | X103: 0.2428845541 | Y103: 0.2273042333 | Z103: 0.2222878956 | AA103: 0.2273042333 | AB103: 0.2428845541 | AC103: 0.2706641689 | AD103: 0.3134758446 | AE103: 0.3753689645 | AF103: 0.4612272731 | AG103: 0.5754845974
C104: 11.84 | D104: 160.6148696 | E104: 156.3401099 | F104: 152.347679 | G104: 148.8120655 | H104: 145.8877925 | I104: 143.7026645 | J104: 142.3521814 | K104: 141.8953654 | L104: 142.3521814 | M104: 143.7026645 | N104: 145.8877925 | O104: 148.8120655 | P104: 152.347679 | Q104: 156.3401099 | R104: 160.6148696 | S104: 0.5813180299 | T104: 0.4680490723 | U104: 0.3825438079 | V104: 0.3206724005 | W104: 0.277744422 | X104: 0.2498234698 | Y104: 0.2341385102 | Z104: 0.2290843125 | AA104: 0.2341385102 | AB104: 0.2498234698 | AC104: 0.277744422 | AD104: 0.3206724005 | AE104: 0.3825438079 | AF104: 0.4680490723 | AG104: 0.5813180299
C105: 12 | D105: 160.6776681 | E105: 156.5257606 | F105: 152.6480681 | G105: 149.2140643 | H105: 146.3738316 | I105: 144.2515016 | J105: 142.9398297 | K105: 142.496142 | L105: 142.9398297 | M105: 144.2515016 | N105: 146.3738316 | O105: 149.2140643 | P105: 152.6480681 | Q105: 156.5257606 | R105: 160.6776681 | S105: 0.5870687343 | T105: 0.4748129781 | U105: 0.3896917375 | V105: 0.3278697403 | W105: 0.2848468759 | X105: 0.2567993521 | Y105: 0.2410183015 | Z105: 0.2359290333 | AA105: 0.2410183015 | AB105: 0.2567993521 | AC105: 0.2848468759 | AD105: 0.3278697403 | AE105: 0.3896917375 | AF105: 0.4748129781 | AG105: 0.5870687343
C106: 12.16 | D106: 160.7386618 | E106: 156.7060759 | F106: 152.9398242 | G106: 149.60451 | H106: 146.8459025 | I106: 144.7845657 | J106: 143.5105897 | K106: 143.0796531 | L106: 143.5105897 | M106: 144.7845657 | N106: 146.8459025 | O106: 149.60451 | P106: 152.9398242 | Q106: 156.7060759 | R106: 160.7386618 | S106: 0.592737029 | T106: 0.4815177008 | U106: 0.3968103092 | V106: 0.3350647403 | W106: 0.2919680583 | X106: 0.2638085739 | Y106: 0.247939924 | Z106: 0.2428183618 | AA106: 0.247939924 | AB106: 0.2638085739 | AC106: 0.2919680583 | AD106: 0.3350647403 | AE106: 0.3968103092 | AF106: 0.4815177008 | AG106: 0.592737029
C107: 12.32 | D107: 160.7979026 | E107: 156.8812091 | F107: 153.2231955 | G107: 149.9837346 | H107: 147.3044064 | I107: 145.3023101 | J107: 144.0649467 | K107: 143.6463947 | L107: 144.0649467 | M107: 145.3023101 | N107: 147.3044064 | O107: 149.9837346 | P107: 153.2231955 | Q107: 156.8812091 | R107: 160.7979026 | S107: 0.5983232679 | T107: 0.488162025 | U107: 0.403897157 | V107: 0.3422543414 | W107: 0.299104544 | X107: 0.2708475401 | Y107: 0.2548997158 | Z107: 0.2497486197 | AA107: 0.2548997158 | AB107: 0.2708475401 | AC107: 0.299104544 | AD107: 0.3422543414 | AE107: 0.403897157 | AF107: 0.488162025 | AG107: 0.5983232679
C108: 12.48 | D108: 160.8554408 | E108: 157.051309 | F108: 153.4984229 | G108: 150.3520607 | H108: 147.7497335 | I108: 145.8051752 | J108: 144.6033722 | K108: 144.1968489 | L108: 144.6033722 | M108: 145.8051752 | N108: 147.7497335 | O108: 150.3520607 | P108: 153.4984229 | Q108: 157.051309 | R108: 160.8554408 | S108: 0.6038278383 | T108: 0.4947448083 | U108: 0.4109499936 | V108: 0.3494355516 | W108: 0.3062529586 | X108: 0.2779126916 | Y108: 0.2618940412 | Z108: 0.2567161514 | AA108: 0.2618940412 | AB108: 0.2779126916 | AC108: 0.3062529586 | AD108: 0.3494355516 | AE108: 0.4109499936 | AF108: 0.4947448083 | AG108: 0.6038278383
C109: 12.64 | D109: 160.9113254 | E109: 157.2165205 | F109: 153.7657406 | G109: 150.7098015 | H109: 148.1822623 | I109: 146.2935884 | J109: 145.1263239 | K109: 144.7314836 | L109: 145.1263239 | M109: 146.2935884 | N109: 148.1822623 | O109: 150.7098015 | P109: 153.7657406 | Q109: 157.2165205 | R109: 160.9113254 | S109: 0.6092511601 | T109: 0.5012649802 | U109: 0.4179666103 | V109: 0.3566054477 | W109: 0.313409981 | X109: 0.2850005087 | Y109: 0.268919295 | Z109: 0.2637173284 | AA109: 0.268919295 | AB109: 0.2850005087 | AC109: 0.313409981 | AD109: 0.3566054477 | AE109: 0.4179666103 | AF109: 0.5012649802 | AG109: 0.6092511601
C110: 12.8 | D110: 160.965604 | E110: 157.3769839 | F110: 154.0253758 | G110: 151.0572611 | H110: 148.6023606 | I110: 146.7679652 | J110: 145.6342465 | K110: 145.2507535 | L110: 145.6342465 | M110: 146.7679652 | N110: 148.6023606 | O110: 151.0572611 | P110: 154.0253758 | Q110: 157.3769839 | R110: 160.965604 | S110: 0.6145936835 | T110: 0.5077215408 | U110: 0.4249448777 | V110: 0.3637611772 | W110: 0.3205723469 | X110: 0.2921075154 | Y110: 0.2759719065 | Z110: 0.2707485538 | AA110: 0.2759719065 | AB110: 0.2921075154 | AC110: 0.3205723469 | AD110: 0.3637611772 | AE110: 0.4249448777 | AF110: 0.5077215408 | AG110: 0.6145936835
C111: 12.96 | D111: 161.0183226 | E111: 157.5328357 | F111: 154.2775493 | G111: 151.3947351 | H111: 149.0103858 | I111: 147.2287089 | J111: 146.127572 | K111: 145.7551002 | L111: 146.127572 | M111: 147.2287089 | N111: 149.0103858 | O111: 151.3947351 | P111: 154.2775493 | Q111: 157.5328357 | R111: 161.0183226 | S111: 0.6198558883 | T111: 0.5141135601 | U111: 0.4318827457 | V111: 0.3708999594 | W111: 0.3277368509 | X111: 0.2992302824 | Y111: 0.2830483434 | Z111: 0.2778062663 | AA111: 0.2830483434 | AB111: 0.2992302824 | AC111: 0.3277368509 | AD111: 0.3708999594 | AE111: 0.4318827457 | AF111: 0.5141135601 | AG111: 0.6198558883
C112: 13.12 | D112: 161.0695262 | E112: 157.6842085 | F112: 154.5224757 | G112: 151.7225104 | H112: 149.4066848 | I112: 147.6762113 | J112: 146.6067199 | K112: 146.2449525 | L112: 146.6067199 | M112: 147.6762113 | N112: 149.4066848 | O112: 151.7225104 | P112: 154.5224757 | Q112: 157.6842085 | R112: 161.0695262 | S112: 0.6250382821 | T112: 0.5204401757 | U112: 0.4387782435 | V112: 0.3780190874 | W112: 0.3349003493 | X112: 0.3063654305 | Y112: 0.2901451157 | Z112: 0.2848869438 | AA112: 0.2901451157 | AB112: 0.3063654305 | AC112: 0.3349003493 | AD112: 0.3780190874 | AE112: 0.4387782435 | AF112: 0.5204401757 | AG112: 0.6250382821
C113: 13.28 | D113: 161.1192582 | E113: 157.831231 | F113: 154.760363 | G113: 152.0408658 | H113: 149.7915945 | I113: 148.110853 | J113: 147.0720976 | K113: 146.720727 | L113: 147.0720976 | M113: 148.110853 | N113: 149.7915945 | O113: 152.0408658 | P113: 154.760363 | Q113: 157.831231 | R113: 161.1192582 | S113: 0.6301413987 | T113: 0.5267005927 | U113: 0.4456294794 | V113: 0.3851159288 | W113: 0.3420597625 | X113: 0.3135096339 | Y113: 0.2972587791 | Z113: 0.2919871073 | AA113: 0.2972587791 | AB113: 0.3135096339 | AC113: 0.3420597625 | AD113: 0.3851159288 | AE113: 0.4456294794 | AF113: 0.5267005927 | AG113: 0.6301413987
C114: 13.44 | D114: 161.1675609 | E114: 157.9740282 | F114: 154.9914137 | G114: 152.350072 | H114: 150.1654424 | I114: 148.5330035 | J114: 147.5241009 | K114: 147.1828282 | L114: 147.5241009 | M114: 148.5330035 | N114: 150.1654424 | O114: 152.350072 | P114: 154.9914137 | Q114: 157.9740282 | R114: 161.1675609 | S114: 0.6351657971 | T114: 0.5328940811 | U114: 0.4524346406 | V114: 0.3921879271 | W114: 0.349212077 | X114: 0.3206596228 | Y114: 0.3043859384 | Z114: 0.2991033246 | AA114: 0.3043859384 | AB114: 0.3206596228 | AC114: 0.349212077 | AD114: 0.3921879271 | AE114: 0.4524346406 | AF114: 0.5328940811 | AG114: 0.6351657971
C115: 13.6 | D115: 161.2144755 | E115: 158.1127216 | F115: 155.2158243 | G115: 152.6503919 | H115: 150.5285462 | I115: 148.9430219 | J115: 147.963114 | K115: 147.6316492 | L115: 147.963114 | M115: 148.9430219 | N115: 150.5285462 | O115: 152.6503919 | P115: 155.2158243 | Q115: 158.1127216 | R115: 161.2144755 | S115: 0.6401120603 | T115: 0.5390199753 | U115: 0.459191993 | V115: 0.3992326025 | W115: 0.3563543473 | X115: 0.3278121862 | Y115: 0.3115232505 | Z115: 0.3062322131 | AA115: 0.3115232505 | AB115: 0.3278121862 | AC115: 0.3563543473 | AD115: 0.3992326025 | AE115: 0.459191993 | AF115: 0.5390199753 | AG115: 0.6401120603
C116: 13.76 | D116: 161.2600418 | E116: 158.2474291 | F116: 155.4337855 | G116: 152.942081 | H116: 150.8812148 | I116: 149.3412568 | J116: 148.3895104 | K116: 148.0675715 | L116: 148.3895104 | M116: 149.3412568 | N116: 150.8812148 | O116: 152.942081 | P116: 155.4337855 | Q116: 158.2474291 | R116: 161.2600418 | S116: 0.6449807931 | T116: 0.5450776723 | U116: 0.4658998805 | V116: 0.4062475525 | W116: 0.3634836977 | X116: 0.3349641744 | Y116: 0.3186674276 | Z116: 0.3133704433 | AA116: 0.3186674276 | AB116: 0.3349641744 | AC116: 0.3634836977 | AD116: 0.4062475525 | AE116: 0.4658998805 | AF116: 0.5450776723 | AG116: 0.6449807931
C117: 13.92 | D117: 161.3042986 | E117: 158.3782652 | F117: 155.6454828 | G117: 153.2253872 | H117: 151.2237481 | I117: 149.7280468 | J117: 148.8036526 | K117: 148.4909659 | L117: 148.8036526 | M117: 149.7280468 | N117: 151.2237481 | O117: 153.2253872 | P117: 155.6454828 | Q117: 158.3782652 | R117: 161.3042986 | S117: 0.649772622 | T117: 0.5510666298 | U117: 0.4725567246 | V117: 0.4132304528 | W117: 0.3705973243 | X117: 0.3421125016 | Y117: 0.3258152398 | Z117: 0.3205147415 | AA117: 0.3258152398 | AB117: 0.3421125016 | AC117: 0.3705973243 | AD117: 0.4132304528 | AE117: 0.4725567246 | AF117: 0.5510666298 | AG117: 0.649772622
C118: 14.08 | D118: 161.3472835 | E118: 158.5053412 | F118: 155.851096 | G118: 153.5005514 | H118: 151.5564373 | I118: 150.1037209 | J118: 149.2058928 | K118: 148.9021924 | L118: 149.2058928 | M118: 150.1037209 | N118: 151.5564373 | O118: 153.5005514 | P118: 155.851096 | Q118: 158.5053412 | R118: 161.3472835 | S118: 0.6544881928 | T118: 0.5569863656 | U118: 0.4791610237 | V118: 0.4201790578 | W118: 0.3776924958 | X118: 0.3492541475 | Y118: 0.3329635177 | Z118: 0.3276618927 | AA118: 0.3329635177 | AB118: 0.3492541475 | AC118: 0.3776924958 | AD118: 0.4201790578 | AE118: 0.4791610237 | AF118: 0.5569863656 | AG118: 0.6544881928
C119: 14.24 | D119: 161.389033 | E119: 158.6287651 | F119: 156.0508002 | G119: 153.7678078 | H119: 151.8795655 | I119: 150.4685986 | J119: 149.5965731 | K119: 149.3016007 | L119: 149.5965731 | M119: 150.4685986 | N119: 151.8795655 | O119: 153.7678078 | P119: 156.0508002 | Q119: 158.6287651 | R119: 161.389033 | S119: 0.6591281702 | T119: 0.5628364549 | U119: 0.4857113524 | V119: 0.4270912003 | W119: 0.3847665553 | X119: 0.35638616 | Y119: 0.340109155 | Z119: 0.334808743 | AA119: 0.340109155 | AB119: 0.35638616 | AC119: 0.3847665553 | AD119: 0.4270912003 | AE119: 0.4857113524 | AF119: 0.5628364549 | AG119: 0.6591281702
C120: 14.4 | D120: 161.4295827 | E120: 158.748642 | F120: 156.2447651 | G120: 154.0273834 | H120: 152.1934072 | I120: 150.82299 | J120: 149.9760256 | K120: 149.6895304 | L120: 149.9760256 | M120: 150.82299 | N120: 152.1934072 | O120: 154.0273834 | P120: 156.2447651 | Q120: 158.748642 | R120: 161.4295827 | S120: 0.6636932363 | T120: 0.5686165298 | U120: 0.4922063603 | V120: 0.4339647927 | W120: 0.3918169211 | X120: 0.3635056565 | Y120: 0.3472491103 | Z120: 0.3419522018 | AA120: 0.3472491103 | AB120: 0.3635056565 | AC120: 0.3918169211 | AD120: 0.4339647927 | AE120: 0.4922063603 | AF120: 0.5686165298 | AG120: 0.6636932363
C121: 14.56 | D121: 161.4689671 | E121: 158.8650738 | F121: 156.4331556 | G121: 154.2794992 | H121: 152.4982295 | I121: 151.1671966 | J121: 150.344573 | K121: 150.0663114 | L121: 150.344573 | M121: 151.1671966 | N121: 152.4982295 | O121: 154.2794992 | P121: 156.4331556 | Q121: 158.8650738 | R121: 161.4689671 | S121: 0.6681840892 | T121: 0.5743262771 | U121: 0.4986447718 | V121: 0.440797826 | W121: 0.398841088 | X121: 0.3706098255 | Y121: 0.3543804097 | Z121: 0.3490892446 | AA121: 0.3543804097 | AB121: 0.3706098255 | AC121: 0.398841088 | AD121: 0.440797826 | AE121: 0.4986447718 | AF121: 0.5743262771 | AG121: 0.6681840892
C122: 14.72 | D122: 161.5072196 | E122: 158.9781594 | F122: 156.616132 | G122: 154.5243693 | H122: 152.7942915 | I122: 151.5015111 | J122: 150.7025288 | K122: 150.4322641 | L122: 150.7025288 | M122: 151.5015111 | N122: 152.7942915 | O122: 154.5243693 | P122: 156.616132 | Q122: 158.9781594 | R122: 161.5072196 | S122: 0.6726014422 | T122: 0.5799654367 | U122: 0.5050253843 | V122: 0.4475883707 | W122: 0.4058366279 | X122: 0.3776959285 | Y122: 0.361500148 | Z122: 0.3562169142 | AA122: 0.361500148 | AB122: 0.3776959285 | AC122: 0.4058366279 | AD122: 0.4475883707 | AE122: 0.5050253843 | AF122: 0.5799654367 | AG122: 0.6726014422
C123: 14.88 | D123: 161.5443727 | E123: 159.0879951 | F123: 156.7938498 | G123: 154.7622022 | H123: 153.0818449 | I123: 151.8262177 | J123: 151.0501974 | K123: 150.7876998 | L123: 151.0501974 | M123: 151.8262177 | N123: 153.0818449 | O123: 154.7622022 | P123: 156.7938498 | Q123: 159.0879951 | R123: 161.5443727 | S123: 0.6769460226 | T123: 0.5855338004 | U123: 0.5113470679 | V123: 0.454334576 | W123: 0.4128011903 | X123: 0.384761301 | Y123: 0.368605491 | Z123: 0.3633323229 | AA123: 0.368605491 | AB123: 0.384761301 | AC123: 0.4128011903 | AD123: 0.454334576 | AE123: 0.5113470679 | AF123: 0.5855338004 | AG123: 0.6769460226
C124: 15.04 | D124: 161.5804581 | E124: 159.1946742 | F124: 156.9664603 | G124: 154.9932 | H124: 153.3611344 | I124: 152.1415926 | J124: 151.3878743 | K124: 151.1329206 | L124: 151.3878743 | M124: 152.1415926 | N124: 153.3611344 | O124: 154.9932 | P124: 156.9664603 | Q124: 159.1946742 | R124: 161.5804581 | S124: 0.6812185705 | T124: 0.5910312097 | U124: 0.5176087634 | V124: 0.4610346697 | W124: 0.4197325032 | X124: 0.3918033536 | Y124: 0.3756936767 | Z124: 0.3704326545 | AA124: 0.3756936767 | AB124: 0.3918033536 | AC124: 0.4197325032 | AD124: 0.4610346697 | AE124: 0.5176087634 | AF124: 0.5910312097 | AG124: 0.6812185705
C125: 15.2 | D125: 161.6155065 | E125: 159.2982874 | F125: 157.13411 | G125: 155.2175592 | H125: 153.6323975 | I125: 152.4479039 | J125: 151.7158467 | K125: 151.4682201 | L125: 151.7158467 | M125: 152.4479039 | N125: 153.6323975 | O125: 155.2175592 | P125: 157.13411 | Q125: 159.2982874 | R125: 161.6155065 | S125: 0.6854198378 | T125: 0.5964575548 | U125: 0.5238094819 | V125: 0.4676869577 | W125: 0.4266283733 | X125: 0.3988195733 | Y125: 0.3827620169 | Z125: 0.377515165 | AA125: 0.3827620169 | AB125: 0.3988195733 | AC125: 0.4266283733 | AD125: 0.4676869577 | AE125: 0.5238094819 | AF125: 0.5964575548 | AG125: 0.6854198378
C126: 15.36 | D126: 161.6495475 | E126: 159.3989229 | F126: 157.2969417 | G126: 155.4354705 | H126: 153.8958647 | I126: 152.7454122 | J126: 152.0343935 | K126: 151.7938835 | L126: 152.0343935 | M126: 152.7454122 | N126: 153.8958647 | O126: 155.4354705 | P126: 157.2969417 | Q126: 159.3989229 | R126: 161.6495475 | S126: 0.6895505875 | T126: 0.6018127727 | U126: 0.5299483031 | V126: 0.4742898237 | W126: 0.4334866862 | X126: 0.4058075238 | Y126: 0.389807898 | Z126: 0.3845771846 | AA126: 0.389807898 | AB126: 0.4058075238 | AC126: 0.4334866862 | AD126: 0.4742898237 | AE126: 0.5299483031 | AF126: 0.6018127727 | AG126: 0.6895505875
C127: 15.52 | D127: 161.6826103 | E127: 159.4966663 | F127: 157.4550938 | G127: 155.6471193 | H127: 154.1517601 | I127: 153.0343704 | J127: 152.3437857 | K127: 152.1101876 | L127: 152.3437857 | M127: 153.0343704 | N127: 154.1517601 | O127: 155.6471193 | P127: 157.4550938 | Q127: 159.4966663 | R127: 161.6826103 | S127: 0.693611592 | T127: 0.6070968452 | U127: 0.5360243742 | V127: 0.4808417284 | W127: 0.4403054065 | X127: 0.4127648468 | Y127: 0.3968287825 | Z127: 0.3916161185 | AA127: 0.3968287825 | AB127: 0.4127648468 | AC127: 0.4403054065 | AD127: 0.4808417284 | AE127: 0.5360243742 | AF127: 0.6070968452 | AG127: 0.693611592
C128: 15.68 | D128: 161.7147229 | E128: 159.5916006 | F128: 157.6087007 | G128: 155.8526856 | H128: 154.4003014 | I128: 153.3150243 | J128: 152.6442862 | K128: 152.4174015 | L128: 152.6442862 | M128: 153.3150243 | N128: 154.4003014 | O128: 155.8526856 | P128: 157.6087007 | Q128: 159.5916006 | R128: 161.7147229 | S128: 0.6976036329 | T128: 0.6123097981 | U128: 0.5420369081 | V128: 0.4873412089 | W128: 0.447082578 | X128: 0.4196892621 | Y128: 0.4038222094 | Z128: 0.3986294482 | AA128: 0.4038222094 | AB128: 0.4196892621 | AC128: 0.447082578 | AD128: 0.4873412089 | AE128: 0.5420369081 | AF128: 0.6123097981 | AG128: 0.6976036329
C129: 15.84 | D129: 161.7459126 | E129: 159.6838066 | F129: 157.7578932 | G129: 156.052344 | H129: 154.6416998 | I129: 153.5876125 | J129: 152.9361507 | K129: 152.7157864 | L129: 152.9361507 | M129: 153.5876125 | N129: 154.6416998 | O129: 156.052344 | P129: 157.7578932 | Q129: 159.6838066 | R129: 161.7459126 | S129: 0.7015274998 | T129: 0.617451699 | U129: 0.5479851827 | V129: 0.4937868779 | W129: 0.4538163231 | X129: 0.4265785682 | Y129: 0.4107857955 | Z129: 0.405614732 | AA129: 0.4107857955 | AB129: 0.4265785682 | AC129: 0.4538163231 | AD129: 0.4937868779 | AE129: 0.5479851827 | AF129: 0.617451699 | AG129: 0.7015274998
C130: 16 | D130: 161.776206 | E130: 159.7733627 | F130: 157.902798 | G130: 156.2462645 | H130: 154.8761608 | I130: 153.8523668 | J130: 153.2196273 | K130: 153.0055961 | L130: 153.2196273 | M130: 153.8523668 | N130: 154.8761608 | O130: 156.2462645 | P130: 157.902798 | Q130: 159.7733627 | R130: 161.776206 | S130: 0.7053839892 | T130: 0.6225226559 | U130: 0.553868539 | V130: 0.5001774225 | W130: 0.4605048431 | X130: 0.4334306424 | Y130: 0.4177172354 | Z130: 0.4125696057 | AA130: 0.4177172354 | AB130: 0.4334306424 | AC130: 0.4605048431 | AD130: 0.5001774225 | AE130: 0.553868539 | AF130: 0.6225226559 | AG130: 0.7053839892
C131: 16.16 | D131: 161.8056288 | E131: 159.8603451 | F131: 158.0435384 | G131: 156.434612 | H131: 155.1038835 | I131: 154.1095123 | J131: 153.4949571 | K131: 153.2870769 | L131: 153.4949571 | M131: 154.1095123 | N131: 155.1038835 | O131: 156.434612 | P131: 158.0435384 | Q131: 159.8603451 | R131: 161.8056288 | S131: 0.7091739039 | T131: 0.6275228155 | U131: 0.5596863794 | V131: 0.5065116039 | W131: 0.4671464175 | X131: 0.4402434411 | Y131: 0.4246143024 | Z131: 0.4194917836 | AA131: 0.4246143024 | AB131: 0.4402434411 | AC131: 0.4671464175 | AD131: 0.5065116039 | AE131: 0.5596863794 | AF131: 0.6275228155 | AG131: 0.7091739039
C132: 16.32 | D132: 161.8342059 | E132: 159.9448277 | F132: 158.1802341 | G132: 156.6175465 | H132: 155.3250618 | I132: 154.3592677 | J132: 153.7623742 | K132: 153.5604682 | L132: 153.7623742 | M132: 154.3592677 | N132: 155.3250618 | O132: 156.6175465 | P132: 158.1802341 | Q132: 159.9448277 | R132: 161.8342059 | S132: 0.7128980521 | T132: 0.632452362 | U132: 0.5654381669 | V132: 0.5127882556 | W132: 0.4737394036 | X132: 0.4470149998 | Y132: 0.4314748485 | Z132: 0.4263790584 | AA132: 0.4314748485 | AB132: 0.4470149998 | AC132: 0.4737394036 | AD132: 0.5127882556 | AE132: 0.5654381669 | AF132: 0.632452362 | AG132: 0.7128980521
C133: 16.48 | D133: 161.8619618 | E133: 160.0268823 | F133: 158.3130013 | G133: 156.7952237 | H133: 155.5398836 | I133: 154.6018454 | J133: 154.022106 | K133: 153.8260026 | L133: 154.022106 | M133: 154.6018454 | N133: 155.5398836 | O133: 156.7952237 | P133: 158.3130013 | Q133: 160.0268823 | R133: 161.8619618 | S133: 0.7165572467 | T133: 0.6373115152 | U133: 0.571123423 | V133: 0.5190062829 | W133: 0.4802822359 | X133: 0.4537434327 | Y133: 0.4382968048 | Z133: 0.4332293018 | AA133: 0.4382968048 | AB133: 0.4537434327 | AC133: 0.4802822359 | AD133: 0.5190062829 | AE133: 0.571123423 | AF133: 0.6373115152 | AG133: 0.7165572467
C134: 16.64 | D134: 161.8889201 | E134: 160.1065788 | F134: 158.4419529 | G134: 156.9677946 | H134: 155.7485317 | I134: 154.8374517 | J134: 154.2743734 | K134: 154.0839058 | L134: 154.2743734 | M134: 154.8374517 | N134: 155.7485317 | O134: 156.9677946 | P134: 158.4419529 | Q134: 160.1065788 | R134: 161.8889201 | S134: 0.7201523044 | T134: 0.642100529 | U134: 0.5767417262 | V134: 0.5251646615 | W134: 0.4867734254 | X134: 0.4604269327 | Y134: 0.4450781812 | Z134: 0.4400404643 | AA134: 0.4450781812 | AB134: 0.4604269327 | AC134: 0.4867734254 | AD134: 0.5251646615 | AE134: 0.5767417262 | AF134: 0.642100529 | AG134: 0.7201523044
C135: 16.8 | D135: 161.9151035 | E135: 160.1839848 | F135: 158.5671986 | G135: 157.135406 | H135: 155.9511834 | I135: 155.0662869 | J135: 154.5193909 | K135: 154.3343971 | L135: 154.5193909 | M135: 155.0662869 | N135: 155.9511834 | O135: 157.135406 | P135: 158.5671986 | Q135: 160.1839848 | R135: 161.9151035 | S135: 0.723684045 | T135: 0.6468196901 | U135: 0.5822927108 | V135: 0.5312624362 | W135: 0.4932115591 | X135: 0.4670637712 | Y135: 0.4518170669 | Z135: 0.4468105756 | AA135: 0.4518170669 | AB135: 0.4670637712 | AC135: 0.4932115591 | AD135: 0.5312624362 | AE135: 0.5822927108 | AF135: 0.6468196901 | AG135: 0.723684045
C136: 16.96 | D136: 161.9405345 | E136: 160.2591663 | F136: 158.6888448 | G136: 157.2982004 | H136: 156.1480111 | I136: 155.2885457 | J136: 154.7573668 | K136: 154.5776896 | L136: 154.7573668 | M136: 155.2885457 | N136: 156.1480111 | O136: 157.2982004 | P136: 158.6888448 | Q136: 160.2591663 | R136: 161.9405345 | S136: 0.7271532905 | T136: 0.6514693165 | U136: 0.5877760646 | V136: 0.5372987195 | W136: 0.4995952986 | X136: 0.4736522971 | Y136: 0.4585116296 | Z136: 0.4535377443 | AA136: 0.4585116296 | AB136: 0.4736522971 | AC136: 0.4995952986 | AD136: 0.5372987195 | AE136: 0.5877760646 | AF136: 0.6514693165 | AG136: 0.7271532905
C137: 17.12 | D137: 161.9652347 | E137: 160.3321872 | F137: 158.806995 | G137: 157.4563164 | H137: 156.3391823 | I137: 155.5044169 | J137: 154.9885036 | K137: 154.8139901 | L137: 154.9885036 | M137: 155.5044169 | N137: 156.3391823 | O137: 157.4563164 | P137: 158.806995 | Q137: 160.3321872 | R137: 161.9652347 | S137: 0.7305608651 | T137: 0.6560497558 | U137: 0.5931915283 | V137: 0.5432726907 | W137: 0.5059233798 | X137: 0.4801909369 | Y137: 0.4651601154 | Z137: 0.4602201575 | AA137: 0.4651601154 | AB137: 0.4801909369 | AC137: 0.5059233798 | AD137: 0.5432726907 | AE137: 0.5931915283 | AF137: 0.6560497558 | AG137: 0.7305608651
C138: 17.28 | D138: 161.9892249 | E138: 160.4031096 | F138: 158.9217498 | G138: 157.6098882 | H138: 156.5248593 | I138: 155.7140843 | J138: 155.2129977 | K138: 155.0434996 | L138: 155.2129977 | M138: 155.7140843 | N138: 156.5248593 | O138: 157.6098882 | P138: 158.9217498 | Q138: 160.4031096 | R138: 161.9892249 | S138: 0.7339075936 | T138: 0.6605613839 | U138: 0.5985388929 | V138: 0.5491835941 | W138: 0.5121946112 | X138: 0.4866781934 | Y138: 0.4717608484 | Z138: 0.4668560808 | AA138: 0.4717608484 | AB138: 0.4866781934 | AC138: 0.5121946112 | AD138: 0.5491835941 | AE138: 0.5985388929 | AF138: 0.6605613839 | AG138: 0.7339075936
C139: 17.44 | D139: 162.0125257 | E139: 160.4719936 | F139: 159.0332066 | G139: 157.7590465 | H139: 156.7052002 | I139: 155.917726 | J139: 155.4310401 | K139: 155.2664132 | L139: 155.4310401 | M139: 155.917726 | N139: 156.7052002 | O139: 157.7590465 | P139: 159.0332066 | Q139: 160.4719936 | R139: 162.0125257 | S139: 0.7371943016 | T139: 0.6650046039 | U139: 0.6038179987 | V139: 0.5550307377 | W139: 0.5184078736 | X139: 0.4931126456 | Y139: 0.4783122302 | Z139: 0.4734438576 | AA139: 0.4783122302 | AB139: 0.4931126456 | AC139: 0.5184078736 | AD139: 0.5550307377 | AE139: 0.6038179987 | AF139: 0.6650046039 | AG139: 0.7371943016
C140: 17.6 | D140: 162.0351569 | E140: 160.5388981 | F140: 159.1414603 | G140: 157.9039182 | H140: 156.8803583 | I140: 156.1155153 | J140: 155.6428163 | K140: 155.4829205 | L140: 155.6428163 | M140: 156.1155153 | N140: 156.8803583 | O140: 157.9039182 | P140: 159.1414603 | Q140: 160.5388981 | R140: 162.0351569 | S140: 0.7404218145 | T140: 0.6693798443 | U140: 0.6090287334 | V140: 0.5608134919 | W140: 0.5245621183 | X140: 0.499492947 | Y140: 0.4848127393 | Z140: 0.4799819085 | AA140: 0.4848127393 | AB140: 0.499492947 | AC140: 0.5245621183 | AD140: 0.5608134919 | AE140: 0.6090287334 | AF140: 0.6693798443 | AG140: 0.7404218145
C141: 17.76 | D141: 162.0571377 | E141: 160.6038798 | F141: 159.2466028 | G141: 158.0446264 | H141: 157.0504826 | I141: 156.3076203 | J141: 155.8485062 | K141: 155.6932056 | L141: 155.8485062 | M141: 156.3076203 | N141: 157.0504826 | O141: 158.0446264 | P141: 159.2466028 | Q141: 160.6038798 | R141: 162.0571377 | S141: 0.7435909567 | T141: 0.6736875578 | U141: 0.6141710309 | V141: 0.5665312876 | W141: 0.5306563662 | X141: 0.5058178257 | Y141: 0.4912609301 | Z141: 0.4864687309 | AA141: 0.4912609301 | AB141: 0.5058178257 | AC141: 0.5306563662 | AD141: 0.5665312876 | AE141: 0.6141710309 | AF141: 0.6736875578 | AG141: 0.7435909567
C142: 17.92 | D142: 162.0784868 | E142: 160.6669939 | F142: 159.3487237 | G142: 158.1812908 | H142: 157.2157176 | I142: 156.4942044 | J142: 156.0482847 | K142: 155.8974474 | L142: 156.0482847 | M142: 156.4942044 | N142: 157.2157176 | O142: 158.1812908 | P142: 159.3487237 | Q142: 160.6669939 | R142: 162.0784868 | S142: 0.7467025518 | T142: 0.67792822 | U142: 0.6192448689 | V142: 0.5721836154 | W142: 0.5366897064 | X142: 0.5120860825 | Y142: 0.4976554324 | Z142: 0.492902898 | AA142: 0.4976554324 | AB142: 0.5120860825 | AC142: 0.5366897064 | AD142: 0.5721836154 | AE142: 0.6192448689 | AF142: 0.67792822 | AG142: 0.7467025518
C143: 18.08 | D143: 162.0992223 | E143: 160.7282943 | F143: 159.4479097 | G143: 158.3140276 | H143: 157.376204 | I143: 156.6754263 | J143: 156.2423219 | K143: 156.0958195 | L143: 156.2423219 | M143: 156.6754263 | N143: 157.376204 | O143: 158.3140276 | P143: 159.4479097 | Q143: 160.7282943 | R143: 162.0992223 | S143: 0.7497574215 | T143: 0.6821023282 | U143: 0.6242502683 | V143: 0.577770023 | W143: 0.5426612949 | X143: 0.5182965902 | Y143: 0.5039949503 | Z143: 0.499283058 | AA143: 0.5039949503 | AB143: 0.5182965902 | AC143: 0.5426612949 | AD143: 0.577770023 | AE143: 0.6242502683 | AF143: 0.6821023282 | AG143: 0.7497574215
C144: 18.24 | D144: 162.1193619 | E144: 160.7878329 | F144: 159.5442453 | G144: 158.4429497 | H144: 157.5320782 | I144: 156.8514401 | J144: 156.4307826 | K144: 156.2884905 | L144: 156.4307826 | M144: 156.8514401 | N144: 157.5320782 | O144: 158.4429497 | P144: 159.5442453 | Q144: 160.7878329 | R144: 162.1193619 | S144: 0.752756385 | T144: 0.6862103999 | U144: 0.6291872908 | V144: 0.5832901148 | W144: 0.5485703534 | X144: 0.5244482928 | Y144: 0.5102782613 | Z144: 0.5056079334 | AA144: 0.5102782613 | AB144: 0.5244482928 | AC144: 0.5485703534 | AD144: 0.5832901148 | AE144: 0.6291872908 | AF144: 0.6862103999 | AG144: 0.752756385
C145: 18.4 | D145: 162.1389227 | E145: 160.8456605 | F145: 159.6378122 | G145: 158.5681667 | H145: 157.6834727 | I145: 157.0223954 | J145: 156.6138272 | K145: 156.4756244 | L145: 156.6138272 | M145: 157.0223954 | N145: 157.6834727 | O145: 158.5681667 | P145: 159.6378122 | Q145: 160.8456605 | R145: 162.1389227 | S145: 0.7557002591 | T145: 0.690252972 | U145: 0.6340560378 | V145: 0.5887435493 | W145: 0.5544161676 | X145: 0.5305402035 | Y145: 0.5165042153 | Z145: 0.5118763197 | AA145: 0.5165042153 | AB145: 0.5305402035 | AC145: 0.5544161676 | AD145: 0.5887435493 | AE145: 0.6340560378 | AF145: 0.690252972 | AG145: 0.7557002591
C146: 18.56 | D146: 162.1579214 | E146: 160.9018261 | F146: 159.7286901 | G146: 158.6897851 | H146: 157.8305163 | I146: 157.1884377 | J146: 156.7916113 | K146: 156.6573803 | L146: 156.7916113 | M146: 157.1884377 | N146: 157.8305163 | O146: 158.6897851 | P146: 159.7286901 | Q146: 160.9018261 | R146: 162.1579214 | S146: 0.7585898574 | T146: 0.6942305991 | U146: 0.6388566485 | V146: 0.5941300383 | W146: 0.560198086 | X146: 0.536571404 | Y146: 0.5226717333 | Z146: 0.5180870844 | AA146: 0.5226717333 | AB146: 0.536571404 | AC146: 0.560198086 | AD146: 0.5941300383 | AE146: 0.6388566485 | AF146: 0.6942305991 | AG146: 0.7585898574
C147: 18.72 | D147: 162.1763741 | E147: 160.9563776 | F147: 159.8169563 | G147: 158.8079084 | H147: 157.973334 | I147: 157.349708 | J147: 156.964286 | K147: 156.8339127 | L147: 156.964286 | M147: 157.349708 | N147: 157.973334 | O147: 158.8079084 | P147: 159.8169563 | Q147: 160.9563776 | R147: 162.1763741 | S147: 0.7614259898 | T147: 0.6981438528 | U147: 0.6435892986 | V147: 0.5994493446 | W147: 0.5659155184 | X147: 0.5425410432 | Y147: 0.5287798064 | Z147: 0.5242391661 | AA147: 0.5287798064 | AB147: 0.5425410432 | AC147: 0.5659155184 | AD147: 0.5994493446 | AE147: 0.6435892986 | AF147: 0.6981438528 | AG147: 0.7614259898
C148: 18.88 | D148: 162.1942964 | E148: 161.0093614 | F148: 159.9026859 | G148: 158.9226369 | H148: 158.1120472 | I148: 157.5063437 | J148: 157.1319983 | K148: 157.0053717 | L148: 157.1319983 | M148: 157.5063437 | N148: 158.1120472 | O148: 158.9226369 | P148: 159.9026859 | Q148: 161.0093614 | R148: 162.1942964 | S148: 0.7642094623 | T148: 0.7019933201 | U148: 0.6482541988 | V148: 0.6047012812 | W148: 0.571567934 | X148: 0.5484483356 | Y148: 0.5348274945 | Z148: 0.530331573 | AA148: 0.5348274945 | AB148: 0.5484483356 | AC148: 0.571567934 | AD148: 0.6047012812 | AE148: 0.6482541988 | AF148: 0.7019933201 | AG148: 0.7642094623
C149: 19.04 | D149: 162.2117037 | E149: 161.0608224 | F149: 159.9859516 | G149: 159.0340682 | H149: 158.2467741 | I149: 157.6584777 | J149: 157.2948906 | K149: 157.1719032 | L149: 157.2948906 | M149: 157.6584777 | N149: 158.2467741 | O149: 159.0340682 | P149: 159.9859516 | Q149: 161.0608224 | R149: 162.2117037 | S149: 0.7669410765 | T149: 0.7057796027 | U149: 0.6528515931 | V149: 0.6098857089 | W149: 0.5771548606 | X149: 0.5542925599 | Y149: 0.5408139249 | Z149: 0.5363633817 | AA149: 0.5408139249 | AB149: 0.5542925599 | AC149: 0.5771548606 | AD149: 0.6098857089 | AE149: 0.6528515931 | AF149: 0.7057796027 | AG149: 0.7669410765
C150: 19.2 | D150: 162.2286107 | E150: 161.1108046 | F150: 160.0668244 | G150: 159.1422971 | H150: 158.377629 | I150: 157.8062397 | J150: 157.4531017 | K150: 157.3336488 | L150: 157.4531017 | M150: 157.8062397 | N150: 158.377629 | O150: 159.1422971 | P150: 160.0668244 | Q150: 161.1108046 | R150: 162.2286107 | S150: 0.7696216295 | T150: 0.7095033159 | U150: 0.6573817574 | V150: 0.615002535 | W150: 0.5826758821 | X150: 0.5600730578 | Y150: 0.5467382909 | Z150: 0.5423337362 | AA150: 0.5467382909 | AB150: 0.5600730578 | AC150: 0.5826758821 | AD150: 0.615002535 | AE150: 0.6573817574 | AF150: 0.7095033159 | AG150: 0.7696216295
C151: 19.36 | D151: 162.2450318 | E151: 161.1593503 | F151: 160.145373 | G151: 159.2474156 | H151: 158.5047232 | I151: 157.949755 | J151: 157.6067659 | K151: 157.4907459 | L151: 157.6067659 | M151: 157.949755 | N151: 158.5047232 | O151: 159.2474156 | P151: 160.145373 | Q151: 161.1593503 | R151: 162.2450318 | S151: 0.772251913 | T151: 0.7131650873 | U151: 0.6618449982 | V151: 0.6200517119 | W151: 0.5881306379 | X151: 0.5657892322 | Y151: 0.5525998509 | Z151: 0.5482418459 | AA151: 0.5525998509 | AB151: 0.5657892322 | AC151: 0.5881306379 | AD151: 0.6200517119 | AE151: 0.6618449982 | AF151: 0.7131650873 | AG151: 0.772251913
C152: 19.52 | D152: 162.260981 | E152: 161.2065008 | F152: 160.2216641 | G152: 159.3495131 | H152: 158.6281649 | I152: 158.089146 | J152: 157.7560139 | K152: 157.6433283 | L152: 157.7560139 | M152: 158.089146 | N152: 158.6281649 | O152: 159.3495131 | P152: 160.2216641 | Q152: 161.2065008 | R152: 162.260981 | S152: 0.7748327138 | T152: 0.7167655561 | U152: 0.6662416507 | V152: 0.6250332352 | W152: 0.5935188207 | X152: 0.5714405458 | Y152: 0.5583979263 | Z152: 0.5540869848 | AA152: 0.5583979263 | AB152: 0.5714405458 | AC152: 0.5935188207 | AD152: 0.6250332352 | AE152: 0.6662416507 | AF152: 0.7167655561 | AG152: 0.7748327138
C153: 19.68 | D153: 162.2764719 | E153: 161.2522963 | F153: 160.2957628 | G153: 159.4486765 | H153: 158.7480591 | I153: 158.2245309 | J153: 157.9009727 | K153: 157.7915256 | L153: 157.9009727 | M153: 158.2245309 | N153: 158.7480591 | O153: 159.4486765 | P153: 160.2957628 | Q153: 161.2522963 | R153: 162.2764719 | S153: 0.7773648125 | T153: 0.720305372 | U153: 0.6705720782 | V153: 0.6299471423 | W153: 0.5988401747 | X153: 0.5770265199 | Y153: 0.5641319004 | Z153: 0.55986849 | AA153: 0.5641319004 | AB153: 0.5770265199 | AC153: 0.5988401747 | AD153: 0.6299471423 | AE153: 0.6705720782 | AF153: 0.720305372 | AG153: 0.7773648125
C154: 19.84 | D154: 162.2915175 | E154: 161.2967756 | F154: 160.3677319 | G154: 159.54499 | H154: 158.8645076 | I154: 158.3560251 | J154: 158.0417656 | K154: 157.9354638 | L154: 158.0417656 | M154: 158.3560251 | N154: 158.8645076 | O154: 159.54499 | P154: 160.3677319 | Q154: 161.2967756 | R154: 162.2915175 | S154: 0.7798489844 | T154: 0.7237851941 | U154: 0.6748366698 | V154: 0.6347935108 | W154: 0.6040944949 | X154: 0.5825467323 | Y154: 0.5698012167 | Z154: 0.5655857596 | AA154: 0.5698012167 | AB154: 0.5825467323 | AC154: 0.6040944949 | AD154: 0.6347935108 | AE154: 0.6748366698 | AF154: 0.7237851941 | AG154: 0.7798489844
C155: 20 | D155: 162.3061308 | E155: 161.3399767 | F155: 160.4376327 | G155: 159.6385355 | H155: 158.9776094 | I155: 158.4837402 | J155: 158.1785122 | K155: 158.0752654 | L155: 158.1785122 | M155: 158.4837402 | N155: 158.9776094 | O155: 159.6385355 | P155: 160.4376327 | Q155: 161.3399767 | R155: 162.3061308 | S155: 0.7822859981 | T155: 0.7272056903 | U155: 0.6790358396 | V155: 0.6395724567 | W155: 0.6092816246 | X155: 0.588000816 | Y155: 0.5754053778 | Z155: 0.5712382521 | AA155: 0.5754053778 | AB155: 0.588000816 | AC155: 0.6092816246 | AD155: 0.6395724567 | AE155: 0.6790358396 | AF155: 0.7272056903 | AG155: 0.7822859981
C156: 20.16 | D156: 162.320324 | E156: 161.3819363 | F156: 160.5055247 | G156: 159.7293926 | H156: 159.0874609 | I156: 158.6077849 | J156: 158.3113289 | K156: 158.2110493 | L156: 158.3113289 | M156: 158.6077849 | N156: 159.0874609 | O156: 159.7293926 | P156: 160.5055247 | Q156: 161.3819363 | R156: 162.320324 | S156: 0.7846766161 | T156: 0.7305675363 | U156: 0.6831700254 | V156: 0.6442841331 | W156: 0.6144014541 | X156: 0.5933884577 | Y156: 0.5809439434 | Z156: 0.5768254842 | AA156: 0.5809439434 | AB156: 0.5933884577 | AC156: 0.6144014541 | AD156: 0.6442841331 | AE156: 0.6831700254 | AF156: 0.7305675363 | AG156: 0.7846766161
C157: 20.32 | D157: 162.3341094 | E157: 161.4226899 | F157: 160.5714655 | G157: 159.8176387 | H157: 159.1941554 | I157: 158.7282648 | J157: 158.4403286 | K157: 158.3429309 | L157: 158.4403286 | M157: 158.7282648 | N157: 159.1941554 | O157: 159.8176387 | P157: 160.5714655 | Q157: 161.4226899 | R157: 162.3341094 | S157: 0.787021594 | T157: 0.7338714148 | U157: 0.687239687 | V157: 0.6489287288 | W157: 0.6194539192 | X157: 0.598709396 | Y157: 0.5864165287 | Z157: 0.5823470294 | AA157: 0.5864165287 | AB157: 0.598709396 | AC157: 0.6194539192 | AD157: 0.6489287288 | AE157: 0.687239687 | AF157: 0.7338714148 | AG157: 0.787021594
C158: 20.48 | D158: 162.3474986 | E158: 161.4622723 | F158: 160.6355112 | G158: 159.9033486 | H158: 159.2977835 | I158: 158.8452821 | J158: 158.5656209 | K158: 158.4710224 | L158: 158.5656209 | M158: 158.8452821 | N158: 159.2977835 | O158: 159.9033486 | P158: 160.6355112 | Q158: 161.4622723 | R158: 162.3474986 | S158: 0.7893216808 | T158: 0.7371180145 | U158: 0.6912453055 | V158: 0.6535064662 | W158: 0.6244389994 | X158: 0.6039634199 | Y158: 0.5918228032 | Z158: 0.5878025167 | AA158: 0.5918228032 | AB158: 0.6039634199 | AC158: 0.6244389994 | AD158: 0.6535064662 | AE158: 0.6912453055 | AF158: 0.7371180145 | AG158: 0.7893216808
C159: 20.64 | D159: 162.360503 | E159: 161.5007172 | F159: 160.6977163 | G159: 159.9865953 | H159: 159.3984335 | I159: 158.9589366 | J159: 158.6873125 | K159: 158.5954326 | L159: 158.6873125 | M159: 158.9589366 | N159: 159.3984335 | O159: 159.9865953 | P159: 160.6977163 | Q159: 161.5007172 | R159: 162.360503 | S159: 0.7915776183 | T159: 0.7403080297 | U159: 0.6951873815 | V159: 0.6580176007 | W159: 0.6293567167 | X159: 0.6091503673 | Y159: 0.5971624888 | Z159: 0.5931916285 | AA159: 0.5971624888 | AB159: 0.6091503673 | AC159: 0.6293567167 | AD159: 0.6580176007 | AE159: 0.6951873815 | AF159: 0.7403080297 | AG159: 0.7915776183
C160: 20.8 | D160: 162.3731337 | E160: 161.5380572 | F160: 160.7581337 | G160: 160.0674495 | H160: 159.4961909 | I160: 159.0693247 | J160: 158.8055068 | K160: 158.7162674 | L160: 158.8055068 | M160: 159.0693247 | N160: 159.4961909 | O160: 160.0674495 | P160: 160.7581337 | Q160: 161.5380572 | R160: 162.3731337 | S160: 0.7937901411 | T160: 0.7434421592 | U160: 0.6990664344 | V160: 0.6624624183 | W160: 0.6342071334 | X160: 0.614270123 | Y160: 0.6024353585 | Z160: 0.5985140996 | AA160: 0.6024353585 | AB160: 0.614270123 | AC160: 0.6342071334 | AD160: 0.6624624183 | AE160: 0.6990664344 | AF160: 0.7434421592 | AG160: 0.7937901411
C161: 20.96 | D161: 162.3854014 | E161: 161.5743241 | F161: 160.8168148 | G161: 160.1459802 | H161: 159.5911389 | I161: 159.1765403 | J161: 158.9203043 | K161: 158.8336296 | L161: 158.9203043 | M161: 159.1765403 | N161: 159.5911389 | O161: 160.1459802 | P161: 160.8168148 | Q161: 161.5743241 | R161: 162.3854014 | S161: 0.7959599763 | T161: 0.7465211056 | U161: 0.7028830007 | V161: 0.6668412347 | W161: 0.6389903509 | X161: 0.6193226176 | Y161: 0.6076412343 | Z161: 0.603769715 | AA161: 0.6076412343 | AB161: 0.6193226176 | AC161: 0.6389903509 | AD161: 0.6668412347 | AE161: 0.7028830007 | AF161: 0.7465211056 | AG161: 0.7959599763
C162: 21.12 | D162: 162.3973165 | E162: 161.6095488 | F162: 160.8738094 | G162: 160.2222539 | H162: 159.6833582 | I162: 159.2806747 | J162: 159.0318026 | K162: 158.9476189 | L162: 159.0318026 | M162: 159.2806747 | N162: 159.6833582 | O162: 160.2222539 | P162: 160.8738094 | Q162: 161.6095488 | R162: 162.3973165 | S162: 0.7980878436 | T162: 0.7495455748 | U162: 0.7066376333 | V162: 0.671154394 | W162: 0.6437065085 | X162: 0.6243078256 | Y162: 0.612779986 | Z162: 0.608958309 | AA162: 0.612779986 | AB162: 0.6243078256 | AC162: 0.6437065085 | AD162: 0.671154394 | AE162: 0.7066376333 | AF162: 0.7495455748 | AG162: 0.7980878436
C163: 21.28 | D163: 162.4088892 | E163: 161.6437611 | F163: 160.9291661 | G163: 160.2963356 | H163: 159.7729272 | I163: 159.3818164 | J163: 159.1400966 | K163: 159.0583322 | L163: 159.1400966 | M163: 159.3818164 | N163: 159.7729272 | O163: 160.2963356 | P163: 160.9291661 | Q163: 161.6437611 | R163: 162.4088892 | S163: 0.800174455 | T163: 0.7525162754 | U163: 0.7103309004 | V163: 0.6754022668 | W163: 0.6483557809 | X163: 0.6292257638 | Y163: 0.6178515295 | Z163: 0.6140797627 | AA163: 0.6178515295 | AB163: 0.6292257638 | AC163: 0.6483557809 | AD163: 0.6754022668 | AE163: 0.7103309004 | AF163: 0.7525162754 | AG163: 0.800174455
C164: 21.44 | D164: 162.4201293 | E164: 161.6769902 | F164: 160.9829319 | G164: 160.3682882 | H164: 159.8599221 | I164: 159.4800514 | J164: 159.2452784 | K164: 159.1658638 | L164: 159.2452784 | M164: 159.4800514 | N164: 159.8599221 | O164: 160.3682882 | P164: 160.9829319 | Q164: 161.6769902 | R164: 162.4201293 | S164: 0.8022205147 | T164: 0.7554339178 | U164: 0.7139633841 | V164: 0.6795852492 | W164: 0.6529383776 | X164: 0.6340764898 | Y164: 0.6228558252 | Z164: 0.6191340033 | AA164: 0.6228558252 | AB164: 0.6340764898 | AC164: 0.6529383776 | AD164: 0.6795852492 | AE164: 0.7139633841 | AF164: 0.7554339178 | AG164: 0.8022205147
C165: 21.6 | D165: 162.4310464 | E165: 161.7092643 | F165: 161.0351525 | G165: 160.4381731 | H165: 159.9444168 | I165: 159.5754632 | J165: 159.3474373 | K165: 159.270305 | L165: 159.3474373 | M165: 159.5754632 | N165: 159.9444168 | O165: 160.4381731 | P165: 161.0351525 | Q165: 161.7092643 | R165: 162.4310464 | S165: 0.804226719 | T165: 0.7582992137 | U165: 0.7175356796 | V165: 0.6837037615 | W165: 0.6574545411 | X165: 0.6388601005 | Y165: 0.6277928762 | Z165: 0.6241210016 | AA165: 0.6277928762 | AB165: 0.6388601005 | AC165: 0.6574545411 | AD165: 0.6837037615 | AE165: 0.7175356796 | AF165: 0.7582992137 | AG165: 0.804226719
C166: 21.76 | D166: 162.4416497 | E166: 161.7406109 | F166: 161.0858724 | G166: 160.5060495 | H166: 160.0264832 | I166: 159.668133 | J166: 159.4466603 | K166: 159.3717447 | L166: 159.4466603 | M166: 159.668133 | N166: 160.0264832 | O166: 160.5060495 | P166: 161.0858724 | Q166: 161.7406109 | R166: 162.4416497 | S166: 0.806193756 | T166: 0.7611128757 | U166: 0.7210483941 | V166: 0.6877582467 | W166: 0.6619045452 | X166: 0.6435767304 | Y166: 0.6326627271 | Z166: 0.6290407714 | AA166: 0.6326627271 | AB166: 0.6435767304 | AC166: 0.6619045452 | AD166: 0.6877582467 | AE166: 0.7210483941 | AF166: 0.7611128757 | AG166: 0.806193756
C167: 21.92 | D167: 162.4519484 | E167: 161.7710566 | F167: 161.1351346 | G167: 160.5719752 | H167: 160.1061912 | I167: 159.7581395 | J167: 159.5430318 | K167: 159.4702692 | L167: 159.5430318 | M167: 159.7581395 | N167: 160.1061912 | O167: 160.5719752 | P167: 161.1351346 | Q167: 161.7710566 | R167: 162.4519484 | S167: 0.8081223059 | T167: 0.7638756162 | U167: 0.7245021459 | V167: 0.6917491692 | W167: 0.6662886939 | X167: 0.64822655 | Y167: 0.637465462 | Z167: 0.6338933669 | AA167: 0.637465462 | AB167: 0.64822655 | AC167: 0.6662886939 | AD167: 0.6917491692 | AE167: 0.7245021459 | AF167: 0.7638756162 | AG167: 0.8081223059
C168: 22.08 | D168: 162.461951 | E168: 161.8006273 | F168: 161.1829811 | G168: 160.6360063 | H168: 160.1836084 | I168: 159.8455594 | J168: 159.6366336 | K168: 159.5659621 | L168: 159.6366336 | M168: 159.8455594 | N168: 160.1836084 | O168: 160.6360063 | P168: 161.1829811 | Q168: 161.8006273 | R168: 162.461951 | S168: 0.8100130406 | T168: 0.7665881478 | U168: 0.7278975633 | V168: 0.695677014 | W168: 0.6706073196 | X168: 0.6528097647 | Y168: 0.6422012033 | Z168: 0.638678882 | AA168: 0.6422012033 | AB168: 0.6528097647 | AC168: 0.6706073196 | AD168: 0.695677014 | AE168: 0.7278975633 | AF168: 0.7665881478 | AG168: 0.8100130406
C169: 22.24 | D169: 162.4716662 | E169: 161.8293482 | F169: 161.2294525 | G169: 160.6981972 | H169: 160.2588007 | I169: 159.9304669 | J169: 159.7275454 | K169: 159.6589049 | L169: 159.7275454 | M169: 159.9304669 | N169: 160.2588007 | O169: 160.6981972 | P169: 161.2294525 | Q169: 161.8293482 | R169: 162.4716662 | S169: 0.8118666239 | T169: 0.769251182 | U169: 0.7312352841 | V169: 0.6995422847 | W169: 0.6748607821 | X169: 0.6573266126 | Y169: 0.6468701099 | Z169: 0.6433974482 | AA169: 0.6468701099 | AB169: 0.6573266126 | AC169: 0.6748607821 | AD169: 0.6995422847 | AE169: 0.7312352841 | AF169: 0.769251182 | AG169: 0.8118666239
C170: 22.4 | D170: 162.4811021 | E170: 161.8572438 | F170: 161.2745883 | G170: 160.7586008 | H170: 160.3318321 | I170: 160.0129342 | J170: 159.8158445 | K170: 159.7491767 | L170: 159.8158445 | M170: 160.0129342 | N170: 160.3318321 | O170: 160.7586008 | P170: 161.2745883 | Q170: 161.8572438 | R170: 162.4811021 | S170: 0.8136837111 | T170: 0.7718654288 | U170: 0.7345159539 | V170: 0.7033455031 | W170: 0.6790494669 | X170: 0.6617773637 | Y170: 0.6514723759 | Z170: 0.648049233 | AA170: 0.6514723759 | AB170: 0.6617773637 | AC170: 0.6790494669 | AD170: 0.7033455031 | AE170: 0.7345159539 | AF170: 0.7718654288 | AG170: 0.8136837111
C171: 22.56 | D171: 162.4902669 | E171: 161.8843376 | F171: 161.3184271 | G171: 160.8172684 | H171: 160.4027646 | I171: 160.0930315 | J171: 159.901606 | K171: 159.8368541 | L171: 159.901606 | M171: 160.0930315 | N171: 160.4027646 | O171: 160.8172684 | P171: 161.3184271 | Q171: 161.8843376 | R171: 162.4902669 | S171: 0.8154649493 | T171: 0.7744315967 | U171: 0.7377402264 | V171: 0.7070872076 | W171: 0.6831737843 | X171: 0.6661623182 | Y171: 0.6560082288 | Z171: 0.6526344391 | AA171: 0.6560082288 | AB171: 0.6661623182 | AC171: 0.6831737843 | AD171: 0.7070872076 | AE171: 0.7377402264 | AF171: 0.7744315967 | AG171: 0.8154649493
C172: 22.72 | D172: 162.4991683 | E172: 161.9106527 | F172: 161.3610059 | G172: 160.87425 | H172: 160.4716586 | I172: 160.170827 | J172: 159.9849028 | K172: 159.9220118 | L172: 159.9849028 | M172: 160.170827 | N172: 160.4716586 | O172: 160.87425 | P172: 161.3610059 | Q172: 161.9106527 | R172: 162.4991683 | S172: 0.8172109772 | T172: 0.7769503921 | U172: 0.7409087615 | V172: 0.7107679522 | W172: 0.6872341674 | X172: 0.6704818048 | Y172: 0.6604779284 | Z172: 0.6571533021 | AA172: 0.6604779284 | AB172: 0.6704818048 | AC172: 0.6872341674 | AD172: 0.7107679522 | AE172: 0.7409087615 | AF172: 0.7769503921 | AG172: 0.8172109772
C173: 22.88 | D173: 162.5078139 | E173: 161.9362116 | F173: 161.4023611 | G173: 160.929594 | H173: 160.5385727 | I173: 160.2463866 | J173: 160.0658057 | K173: 160.0047221 | L173: 160.0658057 | M173: 160.2463866 | N173: 160.5385727 | O173: 160.929594 | P173: 161.4023611 | Q173: 161.9362116 | R173: 162.5078139 | S173: 0.8189224248 | T173: 0.7794225184 | U173: 0.7440222252 | V173: 0.7143883056 | W173: 0.6912310714 | X173: 0.6747361799 | Y173: 0.6648817649 | Z173: 0.6616060891 | AA173: 0.6648817649 | AB173: 0.6747361799 | AC173: 0.6912310714 | AD173: 0.7143883056 | AE173: 0.7440222252 | AF173: 0.7794225184 | AG173: 0.8189224248
C174: 23.04 | D174: 162.516211 | E174: 161.961036 | F174: 161.4425277 | G174: 160.9833475 | H174: 160.6035637 | I174: 160.3197748 | J174: 160.1443835 | K174: 160.0850555 | L174: 160.1443835 | M174: 160.3197748 | N174: 160.6035637 | O174: 160.9833475 | P174: 161.4425277 | Q174: 161.961036 | R174: 162.516211 | S174: 0.8205999141 | T174: 0.7818486764 | U174: 0.7470812884 | V174: 0.7179488498 | W174: 0.6951649722 | X174: 0.6789258255 | Y174: 0.6692200579 | Z174: 0.665993098 | AA174: 0.6692200579 | AB174: 0.6789258255 | AC174: 0.6951649722 | AD174: 0.7179488498 | AE174: 0.7470812884 | AF174: 0.7818486764 | AG174: 0.8205999141
C175: 23.2 | D175: 162.5243668 | E175: 161.9851469 | F175: 161.4815401 | G175: 161.0355562 | H175: 160.666687 | I175: 160.3910538 | J175: 160.2207031 | K175: 160.1630801 | L175: 160.2207031 | M175: 160.3910538 | N175: 160.666687 | O175: 161.0355562 | P175: 161.4815401 | Q175: 161.9851469 | R175: 162.5243668 | S175: 0.8222440582 | T175: 0.7842295633 | U175: 0.7500866267 | V175: 0.7214501792 | W175: 0.6990363649 | X175: 0.6830511484 | Y175: 0.6734931547 | Z175: 0.6703146552 | AA175: 0.6734931547 | AB175: 0.6830511484 | AC175: 0.6990363649 | AD175: 0.7214501792 | AE175: 0.7500866267 | AF175: 0.7842295633 | AG175: 0.8222440582
C176: 23.36 | D176: 162.5322882 | E176: 162.008565 | F176: 161.5194312 | G176: 161.0862644 | H176: 160.7279962 | I176: 160.4602844 | J176: 160.2948294 | K176: 160.2388624 | L176: 160.2948294 | M176: 160.4602844 | N176: 160.7279962 | O176: 161.0862644 | P176: 161.5194312 | Q176: 162.008565 | R176: 162.5322882 | S176: 0.8238554621 | T176: 0.7865658727 | U176: 0.7530389191 | V176: 0.7248928998 | W176: 0.7028457632 | X176: 0.6871125787 | Y176: 0.677701429 | Z176: 0.6745711146 | AA176: 0.677701429 | AB176: 0.6871125787 | AC176: 0.7028457632 | AD176: 0.7248928998 | AE176: 0.7530389191 | AF176: 0.7865658727 | AG176: 0.8238554621
C177: 23.52 | D177: 162.539982 | E177: 162.03131 | F177: 161.5562334 | G177: 161.1355154 | H177: 160.7875434 | I177: 160.5275253 | J177: 160.3668254 | K177: 160.3124668 | L177: 160.3668254 | M177: 160.5275253 | N177: 160.7875434 | O177: 161.1355154 | P177: 161.5562334 | Q177: 162.03131 | R177: 162.539982 | S177: 0.825434722 | T177: 0.7888582942 | U177: 0.7559388479 | V177: 0.7282776282 | W177: 0.7065936976 | X177: 0.6911105687 | Y177: 0.6818452796 | Z177: 0.6787628561 | AA177: 0.6818452796 | AB177: 0.6911105687 | AC177: 0.7065936976 | AD177: 0.7282776282 | AE177: 0.7559388479 | AF177: 0.7888582942 | AG177: 0.825434722
C178: 23.68 | D178: 162.5474546 | E178: 162.0534013 | F178: 161.5919779 | G178: 161.1833509 | H178: 160.8453792 | I178: 160.5928339 | J178: 160.4367522 | K178: 160.3839559 | L178: 160.4367522 | M178: 160.5928339 | N178: 160.8453792 | O178: 161.1833509 | P178: 161.5919779 | Q178: 162.0534013 | R178: 162.5474546 | S178: 0.8269824258 | T178: 0.791107513 | U178: 0.7587870975 | V178: 0.7316049904 | W178: 0.7102807146 | X178: 0.6950455912 | Y178: 0.6859251289 | Z178: 0.6828902844 | AA178: 0.6859251289 | AB178: 0.6950455912 | AC178: 0.7102807146 | AD178: 0.7316049904 | AE178: 0.7587870975 | AF178: 0.791107513 | AG178: 0.8269824258
C179: 23.84 | D179: 162.5547125 | E179: 162.0748578 | F179: 161.6266952 | G179: 161.2298117 | H179: 160.901553 | I179: 160.6562655 | J179: 160.5046695 | K179: 160.4533904 | L179: 160.5046695 | M179: 160.6562655 | N179: 160.901553 | O179: 161.2298117 | P179: 161.6266952 | Q179: 162.0748578 | R179: 162.5547125 | S179: 0.828499153 | T179: 0.7933142097 | U179: 0.7615843543 | V179: 0.7348756212 | W179: 0.7139073756 | X179: 0.6989181386 | Y179: 0.6899414218 | Z179: 0.6869538277 | AA179: 0.6899414218 | AB179: 0.6989181386 | AC179: 0.7139073756 | AD179: 0.7348756212 | AE179: 0.7615843543 | AF179: 0.7933142097 | AG179: 0.828499153
C180: 24 | D180: 162.5617618 | E180: 162.0956976 | F180: 161.6604147 | G180: 161.2749373 | H180: 160.9561123 | I180: 160.7178741 | J180: 160.5706348 | K180: 160.5208295 | L180: 160.5706348 | M180: 160.7178741 | N180: 160.9561123 | O180: 161.2749373 | P180: 161.6604147 | Q180: 162.0956976 | R180: 162.5617618 | S180: 0.8299854746 | T180: 0.7954790601 | U180: 0.7643313058 | V180: 0.7380901633 | W180: 0.7174742559 | X180: 0.7027287217 | Y180: 0.6938946246 | Z180: 0.6909539362 | AA180: 0.6938946246 | AB180: 0.7027287217 | AC180: 0.7174742559 | AD180: 0.7380901633 | AE180: 0.7643313058 | AF180: 0.7954790601 | AG180: 0.8299854746
C181: 24.16 | D181: 162.5686085 | E181: 162.1159385 | F181: 161.6931652 | G181: 161.3187659 | H181: 161.0091037 | I181: 160.7777122 | J181: 160.6347044 | K181: 160.5863304 | L181: 160.6347044 | M181: 160.7777122 | N181: 161.0091037 | O181: 161.3187659 | P181: 161.6931652 | Q181: 162.1159385 | R181: 162.5686085 | S181: 0.8314419531 | T181: 0.7976027348 | U181: 0.76702864 | V181: 0.7412492663 | W181: 0.7209819436 | X181: 0.7064778687 | Y181: 0.697785223 | Z181: 0.6948910809 | AA181: 0.697785223 | AB181: 0.7064778687 | AC181: 0.7209819436 | AD181: 0.7412492663 | AE181: 0.76702864 | AF181: 0.7976027348 | AG181: 0.8314419531
C182: 24.32 | D182: 162.5752585 | E182: 162.1355977 | F182: 161.7249745 | G182: 161.361335 | H182: 161.0605722 | I182: 160.8358306 | J182: 160.6969327 | K182: 160.649949 | L182: 160.6969327 | M182: 160.8358306 | N182: 161.0605722 | O182: 161.361335 | P182: 161.7249745 | Q182: 162.1355977 | R182: 162.5752585 | S182: 0.8328691427 | T182: 0.799685899 | U182: 0.7696770453 | V182: 0.7443535861 | W182: 0.7244310383 | X182: 0.7101661235 | Y182: 0.7016137221 | Z182: 0.6987657525 | AA182: 0.7016137221 | AB182: 0.7101661235 | AC182: 0.7244310383 | AD182: 0.7443535861 | AE182: 0.7696770453 | AF182: 0.799685899 | AG182: 0.8328691427
C183: 24.48 | D183: 162.5817173 | E183: 162.1546919 | F183: 161.7558696 | G183: 161.4026808 | H183: 161.1105615 | I183: 160.8922788 | J183: 160.7573727 | K183: 160.7117392 | L183: 160.7573727 | M183: 160.8922788 | N183: 161.1105615 | O183: 161.4026808 | P183: 161.7558696 | Q183: 162.1546919 | R183: 162.5817173 | S183: 0.8342675893 | T183: 0.8017292124 | U183: 0.7722772093 | V183: 0.747403784 | W183: 0.7278221506 | X183: 0.7137940452 | Y183: 0.7053806439 | Z183: 0.7025784602 | AA183: 0.7053806439 | AB183: 0.7137940452 | AC183: 0.7278221506 | AD183: 0.747403784 | AE183: 0.7722772093 | AF183: 0.8017292124 | AG183: 0.8342675893
C184: 24.64 | D184: 162.5879905 | E184: 162.1732374 | F184: 161.7858768 | G184: 161.4428382 | H184: 161.1591142 | I184: 160.9471047 | J184: 160.8160756 | K184: 160.7717536 | L184: 160.8160756 | M184: 160.9471047 | N184: 161.1591142 | O184: 161.4428382 | P184: 161.7858768 | Q184: 162.1732374 | R184: 162.5879905 | S184: 0.8356378304 | T184: 0.8037333288 | U184: 0.7748298191 | V184: 0.7504005262 | W184: 0.7311559012 | X184: 0.7173622068 | Y184: 0.7090865274 | Z184: 0.7063297304 | AA184: 0.7090865274 | AB184: 0.7173622068 | AC184: 0.7311559012 | AD184: 0.7504005262 | AE184: 0.7748298191 | AF184: 0.8037333288 | AG184: 0.8356378304
C185: 24.8 | D185: 162.5940834 | E185: 162.1912499 | F185: 161.8150216 | G185: 161.4818416 | H185: 161.2062715 | I185: 161.0003549 | J185: 160.8730915 | K185: 160.8300432 | L185: 160.8730915 | M185: 161.0003549 | N185: 161.2062715 | O185: 161.4818416 | P185: 161.8150216 | Q185: 162.1912499 | R185: 162.5940834 | S185: 0.8369803953 | T185: 0.805698896 | U185: 0.7773355601 | V185: 0.7533444826 | W185: 0.7344329195 | X185: 0.7208711941 | Y185: 0.7127319265 | Z185: 0.7100201057 | AA185: 0.7127319265 | AB185: 0.7208711941 | AC185: 0.7344329195 | AD185: 0.7533444826 | AE185: 0.7773355601 | AF185: 0.805698896 | AG185: 0.8369803953
C186: 24.96 | D186: 162.6000013 | E186: 162.2087447 | F186: 161.8433288 | G186: 161.5197241 | H186: 161.2520736 | I186: 161.0520748 | J186: 160.9284688 | K186: 160.8866577 | L186: 160.9284688 | M186: 161.0520748 | N186: 161.2520736 | O186: 161.5197241 | P186: 161.8433288 | Q186: 162.2087447 | R186: 162.6000013 | S186: 0.8382958049 | T186: 0.8076265559 | U186: 0.7797951161 | V186: 0.7562363268 | W186: 0.737653843 | X186: 0.7243216049 | Y186: 0.7163174095 | Z186: 0.7136501436 | AA186: 0.7163174095 | AB186: 0.7243216049 | AC186: 0.737653843 | AD186: 0.7562363268 | AE186: 0.7797951161 | AF186: 0.8076265559 | AG186: 0.8382958049
C187: 25.12 | D187: 162.605749 | E187: 162.2257368 | F187: 161.8708226 | G187: 161.5565179 | H187: 161.2965593 | I187: 161.1023084 | J187: 160.9822546 | K187: 160.9416451 | L187: 160.9822546 | M187: 161.1023084 | N187: 161.2965593 | O187: 161.5565179 | P187: 161.8708226 | Q187: 162.2257368 | R187: 162.605749 | S187: 0.8395845722 | T187: 0.8095169437 | U187: 0.7822091686 | V187: 0.7590767348 | W187: 0.7408193168 | X187: 0.7277140477 | Y187: 0.719843558 | Z187: 0.7172204158 | AA187: 0.719843558 | AB187: 0.7277140477 | AC187: 0.7408193168 | AD187: 0.7590767348 | AE187: 0.7822091686 | AF187: 0.8095169437 | AG187: 0.8395845722
C188: 25.28 | D188: 162.6113316 | E188: 162.2422405 | F188: 161.8975261 | G188: 161.5922542 | H188: 161.3397666 | I188: 161.1510982 | J188: 161.0344947 | K188: 160.9950523 | L188: 161.0344947 | M188: 161.1510982 | N188: 161.3397666 | O188: 161.5922542 | P188: 161.8975261 | Q188: 162.2422405 | R188: 162.6113316 | S188: 0.8408472019 | T188: 0.8113706885 | U188: 0.7845783966 | V188: 0.7618663848 | W188: 0.7439299922 | X188: 0.7310491412 | Y188: 0.7233109657 | Z188: 0.7207315068 | AA188: 0.7233109657 | AB188: 0.7310491412 | AC188: 0.7439299922 | AD188: 0.7618663848 | AE188: 0.7845783966 | AF188: 0.8113706885 | AG188: 0.8408472019
C189: 25.44 | D189: 162.6167537 | E189: 162.2582699 | F189: 161.9234623 | G189: 161.6269636 | H189: 161.3817322 | I189: 161.1984859 | J189: 161.0852335 | K189: 161.0469246 | L189: 161.0852335 | M189: 161.1984859 | N189: 161.3817322 | O189: 161.6269636 | P189: 161.9234623 | Q189: 162.2582699 | R189: 162.6167537 | S189: 0.8420841907 | T189: 0.8131884125 | U189: 0.7869034759 | V189: 0.7646059565 | W189: 0.7469865262 | X189: 0.7343275132 | Y189: 0.7267202374 | Z189: 0.7241840131 | AA189: 0.7267202374 | AB189: 0.7343275132 | AC189: 0.7469865262 | AD189: 0.7646059565 | AE189: 0.7869034759 | AF189: 0.8131884125 | AG189: 0.8420841907
C190: 25.6 | D190: 162.62202 | E190: 162.2738387 | F190: 161.9486531 | G190: 161.6606754 | H190: 161.4224917 | I190: 161.2445117 | J190: 161.1345141 | K190: 161.0973061 | L190: 161.1345141 | M190: 161.2445117 | N190: 161.4224917 | O190: 161.6606754 | P190: 161.9486531 | Q190: 162.2738387 | R190: 162.62202 | S190: 0.8432960273 | T190: 0.8149707314 | U190: 0.7891850793 | V190: 0.7672961303 | W190: 0.749989581 | X190: 0.7375497995 | Y190: 0.7300719885 | Z190: 0.7275785422 | AA190: 0.7300719885 | AB190: 0.7375497995 | AC190: 0.749989581 | AD190: 0.7672961303 | AE190: 0.7891850793 | AF190: 0.8149707314 | AG190: 0.8432960273
C191: 25.76 | D191: 162.627135 | E191: 162.28896 | F191: 161.9731199 | G191: 161.6934184 | H191: 161.4620798 | I191: 161.2892148 | J191: 161.1823784 | K191: 161.1462397 | L191: 161.1823784 | M191: 161.2892148 | N191: 161.4620798 | O191: 161.6934184 | P191: 161.9731199 | Q191: 162.28896 | R191: 162.627135 | S191: 0.8444831925 | T191: 0.816718254 | U191: 0.7914238757 | V191: 0.7699375871 | W191: 0.7529398228 | X191: 0.7407166433 | Y191: 0.7333668434 | Z191: 0.7309157116 | AA191: 0.7333668434 | AB191: 0.7407166433 | AC191: 0.7529398228 | AD191: 0.7699375871 | AE191: 0.7914238757 | AF191: 0.816718254 | AG191: 0.8444831925
C192: 25.92 | D192: 162.6321029 | E192: 162.3036467 | F192: 161.9968835 | G192: 161.7252204 | H192: 161.5005302 | I192: 161.3326332 | J192: 161.2288671 | K192: 161.1937671 | L192: 161.2288671 | M192: 161.3326332 | N192: 161.5005302 | O192: 161.7252204 | P192: 161.9968835 | Q192: 162.3036467 | R192: 162.6321029 | S192: 0.8456461592 | T192: 0.8184315822 | U192: 0.7936205302 | V192: 0.7725310078 | W192: 0.7558379215 | X192: 0.7438286947 | Y192: 0.7366054353 | Z192: 0.734196148 | AA192: 0.7366054353 | AB192: 0.7438286947 | AC192: 0.7558379215 | AD192: 0.7725310078 | AE192: 0.7936205302 | AF192: 0.8184315822 | AG192: 0.8456461592
C193: 26.08 | D193: 162.6369281 | E193: 162.3179114 | F193: 162.0199642 | G193: 161.7561084 | H193: 161.5378756 | I193: 161.3748038 | J193: 161.2740198 | K193: 161.2399285 | L193: 161.2740198 | M193: 161.3748038 | N193: 161.5378756 | O193: 161.7561084 | P193: 162.0199642 | Q193: 162.3179114 | R193: 162.6369281 | S193: 0.8467853924 | T193: 0.8201113109 | U193: 0.7957757033 | V193: 0.7750770724 | W193: 0.7586845499 | X193: 0.7468866091 | Y193: 0.7397884047 | Z193: 0.7374204864 | AA193: 0.7397884047 | AB193: 0.7468866091 | AC193: 0.7586845499 | AD193: 0.7750770724 | AE193: 0.7957757033 | AF193: 0.8201113109 | AG193: 0.8467853924
C194: 26.24 | D194: 162.6416146 | E194: 162.3317661 | F194: 162.0423816 | G194: 161.7861087 | H194: 161.5741478 | I194: 161.4157624 | J194: 161.3178749 | K194: 161.2847633 | L194: 161.3178749 | M194: 161.4157624 | N194: 161.5741478 | O194: 161.7861087 | P194: 162.0423816 | Q194: 162.3317661 | R194: 162.6416146 | S194: 0.8479013496 | T194: 0.8217580276 | U194: 0.7978900514 | V194: 0.7775764598 | W194: 0.7614803831 | X194: 0.7498910473 | Y194: 0.7429163993 | Z194: 0.740589369 | AA194: 0.7429163993 | AB194: 0.7498910473 | AC194: 0.7614803831 | AD194: 0.7775764598 | AE194: 0.7978900514 | AF194: 0.8217580276 | AG194: 0.8479013496
C195: 26.4 | D195: 162.6461665 | E195: 162.3452227 | F195: 162.0641548 | G195: 161.8152469 | H195: 161.6093775 | I195: 161.4555439 | J195: 161.3604696 | K195: 161.3283096 | L195: 161.3604696 | M195: 161.4555439 | N195: 161.6093775 | O195: 161.8152469 | P195: 162.0641548 | Q195: 162.3452227 | R195: 162.6461665 | S195: 0.8489944804 | T195: 0.8233723132 | U195: 0.7999642258 | V195: 0.7800298474 | W195: 0.7642260976 | X195: 0.7528426742 | Y195: 0.7459900725 | Z195: 0.743703445 | AA195: 0.7459900725 | AB195: 0.7528426742 | AC195: 0.7642260976 | AD195: 0.7800298474 | AE195: 0.7999642258 | AF195: 0.8233723132 | AG195: 0.8489944804
C196: 26.56 | D196: 162.6505875 | E196: 162.3582925 | F196: 162.0853022 | G196: 161.8435477 | H196: 161.6435947 | I196: 161.4941822 | J196: 161.4018401 | K196: 161.3706044 | L196: 161.4018401 | M196: 161.4941822 | N196: 161.6435947 | O196: 161.8435477 | P196: 162.0853022 | Q196: 162.3582925 | R196: 162.6505875 | S196: 0.8500652272 | T196: 0.8249547409 | U196: 0.801998873 | V196: 0.7824379107 | W196: 0.7669223713 | X196: 0.7557421585 | Y196: 0.7490100831 | Z196: 0.7467633691 | AA196: 0.7490100831 | AB196: 0.7557421585 | AC196: 0.7669223713 | AD196: 0.7824379107 | AE196: 0.801998873 | AF196: 0.8249547409 | AG196: 0.8500652272
C197: 26.72 | D197: 162.6548814 | E197: 162.3709867 | F197: 162.1058419 | G197: 161.8710351 | H197: 161.6768286 | I197: 161.53171 | J197: 161.4420218 | K197: 161.4116837 | L197: 161.4420218 | M197: 161.53171 | N197: 161.6768286 | O197: 161.8710351 | P197: 162.1058419 | Q197: 162.3709867 | R197: 162.6548814 | S197: 0.8511140244 | T197: 0.8265058769 | U197: 0.803994634 | V197: 0.7848013227 | W197: 0.7695698826 | X197: 0.7585901717 | Y197: 0.7519770946 | Z197: 0.7497698012 | AA197: 0.7519770946 | AB197: 0.7585901717 | AC197: 0.7695698826 | AD197: 0.7848013227 | AE197: 0.803994634 | AF197: 0.8265058769 | AG197: 0.8511140244
C198: 26.88 | D198: 162.659052 | E198: 162.3833161 | F198: 162.1257912 | G198: 161.8977326 | H198: 161.7091073 | I198: 161.5681593 | J198: 161.4810486 | K198: 161.4515825 | L198: 161.4810486 | M198: 161.5681593 | N198: 161.7091073 | O198: 161.8977326 | P198: 162.1257912 | Q198: 162.3833161 | R198: 162.659052 | S198: 0.8521412994 | T198: 0.8280262799 | U198: 0.8059521445 | V198: 0.7871207536 | W198: 0.7721693098 | X198: 0.7613873878 | Y198: 0.7548917741 | Z198: 0.7527234057 | AA198: 0.7548917741 | AB198: 0.7613873878 | AC198: 0.7721693098 | AD198: 0.7871207536 | AE198: 0.8059521445 | AF198: 0.8280262799 | AG198: 0.8521412994
C199: 27.04 | D199: 162.6631027 | E199: 162.3952911 | F199: 162.1451673 | G199: 161.9236628 | H199: 161.7404584 | I199: 161.6035611 | J199: 161.5189539 | K199: 161.4903346 | L199: 161.5189539 | M199: 161.6035611 | N199: 161.7404584 | O199: 161.9236628 | P199: 162.1451673 | Q199: 162.3952911 | R199: 162.6631027 | S199: 0.8531474721 | T199: 0.8295165014 | U199: 0.8078720345 | V199: 0.7893968707 | W199: 0.7747213307 | X199: 0.7641344824 | Y199: 0.757754792 | Z199: 0.7556248505 | AA199: 0.757754792 | AB199: 0.7641344824 | AC199: 0.7747213307 | AD199: 0.7893968707 | AE199: 0.8078720345 | AF199: 0.8295165014 | AG199: 0.8531474721
C200: 27.2 | D200: 162.667037 | E200: 162.406922 | F200: 162.1639865 | G200: 161.9488478 | H200: 161.7709085 | I200: 161.6379455 | J200: 161.5557698 | K200: 161.527973 | L200: 161.5557698 | M200: 161.6379455 | N200: 161.7709085 | O200: 161.9488478 | P200: 162.1639865 | Q200: 162.406922 | R200: 162.667037 | S200: 0.8541329551 | T200: 0.8309770855 | U200: 0.809754928 | V200: 0.7916303374 | W200: 0.7772266224 | X200: 0.7668321324 | Y200: 0.7605668212 | Z200: 0.7584748067 | AA200: 0.7605668212 | AB200: 0.7668321324 | AC200: 0.7772266224 | AD200: 0.7916303374 | AE200: 0.809754928 | AF200: 0.8309770855 | AG200: 0.8541329551
C201: 27.36 | D201: 162.6708582 | E201: 162.4182187 | F201: 162.1822648 | G201: 161.973309 | H201: 161.8004835 | I201: 161.6713417 | J201: 161.5915277 | K201: 161.5645297 | L201: 161.5915277 | M201: 161.6713417 | N201: 161.8004835 | O201: 161.973309 | P201: 162.1822648 | Q201: 162.4182187 | R201: 162.6708582 | S201: 0.855098154 | T201: 0.8324085688 | U201: 0.8116014434 | V201: 0.7938218138 | W201: 0.7796858603 | X201: 0.7694810151 | Y201: 0.7633285365 | Z201: 0.7612739474 | AA201: 0.7633285365 | AB201: 0.7694810151 | AC201: 0.7796858603 | AD201: 0.7938218138 | AE201: 0.8116014434 | AF201: 0.8324085688 | AG201: 0.855098154
C202: 27.52 | D202: 162.6745696 | E202: 162.4291907 | F202: 162.2000179 | G202: 161.9970672 | H202: 161.8292086 | I202: 161.7037782 | J202: 161.6262579 | K202: 161.6000358 | L202: 161.6262579 | M202: 161.7037782 | N202: 161.8292086 | O202: 161.9970672 | P202: 162.2000179 | Q202: 162.4291907 | R202: 162.6745696 | S202: 0.8560434671 | T202: 0.8338114806 | U202: 0.8134121924 | V202: 0.7959719557 | W202: 0.782099718 | X202: 0.772081808 | Y202: 0.7660406141 | Z202: 0.764022948 | AA202: 0.7660406141 | AB202: 0.772081808 | AC202: 0.782099718 | AD202: 0.7959719557 | AE202: 0.8134121924 | AF202: 0.8338114806 | AG202: 0.8560434671
C203: 27.68 | D203: 162.6781743 | E203: 162.4398473 | F203: 162.2172607 | G203: 162.0201427 | H203: 161.8571081 | I203: 161.7352824 | J203: 161.65999 | K203: 161.6345215 | L203: 161.65999 | M203: 161.7352824 | N203: 161.8571081 | O203: 162.0201427 | P203: 162.2172607 | Q203: 162.4398473 | R203: 162.6781743 | S203: 0.8569692859 | T203: 0.8351863428 | U203: 0.8151877809 | V203: 0.7980814144 | W203: 0.784468867 | X203: 0.7746351882 | Y203: 0.7687037311 | Z203: 0.7667224848 | AA203: 0.7687037311 | AB203: 0.7746351882 | AC203: 0.784468867 | AD203: 0.7980814144 | AE203: 0.8151877809 | AF203: 0.8351863428 | AG203: 0.8569692859
C204: 27.84 | D204: 162.6816755 | E204: 162.4501977 | F204: 162.2340081 | G204: 162.0425549 | H204: 161.8842058 | I204: 161.7658813 | J204: 161.6927527 | K204: 161.6680161 | L204: 161.6927527 | M204: 161.7658813 | N204: 161.8842058 | O204: 162.0425549 | P204: 162.2340081 | Q204: 162.4501977 | R204: 162.6816755 | S204: 0.8578759948 | T204: 0.8365336698 | U204: 0.8169288081 | V204: 0.8001508368 | W204: 0.7867939762 | X204: 0.7771418319 | Y204: 0.7713185645 | Z204: 0.7693732346 | AA204: 0.7713185645 | AB204: 0.7771418319 | AC204: 0.7867939762 | AD204: 0.8001508368 | AE204: 0.8169288081 | AF204: 0.8365336698 | AG204: 0.8578759948
C205: 28 | D205: 162.685076 | E205: 162.4602507 | F205: 162.2502741 | G205: 162.0643231 | H205: 161.9105248 | I205: 161.7956007 | J205: 161.7245738 | K205: 161.7005481 | L205: 161.7245738 | M205: 161.7956007 | N205: 161.9105248 | O205: 162.0643231 | P205: 162.2502741 | Q205: 162.4602507 | R205: 162.685076 | S205: 0.8587639716 | T205: 0.8378539688 | U205: 0.8186358666 | V205: 0.8021808649 | W205: 0.7890757112 | X205: 0.7796024137 | Y205: 0.7738857913 | Z205: 0.7719758747 | AA205: 0.7738857913 | AB205: 0.7796024137 | AC205: 0.7890757112 | AD205: 0.8021808649 | AE205: 0.8186358666 | AF205: 0.8378539688 | AG205: 0.8587639716
... 325 more rows

Sheet Project LSR 350F
C1: Platinum Cured Silicone ONLY!
AE3: =1/(D24+273.15) -> 0.002536461636 | AF3: =LN(1/G24) -> -4.427238977 | AG3: =LN(1/F24) -> -3.446807893 | AH3: =SLOPE(AF3:AF5,AE3:AE5) -> -5122.519514 | AI3: =SLOPE(AG3:AG5,AE3:AE5) -> -3948.741457
B4: Imp | C4: Metric | AE4: =1/(D25+273.15) -> 0.002369387513 | AF4: =LN(1/G25) -> -3.306886702 | AG4: =LN(1/F25) -> -2.557227311 | AH4: =INTERCEPT(AF3:AF5,AE3:AE5) -> 8.650047133 | AI4: =INTERCEPT(AG3:AG5,AE3:AE5) -> 6.642199404
B5: =C5/25.4 -> 0.1141732283 | C5: 2.9 | D5: in, mm | E5: Thickness | AE5: =1/(D26+273.15) -> 0.00222296321 | AF5: =LN(1/G26) -> -2.833213344 | AG5: =LN(1/F26) -> -2.219203484
C6: =0.0006*C8 - 0.4448 -> 0.2752 | D6: W/m-K | E6: Thermal Conductivity, k
C7: 1450 | D7: J/kg - K | E7: Heat Capacity, cp | Z7: 55.71428571
C8: 1200 | D8: kg/m3 | E8: Density, p | Z8: 20
Z9: 55.71428571
C10: 15 | D10: # | E10: Number of nodes
B12: =(C12*9/5)+32 -> 350.24 | C12: 176.8 | D12: F, C | E12: Mold Temperature, TmL
B13: =(C13*9/5)+32 -> 350.24 | C13: 176.8 | D13: F, C | E13: Mold Temperature, TmR
B14: 69.8 | C14: 21 | D14: F, C | E14: Initial Rubber Temperature, Tr
C16: 80 | D16: sec | E16: Total T
C18: =8.3144621*-AH3 -> 42590.99436 | D18: J/mole | E18: Ea2 | F18: Activation Energy
C19: =POWER(2.71828,AH4) -> 5710.382653 | D19: s-1 | E19: A2 | F19: Arrhenius Constant
C20: =8.3144621*-AI3 -> 32831.66119 | D20: J/mole | E20: Ea1 | F20: Activation Energy
C21: =POWER(2.71828,AI4) -> 766.7761722 | D21: s-1 | E21: A1 | F21: Arrhenius Constant
B22: 3 Temp Rheology Study (ASTM D5289)
C23: Cure Set | D23: Temperature, C | F23: ts(1), sec | G23: t(90), sec
C24: Low | D24: 121.1 | F24: 31.4 | G24: 83.7
C25: Med | D25: 148.9 | F25: 12.9 | G25: 27.3
C26: High | D26: 176.7 | F26: 9.2 | G26: 17
D28: Temperature (time, x), C | S28: 90% SOC (time, x), %
C29: time, s | D29: 0.09666666667 | E29: 0.29 | F29: 0.4833333333 | G29: 0.6766666667 | H29: 0.87 | I29: 1.063333333 | J29: 1.256666667 | K29: 1.45 | L29: 1.643333333 | M29: 1.836666667 | N29: 2.03 | O29: 2.223333333 | P29: 2.416666667 | Q29: 2.61 | R29: 2.803333333 | S29: 0.09666666667 | T29: 0.29 | U29: 0.4833333333 | V29: 0.6766666667 | W29: 0.87 | X29: 1.063333333 | Y29: 1.256666667 | Z29: 1.45 | AA29: 1.643333333 | AB29: 1.836666667 | AC29: 2.03 | AD29: 2.223333333 | AE29: 2.416666667 | AF29: 2.61 | AG29: 2.803333333
C30: 0 | D30: 21 | E30: 21 | F30: 21 | G30: 21 | H30: 21 | I30: 21 | J30: 21 | K30: 21 | L30: 21 | M30: 21 | N30: 21 | O30: 21 | P30: 21 | Q30: 21 | R30: 21 | S30: 0 | T30: 0 | U30: 0 | V30: 0 | W30: 0 | X30: 0 | Y30: 0 | Z30: 0 | AA30: 0 | AB30: 0 | AC30: 0 | AD30: 0 | AE30: 0 | AF30: 0 | AG30: 0
C31: 0.16 | D31: 95.89202179 | E31: 44.6951012 | F31: 28.49695866 | G31: 23.37217637 | H31: 21.75121007 | I31: 21.23981636 | J31: 21.08264268 | K31: 21.04753613 | L31: 21.08264268 | M31: 21.23981636 | N31: 21.75121007 | O31: 23.37217637 | P31: 28.49695866 | Q31: 44.6951012 | R31: 95.89202179 | S31: 0.002485765098 | T31: 0.00044333753 | U31: 0.0002274629571 | V31: 0.0001813932362 | W31: 0.0001685857522 | X31: 0.0001647083558 | Y31: 0.0001635320165 | Z31: 0.0001632702467 | AA31: 0.0001635320165 | AB31: 0.0001647083558 | AC31: 0.0001685857522 | AD31: 0.0001813932362 | AE31: 0.0002274629571 | AF31: 0.00044333753 | AG31: 0.002485765098
C32: 0.32 | D32: 125.4364417 | E32: 66.34782186 | F32: 39.24128803 | G32: 28.00463361 | H32: 23.61033626 | I32: 21.96205564 | J32: 21.38055637 | K32: 21.23908962 | L32: 21.38055637 | M32: 21.96205564 | N32: 23.61033626 | O32: 28.00463361 | P32: 39.24128803 | Q32: 66.34782186 | R32: 125.4364417 | S32: 0.007971862976 | T32: 0.001422354054 | U32: 0.0005842578898 | V32: 0.0004040004295 | W32: 0.0003518991835 | X32: 0.0003348883921 | Y32: 0.000329273865 | Z32: 0.0003279473924 | AA32: 0.000329273865 | AB32: 0.0003348883921 | AC32: 0.0003518991835 | AD32: 0.0004040004295 | AE32: 0.0005842578898 | AF32: 0.001422354054 | AG32: 0.007971862976
C33: 0.48 | D33: 138.7983251 | E33: 82.53110522 | F33: 50.16735536 | G33: 33.94192043 | H33: 26.48613717 | I33: 23.27804702 | J33: 22.01373798 | K33: 21.68466793 | L33: 22.01373798 | M33: 23.27804702 | N33: 26.48613717 | O33: 33.94192043 | P33: 50.16735536 | Q33: 82.53110522 | R33: 138.7983251 | S33: 0.01551192983 | T33: 0.003083295068 | U33: 0.001131092931 | V33: 0.0006908028912 | W33: 0.0005601567322 | X33: 0.000515458255 | Y33: 0.000499826374 | Z33: 0.0004959715275 | AA33: 0.000499826374 | AB33: 0.000515458255 | AC33: 0.0005601567322 | AD33: 0.0006908028912 | AE33: 0.001131092931 | AF33: 0.003083295068 | AG33: 0.01551192983
C34: 0.64 | D34: 145.8266154 | E34: 94.26096113 | F34: 60.02085533 | G34: 40.33483204 | H34: 30.09143965 | I34: 25.17324845 | J34: 23.05435884 | K34: 22.47251515 | L34: 23.05435884 | M34: 25.17324845 | N34: 30.09143965 | O34: 40.33483204 | P34: 60.02085533 | Q34: 94.26096113 | R34: 145.8266154 | S34: 0.02432757766 | T34: 0.005448062116 | U34: 0.001915557642 | V34: 0.001063529579 | W34: 0.0008037052415 | X34: 0.0007119465354 | Y34: 0.0006785600657 | Z34: 0.0006700755277 | AA34: 0.0006785600657 | AB34: 0.0007119465354 | AC34: 0.0008037052415 | AD34: 0.001063529579 | AE34: 0.001915557642 | AF34: 0.005448062116 | AG34: 0.02432757766
C35: 0.8 | D35: 150.0767136 | E35: 102.9077356 | F35: 68.51044973 | G35: 46.65269381 | H35: 34.12671663 | I35: 27.5610332 | J35: 24.52222006 | K35: 23.65150693 | L35: 24.52222006 | M35: 27.5610332 | N35: 34.12671663 | O35: 46.65269381 | P35: 68.51044973 | Q35: 102.9077356 | R35: 150.0767136 | S35: 0.03396743619 | T35: 0.008470808659 | U35: 0.002968084423 | V35: 0.001541449918 | W35: 0.001092627468 | X35: 0.0009301784656 | Y35: 0.000869410142 | Z35: 0.0008536399746 | AA35: 0.000869410142 | AB35: 0.0009301784656 | AC35: 0.001092627468 | AD35: 0.001541449918 | AE35: 0.002968084423 | AF35: 0.008470808659 | AG35: 0.03396743619
C36: 0.96 | D36: 152.9472433 | E36: 109.4816374 | F36: 75.72599326 | G36: 52.62804606 | H36: 38.35597495 | I36: 30.33071714 | J36: 26.39641266 | K36: 25.23037873 | L36: 26.39641266 | M36: 30.33071714 | N36: 38.35597495 | O36: 52.62804606 | P36: 75.72599326 | Q36: 109.4816374 | R36: 152.9472433 | S36: 0.0441730475 | T36: 0.01208367824 | U36: 0.004303795742 | V36: 0.002140640467 | W36: 0.00143655397 | X36: 0.001176155762 | Y36: 0.00107674525 | Z36: 0.001050563751 | AA36: 0.00107674525 | AB36: 0.001176155762 | AC36: 0.00143655397 | AD36: 0.002140640467 | AE36: 0.004303795742 | AF36: 0.01208367824 | AG36: 0.0441730475
C37: 1.12 | D37: 155.0473992 | E37: 114.6442265 | F37: 81.86644044 | G37: 58.1583835 | H37: 42.61889485 | I37: 33.37593925 | J37: 28.63091982 | K37: 27.18637248 | L37: 28.63091982 | M37: 33.37593925 | N37: 42.61889485 | O37: 58.1583835 | P37: 81.86644044 | Q37: 114.6442265 | R37: 155.0473992 | S37: 0.05478646332 | T37: 0.01621849025 | U37: 0.00592675572 | V37: 0.00287387602 | W37: 0.001844572034 | X37: 0.001456025147 | Y37: 0.001305302172 | Z37: 0.001265179882 | AA37: 0.001305302172 | AB37: 0.001456025147 | AC37: 0.001844572034 | AD37: 0.00287387602 | AE37: 0.00592675572 | AF37: 0.01621849025 | AG37: 0.05478646332
C38: 1.28 | D38: 156.6729586 | E38: 118.8199035 | F38: 87.13451977 | G38: 63.23033675 | H38: 46.81766705 | I38: 36.60678119 | J38: 31.16800073 | K38: 29.47660799 | L38: 31.16800073 | M38: 36.60678119 | N38: 46.81766705 | O38: 63.23033675 | P38: 87.13451977 | Q38: 118.8199035 | R38: 156.6729586 | S38: 0.06570363192 | T38: 0.0208142664 | U38: 0.007834076854 | V38: 0.003750980717 | W38: 0.002325207093 | X38: 0.001776076415 | Y38: 0.001560158532 | Z38: 0.001502210029 | AA38: 0.001560158532 | AB38: 0.001776076415 | AC38: 0.002325207093 | AD38: 0.003750980717 | AE38: 0.007834076854 | AF38: 0.0208142664 | AG38: 0.06570363192
C39: 1.44 | D39: 157.9831682 | E39: 122.2847458 | F39: 91.70405833 | G39: 67.87279402 | H39: 50.89865726 | I39: 39.95233486 | J39: 33.94755244 | K39: 32.04829854 | L39: 33.94755244 | M39: 39.95233486 | N39: 50.89865726 | O39: 67.87279402 | P39: 91.70405833 | Q39: 122.2847458 | R39: 157.9831682 | S39: 0.07685147809 | T39: 0.02581874061 | U39: 0.01001899452 | V39: 0.004779389943 | W39: 0.002886456966 | X39: 0.002142743958 | Y39: 0.001846719905 | Z39: 0.001766740654 | AA39: 0.001846719905 | AB39: 0.002142743958 | AC39: 0.002886456966 | AD39: 0.004779389943 | AE39: 0.01001899452 | AF39: 0.02581874061 | AG39: 0.07685147809
C40: 1.6 | D40: 159.071771 | E40: 125.2232304 | F40: 95.71496976 | G40: 72.13101376 | H40: 54.83664845 | I40: 43.3588812 | J40: 36.91274299 | K40: 34.84633058 | L40: 36.91274299 | M40: 43.3588812 | N40: 54.83664845 | O40: 72.13101376 | P40: 95.71496976 | Q40: 125.2232304 | R40: 159.071771 | S40: 0.08817607254 | T40: 0.03118776787 | U40: 0.01247290157 | V40: 0.005964735301 | W40: 0.00353585488 | X40: 0.002562602029 | Y40: 0.002170707085 | Z40: 0.002064206142 | AA40: 0.002170707085 | AB40: 0.002562602029 | AC40: 0.00353585488 | AD40: 0.005964735301 | AE40: 0.01247290157 | AF40: 0.03118776787 | AG40: 0.08817607254
C41: 1.76 | D41: 159.9980681 | E41: 127.7623887 | F41: 99.27716538 | G41: 76.05347241 | H41: 58.62343519 | I41: 46.78665995 | J41: 40.01287501 | K41: 37.81813075 | L41: 40.01287501 | M41: 46.78665995 | N41: 58.62343519 | O41: 76.05347241 | P41: 99.27716538 | Q41: 127.7623887 | R41: 159.9980681 | S41: 0.0996360839 | T41: 0.03688417723 | U41: 0.01518659666 | V41: 0.0073113536 | W41: 0.004280539819 | X41: 0.003042351165 | Y41: 0.00253813681 | Z41: 0.002400369691 | AA41: 0.00253813681 | AB41: 0.003042351165 | AC41: 0.004280539819 | AD41: 0.0073113536 | AE41: 0.01518659666 | AF41: 0.03688417723 | AG41: 0.0996360839
C42: 1.92 | D42: 160.8017306 | E42: 129.9922391 | F42: 102.4763415 | G42: 79.68577733 | H42: 62.26029823 | I42: 50.20663676 | J42: 43.20444175 | K42: 40.91634082 | L42: 43.20444175 | M42: 50.20663676 | N42: 62.26029823 | O42: 79.68577733 | P42: 102.4763415 | Q42: 129.9922391 | R42: 160.8017306 | S42: 0.1111988925 | T42: 0.04287660522 | U42: 0.01815100212 | V42: 0.008822685815 | W42: 0.005127319773 | X42: 0.003588796059 | Y42: 0.002955293941 | Z42: 0.00278129763 | AA42: 0.002955293941 | AB42: 0.003588796059 | AC42: 0.005127319773 | AD42: 0.008822685815 | AE42: 0.01815100212 | AF42: 0.04287660522 | AG42: 0.1111988925
C43: 2.08 | D43: 161.5104601 | E43: 131.9782071 | F43: 105.379322 | G43: 83.06827572 | H43: 65.75333848 | I43: 53.59778584 | J43: 46.45111979 | K43: 44.09994977 | L43: 46.45111979 | M43: 53.59778584 | N43: 65.75333848 | O43: 83.06827572 | P43: 105.379322 | Q43: 131.9782071 | R43: 161.5104601 | S43: 0.1228381384 | T43: 0.04913846653 | U43: 0.02135754297 | V43: 0.01050156765 | W43: 0.006082720713 | X43: 0.004208816387 | Y43: 0.003428695607 | Z43: 0.003213326087 | AA43: 0.003428695607 | AB43: 0.004208816387 | AC43: 0.006082720713 | AD43: 0.01050156765 | AE43: 0.02135754297 | AF43: 0.04913846653 | AG43: 0.1228381384
C44: 2.24 | D44: 162.1442467 | E44: 133.7688726 | F44: 108.0383957 | G44: 86.2354956 | H44: 69.11072809 | I44: 56.94498284 | J44: 49.72320484 | K44: 47.33445024 | L44: 49.72320484 | M44: 56.94498284 | N44: 69.11072809 | O44: 86.2354956 | P44: 108.0383957 | Q44: 133.7688726 | R44: 162.1442467 | S44: 0.1345320929 | T44: 0.05564708775 | U44: 0.0247983163 | V44: 0.01235042837 | W44: 0.007153019397 | X44: 0.004909332412 | Y44: 0.003965048968 | Z44: 0.003703020774 | AA44: 0.003965048968 | AB44: 0.004909332412 | AC44: 0.007153019397 | AD44: 0.01235042837 | AE44: 0.0247983163 | AF44: 0.05564708775 | AG44: 0.1345320929
C45: 2.4 | D45: 162.7178862 | E45: 135.4009512 | F45: 110.4946731 | G45: 89.21643196 | H45: 72.34117394 | I45: 60.23743626 | J45: 52.99680702 | K45: 50.59144204 | L45: 52.99680702 | M45: 60.23743626 | N45: 72.34117394 | O45: 89.21643196 | P45: 110.4946731 | Q45: 135.4009512 | R45: 162.7178862 | S45: 0.1462625333 | T45: 0.06238299036 | U45: 0.02846613477 | V45: 0.01437141832 | W45: 0.008344261286 | X45: 0.00569726723 | Y45: 0.004571204566 | Z45: 0.004257131476 | AA45: 0.004571204566 | AB45: 0.00569726723 | AC45: 0.008344261286 | AD45: 0.01437141832 | AE45: 0.02846613477 | AF45: 0.06238299036 | AG45: 0.1462625333
C46: 2.56 | D46: 163.2425483 | E46: 136.9025956 | F46: 112.7806422 | G46: 92.03517266 | H46: 75.45311561 | I46: 63.46754264 | J46: 56.25298861 | K46: 53.8479678 | L46: 56.25298861 | M46: 63.46754264 | N46: 75.45311561 | O46: 92.03517266 | P46: 112.7806422 | Q46: 136.9025956 | R46: 163.2425483 | S46: 0.1580139381 | T46: 0.06932930025 | U46: 0.03235449712 | V46: 0.01656648401 | W46: 0.009662266227 | X46: 0.006579507307 | Y46: 0.005254107225 | Z46: 0.004882543102 | AA46: 0.005254107225 | AB46: 0.006579507307 | AC46: 0.009662266227 | AD46: 0.01656648401 | AE46: 0.03235449712 | AF46: 0.06932930025 | AG46: 0.1580139381
C47: 2.72 | D47: 163.7267972 | E47: 138.2956498 | F47: 114.9221089 | G47: 94.71161494 | H47: 78.45435201 | I47: 66.63005628 | J47: 59.47694184 | K47: 57.08575782 | L47: 59.47694184 | M47: 66.63005628 | N47: 78.45435201 | O47: 94.71161494 | P47: 114.9221089 | Q47: 138.2956498 | R47: 163.7267972 | S47: 0.1697728981 | T47: 0.07647126224 | U47: 0.03645751949 | V47: 0.01893740648 | W47: 0.01111262494 | X47: 0.007562862698 | Y47: 0.006020746167 | Z47: 0.005586225079 | AA47: 0.006020746167 | AB47: 0.007562862698 | AC47: 0.01111262494 | AD47: 0.01893740648 | AE47: 0.03645751949 | AF47: 0.07647126224 | AG47: 0.1697728981
C48: 2.88 | D48: 164.1772813 | E48: 139.59723 | F48: 116.939674 | G48: 97.26215629 | H48: 81.35190807 | I48: 69.72148633 | J48: 62.65725205 | K48: 60.29048542 | L48: 62.65725205 | M48: 69.72148633 | N48: 81.35190807 | O48: 97.26215629 | P48: 116.939674 | Q48: 139.59723 | R48: 164.1772813 | S48: 0.1815276752 | T48: 0.08379584086 | U48: 0.0407698483 | V48: 0.02148581487 | W48: 0.01270068914 | X48: 0.008654028044 | Y48: 0.006878105717 | Z48: 0.00637518059 | AA48: 0.006878105717 | AB48: 0.008654028044 | AC48: 0.01270068914 | AD48: 0.02148581487 | AE48: 0.0407698483 | AF48: 0.08379584086 | AG48: 0.1815276752
C49: 3.04 | D49: 164.5992148 | E49: 140.8208603 | F49: 118.849865 | G49: 99.70031182 | H49: 84.15202891 | I49: 72.73965607 | J49: 65.78526177 | K49: 63.45108483 | L49: 65.78526177 | M49: 72.73965607 | N49: 84.15202891 | O49: 99.70031182 | P49: 118.849865 | Q49: 140.8208603 | R49: 164.5992148 | S49: 0.1932678692 | T49: 0.09129139255 | U49: 0.04528656771 | V49: 0.02421318424 | W49: 0.01443155767 | X49: 0.009859545193 | Y49: 0.007833117668 | Z49: 0.007256396925 | AA49: 0.007833117668 | AB49: 0.009859545193 | AC49: 0.01443155767 | AD49: 0.02421318424 | AE49: 0.04528656771 | AF49: 0.09129139255 | AG49: 0.1932678692
C50: 3.2 | D50: 164.9967224 | E50: 141.9773045 | F50: 120.666009 | G50: 102.0372436 | H50: 86.86023608 | I50: 75.68337788 | J50: 68.85453515 | K50: 66.55915345 | L50: 68.85453515 | M50: 75.68337788 | N50: 86.86023608 | O50: 102.0372436 | P50: 120.666009 | Q50: 141.9773045 | R50: 164.9967224 | S50: 0.2049841608 | T50: 0.09894739674 | U50: 0.05000310923 | V50: 0.02712082405 | W50: 0.01631006057 | X50: 0.01118576803 | Y50: 0.008892616068 | Z50: 0.008236797851 | AA50: 0.008892616068 | AB50: 0.01118576803 | AC50: 0.01631006057 | AD50: 0.02712082405 | AE50: 0.05000310923 | AF50: 0.09894739674 | AG50: 0.2049841608
C51: 3.36 | D51: 165.3730911 | E51: 143.0751874 | F51: 122.3989084 | G51: 104.2822033 | H51: 89.48140923 | I51: 78.55221109 | J51: 71.86041441 | K51: 69.60844267 | L51: 71.86041441 | M51: 78.55221109 | N51: 89.48140923 | O51: 104.2822033 | P51: 122.3989084 | Q51: 143.0751874 | R51: 165.3730911 | S51: 0.2166681139 | T51: 0.1067542358 | U51: 0.05491516787 | V51: 0.03020986175 | W51: 0.01834074245 | X51: 0.01263882994 | Y51: 0.01006329496 | Z51: 0.009323198701 | AA51: 0.01006329496 | AB51: 0.01263882994 | AC51: 0.01834074245 | AD51: 0.03020986175 | AE51: 0.05491516787 | AF51: 0.1067542358 | AG51: 0.2166681139
C52: 3.52 | D52: 165.7309588 | E52: 144.121464 | F52: 124.0573688 | G52: 106.4428976 | H52: 92.01987328 | I52: 81.34627969 | J52: 74.79965674 | K52: 72.59443283 | L52: 74.79965674 | M52: 81.34627969 | N52: 92.01987328 | O52: 106.4428976 | P52: 124.0573688 | Q52: 144.121464 | R52: 165.7309588 | S52: 0.2283120217 | T52: 0.1147030157 | U52: 0.06001862697 | V52: 0.03348122448 | W52: 0.02052784636 | X52: 0.01422461412 | Y52: 0.01135166941 | Z52: 0.01052226462 | AA52: 0.01135166941 | AB52: 0.01422461412 | AC52: 0.02052784636 | AD52: 0.03348122448 | AE52: 0.06001862697 | AF52: 0.1147030157 | AG52: 0.2283120217
C53: 3.68 | D53: 166.0724567 | E53: 145.1217784 | F53: 125.6486116 | G53: 108.5257851 | H53: 94.47948126 | I53: 84.06613405 | J53: 77.67013956 | K53: 75.51398309 | L53: 77.67013956 | M53: 84.06613405 | N53: 94.47948126 | O53: 108.5257851 | P53: 125.6486116 | Q53: 145.1217784 | R53: 166.0724567 | S53: 0.2399087862 | T53: 0.1227854195 | U53: 0.06530949269 | V53: 0.03693562105 | W53: 0.02287529864 | X53: 0.01594872699 | Y53: 0.01276404005 | Z53: 0.01184047223 | AA53: 0.01276404005 | AB53: 0.01594872699 | AC53: 0.02287529864 | AD53: 0.03693562105 | AE53: 0.06530949269 | AF53: 0.1227854195 | AG53: 0.2399087862
C54: 3.84 | D54: 166.3993175 | E54: 146.0807413 | F54: 127.1785983 | G54: 110.5363177 | H54: 96.86368839 | I54: 86.71264504 | J54: 80.4706228 | K54: 78.36504591 | L54: 80.4706228 | M54: 86.71264504 | N54: 96.86368839 | O54: 110.5363177 | P54: 127.1785983 | Q54: 146.0807413 | R54: 166.3993175 | S54: 0.2514518248 | T54: 0.13099359 | U54: 0.07078383799 | V54: 0.04057352524 | W54: 0.02538669549 | X54: 0.01781647453 | Y54: 0.01430646113 | Z54: 0.01328407494 | AA54: 0.01430646113 | AB54: 0.01781647453 | AC54: 0.02538669549 | AD54: 0.04057352524 | AE54: 0.07078383799 | AF54: 0.13099359 | AG54: 0.2514518248
C55: 4 | D55: 166.7129601 | E55: 147.002145 | F55: 128.6522866 | G55: 112.479135 | H55: 99.17561596 | I55: 89.28692255 | J55: 83.200558 | K55: 81.14643603 | L55: 83.200558 | M55: 89.28692255 | N55: 99.17561596 | O55: 112.479135 | P55: 128.6522866 | Q55: 147.002145 | R55: 166.7129601 | S55: 0.2629349963 | T55: 0.1393200343 | U55: 0.07643775573 | V55: 0.04439516129 | W55: 0.02806529143 | X55: 0.0198328418 | Y55: 0.01598471213 | Z55: 0.01485907176 | AA55: 0.01598471213 | AB55: 0.0198328418 | AC55: 0.02806529143 | AD55: 0.04439516129 | AE55: 0.07643775573 | AF55: 0.1393200343 | AG55: 0.2629349963
C56: 4.16 | D56: 167.0145544 | E56: 147.8891322 | F56: 130.0738317 | G56: 114.35822 | H56: 101.4181052 | I56: 91.79025246 | J56: 85.85993561 | K56: 83.85764447 | L56: 85.85993561 | M56: 91.79025246 | N56: 101.4181052 | O56: 114.35822 | P56: 130.0738317 | Q56: 147.8891322 | R56: 167.0145544 | S56: 0.274352544 | T56: 0.1477575475 | U56: 0.08226732017 | V56: 0.04840049192 | W56: 0.03091398981 | X56: 0.02200247536 | Y56: 0.01780427289 | Z56: 0.01657117977 | AA56: 0.01780427289 | AB56: 0.02200247536 | AC56: 0.03091398981 | AD56: 0.04840049192 | AE56: 0.08226732017 | AF56: 0.1477575475 | AG56: 0.274352544
C57: 4.32 | D57: 167.3050728 | E57: 148.7443276 | F57: 131.4467463 | G57: 116.1770245 | H57: 103.5937623 | I57: 94.22404772 | J57: 88.44916317 | K57: 86.49868942 | L57: 88.44916317 | M57: 94.22404772 | N57: 103.5937623 | O57: 116.1770245 | P57: 131.4467463 | Q57: 148.7443276 | R57: 167.3050728 | S57: 0.2856990507 | T57: 0.1562991532 | U57: 0.08826855597 | V57: 0.05258920903 | W57: 0.03393533545 | X57: 0.02432966859 | Y57: 0.01977030199 | Z57: 0.01842581006 | AA57: 0.01977030199 | AB57: 0.02432966859 | AC57: 0.03393533545 | AD57: 0.05258920903 | AE57: 0.08826855597 | AF57: 0.1562991532 | AG57: 0.2856990507
C58: 4.48 | D58: 167.5853299 | E58: 149.5699426 | F58: 132.7740275 | G58: 117.9385691 | H58: 105.7049948 | I58: 96.58981034 | J58: 90.96896839 | K58: 89.06999719 | L58: 90.96896839 | M58: 96.58981034 | N58: 105.7049948 | O58: 117.9385691 | P58: 132.7740275 | Q58: 149.5699426 | R58: 167.5853299 | S58: 0.2969694031 | T58: 0.1649380553 | U58: 0.09443741377 | V58: 0.05696072701 | W58: 0.03713150938 | X58: 0.02681834971 | Y58: 0.02188761846 | Z58: 0.02042804694 | AA58: 0.02188761846 | AB58: 0.02681834971 | AC58: 0.03713150938 | AD58: 0.05696072701 | AE58: 0.09443741377 | AF58: 0.1649380553 | AG58: 0.2969694031
C59: 4.64 | D59: 167.8560144 | E59: 150.3678571 | F59: 134.0582568 | G59: 119.6455237 | H59: 107.7540427 | I59: 98.88910172 | J59: 93.42032216 | K59: 91.57230733 | L59: 93.42032216 | M59: 98.88910172 | N59: 107.7540427 | O59: 119.6455237 | P59: 134.0582568 | Q59: 150.3678571 | R59: 167.8560144 | S59: 0.3081587653 | T59: 0.1736676015 | U59: 0.1007697517 | V59: 0.06151417856 | W59: 0.04050432568 | X59: 0.02947207247 | Y59: 0.02416068647 | Z59: 0.02258263044 | AA59: 0.02416068647 | AB59: 0.02947207247 | AC59: 0.04050432568 | AD59: 0.06151417856 | AE59: 0.1007697517 | AF59: 0.1736676015 | AG59: 0.3081587653
C60: 4.8 | D60: 168.117714 | E60: 151.1396845 | F60: 135.3016804 | G60: 121.3002713 | H60: 109.7430022 | I60: 101.1235197 | J60: 95.80437754 | K60: 94.00659724 | L60: 95.80437754 | M60: 101.1235197 | N60: 109.7430022 | O60: 121.3002713 | P60: 135.3016804 | Q60: 151.1396845 | R60: 168.117714 | S60: 0.3192625567 | T60: 0.1824812553 | U60: 0.1072613214 | V60: 0.0662484129 | W60: 0.04405523018 | X60: 0.03229400922 | Y60: 0.02659360291 | Z60: 0.02489394178 | AA60: 0.02659360291 | AB60: 0.03229400922 | AC60: 0.04405523018 | AD60: 0.0662484129 | AE60: 0.1072613214 | AF60: 0.1824812553 | AG60: 0.3192625567
C61: 4.96 | D61: 168.3709349 | E61: 151.8868237 | F61: 136.5062722 | G61: 122.9049594 | H61: 111.6738463 | I61: 103.2946806 | J61: 98.12242153 | K61: 96.37402241 | L61: 98.12242153 | M61: 103.2946806 | N61: 111.6738463 | O61: 122.9049594 | P61: 136.5062722 | Q61: 151.8868237 | R61: 168.3709349 | S61: 0.3302764362 | T61: 0.1913725748 | U61: 0.1139077593 | V61: 0.07116199598 | W61: 0.04778530101 | X61: 0.03528694628 | Y61: 0.02919008766 | Z61: 0.02736599163 | AA61: 0.02919008766 | AB61: 0.03528694628 | AC61: 0.04778530101 | AD61: 0.07116199598 | AE61: 0.1139077593 | AF61: 0.1913725748 | AG61: 0.3302764362
C62: 5.12 | D62: 168.6161177 | E62: 152.6104996 | F62: 137.6737847 | G62: 124.4615408 | H62: 113.5484409 | I62: 105.4042053 | J62: 100.375837 | K62: 98.6758691 | L62: 100.375837 | M62: 105.4042053 | N62: 113.5484409 | O62: 124.4615408 | P62: 137.6737847 | Q62: 152.6104996 | R62: 168.6161177 | S62: 0.3411962886 | T62: 0.2003351974 | U62: 0.1207045799 | V62: 0.07625321269 | W62: 0.05169525082 | X62: 0.03845328142 | Y62: 0.03195347641 | Z62: 0.03000241115 | AA62: 0.03195347641 | AB62: 0.03845328142 | AC62: 0.05169525082 | AD62: 0.07625321269 | AE62: 0.1207045799 | AF62: 0.2003351974 | AG62: 0.3411962886
C63: 5.28 | D63: 168.8536499 | E63: 153.3117958 | F63: 138.8057893 | G63: 125.9718069 | H63: 115.3685584 | I63: 107.4537089 | J63: 102.5660725 | K63: 100.913517 | L63: 102.5660725 | M63: 107.4537089 | N63: 115.3685584 | O63: 125.9718069 | P63: 138.8057893 | Q63: 153.3117958 | R63: 168.8536499 | S63: 0.3520182149 | T63: 0.2093628292 | U63: 0.1276471737 | V63: 0.08152007067 | W63: 0.05578543047 | X63: 0.04179502326 | Y63: 0.03488671575 | Z63: 0.03280644534 | AA63: 0.03488671575 | AB63: 0.04179502326 | AC63: 0.05578543047 | AD63: 0.08152007067 | AE63: 0.1276471737 | AF63: 0.2093628292 | AG63: 0.3520182149
C64: 5.44 | D64: 169.0838756 | E64: 153.9916808 | F64: 139.9037082 | G64: 127.4374133 | H64: 117.1358881 | I64: 109.444792 | J64: 104.6946192 | K64: 103.0884097 | L64: 104.6946192 | M64: 109.444792 | N64: 117.1358881 | O64: 127.4374133 | P64: 139.9037082 | Q64: 153.9916808 | R64: 169.0838756 | S64: 0.3627385245 | T64: 0.2184492383 | U64: 0.1347308067 | V64: 0.08696030556 | W64: 0.06005583418 | X64: 0.0453137925 | Y64: 0.03799236043 | Z64: 0.03578094883 | AA64: 0.03799236043 | AB64: 0.0453137925 | AC64: 0.06005583418 | AD64: 0.08696030556 | AE64: 0.1347308067 | AF64: 0.2184492383 | AG64: 0.3627385245
C65: 5.6 | D65: 169.3071034 | E65: 154.6510282 | F65: 140.9688401 | G65: 128.8599017 | H65: 118.8520456 | I65: 111.3790349 | J65: 106.7629917 | K65: 105.202032 | L65: 106.7629917 | M65: 111.3790349 | N65: 118.8520456 | O65: 128.8599017 | P65: 140.9688401 | Q65: 154.6510282 | R65: 169.3071034 | S65: 0.3733537282 | T65: 0.2275882507 | U65: 0.1419506221 | V65: 0.09257138749 | W65: 0.06450610575 | X65: 0.04901082465 | Y65: 0.04127257262 | Z65: 0.03892838361 | AA65: 0.04127257262 | AB65: 0.04901082465 | AC65: 0.06450610575 | AD65: 0.09257138749 | AE65: 0.1419506221 | AF65: 0.2275882507 | AG65: 0.3733537282
C66: 5.76 | D66: 169.5236129 | E66: 155.2906334 | F66: 142.0023808 | G66: 130.2407163 | H66: 120.5185798 | I66: 113.2579927 | J66: 108.7727144 | K66: 107.2558912 | L66: 108.7727144 | M66: 113.2579927 | N66: 120.5185798 | O66: 130.2407163 | P66: 142.0023808 | Q66: 155.2906334 | R66: 169.5236129 | S66: 0.3838605342 | T66: 0.2367737492 | U66: 0.149301644 | V66: 0.0983505287 | W66: 0.069135546 | X66: 0.05288697435 | Y66: 0.04472912293 | Z66: 0.04225081884 | AA66: 0.04472912293 | AB66: 0.05288697435 | AC66: 0.069135546 | AD66: 0.0983505287 | AE66: 0.149301644 | AF66: 0.2367737492 | AG66: 0.3838605342
C67: 5.92 | D67: 169.7336594 | E67: 155.9112267 | F67: 143.0054396 | G67: 131.5812176 | H67: 122.136979 | I67: 115.0831919 | J67: 110.72531 | K67: 109.2515034 | L67: 110.72531 | M67: 115.0831919 | N67: 122.136979 | O67: 131.5812176 | P67: 143.0054396 | Q67: 155.9112267 | R67: 169.7336594 | S67: 0.3942558429 | T67: 0.2459996738 | U67: 0.1567787823 | V67: 0.1042946919 | W67: 0.07394312108 | X67: 0.05694272088 | Y67: 0.04836339306 | Z67: 0.04574993229 | AA67: 0.04836339306 | AB67: 0.05694272088 | AC67: 0.07394312108 | AD67: 0.1042946919 | AE67: 0.1567787823 | AF67: 0.2459996738 | AG67: 0.3942558429
C68: 6.08 | D68: 169.9374781 | E68: 156.5134842 | F68: 143.9790527 | G68: 132.8826936 | H68: 123.7086758 | I68: 116.8561282 | J68: 112.6222907 | K68: 111.1903827 | L68: 112.6222907 | M68: 116.8561282 | N68: 123.7086758 | O68: 132.8826936 | P68: 143.9790527 | Q68: 156.5134842 | R68: 169.9374781 | S68: 0.404536744 | T68: 0.2552600239 | U68: 0.164376839 | V68: 0.1104005995 | W68: 0.07892747155 | X68: 0.06117817487 | Y68: 0.05217637991 | Z68: 0.0494270134 | AA68: 0.05217637991 | AB68: 0.06117817487 | AC68: 0.07892747155 | AD68: 0.1104005995 | AE68: 0.164376839 | AF68: 0.2552600239 | AG68: 0.404536744
C69: 6.24 | D69: 170.1352873 | E69: 157.0980355 | F69: 144.9241935 | G69: 134.1463689 | H69: 125.2350519 | I69: 118.5782641 | J69: 114.4651519 | K69: 113.0740324 | L69: 114.4651519 | M69: 118.5782641 | N69: 125.2350519 | O69: 134.1463689 | P69: 144.9241935 | Q69: 157.0980355 | R69: 170.1352873 | S69: 0.4147005131 | T69: 0.2645488614 | U69: 0.1720905148 | V69: 0.1166647435 | W69: 0.08408692227 | X69: 0.06559308607 | Y69: 0.05616870106 | Z69: 0.05328296784 | AA69: 0.05616870106 | AB69: 0.06559308607 | AC69: 0.08408692227 | AD69: 0.1166647435 | AE69: 0.1720905148 | AF69: 0.2645488614 | AG69: 0.4147005131
C70: 6.4 | D70: 170.327291 | E70: 157.6654714 | F70: 145.8417812 | G70: 135.3734113 | H70: 126.7174408 | I70: 120.2510283 | J70: 116.2553673 | K70: 114.9039386 | L70: 116.2553673 | M70: 120.2510283 | N70: 126.7174408 | O70: 135.3734113 | P70: 145.8417812 | Q70: 157.6654714 | R70: 170.327291 | S70: 0.4247446087 | T70: 0.2738603149 | U70: 0.1799144176 | V70: 0.1230833956 | W70: 0.08941949275 | X70: 0.07018685192 | Y70: 0.06034060133 | Z70: 0.05731832318 | AA70: 0.06034060133 | AB70: 0.07018685192 | AC70: 0.08941949275 | AD70: 0.1230833956 | AE70: 0.1799144176 | AF70: 0.2738603149 | AG70: 0.4247446087
C71: 6.56 | D71: 170.5136807 | E71: 158.2163486 | F71: 146.7326881 | G71: 136.5649388 | H71: 128.1571315 | I71: 121.875815 | J71: 117.9943849 | K71: 116.6815656 | L71: 117.9943849 | M71: 121.875815 | N71: 128.1571315 | O71: 136.5649388 | P71: 146.7326881 | Q71: 158.2163486 | R71: 170.5136807 | S71: 0.43466667 | T71: 0.2831885846 | U71: 0.1878430705 | V71: 0.1296526181 | W71: 0.09492290807 | X71: 0.07495852697 | Y71: 0.06469196046 | Z71: 0.06153323588 | AA71: 0.06469196046 | AB71: 0.07495852697 | AC71: 0.09492290807 | AD71: 0.1296526181 | AE71: 0.1878430705 | AF71: 0.2831885846 | AG71: 0.43466667
C72: 6.72 | D72: 170.6946376 | E72: 158.7511947 | F72: 147.5977445 | G72: 137.7220234 | H72: 129.5553708 | I72: 123.4539833 | J72: 119.6836246 | K72: 118.4083521 | L72: 119.6836246 | M72: 123.4539833 | N72: 129.5553708 | O72: 137.7220234 | P72: 147.5977445 | Q72: 158.7511947 | R72: 170.6946376 | S72: 0.4444645135 | T72: 0.2925279473 | U72: 0.1958709206 | V72: 0.1363682745 | W72: 0.1005946102 | X72: 0.07990683297 | Y72: 0.06922230163 | Z72: 0.06592749913 | AA72: 0.06922230163 | AB72: 0.07990683297 | AC72: 0.1005946102 | AD72: 0.1363682745 | AE72: 0.1958709206 | AF72: 0.2925279473 | AG72: 0.4444645135
C73: 6.88 | D73: 170.8703334 | E73: 159.2705113 | F73: 148.4377442 | G73: 138.8456962 | H73: 130.9133656 | I73: 124.9868573 | J73: 121.3244758 | K73: 120.0857086 | L73: 121.3244758 | M73: 124.9868573 | N73: 130.9133656 | O73: 138.8456962 | P73: 148.4377442 | Q73: 159.2705113 | R73: 170.8703334 | S73: 0.4541361308 | T73: 0.3018727625 | U73: 0.2039923484 | V73: 0.1432260413 | W73: 0.1064317695 | X73: 0.08503016944 | Y73: 0.07393080083 | Z73: 0.07050055166 | AA73: 0.07393080083 | AB73: 0.08503016944 | AC73: 0.1064317695 | AD73: 0.1432260413 | AE73: 0.2039923484 | AF73: 0.3018727625 | AG73: 0.4541361308
C74: 7.04 | D74: 171.0409318 | E74: 159.7747774 | F74: 149.2534475 | G74: 139.9369498 | H74: 132.232285 | I74: 126.4757262 | J74: 122.9182966 | K74: 121.7150153 | L74: 122.9182966 | M74: 126.4757262 | N74: 132.232285 | O74: 139.9369498 | P74: 149.2534475 | Q74: 159.7747774 | R74: 171.0409318 | S74: 0.4636796859 | T74: 0.3112174777 | U74: 0.2122016773 | V74: 0.1502214189 | W74: 0.1124312969 | X74: 0.0903266248 | Y74: 0.07881629679 | Z74: 0.07525148723 | AA74: 0.07881629679 | AB74: 0.0903266248 | AC74: 0.1124312969 | AD74: 0.1502214189 | AE74: 0.2122016773 | AF74: 0.3112174777 | AG74: 0.4636796859
C75: 7.2 | D75: 171.2065892 | E75: 160.2644513 | F75: 150.0455847 | G75: 140.9967419 | H75: 133.5132619 | I75: 127.9218448 | J75: 124.4664128 | K75: 123.2976212 | L75: 124.4664128 | M75: 127.9218448 | N75: 133.5132619 | O75: 140.9967419 | P75: 150.0455847 | Q75: 160.2644513 | R75: 171.2065892 | S75: 0.4730935117 | T75: 0.3205566347 | U75: 0.2204931829 | V75: 0.1573497436 | W75: 0.1185898555 | X75: 0.09579398788 | Y75: 0.08387730166 | Z75: 0.08017906481 | AA75: 0.08387730166 | AB75: 0.09579398788 | AC75: 0.1185898555 | AD75: 0.1573497436 | AE75: 0.2204931829 | AF75: 0.3205566347 | AG75: 0.4730935117
C76: 7.36 | D76: 171.3674554 | E76: 160.7399729 | F76: 150.8148584 | G76: 142.0259972 | H76: 134.7573944 | I76: 129.3264338 | J76: 125.9701173 | K76: 124.8348429 | L76: 125.9701173 | M76: 129.3264338 | N76: 134.7573944 | O76: 142.0259972 | P76: 150.8148584 | Q76: 160.7399729 | R76: 171.3674554 | S76: 0.4823761077 | T76: 0.329884875 | U76: 0.2288611033 | V76: 0.1646061987 | W76: 0.1249038733 | X76: 0.1014297597 | Y76: 0.08911201202 | Z76: 0.08528171934 | AA76: 0.08911201202 | AB76: 0.1014297597 | AC76: 0.1249038733 | AD76: 0.1646061987 | AE76: 0.2288611033 | AF76: 0.329884875 | AG76: 0.4823761077
C77: 7.52 | D77: 171.5236743 | E77: 161.2017654 | F77: 151.5619458 | G77: 143.0256096 | H77: 135.9657477 | I77: 130.6906806 | J77: 127.43067 | K77: 126.3279646 | L77: 127.43067 | M77: 130.6906806 | N77: 135.9657477 | O77: 143.0256096 | P77: 151.5619458 | Q77: 161.2017654 | R77: 171.5236743 | S77: 0.4915261365 | T77: 0.3391969462 | U77: 0.2372996483 | V77: 0.1719858263 | W77: 0.1313695551 | X77: 0.1072311655 | Y77: 0.09451832033 | Z77: 0.09055757285 | AA77: 0.09451832033 | AB77: 0.1072311655 | AC77: 0.1313695551 | AD77: 0.1719858263 | AE77: 0.2372996483 | AF77: 0.3391969462 | AG77: 0.4915261365
C78: 7.68 | D78: 171.6753844 | E78: 161.6502363 | F78: 152.2875008 | G78: 143.9964439 | H78: 137.1393551 | I78: 132.0157395 | J78: 128.8492983 | K78: 127.7782376 | L78: 128.8492983 | M78: 132.0157395 | N78: 137.1393551 | O78: 143.9964439 | P78: 152.2875008 | Q78: 161.6502363 | R78: 171.6753844 | S78: 0.5005424203 | T78: 0.348487707 | U78: 0.2458030098 | V78: 0.1794835394 | W78: 0.1379828951 | X78: 0.113195167 | Y78: 0.1000938268 | Z78: 0.0960044461 | AA78: 0.1000938268 | AB78: 0.113195167 | AC78: 0.1379828951 | AD78: 0.1794835394 | AE78: 0.2458030098 | AF78: 0.348487707 | AG78: 0.5005424203
C79: 7.84 | D79: 171.8227194 | E79: 162.0857787 | F79: 152.9921547 | G79: 144.9393377 | H79: 138.279219 | I79: 133.3027329 | J79: 130.2271965 | K79: 129.1868806 | L79: 130.2271965 | M79: 133.3027329 | N79: 138.279219 | O79: 144.9393377 | P79: 152.9921547 | Q79: 162.0857787 | R79: 171.8227194 | S79: 0.5094239377 | T79: 0.3577521331 | U79: 0.2543653709 | V79: 0.1870941326 | W79: 0.1447396893 | X79: 0.119318475 | Y79: 0.1058358513 | Z79: 0.1016198704 | AA79: 0.1058358513 | AB79: 0.119318475 | AC79: 0.1447396893 | AD79: 0.1870941326 | AE79: 0.2543653709 | AF79: 0.3577521331 | AG79: 0.5094239377
C80: 8 | D80: 171.965808 | E80: 162.5087724 | F80: 153.6765185 | G80: 145.855102 | H80: 139.3863123 | I80: 134.5527516 | J80: 131.5655271 | K80: 130.5550798 | L80: 131.5655271 | M80: 134.5527516 | N80: 139.3863123 | O80: 145.855102 | P80: 153.6765185 | Q80: 162.5087724 | R80: 171.965808 | S80: 0.51816982 | T80: 0.3669853224 | U80: 0.2629809162 | V80: 0.1948122947 | W80: 0.1516355478 | X80: 0.1255975614 | Y80: 0.1117414459 | Z80: 0.1074010997 | AA80: 0.1117414459 | AB80: 0.1255975614 | AC80: 0.1516355478 | AD80: 0.1948122947 | AE80: 0.2629809162 | AF80: 0.3669853224 | AG80: 0.51816982
C81: 8.16 | D81: 172.1047747 | E81: 162.9195846 | F81: 154.3411832 | G81: 146.744523 | H81: 140.4615793 | I81: 135.7668556 | J81: 132.8654207 | K81: 131.8839896 | L81: 132.8654207 | M81: 135.7668556 | N81: 140.4615793 | O81: 146.744523 | P81: 154.3411832 | Q81: 162.9195846 | R81: 172.1047747 | S81: 0.5267793471 | T81: 0.3761824997 | U81: 0.2716438408 | V81: 0.2026326193 | W81: 0.158665907 | X81: 0.1320286723 | Y81: 0.1178074069 | Z81: 0.113345123 | AA81: 0.1178074069 | AB81: 0.1320286723 | AC81: 0.158665907 | AD81: 0.2026326193 | AE81: 0.2716438408 | AF81: 0.3761824997 | AG81: 0.5267793471
C82: 8.32 | D82: 172.2397401 | E82: 163.3185704 | F82: 154.9867215 | G82: 147.608363 | H82: 141.5059367 | I82: 136.9460753 | J82: 134.1279767 | K82: 133.1747326 | L82: 134.1279767 | M82: 136.9460753 | N82: 141.5059367 | O82: 147.608363 | P82: 154.9867215 | Q82: 163.3185704 | R82: 172.2397401 | S82: 0.5352519439 | T82: 0.3853390216 | U82: 0.2803483601 | V82: 0.2105496168 | W82: 0.1658260423 | X82: 0.1386078401 | Y82: 0.1240302876 | Z82: 0.1194486767 | AA82: 0.1240302876 | AB82: 0.1386078401 | AC82: 0.1658260423 | AD82: 0.2105496168 | AE82: 0.2803483601 | AF82: 0.3853390216 | AG82: 0.5352519439
C83: 8.48 | D83: 172.3708206 | E83: 163.7060739 | F83: 155.613688 | G83: 148.4473612 | H83: 142.5202742 | I83: 138.0914114 | J83: 135.354264 | K83: 134.4284007 | L83: 135.354264 | M83: 138.0914114 | N83: 142.5202742 | O83: 148.4473612 | P83: 155.613688 | Q83: 163.7060739 | R83: 172.3708206 | S83: 0.5435871759 | T83: 0.3944503806 | U83: 0.2890887189 | V83: 0.2185577253 | W83: 0.1731110802 | X83: 0.1453308964 | Y83: 0.1304064107 | Z83: 0.125708257 | AA83: 0.1304064107 | AB83: 0.1453308964 | AC83: 0.1731110802 | AD83: 0.2185577253 | AE83: 0.2890887189 | AF83: 0.3944503806 | AG83: 0.5435871759
C84: 8.64 | D84: 172.4981292 | E84: 164.0824283 | F84: 156.2226206 | G84: 149.2622349 | H84: 143.5054559 | I84: 139.2038367 | J84: 136.5453218 | K84: 135.6460553 | L84: 136.5453218 | M84: 139.2038367 | N84: 143.5054559 | O84: 149.2622349 | P84: 156.2226206 | Q84: 164.0824283 | R84: 172.4981292 | S84: 0.5517847453 | T84: 0.4035122093 | U84: 0.2978592002 | V84: 0.2266513223 | W84: 0.1805160101 | X84: 0.1521934843 | Y84: 0.1369318813 | Z84: 0.132120133 | AA84: 0.1369318813 | AB84: 0.1521934843 | AC84: 0.1805160101 | AD84: 0.2266513223 | AE84: 0.2978592002 | AF84: 0.4035122093 | AG84: 0.5517847453
C85: 8.8 | D85: 172.6217752 | E85: 164.4479567 | F85: 156.8140407 | G85: 150.0536799 | H85: 144.4623207 | I85: 140.2842958 | J85: 137.7021599 | K85: 136.8287282 | L85: 137.7021599 | M85: 140.2842958 | N85: 144.4623207 | O85: 150.0536799 | P85: 156.8140407 | Q85: 164.4479567 | R85: 172.6217752 | S85: 0.5598444863 | T85: 0.4125202839 | U85: 0.3066541345 | V85: 0.234824735 | W85: 0.1880356971 | X85: 0.1591910713 | Y85: 0.1436025988 | Z85: 0.1386803587 | AA85: 0.1436025988 | AB85: 0.1591910713 | AC85: 0.1880356971 | AD85: 0.234824735 | AE85: 0.3066541345 | AF85: 0.4125202839 | AG85: 0.5598444863
C86: 8.96 | D86: 172.7418648 | E86: 164.8029721 | F86: 157.3884541 | G86: 150.8223717 | H86: 145.3916832 | I86: 141.3337068 | J86: 138.8257597 | K86: 137.9774222 | L86: 138.8257597 | M86: 141.3337068 | N86: 145.3916832 | O86: 150.8223717 | P86: 157.3884541 | Q86: 164.8029721 | R86: 172.7418648 | S86: 0.5677663609 | T86: 0.4214705273 | U86: 0.3154679077 | V86: 0.2430722519 | W86: 0.1956648931 | X86: 0.1663189611 | Y86: 0.1504142702 | Z86: 0.1453847858 | AA86: 0.1504142702 | AB86: 0.1663189611 | AC86: 0.1956648931 | AD86: 0.2430722519 | AE86: 0.3154679077 | AF86: 0.4214705273 | AG86: 0.5677663609
C87: 9.12 | D87: 172.8585006 | E87: 165.1477785 | F87: 157.9463517 | G87: 151.5689658 | H87: 146.2943344 | I87: 142.3529612 | J87: 139.9170747 | K87: 139.0931117 | L87: 139.9170747 | M87: 142.3529612 | N87: 146.2943344 | O87: 151.5689658 | P87: 157.9463517 | Q87: 165.1477785 | R87: 172.8585006 | S87: 0.5755504544 | T87: 0.4303590124 | U87: 0.32429497 | V87: 0.251388133 | W87: 0.2033982494 | X87: 0.1735723065 | Y87: 0.1573624223 | Z87: 0.1522290766 | AA87: 0.1573624223 | AB87: 0.1735723065 | AC87: 0.2033982494 | AD87: 0.251388133 | AE87: 0.32429497 | AF87: 0.4303590124 | AG87: 0.5755504544
C88: 9.28 | D88: 172.9717826 | E88: 165.4826705 | F88: 158.4882097 | G88: 152.2940985 | H88: 147.1710424 | I88: 143.3429252 | J88: 140.9770315 | K88: 140.1767438 | L88: 140.9770315 | M88: 143.3429252 | N88: 147.1710424 | O88: 152.2940985 | P88: 158.4882097 | Q88: 165.4826705 | R88: 172.9717826 | S88: 0.5831969706 | T88: 0.4391819643 | U88: 0.3331298436 | V88: 0.2597666207 | W88: 0.2112303278 | X88: 0.1809461214 | Y88: 0.1644424139 | Z88: 0.1592087159 | AA88: 0.1644424139 | AB88: 0.1809461214 | AC88: 0.2112303278 | AD88: 0.2597666207 | AE88: 0.3331298436 | AF88: 0.4391819643 | AG88: 0.5831969706
C89: 9.44 | D89: 173.0818074 | E89: 165.8079341 | F89: 159.0144903 | G89: 152.9983876 | H89: 148.0225532 | I89: 144.3044403 | J89: 142.0065303 | K89: 141.2292383 | L89: 142.0065303 | M89: 144.3044403 | N89: 148.0225532 | O89: 152.9983876 | P89: 159.0144903 | Q89: 165.8079341 | R89: 173.0818074 | S89: 0.5907062274 | T89: 0.4479357622 | U89: 0.3419671304 | V89: 0.2682019499 | W89: 0.2191556127 | X89: 0.1884352931 | Y89: 0.1716494489 | Z89: 0.1663190243 | AA89: 0.1716494489 | AB89: 0.1884352931 | AC89: 0.2191556127 | AD89: 0.2682019499 | AE89: 0.3419671304 | AF89: 0.4479357622 | AG89: 0.5907062274
C90: 9.6 | D90: 173.188669 | E90: 166.1238467 | F90: 159.5256422 | G90: 153.6824331 | H90: 148.8495913 | I90: 145.2383236 | J90: 143.0064455 | K90: 142.2514892 | L90: 143.0064455 | M90: 145.2383236 | N90: 148.8495913 | O90: 153.6824331 | P90: 159.5256422 | Q90: 166.1238467 | R90: 173.188669 | S90: 0.5980786521 | T90: 0.4566169416 | U90: 0.3508015194 | V90: 0.2766883582 | W90: 0.2271685221 | X90: 0.1960345941 | Y90: 0.178978588 | Z90: 0.1735551696 | AA90: 0.178978588 | AB90: 0.1960345941 | AC90: 0.2271685221 | AD90: 0.2766883582 | AE90: 0.3508015194 | AF90: 0.4566169416 | AG90: 0.5980786521
C91: 9.76 | D91: 173.2924586 | E91: 166.4306778 | F91: 160.022101 | G91: 154.3468173 | H91: 149.6528602 | I91: 146.1453691 | J91: 143.9776268 | K91: 143.2443648 | L91: 143.9776268 | M91: 146.1453691 | N91: 149.6528602 | O91: 154.3468173 | P91: 160.022101 | Q91: 166.4306778 | R91: 173.2924586 | S91: 0.6053147763 | T91: 0.4652221954 | U91: 0.3596277939 | V91: 0.2852200959 | W91: 0.235263419 | X91: 0.2037386942 | Y91: 0.1864247612 | Z91: 0.1809121801 | AA91: 0.1864247612 | AB91: 0.2037386942 | AC91: 0.235263419 | AD91: 0.2852200959 | AE91: 0.3596277939 | AF91: 0.4652221954 | AG91: 0.6053147763
C92: 9.92 | D92: 173.3932646 | E92: 166.7286889 | F92: 160.5042897 | G92: 154.9921058 | H92: 150.4330433 | I92: 147.0263478 | J92: 144.9208993 | K92: 144.2087087 | L92: 144.9208993 | M92: 147.0263478 | N92: 150.4330433 | O92: 154.9921058 | P92: 160.5042897 | Q92: 166.7286889 | R92: 173.3932646 | S92: 0.612415232 | T92: 0.4737483749 | U92: 0.368440838 | V92: 0.2937914357 | W92: 0.2434346224 | X92: 0.2115421723 | Y92: 0.1939827796 | Z92: 0.1883849557 | AA92: 0.1939827796 | AB92: 0.2115421723 | AC92: 0.2434346224 | AD92: 0.2937914357 | AE92: 0.368440838 | AF92: 0.4737483749 | AG92: 0.612415232
C93: 10.08 | D93: 173.4911729 | E93: 167.0181339 | F93: 160.9726188 | G93: 155.6188478 | H93: 151.1908041 | I93: 147.8820087 | J93: 145.8370648 | K93: 145.1453403 | L93: 145.8370648 | M93: 147.8820087 | N93: 151.1908041 | O93: 155.6188478 | P93: 160.9726188 | Q93: 167.0181339 | R93: 173.4911729 | S93: 0.6193807459 | T93: 0.4821924903 | U93: 0.377235643 | V93: 0.3023966818 | W93: 0.2516764186 | X93: 0.2194395278 | Y93: 0.2016473477 | Z93: 0.1959682811 | AA93: 0.2016473477 | AB93: 0.2194395278 | AC93: 0.2516764186 | AD93: 0.3023966818 | AE93: 0.377235643 | AF93: 0.4821924903 | AG93: 0.6193807459
C94: 10.24 | D94: 173.586267 | E94: 167.2992593 | F94: 161.427487 | G94: 156.2275766 | H94: 151.9267872 | I94: 148.7130794 | J94: 146.7269019 | K94: 146.0550557 | L94: 146.7269019 | M94: 148.7130794 | N94: 151.9267872 | O94: 156.2275766 | P94: 161.427487 | Q94: 167.2992593 | R94: 173.586267 | S94: 0.6262121357 | T94: 0.490551711 | U94: 0.3860073135 | V94: 0.3110301795 | W94: 0.2599830713 | X94: 0.2274251924 | Y94: 0.2094130752 | Z94: 0.2036568368 | AA94: 0.2094130752 | AB94: 0.2274251924 | AC94: 0.2599830713 | AD94: 0.3110301795 | AE94: 0.3860073135 | AF94: 0.490551711 | AG94: 0.6262121357
C95: 10.4 | D95: 173.6786277 | E95: 167.5723044 | F95: 161.8692816 | G95: 156.8188102 | H95: 152.6416185 | I95: 149.5202663 | J95: 147.5911671 | K95: 146.9386281 | L95: 147.5911671 | M95: 149.5202663 | N95: 152.6416185 | O95: 156.8188102 | P95: 161.8692816 | Q95: 167.5723044 | R95: 173.6786277 | S95: 0.6329103046 | T95: 0.4988233656 | U95: 0.3947510729 | V95: 0.3196863238 | W95: 0.2683488325 | X95: 0.2354935409 | Y95: 0.2172744882 | Z95: 0.2114452112 | AA95: 0.2172744882 | AB95: 0.2354935409 | AC95: 0.2683488325 | AD95: 0.3196863238 | AE95: 0.3947510729 | AF95: 0.4988233656 | AG95: 0.6329103046
C96: 10.56 | D96: 173.7683339 | E96: 167.8375017 | F96: 162.2983785 | G96: 157.3930515 | H96: 153.335906 | I96: 150.3042558 | J96: 148.4305949 | K96: 147.7968085 | L96: 148.4305949 | M96: 150.3042558 | N96: 153.335906 | O96: 157.3930515 | P96: 162.2983785 | Q96: 167.8375017 | R96: 173.7683339 | S96: 0.639476237 | T96: 0.5070049413 | U96: 0.4034622685 | V96: 0.3283595683 | W96: 0.2767679526 | X96: 0.2436389029 | Y96: 0.2252260416 | Z96: 0.2193279126 | AA96: 0.2252260416 | AB96: 0.2436389029 | AC96: 0.2767679526 | AD96: 0.3283595683 | AE96: 0.4034622685 | AF96: 0.5070049413 | AG96: 0.639476237
C97: 10.72 | D97: 173.8554617 | E97: 168.0950769 | F97: 162.7151428 | G97: 157.9507892 | H97: 154.0102402 | I97: 151.0657145 | J97: 149.2458992 | K97: 148.6303266 | L97: 149.2458992 | M97: 151.0657145 | N97: 154.0102402 | O97: 157.9507892 | P97: 162.7151428 | Q97: 168.0950769 | R97: 173.8554617 | S97: 0.6459109943 | T97: 0.5150940831 | U97: 0.4121363768 | V97: 0.3370444329 | W97: 0.2852346908 | X97: 0.2518555735 | Y97: 0.2332621295 | Z97: 0.2272993801 | AA97: 0.2332621295 | AB97: 0.2518555735 | AC97: 0.2852346908 | AD97: 0.3370444329 | AE97: 0.4121363768 | AF97: 0.5150940831 | AG97: 0.6459109943
C98: 10.88 | D98: 173.9400853 | E98: 168.3452492 | F98: 163.1199291 | G98: 158.4924975 | H98: 154.6651945 | I98: 151.8052899 | J98: 150.037773 | K98: 149.4398908 | L98: 150.037773 | M98: 151.8052899 | N98: 154.6651945 | O98: 158.4924975 | P98: 163.1199291 | Q98: 168.3452492 | R98: 173.9400853 | S98: 0.6522157097 | T98: 0.5230885926 | U98: 0.420769007 | V98: 0.3457355124 | W98: 0.2937433243 | X98: 0.260137824 | Y98: 0.2413770971 | Z98: 0.2353539953 | AA98: 0.2413770971 | AB98: 0.260137824 | AC98: 0.2937433243 | AD98: 0.3457355124 | AE98: 0.420769007 | AF98: 0.5230885926 | AG98: 0.6522157097
C99: 11.04 | D99: 174.0222769 | E99: 168.5882313 | F99: 163.5130818 | G99: 159.0186373 | H99: 155.301326 | I99: 152.5236109 | J99: 150.8068895 | K99: 150.2261895 | L99: 150.8068895 | M99: 152.5236109 | N99: 155.301326 | O99: 159.0186373 | P99: 163.5130818 | Q99: 168.5882313 | R99: 174.0222769 | S99: 0.6583915841 | T99: 0.5309864267 | U99: 0.4293559062 | V99: 0.3544274837 | W99: 0.3022881585 | X99: 0.2684799124 | Y99: 0.2495652514 | Z99: 0.2434860936 | AA99: 0.2495652514 | AB99: 0.2684799124 | AC99: 0.3022881585 | AD99: 0.3544274837 | AE99: 0.4293559062 | AF99: 0.5309864267 | AG99: 0.6583915841
C100: 11.2 | D100: 174.1021062 | E100: 168.8242301 | F100: 163.8949353 | G100: 159.5296561 | H100: 155.9191757 | I100: 153.2212882 | J100: 151.5539028 | K100: 150.9898912 | L100: 151.5539028 | M100: 153.2212882 | N100: 155.9191757 | O100: 159.5296561 | P100: 163.8949353 | Q100: 168.8242301 | R100: 174.1021062 | S100: 0.6644398818 | T100: 0.5387856961 | U100: 0.4378929619 | V100: 0.3631151135 | W100: 0.310863536 | X100: 0.276876094 | Y100: 0.2578208721 | Z100: 0.2516899746 | AA100: 0.2578208721 | AB100: 0.276876094 | AC100: 0.310863536 | AD100: 0.3631151135 | AE100: 0.4378929619 | AF100: 0.5387856961 | AG100: 0.6644398818
C101: 11.36 | D101: 174.1796411 | E101: 169.0534463 | F101: 164.2658144 | G101: 160.0259885 | H101: 156.5192689 | I101: 153.898915 | J101: 152.279448 | K101: 151.7316452 | L101: 152.279448 | M101: 153.898915 | N101: 156.5192689 | O101: 160.0259885 | P101: 164.2658144 | Q101: 169.0534463 | R101: 174.1796411 | S101: 0.6703619262 | T101: 0.5464846628 | U101: 0.446376206 | V101: 0.3717932648 | W101: 0.3194638455 | X101: 0.2853206312 | Y101: 0.2661382223 | Z101: 0.2599599134 | AA101: 0.2661382223 | AB101: 0.2853206312 | AC101: 0.3194638455 | AD101: 0.3717932648 | AE101: 0.446376206 | AF101: 0.5464846628 | AG101: 0.6703619262
C102: 11.52 | D102: 174.2549478 | E102: 169.2760748 | F102: 164.6260346 | G102: 160.5080566 | H102: 157.1021159 | I102: 154.5570677 | J102: 152.9841419 | K102: 152.4520822 | L102: 152.9841419 | M102: 154.5570677 | N102: 157.1021159 | O102: 160.5080566 | P102: 164.6260346 | Q102: 169.2760748 | R102: 174.2549478 | S102: 0.6761590953 | T102: 0.5540817381 | U102: 0.4548018171 | V102: 0.3804569036 | W102: 0.328083531 | X102: 0.2938078035 | Y102: 0.2745115588 | Z102: 0.2682901709 | AA102: 0.2745115588 | AB102: 0.2938078035 | AC102: 0.328083531 | AD102: 0.3804569036 | AE102: 0.4548018171 | AF102: 0.5540817381 | AG102: 0.6761590953
C103: 11.68 | D103: 174.3280901 | E103: 169.4923051 | F103: 164.9759023 | G103: 160.9762705 | H103: 157.6682125 | I103: 155.1963058 | J103: 153.6685839 | K103: 153.1518149 | L103: 153.6685839 | M103: 155.1963058 | N103: 157.6682125 | O103: 160.9762705 | P103: 164.9759023 | Q103: 169.4923051 | R103: 174.3280901 | S103: 0.6818328179 | T103: 0.5615754803 | U103: 0.4631661233 | V103: 0.3891011053 | W103: 0.3367170994 | X103: 0.3023319171 | Y103: 0.2829351422 | Z103: 0.2766750046 | AA103: 0.2829351422 | AB103: 0.3023319171 | AC103: 0.3367170994 | AD103: 0.3891011053 | AE103: 0.4631661233 | AF103: 0.5615754803 | AG103: 0.6818328179
C104: 11.84 | D104: 174.3991304 | E104: 169.702321 | F104: 165.315715 | G104: 161.4310282 | H104: 158.21804 | I104: 155.817173 | J104: 154.3333558 | K104: 153.8314381 | L104: 154.3333558 | M104: 155.817173 | N104: 158.21804 | O104: 161.4310282 | P104: 165.315715 | Q104: 169.702321 | R104: 174.3991304 | S104: 0.6873845695 | T104: 0.5689645916 | U104: 0.4714656038 | V104: 0.3977210604 | W104: 0.3453591295 | X104: 0.3108873145 | Y104: 0.2914032471 | Z104: 0.2851086778 | AA104: 0.2914032471 | AB104: 0.3108873145 | AC104: 0.3453591295 | AD104: 0.3977210604 | AE104: 0.4714656038 | AF104: 0.5689645916 | AG104: 0.6873845695
C105: 12 | D105: 174.468129 | E105: 169.9063012 | F105: 165.6457617 | G105: 161.8727166 | H105: 158.7520661 | I105: 156.4201971 | J105: 154.979023 | K105: 154.4915298 | L105: 154.979023 | M105: 156.4201971 | N105: 158.7520661 | O105: 161.8727166 | P105: 165.6457617 | Q105: 169.9063012 | R105: 174.468129 | S105: 0.6928158685 | T105: 0.5762479154 | U105: 0.4796968909 | V105: 0.4063120798 | W105: 0.3540042792 | X105: 0.3194683829 | Y105: 0.2999101716 | Z105: 0.2935854705 | AA105: 0.2999101716 | AB105: 0.3194683829 | AC105: 0.3540042792 | AD105: 0.4063120798 | AE105: 0.4796968909 | AF105: 0.5762479154 | AG105: 0.6928158685
C106: 12.16 | D106: 174.5351446 | E106: 170.1044191 | F106: 165.9663231 | G106: 162.3017113 | H106: 159.2707447 | I106: 157.0058909 | J106: 155.6061345 | K106: 155.1326513 | L106: 155.6061345 | M106: 157.0058909 | N106: 159.2707447 | O106: 162.3017113 | P106: 165.9663231 | Q106: 170.1044191 | R106: 174.5351446 | S106: 0.6981282723 | T106: 0.5834244331 | U106: 0.4878567709 | V106: 0.4148695998 | W106: 0.3626472932 | X106: 0.3280695636 | Y106: 0.3084502468 | Z106: 0.3020996885 | AA106: 0.3084502468 | AB106: 0.3280695636 | AC106: 0.3626472932 | AD106: 0.4148695998 | AE106: 0.4878567709 | AF106: 0.5834244331 | AG106: 0.6981282723
C107: 12.32 | D107: 174.6002343 | E107: 170.2968433 | F107: 166.2776718 | G107: 162.718377 | H107: 159.7745171 | I107: 157.5747526 | J107: 156.2152236 | K107: 155.7553477 | L107: 156.2152236 | M107: 157.5747526 | N107: 159.7745171 | O107: 162.718377 | P107: 166.2776718 | Q107: 170.2968433 | R107: 174.6002343 | S107: 0.7033233736 | T107: 0.5904932608 | U107: 0.4959421851 | V107: 0.4233891871 | W107: 0.3712830098 | X107: 0.3366853602 | Y107: 0.317017846 | Z107: 0.3106456728 | AA107: 0.317017846 | AB107: 0.3366853602 | AC107: 0.3712830098 | AD107: 0.4233891871 | AE107: 0.4959421851 | AF107: 0.5904932608 | AG107: 0.7033233736
C108: 12.48 | D108: 174.6634533 | E108: 170.4837373 | F108: 166.5800726 | G108: 163.1230681 | H108: 160.2638115 | I108: 158.1272658 | J108: 156.8068081 | K108: 156.3601485 | L108: 156.8068081 | M108: 158.1272658 | N108: 160.2638115 | O108: 163.1230681 | P108: 166.5800726 | Q108: 170.4837373 | R108: 174.6634533 | S108: 0.708402797 | T108: 0.5974536459 | U108: 0.5039502303 | V108: 0.4318665425 | W108: 0.3799063678 | X108: 0.3453103467 | Y108: 0.3256073934 | Z108: 0.3192178088 | AA108: 0.3256073934 | AB108: 0.3453103467 | AC108: 0.3799063678 | AD108: 0.4318665425 | AE108: 0.5039502303 | AF108: 0.5974536459 | AG108: 0.708402797
C109: 12.64 | D109: 174.7248554 | E109: 170.6652602 | F109: 166.8737827 | G109: 163.5161289 | H109: 160.7390442 | I109: 158.6639004 | J109: 157.3813911 | K109: 156.947568 | L109: 157.3813911 | M109: 158.6639004 | N109: 160.7390442 | O109: 163.5161289 | P109: 166.8737827 | Q109: 170.6652602 | R109: 174.7248554 | S109: 0.7133681956 | T109: 0.6043049632 | U109: 0.5118781586 | V109: 0.4402975051 | W109: 0.3885124129 | X109: 0.3539391755 | Y109: 0.3342133728 | Z109: 0.3278105349 | AA109: 0.3342133728 | AB109: 0.3539391755 | AC109: 0.3885124129 | AD109: 0.4402975051 | AE109: 0.5118781586 | AF109: 0.6043049632 | AG109: 0.7133681956
C110: 12.8 | D110: 174.7844929 | E110: 170.8415662 | F110: 167.1590518 | G110: 163.8978934 | H110: 161.2006191 | I110: 159.1851127 | J110: 157.9394613 | K110: 157.5181057 | L110: 157.9394613 | M110: 159.1851127 | N110: 161.2006191 | O110: 163.8978934 | P110: 167.1590518 | Q110: 170.8415662 | R110: 174.7844929 | S110: 0.7182212474 | T110: 0.6110467117 | U110: 0.5197233777 | V110: 0.4486780555 | W110: 0.3970963036 | X110: 0.3625665847 | Y110: 0.3428303359 | Z110: 0.3364183513 | AA110: 0.3428303359 | AB110: 0.3625665847 | AC110: 0.3970963036 | AD110: 0.4486780555 | AE110: 0.5197233777 | AF110: 0.6110467117 | AG110: 0.7182212474
C111: 12.96 | D111: 174.8424165 | E111: 171.0128054 | F111: 167.4361226 | G111: 164.2686864 | H111: 161.6489288 | I111: 159.6913459 | J111: 158.4814931 | K111: 158.0722469 | L111: 158.4814931 | M111: 159.6913459 | N111: 161.6489288 | O111: 164.2686864 | P111: 167.4361226 | Q111: 171.0128054 | R111: 174.8424165 | S111: 0.7229636526 | T111: 0.6176785102 | U111: 0.5274834499 | V111: 0.4570043189 | W111: 0.4056533164 | X111: 0.3711874053 | Y111: 0.3514529101 | Z111: 0.345035828 | AA111: 0.3514529101 | AB111: 0.3711874053 | AC111: 0.4056533164 | AD111: 0.4570043189 | AE111: 0.5274834499 | AF111: 0.6176785102 | AG111: 0.7229636526
C112: 13.12 | D112: 174.8986754 | E112: 171.1791233 | F112: 167.7052307 | G112: 164.6288232 | H112: 162.0843546 | I112: 160.1830305 | J112: 159.0079476 | K112: 158.6104626 | L112: 159.0079476 | M112: 160.1830305 | N112: 162.0843546 | O112: 164.6288232 | P112: 167.7052307 | Q112: 171.1791233 | R112: 174.8986754 | S112: 0.7275971299 | T112: 0.6242000936 | U112: 0.5351560911 | V112: 0.4652725676 | W112: 0.4141788517 | X112: 0.3797965677 | Y112: 0.360075806 | Z112: 0.3536576126 | AA112: 0.360075806 | AB112: 0.3797965677 | AC112: 0.4141788517 | AD112: 0.4652725676 | AE112: 0.5351560911 | AF112: 0.6242000936 | AG112: 0.7275971299
C113: 13.28 | D113: 174.9533175 | E113: 171.3406615 | F113: 167.9666048 | G113: 164.97861 | H113: 162.5072668 | I113: 160.6605846 | J113: 159.5192723 | K113: 159.1332106 | L113: 159.5192723 | M113: 160.6605846 | N113: 162.5072668 | O113: 164.97861 | P113: 167.9666048 | Q113: 171.3406615 | R113: 174.9533175 | S113: 0.7321234143 | T113: 0.6306113091 | U113: 0.5427391702 | V113: 0.4734792232 | W113: 0.4226684377 | X113: 0.3883891087 | Y113: 0.3686938251 | Z113: 0.3622784377 | AA113: 0.3686938251 | AB113: 0.3883891087 | AC113: 0.4226684377 | AD113: 0.4734792232 | AE113: 0.5427391702 | AF113: 0.6306113091 | AG113: 0.7321234143
C114: 13.44 | D114: 175.0063892 | E114: 171.4975571 | F114: 168.2204673 | G114: 165.3183443 | H114: 162.9180248 | I114: 161.1244143 | J114: 160.0159021 | K114: 159.6409354 | L114: 160.0159021 | M114: 161.1244143 | N114: 162.9180248 | O114: 165.3183443 | P114: 168.2204673 | Q114: 171.4975571 | R114: 175.0063892 | S114: 0.7365442538 | T114: 0.6369121116 | U114: 0.5502307068 | V114: 0.4816208585 | W114: 0.4311177356 | X114: 0.3969601767 | Y114: 0.3773018659 | Z114: 0.3708931284 | AA114: 0.3773018659 | AB114: 0.3969601767 | AC114: 0.4311177356 | AD114: 0.4816208585 | AE114: 0.5502307068 | AF114: 0.6369121116 | AG114: 0.7365442538
C115: 13.6 | D115: 175.0579357 | E115: 171.6499438 | F115: 168.467034 | G115: 165.648315 | H115: 163.3169781 | I115: 161.574914 | J115: 160.4982593 | K115: 160.1340687 | L115: 160.4982593 | M115: 161.574914 | N115: 163.3169781 | O115: 165.648315 | P115: 168.467034 | Q115: 171.6499438 | R115: 175.0579357 | S115: 0.7408614067 | T115: 0.6431025601 | U115: 0.5576288699 | V115: 0.4896941986 | W115: 0.4395225429 | X115: 0.405505038 | Y115: 0.3858949311 | Z115: 0.3794966087 | AA115: 0.3858949311 | AB115: 0.405505038 | AC115: 0.4395225429 | AD115: 0.4896941986 | AE115: 0.5576288699 | AF115: 0.6431025601 | AG115: 0.7408614067
C116: 13.76 | D116: 175.1080008 | E116: 171.797951 | F116: 168.7065147 | G116: 165.9688026 | H116: 163.7044659 | I116: 162.0124669 | J116: 160.966754 | K116: 160.6130299 | L116: 160.966754 | M116: 162.0124669 | N116: 163.7044659 | O116: 165.9688026 | P116: 168.7065147 | Q116: 171.797951 | R116: 175.1080008 | S116: 0.7450766393 | T116: 0.6491828131 | U116: 0.5649319759 | V116: 0.4976961224 | W116: 0.4478787971 | X116: 0.4140190815 | Y116: 0.3944681335 | Z116: 0.3880839082 | AA116: 0.3944681335 | AB116: 0.4140190815 | AC116: 0.4478787971 | AD116: 0.4976961224 | AE116: 0.5649319759 | AF116: 0.6491828131 | AG116: 0.7450766393
C117: 13.92 | D117: 175.1566271 | E117: 171.9417046 | F117: 168.9391129 | G117: 166.2800798 | H117: 164.0808177 | I117: 162.437445 | J117: 161.4217847 | K117: 161.0782263 | L117: 161.4217847 | M117: 162.437445 | N117: 164.0808177 | O117: 166.2800798 | P117: 168.9391129 | Q117: 171.9417046 | R117: 175.1566271 | S117: 0.7491917234 | T117: 0.6551531248 | U117: 0.5721384858 | V117: 0.5056236629 | W117: 0.4561825792 | X117: 0.4224978237 | Y117: 0.4030167015 | Z117: 0.3966501679 | AA117: 0.4030167015 | AB117: 0.4224978237 | AC117: 0.4561825792 | AD117: 0.5056236629 | AE117: 0.5721384858 | AF117: 0.6551531248 | AG117: 0.7491917234
C118: 14.08 | D118: 175.2038559 | E118: 172.0813269 | F118: 169.1650265 | G118: 166.5824112 | H118: 164.4463536 | I118: 162.8502096 | J118: 161.8637384 | K118: 161.5300534 | L118: 161.8637384 | M118: 162.8502096 | N118: 164.4463536 | O118: 166.5824112 | P118: 169.1650265 | Q118: 172.0813269 | R118: 175.2038559 | S118: 0.7532084339 | T118: 0.6610138406 | U118: 0.5792470034 | V118: 0.5134740073 | W118: 0.4644301159 | X118: 0.4309369133 | Y118: 0.4115359846 | Z118: 0.4051906458 | AA118: 0.4115359846 | AB118: 0.4309369133 | AC118: 0.4644301159 | AD118: 0.5134740073 | AE118: 0.5792470034 | AF118: 0.6610138406 | AG118: 0.7532084339
C119: 14.24 | D119: 175.2497274 | E119: 172.2169366 | F119: 169.3844476 | G119: 166.8760539 | H119: 164.8013843 | I119: 163.2511118 | J119: 162.2929907 | K119: 161.9688955 | L119: 162.2929907 | M119: 163.2511118 | N119: 164.8013843 | O119: 166.8760539 | P119: 169.3844476 | Q119: 172.2169366 | R119: 175.2497274 | S119: 0.7571285465 | T119: 0.6667653931 | U119: 0.5862562716 | V119: 0.5212444974 | W119: 0.4726177823 | X119: 0.4393321349 | Y119: 0.4200214586 | Z119: 0.4137007226 | AA119: 0.4200214586 | AB119: 0.4393321349 | AC119: 0.4726177823 | AD119: 0.5212444974 | AE119: 0.5862562716 | AF119: 0.6667653931 | AG119: 0.7571285465
C120: 14.4 | D120: 175.2942806 | E120: 172.348649 | F120: 169.5975628 | G120: 167.1612577 | H120: 165.1462119 | I120: 163.6404925 | J120: 162.7099068 | K120: 162.3951258 | L120: 162.7099068 | M120: 163.6404925 | N120: 165.1462119 | O120: 167.1612577 | P120: 169.5975628 | Q120: 172.348649 | R120: 175.2942806 | S120: 0.7609538358 | T120: 0.6724082979 | U120: 0.5931651705 | V120: 0.5289326289 | W120: 0.4807421036 | X120: 0.4476794126 | Y120: 0.4284687297 | Z120: 0.422175906 | AA120: 0.4284687297 | AB120: 0.4476794126 | AC120: 0.4807421036 | AD120: 0.5289326289 | AE120: 0.5931651705 | AF120: 0.6724082979 | AG120: 0.7609538358
C121: 14.56 | D121: 175.3375534 | E121: 172.4765761 | F121: 169.8045532 | G121: 167.4382649 | H121: 165.4811294 | I121: 164.0186829 | J121: 163.1148412 | K121: 162.8091066 | L121: 163.1148412 | M121: 164.0186829 | N121: 165.4811294 | O121: 167.4382649 | P121: 169.8045532 | Q121: 172.4765761 | R121: 175.3375534 | S121: 0.7646860734 | T121: 0.6779431492 | U121: 0.5999727135 | V121: 0.5365360506 | W121: 0.4887997567 | X121: 0.4559748133 | Y121: 0.4368735388 | Z121: 0.4306118352 | AA121: 0.4368735388 | AB121: 0.4559748133 | AC121: 0.4887997567 | AD121: 0.5365360506 | AE121: 0.5999727135 | AF121: 0.6779431492 | AG121: 0.7646860734
C122: 14.72 | D122: 175.3795826 | E122: 172.6008268 | F122: 170.005595 | G122: 167.7073113 | H122: 165.8064218 | I122: 164.3860044 | J122: 163.5081382 | K122: 163.2111901 | L122: 163.5081382 | M122: 164.3860044 | N122: 165.8064218 | O122: 167.7073113 | P122: 170.005595 | Q122: 172.6008268 | R122: 175.3795826 | S122: 0.7683270256 | T122: 0.6833706162 | U122: 0.6066780441 | V122: 0.5440525636 | W122: 0.4967875715 | X122: 0.4642145497 | Y122: 0.4452317653 | Z122: 0.4390042854 | AA122: 0.4452317653 | AB122: 0.4642145497 | AC122: 0.4967875715 | AD122: 0.5440525636 | AE122: 0.6066780441 | AF122: 0.6833706162 | AG122: 0.7683270256
C123: 14.88 | D123: 175.4204039 | E123: 172.7215066 | F123: 170.200859 | G123: 167.9686256 | H123: 166.1223656 | I123: 164.7427695 | J123: 163.8901322 | K123: 163.6017181 | L123: 163.8901322 | M123: 164.7427695 | N123: 166.1223656 | O123: 167.9686256 | P123: 170.200859 | Q123: 172.7215066 | R123: 175.4204039 | S123: 0.7718784522 | T123: 0.6886914384 | U123: 0.6132804329 | V123: 0.5514801195 | W123: 0.5047025314 | X123: 0.4723949819 | Y123: 0.4535394304 | Z123: 0.4473491708 | AA123: 0.4535394304 | AB123: 0.4723949819 | AC123: 0.5047025314 | AD123: 0.5514801195 | AE123: 0.6132804329 | AF123: 0.6886914384 | AG123: 0.7718784522
C124: 15.04 | D124: 175.460052 | E124: 172.8387181 | F124: 170.3905113 | G124: 168.2224299 | H124: 166.4292295 | I124: 165.0892815 | J124: 164.2611482 | K124: 163.9810228 | L124: 164.2611482 | M124: 165.0892815 | N124: 166.4292295 | O124: 168.2224299 | P124: 170.3905113 | Q124: 172.8387181 | R124: 175.460052 | S124: 0.7753421045 | T124: 0.6939064223 | U124: 0.6197792735 | V124: 0.5588168192 | W124: 0.5125417739 | X124: 0.4805126204 | Y124: 0.4617926997 | Z124: 0.4556425481 | AA124: 0.4617926997 | AB124: 0.4805126204 | AC124: 0.5125417739 | AD124: 0.5588168192 | AE124: 0.6197792735 | AF124: 0.6939064223 | AG124: 0.7753421045
C125: 15.2 | D125: 175.4985607 | E125: 172.9525612 | F125: 170.5747133 | G125: 168.4689402 | H125: 166.7272745 | I125: 165.4258352 | J125: 164.6215015 | K125: 164.3494266 | L125: 164.6215015 | M125: 165.4258352 | N125: 166.7272745 | O125: 168.4689402 | P125: 170.5747133 | Q125: 172.9525612 | R125: 175.4985607 | S125: 0.7787197239 | T125: 0.6990164367 | U125: 0.626174079 | V125: 0.5660609107 | W125: 0.5203025904 | X125: 0.4885641269 | Y125: 0.4699878864 | Z125: 0.4638806195 | AA125: 0.4699878864 | AB125: 0.4885641269 | AC125: 0.5203025904 | AD125: 0.5660609107 | AE125: 0.626174079 | AF125: 0.6990164367 | AG125: 0.7787197239
C126: 15.36 | D126: 175.5359627 | E126: 173.0631325 | F126: 170.7536214 | G126: 168.7083661 | H126: 167.016754 | I126: 165.7527167 | J126: 164.9714987 | K126: 164.7072429 | L126: 164.9714987 | M126: 165.7527167 | N126: 167.016754 | O126: 168.7083661 | P126: 170.7536214 | Q126: 173.0631325 | R126: 175.5359627 | S126: 0.7820130403 | T126: 0.7040224094 | U126: 0.6324644785 | V126: 0.573210787 | W126: 0.5279824262 | X126: 0.4965463155 | Y126: 0.4781214523 | Z126: 0.4720597348 | AA126: 0.4781214523 | AB126: 0.4965463155 | AC126: 0.5279824262 | AD126: 0.573210787 | AE126: 0.6324644785 | AF126: 0.7040224094 | AG126: 0.7820130403
C127: 15.52 | D127: 175.5722898 | E127: 173.1705262 | F127: 170.927388 | G127: 168.9409111 | H127: 167.2979141 | I127: 166.0702039 | J127: 165.3114373 | K127: 165.054776 | L127: 165.3114373 | M127: 166.0702039 | N127: 167.2979141 | O127: 168.9409111 | P127: 170.927388 | Q127: 173.1705262 | R127: 175.5722898 | S127: 0.7852237711 | T127: 0.7089253231 | U127: 0.6386502127 | V127: 0.5802649836 | W127: 0.5355788799 | X127: 0.5044561542 | Y127: 0.4861900108 | Z127: 0.4801763932 | AA127: 0.4861900108 | AB127: 0.5044561542 | AC127: 0.5355788799 | AD127: 0.5802649836 | AE127: 0.6386502127 | AF127: 0.7089253231 | AG127: 0.7852237711
C128: 15.68 | D128: 175.6075729 | E128: 173.2748334 | F128: 171.0961606 | G128: 169.166773 | H128: 167.570994 | I128: 166.3785669 | J128: 165.6416064 | K128: 165.3923213 | L128: 165.6416064 | M128: 166.3785669 | N128: 167.570994 | O128: 169.166773 | P128: 171.0961606 | Q128: 173.2748334 | R128: 175.6075729 | S128: 0.7883536194 | T128: 0.7137262118 | U128: 0.6447311302 | V128: 0.5872221762 | W128: 0.5430897018 | X128: 0.5122907645 | Y128: 0.494190327 | Z128: 0.4882272456 | AA128: 0.494190327 | AB128: 0.5122907645 | AC128: 0.5430897018 | AD128: 0.5872221762 | AE128: 0.6447311302 | AF128: 0.7137262118 | AG128: 0.7883536194
C129: 15.84 | D129: 175.641842 | E129: 173.376143 | F129: 171.2600829 | G129: 169.3861439 | H129: 167.8362259 | I129: 166.6780679 | J129: 165.9622869 | K129: 165.7201659 | L129: 165.9622869 | M129: 166.6780679 | N129: 167.8362259 | O129: 169.3861439 | P129: 171.2600829 | Q129: 173.376143 | R129: 175.641842 | S129: 0.7914042735 | T129: 0.7184261571 | U129: 0.6507071837 | V129: 0.5940811772 | W129: 0.5505127935 | X129: 0.520047422 | Y129: 0.5021193195 | Z129: 0.4962090952 | AA129: 0.5021193195 | AB129: 0.520047422 | AC129: 0.5505127935 | AD129: 0.5940811772 | AE129: 0.6507071837 | AF129: 0.7184261571 | AG129: 0.7914042735
C130: 16 | D130: 175.6751262 | E130: 173.474541 | F130: 171.4192943 | G130: 169.5992103 | H130: 168.0938353 | I130: 166.9689615 | J130: 166.2737513 | K130: 166.0385886 | L130: 166.2737513 | M130: 166.9689615 | N130: 168.0938353 | O130: 169.5992103 | P130: 171.4192943 | Q130: 173.474541 | R130: 175.6751262 | S130: 0.7943774052 | T130: 0.7230262848 | U130: 0.6565784256 | V130: 0.6008409334 | W130: 0.5578462058 | X130: 0.5277235561 | Y130: 0.5099740605 | Z130: 0.5041188984 | AA130: 0.5099740605 | AB130: 0.5277235561 | AC130: 0.5578462058 | AD130: 0.6008409334 | AE130: 0.6565784256 | AF130: 0.7230262848 | AG130: 0.7943774052
C131: 16.16 | D131: 175.7074539 | E131: 173.5701112 | F131: 171.5739301 | G131: 169.8061533 | H131: 168.3440413 | I131: 167.2514952 | J131: 166.5762645 | K131: 166.3478602 | L131: 166.5762645 | M131: 167.2514952 | N131: 168.3440413 | O131: 169.8061533 | P131: 171.5739301 | Q131: 173.5701112 | R131: 175.7074539 | S131: 0.7972746692 | T131: 0.727527761 | U131: 0.6623450041 | V131: 0.6075005224 | W131: 0.5650881371 | X131: 0.535316749 | Y131: 0.5177517761 | Z131: 0.5119537657 | AA131: 0.5177517761 | AB131: 0.535316749 | AC131: 0.5650881371 | AD131: 0.6075005224 | AE131: 0.6623450041 | AF131: 0.727527761 | AG131: 0.7972746692
C132: 16.32 | D132: 175.7388525 | E132: 173.6629348 | F132: 171.7241218 | G132: 170.0071491 | H132: 168.5870566 | I132: 167.5259091 | J132: 166.8700839 | K132: 166.6482436 | L132: 166.8700839 | M132: 167.5259091 | N132: 168.5870566 | O132: 170.0071491 | P132: 171.7241218 | Q132: 173.6629348 | R132: 175.7388525 | S132: 0.8000977021 | T132: 0.7319317894 | U132: 0.6680071591 | V132: 0.6140591491 | W132: 0.572236931 | X132: 0.5428247354 | Y132: 0.5254498463 | Z132: 0.5197109613 | AA132: 0.5254498463 | AB132: 0.5428247354 | AC132: 0.572236931 | AD132: 0.6140591491 | AE132: 0.6680071591 | AF132: 0.7319317894 | AG132: 0.8000977021
C133: 16.48 | D133: 175.7693488 | E133: 173.7530907 | F133: 171.8699972 | G133: 170.2023685 | H133: 168.8230879 | I133: 167.7924367 | J133: 167.1554592 | K133: 166.9399944 | L133: 167.1554592 | M133: 167.7924367 | N133: 168.8230879 | O133: 170.2023685 | P133: 171.8699972 | Q133: 173.7530907 | R133: 175.7693488 | S133: 0.8028481215 | T133: 0.7362396077 | U133: 0.6735652184 | V133: 0.6205161426 | W133: 0.5792910744 | X133: 0.5502454005 | Y133: 0.5330658042 | Z133: 0.5273879031 | AA133: 0.5330658042 | AB133: 0.5502454005 | AC133: 0.5792910744 | AD133: 0.6205161426 | AE133: 0.6735652184 | AF133: 0.7362396077 | AG133: 0.8028481215
C134: 16.64 | D134: 175.7989686 | E134: 173.8406556 | F134: 172.0116803 | G134: 170.3919774 | H134: 169.0523359 | I134: 168.0513045 | J134: 167.4326331 | K134: 167.2233605 | L134: 167.4326331 | M134: 168.0513045 | N134: 169.0523359 | O134: 170.3919774 | P134: 172.0116803 | Q134: 173.8406556 | R134: 175.7989686 | S134: 0.8055275254 | T134: 0.7404524841 | U134: 0.6790195929 | V134: 0.6268709524 | W134: 0.5862491947 | X134: 0.5575767794 | Y134: 0.5405973355 | Z134: 0.5349821622 | AA134: 0.5405973355 | AB134: 0.5575767794 | AC134: 0.5862491947 | AD134: 0.6268709524 | AE134: 0.6790195929 | AF134: 0.7404524841 | AG134: 0.8055275254
C135: 16.8 | D135: 175.8277372 | E135: 173.9257041 | F135: 172.1492915 | G135: 170.5761372 | H135: 169.2749956 | I135: 168.3027328 | J135: 167.7018413 | K135: 167.498583 | L135: 167.7018413 | M135: 168.3027328 | N135: 169.2749956 | O135: 170.5761372 | P135: 172.1492915 | Q135: 173.9257041 | R135: 175.8277372 | S135: 0.8081374914 | T135: 0.7445717152 | U135: 0.6843707734 | V135: 0.6331231446 | W135: 0.593110057 | X135: 0.5648170544 | Y135: 0.5480422772 | Z135: 0.5424914616 | AA135: 0.5480422772 | AB135: 0.5648170544 | AC135: 0.593110057 | AD135: 0.6331231446 | AE135: 0.6843707734 | AF135: 0.7445717152 | AG135: 0.8081374914
C136: 16.96 | D136: 175.855679 | E136: 174.0083083 | F136: 172.2829479 | G136: 170.7550044 | H136: 169.4912563 | I136: 168.5469352 | J136: 167.9633127 | K136: 167.7658959 | L136: 167.9633127 | M136: 168.5469352 | N136: 169.4912563 | O136: 170.7550044 | P136: 172.2829479 | Q136: 174.0083083 | R136: 175.855679 | S136: 0.810679576 | T136: 0.7485986222 | U136: 0.6896193259 | V136: 0.6392723981 | W136: 0.5998725613 | X136: 0.5719645536 | Y136: 0.555398616 | Z136: 0.5499136756 | AA136: 0.555398616 | AB136: 0.5719645536 | AC136: 0.5998725613 | AD136: 0.6392723981 | AE136: 0.6896193259 | AF136: 0.7485986222 | AG136: 0.810679576
C137: 17.12 | D137: 175.8828178 | E137: 174.0885386 | F137: 172.4127632 | G137: 170.9287312 | H137: 169.7013018 | I137: 168.7841196 | J137: 168.2172698 | K137: 168.0255265 | L137: 168.2172698 | M137: 168.7841196 | N137: 169.7013018 | O137: 170.9287312 | P137: 172.4127632 | Q137: 174.0885386 | R137: 175.8828178 | S137: 0.8131553141 | T137: 0.7525345483 | U137: 0.6947658881 | V137: 0.6453185009 | W137: 0.6065357391 | X137: 0.5790177482 | Y137: 0.562664487 | Z137: 0.5572468278 | AA137: 0.562664487 | AB137: 0.5790177482 | AC137: 0.6065357391 | AD137: 0.6453185009 | AE137: 0.6947658881 | AF137: 0.7525345483 | AG137: 0.8131553141
C138: 17.28 | D138: 175.9091766 | E138: 174.1664631 | F138: 172.5388478 | G138: 171.0974653 | H138: 169.9053109 | I138: 169.0144875 | J138: 168.4639284 | K138: 168.2776956 | L138: 168.4639284 | M138: 169.0144875 | N138: 169.9053109 | O138: 171.0974653 | P138: 172.5388478 | Q138: 174.1664631 | R138: 175.9091766 | S138: 0.8155662188 | T138: 0.7563808564 | U138: 0.699811165 | V138: 0.6512613459 | W138: 0.6130987505 | X138: 0.5859752501 | Y138: 0.5698381714 | Z138: 0.5644890897 | AA138: 0.5698381714 | AB138: 0.5859752501 | AC138: 0.6130987505 | AD138: 0.6512613459 | AE138: 0.699811165 | AF138: 0.7563808564 | AG138: 0.8155662188
C139: 17.44 | D139: 175.9347779 | E139: 174.2421482 | F139: 172.6613088 | G139: 171.2613501 | H139: 170.103457 | I139: 169.2382349 | J139: 168.7034983 | K139: 168.5226176 | L139: 168.7034983 | M139: 169.2382349 | N139: 170.103457 | O139: 171.2613501 | P139: 172.6613088 | Q139: 174.2421482 | R139: 175.9347779 | S139: 0.8179137806 | T139: 0.7601389259 | U139: 0.7047559256 | V139: 0.6571009272 | W139: 0.6195608802 | X139: 0.5928358094 | Y139: 0.5769180944 | Z139: 0.5716387781 | AA139: 0.5769180944 | AB139: 0.5928358094 | AC139: 0.6195608802 | AD139: 0.6571009272 | AE139: 0.7047559256 | AF139: 0.7601389259 | AG139: 0.8179137806
C140: 17.6 | D140: 175.9596435 | E140: 174.3156581 | F140: 172.7802504 | G140: 171.420525 | H140: 170.2959085 | I140: 169.455552 | J140: 168.9361832 | K140: 168.7605008 | L140: 168.9361832 | M140: 169.455552 | N140: 170.2959085 | O140: 171.420525 | P140: 172.7802504 | Q140: 174.3156581 | R140: 175.9596435 | S140: 0.820199467 | T140: 0.7638101505 | U140: 0.7096009984 | V140: 0.6628373357 | W140: 0.6259215345 | X140: 0.5995983109 | Y140: 0.5839028226 | Z140: 0.5786943535 | AA140: 0.5839028226 | AB140: 0.5995983109 | AC140: 0.6259215345 | AD140: 0.6628373357 | AE140: 0.7096009984 | AF140: 0.7638101505 | AG140: 0.820199467
C141: 17.76 | D141: 175.9837945 | E141: 174.3870555 | F141: 172.8957738 | G141: 171.5751255 | H141: 170.4828292 | I141: 169.6666237 | J141: 169.1621809 | K141: 168.9915475 | L141: 169.1621809 | M141: 169.6666237 | N141: 170.4828292 | O141: 171.5751255 | P141: 172.8957738 | Q141: 174.3870555 | R141: 175.9837945 | S141: 0.8224247227 | T141: 0.767395936 | U141: 0.7143472683 | V141: 0.6684707555 | W141: 0.6321802373 | X141: 0.6062617714 | Y141: 0.5907910617 | Z141: 0.5856544171 | AA141: 0.5907910617 | AB141: 0.6062617714 | AC141: 0.6321802373 | AD141: 0.6684707555 | AE141: 0.7143472683 | AF141: 0.767395936 | AG141: 0.8224247227
C142: 17.92 | D142: 176.0072513 | E142: 174.456401 | F142: 173.0079771 | G142: 171.7252828 | H142: 170.6643781 | I142: 169.8716294 | J142: 169.3816838 | K142: 169.2159542 | L142: 169.3816838 | M142: 169.8716294 | N142: 170.6643781 | O142: 171.7252828 | P142: 173.0079771 | Q142: 174.456401 | R142: 176.0072513 | S142: 0.8245909686 | T142: 0.7708976976 | U142: 0.7189956724 | V142: 0.6740014592 | W142: 0.6383366263 | X142: 0.6128253365 | Y142: 0.5975816531 | Z142: 0.5925177084 | AA142: 0.5975816531 | AB142: 0.6128253365 | AC142: 0.6383366263 | AD142: 0.6740014592 | AE142: 0.7189956724 | AF142: 0.7708976976 | AG142: 0.8245909686
C143: 18.08 | D143: 176.0300341 | E143: 174.5237535 | F143: 173.1169558 | G143: 171.8711248 | H143: 170.8407093 | I143: 170.0707434 | J143: 169.5948784 | K143: 169.4339117 | L143: 169.5948784 | M143: 170.0707434 | N143: 170.8407093 | O143: 171.8711248 | P143: 173.1169558 | Q143: 174.5237535 | R143: 176.0300341 | S143: 0.8266996022 | T143: 0.774316858 | U143: 0.723547197 | V143: 0.6794298047 | W143: 0.6443904495 | X143: 0.6192882768 | Y143: 0.6042735712 | Z143: 0.5992831018 | AA143: 0.6042735712 | AB143: 0.6192882768 | AC143: 0.6443904495 | AD143: 0.6794298047 | AE143: 0.723547197 | AF143: 0.774316858 | AG143: 0.8266996022
C144: 18.24 | D144: 176.0521621 | E144: 174.5891704 | F144: 173.2228026 | G144: 172.0127755 | H144: 171.0119731 | I144: 170.2641352 | J144: 169.8019459 | K144: 169.6456052 | L144: 169.8019459 | M144: 170.2641352 | N144: 171.0119731 | O144: 172.0127755 | P144: 173.2228026 | Q144: 174.5891704 | R144: 176.0521621 | S144: 0.8287519971 | T144: 0.7776548455 | U144: 0.7280028733 | V144: 0.6847562305 | W144: 0.6503415607 | X144: 0.6256499845 | Y144: 0.6108659199 | Z144: 0.6059496041 | AA144: 0.6108659199 | AB144: 0.6256499845 | AC144: 0.6503415607 | AD144: 0.6847562305 | AE144: 0.7280028733 | AF144: 0.7776548455 | AG144: 0.8287519971
C145: 18.4 | D145: 176.0736542 | E145: 174.6527073 | F145: 173.3256075 | G145: 172.1503553 | H145: 171.1783148 | I145: 170.451969 | J145: 170.0030626 | K145: 169.851215 | L145: 170.0030626 | M145: 170.451969 | N145: 171.1783148 | O145: 172.1503553 | P145: 173.3256075 | Q145: 174.6527073 | R145: 176.0736542 | S145: 0.8307495029 | T145: 0.7809130914 | U145: 0.7323637748 | V145: 0.6899812519 | W145: 0.6561899161 | X145: 0.63190997 | Y145: 0.6173579297 | Z145: 0.6125163508 | AA145: 0.6173579297 | AB145: 0.63190997 | AC145: 0.6561899161 | AD145: 0.6899812519 | AE145: 0.7323637748 | AF145: 0.7809130914 | AG145: 0.8307495029
C146: 18.56 | D146: 176.0945286 | E146: 174.7144183 | F146: 173.4254579 | G146: 172.2839811 | H146: 171.3398761 | I146: 170.6344047 | J146: 170.1983994 | K146: 170.0509157 | L146: 170.1983994 | M146: 170.6344047 | N146: 171.3398761 | O146: 172.2839811 | P146: 173.4254579 | Q146: 174.7144183 | R146: 176.0945286 | S146: 0.8326934451 | T146: 0.7840930289 | U146: 0.7366310135 | V146: 0.6951054571 | W146: 0.6619355698 | X146: 0.6380678578 | Y146: 0.6237489536 | Z146: 0.6189826028 | AA146: 0.6237489536 | AB146: 0.6380678578 | AC146: 0.6619355698 | AD146: 0.6951054571 | AE146: 0.7366310135 | AF146: 0.7840930289 | AG146: 0.8326934451
C147: 18.72 | D147: 176.1148031 | E147: 174.7743557 | F147: 173.5224386 | G147: 172.4137667 | H147: 171.4967943 | I147: 170.8115974 | J147: 170.3881224 | K147: 170.2448773 | L147: 170.3881224 | M147: 170.8115974 | N147: 171.4967943 | O147: 172.4137667 | P147: 173.5224386 | Q147: 174.7743557 | R147: 176.1148031 | S147: 0.8345851253 | T147: 0.7871960908 | U147: 0.7408057369 | V147: 0.7001295032 | W147: 0.6675786704 | X147: 0.6441233827 | Y147: 0.6300384638 | Z147: 0.6253477429 | AA147: 0.6300384638 | AB147: 0.6441233827 | AC147: 0.6675786704 | AD147: 0.7001295032 | AE147: 0.7408057369 | AF147: 0.7871960908 | AG147: 0.8345851253
C148: 18.88 | D148: 176.1344949 | E148: 174.8325705 | F148: 173.6166323 | G148: 172.5398225 | H148: 171.6492028 | I148: 170.9836978 | J148: 170.572393 | K148: 170.4332646 | L148: 170.572393 | M148: 170.9836978 | N148: 171.6492028 | O148: 172.5398225 | P148: 173.6166323 | Q148: 174.8325705 | R148: 176.1344949 | S148: 0.8364258207 | T148: 0.7902237082 | U148: 0.7448891246 | V148: 0.7050541123 | W148: 0.6731194561 | X148: 0.650076386 | Y148: 0.6362260481 | Z148: 0.6316112722 | AA148: 0.6362260481 | AB148: 0.650076386 | AC148: 0.6731194561 | AD148: 0.7050541123 | AE148: 0.7448891246 | AF148: 0.7902237082 | AG148: 0.8364258207
C149: 19.04 | D149: 176.1536208 | E149: 174.8891124 | F149: 173.7081189 | G149: 172.6622555 | H149: 171.7972313 | I149: 171.1508521 | J149: 170.7513678 | K149: 170.6162378 | L149: 170.7513678 | M149: 171.1508521 | N149: 171.7972313 | O149: 172.6622555 | P149: 173.7081189 | Q149: 174.8891124 | R149: 176.1536208 | S149: 0.8382167846 | T149: 0.7931773086 | U149: 0.7488823857 | V149: 0.7098800677 | W149: 0.6785582515 | X149: 0.6559268117 | Y149: 0.6423114055 | Z149: 0.637772806 | AA149: 0.6423114055 | AB149: 0.6559268117 | AC149: 0.6785582515 | AD149: 0.7098800677 | AE149: 0.7488823857 | AF149: 0.7931773086 | AG149: 0.8382167846
C150: 19.2 | D150: 176.1721971 | E150: 174.9440293 | F150: 173.7969763 | G150: 172.7811699 | H150: 171.9410056 | I150: 171.3132027 | J150: 170.9251991 | K150: 170.7939526 | L150: 170.9251991 | M150: 171.3132027 | N150: 171.9410056 | O150: 172.7811699 | P150: 173.7969763 | Q150: 174.9440293 | R150: 176.1721971 | S150: 0.8399592461 | T150: 0.7960583146 | U150: 0.7527867555 | V150: 0.7146082104 | W150: 0.6838954631 | X150: 0.661674702 | Y150: 0.648294343 | Z150: 0.6438320707 | AA150: 0.648294343 | AB150: 0.661674702 | AC150: 0.6838954631 | AD150: 0.7146082104 | AE150: 0.7527867555 | AF150: 0.7960583146 | AG150: 0.8399592461
C151: 19.36 | D151: 176.1902395 | E151: 174.9973679 | F151: 173.88328 | G151: 172.8966668 | H151: 172.0806479 | I151: 171.4708874 | J151: 171.0940347 | K151: 170.96656 | L151: 171.0940347 | M151: 171.4708874 | N151: 172.0806479 | O151: 172.8966668 | P151: 173.88328 | Q151: 174.9973679 | R151: 176.1902395 | S151: 0.8416544104 | T151: 0.7988681427 | U151: 0.7566034931 | V151: 0.7192394349 | W151: 0.6891315752 | X151: 0.6673201937 | Y151: 0.6541747715 | Z151: 0.6497888989 | AA151: 0.6541747715 | AB151: 0.6673201937 | AC151: 0.6891315752 | AD151: 0.7192394349 | AE151: 0.7566034931 | AF151: 0.7988681427 | AG151: 0.8416544104
C152: 19.52 | D152: 176.2077634 | E152: 175.0491737 | F152: 173.9671035 | G152: 173.0088445 | H152: 172.2162771 | I152: 171.6240405 | J152: 171.2580181 | K152: 171.1342069 | L152: 171.2580181 | M152: 171.6240405 | N152: 172.2162771 | O152: 173.0088445 | P152: 173.9671035 | Q152: 175.0491737 | R152: 176.2077634 | S152: 0.8433034587 | T152: 0.8016082015 | U152: 0.7603338782 | V152: 0.7237746861 | W152: 0.6942671465 | X152: 0.6728635142 | Y152: 0.6599527012 | Z152: 0.6556432263 | AA152: 0.6599527012 | AB152: 0.6728635142 | AC152: 0.6942671465 | AD152: 0.7237746861 | AE152: 0.7603338782 | AF152: 0.8016082015 | AG152: 0.8433034587
C153: 19.68 | D153: 176.2247836 | E153: 175.0994906 | F153: 174.0485179 | G153: 173.1177983 | H153: 172.3480085 | I153: 171.7727921 | J153: 171.4172888 | K153: 171.2970358 | L153: 171.4172888 | M153: 171.7727921 | N153: 172.3480085 | O153: 173.1177983 | P153: 174.0485179 | Q153: 175.0994906 | R153: 176.2247836 | S153: 0.8449075485 | T153: 0.804279891 | U153: 0.763979209 | V153: 0.7282149556 | W153: 0.6993028054 | X153: 0.678304977 | Y153: 0.6656282384 | Z153: 0.6613950872 | AA153: 0.6656282384 | AB153: 0.678304977 | AC153: 0.6993028054 | AD153: 0.7282149556 | AE153: 0.763979209 | AF153: 0.804279891 | AG153: 0.8449075485
C154: 19.84 | D154: 176.2413147 | E154: 175.1483614 | F154: 174.1275926 | G154: 173.2236208 | H154: 172.475954 | I154: 171.9172687 | J154: 171.5719822 | K154: 171.4551852 | L154: 171.5719822 | M154: 171.9172687 | N154: 172.475954 | O154: 173.2236208 | P154: 174.1275926 | Q154: 175.1483614 | R154: 176.2413147 | S154: 0.8464678136 | T154: 0.8068846011 | U154: 0.7675407993 | V154: 0.732561278 | W154: 0.7042392469 | X154: 0.6836449783 | Y154: 0.6712015811 | Z154: 0.667044611 | AA154: 0.6712015811 | AB154: 0.6836449783 | AC154: 0.7042392469 | AD154: 0.732561278 | AE154: 0.7675407993 | AF154: 0.8068846011 | AG154: 0.8464678136
C155: 20 | D155: 176.2573707 | E155: 175.1958277 | F155: 174.2043948 | G155: 173.3264022 | H155: 172.6002225 | I155: 172.0575933 | J155: 171.7222299 | K155: 171.6087895 | L155: 171.7222299 | M155: 172.0575933 | N155: 172.6002225 | O155: 173.3264022 | P155: 174.2043948 | Q155: 175.1958277 | R155: 176.2573707 | S155: 0.8479853644 | T155: 0.8094237109 | U155: 0.7710199766 | V155: 0.7368147282 | W155: 0.7090772279 | X155: 0.6888839924 | Y155: 0.6766730149 | Z155: 0.6725920173 | AA155: 0.6766730149 | AB155: 0.6888839924 | AC155: 0.7090772279 | AD155: 0.7368147282 | AE155: 0.7710199766 | AF155: 0.8094237109 | AG155: 0.8479853644
C156: 20.16 | D156: 176.2729653 | E156: 175.24193 | F156: 174.2789897 | G156: 173.4262297 | H156: 172.7209197 | I156: 172.193885 | J156: 171.8681597 | K156: 171.7579794 | L156: 171.8681597 | M156: 172.193885 | N156: 172.7209197 | O156: 173.4262297 | P156: 174.2789897 | Q156: 175.24193 | R156: 176.2729653 | S156: 0.849461288 | T156: 0.8118985873 | U156: 0.7744180793 | V156: 0.7409764177 | W156: 0.7138175643 | X156: 0.6940225681 | Y156: 0.682042909 | Z156: 0.6780376127 | AA156: 0.682042909 | AB156: 0.6940225681 | AC156: 0.7138175643 | AD156: 0.7409764177 | AE156: 0.7744180793 | AF156: 0.8118985873 | AG156: 0.849461288
C157: 20.32 | D157: 176.2881118 | E157: 175.2867072 | F157: 174.3514409 | G157: 173.5231883 | H157: 172.8381481 | I157: 172.3262599 | J157: 172.0098956 | K157: 171.9028818 | L157: 172.0098956 | M157: 172.3262599 | N157: 172.8381481 | O157: 173.5231883 | P157: 174.3514409 | Q157: 175.2867072 | R157: 176.2881118 | S157: 0.8508966484 | T157: 0.8143105846 | U157: 0.7777364548 | V157: 0.7450474915 | W157: 0.7184611269 | X157: 0.6990613247 | Y157: 0.6873117125 | Z157: 0.6833817864 | AA157: 0.6873117125 | AB157: 0.6990613247 | AC157: 0.7184611269 | AD157: 0.7450474915 | AE157: 0.7777364548 | AF157: 0.8143105846 | AG157: 0.8508966484
C158: 20.48 | D158: 176.3028229 | E158: 175.3301977 | F158: 174.4218099 | G158: 173.6173604 | H158: 172.9520076 | I158: 172.4548304 | J158: 172.1475581 | K158: 172.0436198 | L158: 172.1475581 | M158: 172.4548304 | N158: 172.9520076 | O158: 173.6173604 | P158: 174.4218099 | Q158: 175.3301977 | R158: 176.3028229 | S158: 0.852292487 | T158: 0.8166610431 | U158: 0.7809764574 | V158: 0.7490291251 | W158: 0.7230088377 | X158: 0.704000948 | Y158: 0.6924799497 | Z158: 0.6886250063 | AA158: 0.6924799497 | AB158: 0.704000948 | AC158: 0.7230088377 | AD158: 0.7490291251 | AE158: 0.7809764574 | AF158: 0.8166610431 | AG158: 0.852292487
C159: 20.64 | D159: 176.3171112 | E159: 175.3724382 | F159: 174.4901566 | G159: 173.7088261 | H159: 173.0625948 | I159: 172.579706 | J159: 172.2812644 | K159: 172.1803131 | L159: 172.2812644 | M159: 172.579706 | N159: 173.0625948 | O159: 173.7088261 | P159: 174.4901566 | Q159: 175.3724382 | R159: 176.3171112 | S159: 0.8536498222 | T159: 0.8189512889 | U159: 0.7841394464 | V159: 0.7529225217 | W159: 0.7274616664 | X159: 0.7088421867 | Y159: 0.6975482171 | Z159: 0.6937678148 | AA159: 0.6975482171 | AB159: 0.7088421867 | AC159: 0.7274616664 | AD159: 0.7529225217 | AE159: 0.7841394464 | AF159: 0.8189512889 | AG159: 0.8536498222
C160: 20.8 | D160: 176.3309889 | E160: 175.4134649 | F160: 174.556539 | G160: 173.7976632 | H160: 173.1700039 | I160: 172.7009928 | J160: 172.411128 | K160: 172.313078 | L160: 172.411128 | M160: 172.7009928 | N160: 173.1700039 | O160: 173.7976632 | P160: 174.556539 | Q160: 175.4134649 | R160: 176.3309889 | S160: 0.8549696503 | T160: 0.8211826328 | U160: 0.7872267841 | V160: 0.7567289093 | W160: 0.7318206272 | X160: 0.7135858481 | Y160: 0.7025171787 | Z160: 0.6988108252 | AA160: 0.7025171787 | AB160: 0.7135858481 | AC160: 0.7318206272 | AD160: 0.7567289093 | AE160: 0.7872267841 | AF160: 0.8211826328 | AG160: 0.8549696503
C161: 20.96 | D161: 176.3444678 | E161: 175.4533124 | F161: 174.6210137 | G161: 173.8839472 | H161: 173.2743261 | I161: 172.8187939 | J161: 172.5372596 | K161: 172.4420274 | L161: 172.5372596 | M161: 172.8187939 | N161: 173.2743261 | O161: 173.8839472 | P161: 174.6210137 | Q161: 175.4533124 | R161: 176.3444678 | S161: 0.8562529456 | T161: 0.8233563697 | U161: 0.7902398341 | V161: 0.760449538 | W161: 0.7360867753 | X161: 0.7182327953 | Y161: 0.7073875626 | Z161: 0.7037547176 | AA161: 0.7073875626 | AB161: 0.7182327953 | AC161: 0.7360867753 | AD161: 0.760449538 | AE161: 0.7902398341 | AF161: 0.8233563697 | AG161: 0.8562529456
C162: 21.12 | D162: 176.3575593 | E162: 175.4920148 | F162: 174.6836355 | G162: 173.9677514 | H162: 173.3756503 | I162: 172.9332096 | J162: 172.6597662 | K162: 172.5672709 | L162: 172.6597662 | M162: 172.9332096 | N162: 173.3756503 | O162: 173.9677514 | P162: 174.6836355 | Q162: 175.4920148 | R162: 176.3575593 | S162: 0.8575006603 | T162: 0.8254737784 | U162: 0.7931799597 | V162: 0.7640856771 | W162: 0.7402612036 | X162: 0.7227839427 | Y162: 0.7121601569 | Z162: 0.7086002351 | AA162: 0.7121601569 | AB162: 0.7227839427 | AC162: 0.7402612036 | AD162: 0.7640856771 | AE162: 0.7931799597 | AF162: 0.8254737784 | AG162: 0.8575006603
C163: 21.28 | D163: 176.3702746 | E163: 175.5296049 | F163: 174.7444576 | G163: 174.0491473 | H163: 173.4740625 | I163: 173.0443371 | J163: 172.7787522 | K163: 172.6889151 | L163: 172.7787522 | M163: 173.0443371 | N163: 173.4740625 | O163: 174.0491473 | P163: 174.7444576 | Q163: 175.5296049 | R163: 176.3702746 | S163: 0.8587137254 | T163: 0.8275361206 | U163: 0.7960485221 | V163: 0.7676386131 | W163: 0.7443450394 | X163: 0.727240253 | Y163: 0.7168358063 | Z163: 0.71334818 | AA163: 0.7168358063 | AB163: 0.727240253 | AC163: 0.7443450394 | AD163: 0.7676386131 | AE163: 0.7960485221 | AF163: 0.8275361206 | AG163: 0.8587137254
C164: 21.44 | D164: 176.3826245 | E164: 175.5661147 | F164: 174.8035317 | G164: 174.1282039 | H164: 173.5696464 | I164: 173.1522708 | J164: 172.8943186 | K164: 172.8070633 | L164: 172.8943186 | M164: 173.1522708 | N164: 173.5696464 | O164: 174.1282039 | P164: 174.8035317 | Q164: 175.5661147 | R164: 176.3826245 | S164: 0.8598930505 | T164: 0.8295446408 | U164: 0.7988468791 | V164: 0.7711096467 | W164: 0.7483394419 | X164: 0.7316027335 | Y164: 0.7214154084 | Z164: 0.7179994102 | AA164: 0.7214154084 | AB164: 0.7316027335 | AC164: 0.7483394419 | AD164: 0.7711096467 | AE164: 0.7988468791 | AF164: 0.8295446408 | AG164: 0.8598930505
C165: 21.6 | D165: 176.3946194 | E165: 175.6015753 | F165: 174.8609081 | G165: 174.2049885 | H165: 173.6624833 | I165: 173.2571027 | J165: 173.0065637 | K165: 172.9218161 | L165: 173.0065637 | M165: 173.2571027 | N165: 173.6624833 | O165: 174.2049885 | P165: 174.8609081 | Q165: 175.6015753 | R165: 176.3946194 | S165: 0.8610395242 | T165: 0.8315005655 | U165: 0.8015763838 | V165: 0.7745000912 | W165: 0.7522455985 | X165: 0.7358724329 | Y165: 0.7258999099 | Z165: 0.7225548356 | AA165: 0.7258999099 | AB165: 0.7358724329 | AC165: 0.7522455985 | AD165: 0.7745000912 | AE165: 0.8015763838 | AF165: 0.8315005655 | AG165: 0.8610395242
C166: 21.76 | D166: 176.4062696 | E166: 175.6360167 | F166: 174.9166355 | G166: 174.2795664 | H166: 173.7526522 | I166: 173.3589218 | J166: 173.1155831 | K166: 173.033271 | L166: 173.1155831 | M166: 173.3589218 | N166: 173.7526522 | O166: 174.2795664 | P166: 174.9166355 | Q166: 175.6360167 | R166: 176.4062696 | S166: 0.8621540148 | T166: 0.8334051034 | U166: 0.8042383828 | V166: 0.7778112696 | W166: 0.7560647225 | X166: 0.7400504379 | Y166: 0.7302903032 | Z166: 0.7270154142 | AA166: 0.7302903032 | AB166: 0.7400504379 | AC166: 0.7560647225 | AD166: 0.7778112696 | AE166: 0.8042383828 | AF166: 0.8334051034 | AG166: 0.8621540148
C167: 21.92 | D167: 176.417585 | E167: 175.6694684 | F167: 174.9707614 | G167: 174.3520009 | H167: 173.8402298 | I167: 173.4578148 | J167: 173.2214693 | K167: 173.1415228 | L167: 173.2214693 | M167: 173.4578148 | N167: 173.8402298 | O167: 174.3520009 | P167: 174.9707614 | Q167: 175.6694684 | R167: 176.417585 | S167: 0.86323737 | T167: 0.8352594446 | U167: 0.8068342158 | V167: 0.781044513 | W167: 0.7597980499 | X167: 0.7441378701 | Y167: 0.7345876234 | Z167: 0.7313821494 | AA167: 0.7345876234 | AB167: 0.7441378701 | AC167: 0.7597980499 | AD167: 0.781044513 | AE167: 0.8068342158 | AF167: 0.8352594446 | AG167: 0.86323737
C168: 22.08 | D168: 176.4285752 | E168: 175.7019587 | F168: 175.0233318 | G168: 174.4223539 | H168: 173.9252905 | I168: 173.5538657 | J168: 173.3243125 | K168: 173.2466636 | L168: 173.3243125 | M168: 173.5538657 | N168: 173.9252905 | O168: 174.4223539 | P168: 175.0233318 | Q168: 175.7019587 | R168: 176.4285752 | S168: 0.8642904177 | T168: 0.8370647605 | U168: 0.8093652134 | V168: 0.7842011582 | W168: 0.7634468373 | X168: 0.7481358829 | Y168: 0.7387929445 | Z168: 0.7356560857 | AA168: 0.7387929445 | AB168: 0.7481358829 | AC168: 0.7634468373 | AD168: 0.7842011582 | AE168: 0.8093652134 | AF168: 0.8370647605 | AG168: 0.8642904177
C169: 22.24 | D169: 176.4392496 | E169: 175.7335152 | F169: 175.0743914 | G169: 174.4906849 | H169: 174.0079066 | I169: 173.6471561 | J169: 173.4242001 | K169: 173.3487827 | L169: 173.4242001 | M169: 173.6471561 | N169: 174.0079066 | O169: 174.4906849 | P169: 175.0743914 | Q169: 175.7335152 | R169: 176.4392496 | S169: 0.865313966 | T169: 0.8388222034 | U169: 0.811832697 | V169: 0.7872825462 | W169: 0.7670123589 | X169: 0.7520456586 | Y169: 0.7429073762 | Z169: 0.7398383062 | AA169: 0.7429073762 | AB169: 0.7520456586 | AC169: 0.7670123589 | AD169: 0.7872825462 | AE169: 0.811832697 | AF169: 0.8388222034 | AG169: 0.865313966
C170: 22.4 | D170: 176.4496171 | E170: 175.7641649 | F170: 175.1239835 | G170: 174.5570522 | H170: 174.0881484 | I170: 173.7377655 | J170: 173.521217 | K170: 173.4479671 | L170: 173.521217 | M170: 173.7377655 | N170: 174.0881484 | O170: 174.5570522 | P170: 175.1239835 | Q170: 175.7641649 | R170: 176.4496171 | S170: 0.8663088039 | T170: 0.8405329069 | U170: 0.8142379773 | V170: 0.7902900202 | W170: 0.7704959042 | X170: 0.7558684056 | Y170: 0.7469320615 | Z170: 0.743929929 | AA170: 0.7469320615 | AB170: 0.7558684056 | AC170: 0.7704959042 | AD170: 0.7902900202 | AE170: 0.8142379773 | AF170: 0.8405329069 | AG170: 0.8663088039
C171: 22.56 | D171: 176.4596868 | E171: 175.7939337 | F171: 175.1721505 | G171: 174.6215121 | H171: 174.1660841 | I171: 173.8257709 | J171: 173.6154458 | K171: 173.5443009 | L171: 173.6154458 | M171: 173.8257709 | N171: 174.1660841 | O171: 174.6215121 | P171: 175.1721505 | Q171: 175.7939337 | R171: 176.4596868 | S171: 0.8672757013 | T171: 0.8421979849 | U171: 0.8165823533 | V171: 0.7932249239 | W171: 0.7738987759 | X171: 0.7596053553 | Y171: 0.7508681727 | Z171: 0.7479321043 | AA171: 0.7508681727 | AB171: 0.7596053553 | AC171: 0.7738987759 | AD171: 0.7932249239 | AE171: 0.8165823533 | AF171: 0.8421979849 | AG171: 0.8672757013
C172: 22.72 | D172: 176.469467 | E172: 175.8228469 | F172: 175.2189331 | G172: 174.6841196 | H172: 174.2417801 | I172: 173.9112471 | J172: 173.7069665 | K172: 173.6378663 | L172: 173.7069665 | M172: 173.9112471 | N172: 174.2417801 | O172: 174.6841196 | P172: 175.2189331 | Q172: 175.8228469 | R172: 176.469467 | S172: 0.8682154095 | T172: 0.8438185322 | U172: 0.8188671118 | V172: 0.7960885998 | W172: 0.7772222871 | X172: 0.7632577599 | Y172: 0.7547169093 | Z172: 0.7518460112 | AA172: 0.7547169093 | AB172: 0.7632577599 | AC172: 0.7772222871 | AD172: 0.7960885998 | AE172: 0.8188671118 | AF172: 0.8438185322 | AG172: 0.8682154095
C173: 22.88 | D173: 176.4789662 | E173: 175.8509293 | F173: 175.2643713 | G173: 174.7449277 | H173: 174.3153006 | I173: 173.9942668 | J173: 173.795857 | K173: 173.7287427 | L173: 173.795857 | M173: 173.9942668 | N173: 174.3153006 | O173: 174.7449277 | P173: 175.2643713 | Q173: 175.8509293 | R173: 176.4789662 | S173: 0.8691286613 | T173: 0.845395624 | U173: 0.8210935264 | V173: 0.7988823879 | W173: 0.7804677597 | X173: 0.7668268894 | Y173: 0.7584794947 | Z173: 0.7556728552 | AA173: 0.7584794947 | AB173: 0.7668268894 | AC173: 0.7804677597 | AD173: 0.7988823879 | AE173: 0.8210935264 | AF173: 0.845395624 | AG173: 0.8691286613
C174: 23.04 | D174: 176.4881924 | E174: 175.8782046 | F174: 175.3085037 | G174: 174.8039883 | H174: 174.3867083 | I174: 174.0749006 | J174: 173.8821929 | K174: 173.8170074 | L174: 173.8821929 | M174: 174.0749006 | N174: 174.3867083 | O174: 174.8039883 | P174: 175.3085037 | Q174: 175.8782046 | R174: 176.4881924 | S174: 0.8700161718 | T174: 0.846930316 | U174: 0.8232628569 | V174: 0.8016076242 | W174: 0.7836365224 | X174: 0.7703140295 | Y174: 0.7621571741 | Z174: 0.7594138653 | AA174: 0.7621571741 | AB174: 0.7703140295 | AC174: 0.7836365224 | AD174: 0.8016076242 | AE174: 0.8232628569 | AF174: 0.846930316 | AG174: 0.8700161718
C175: 23.2 | D175: 176.4971534 | E175: 175.904696 | F175: 175.3513677 | G175: 174.8613516 | H175: 174.4560637 | I175: 174.1532171 | J175: 173.9660476 | K175: 173.9027354 | L175: 173.9660476 | M175: 174.1532171 | N175: 174.4560637 | O175: 174.8613516 | P175: 175.3513677 | Q175: 175.904696 | R175: 176.4971534 | S175: 0.8708786384 | T175: 0.8484236443 | U175: 0.8253763483 | V175: 0.8042656392 | W175: 0.7867299083 | X175: 0.7737204793 | Y175: 0.765751211 | Z175: 0.7630702909 | AA175: 0.765751211 | AB175: 0.7737204793 | AC175: 0.7867299083 | AD175: 0.8042656392 | AE175: 0.8253763483 | AF175: 0.8484236443 | AG175: 0.8708786384
C176: 23.36 | D176: 176.5058569 | E176: 175.9304261 | F176: 175.3929999 | G176: 174.9170663 | H176: 174.523426 | I176: 174.2292828 | J176: 174.0474924 | K176: 173.9859997 | L176: 174.0474924 | M176: 174.2292828 | N176: 174.523426 | O176: 174.9170663 | P176: 175.3929999 | Q176: 175.9304261 | R176: 176.5058569 | S176: 0.8717167411 | T176: 0.8498766256 | U176: 0.8274352309 | V176: 0.8068577567 | W176: 0.7897492535 | X176: 0.7770475485 | Y176: 0.7692628857 | Z176: 0.7666434001 | AA176: 0.7692628857 | AB176: 0.7770475485 | AC176: 0.7897492535 | AD176: 0.8068577567 | AE176: 0.8274352309 | AF176: 0.8498766256 | AG176: 0.8717167411
C177: 23.52 | D177: 176.5143102 | E177: 175.9554167 | F177: 175.4334356 | G177: 174.9711798 | H177: 174.5888523 | I177: 174.3031625 | J177: 174.1265965 | K177: 174.0668711 | L177: 174.1265965 | M177: 174.3031625 | N177: 174.5888523 | O177: 174.9711798 | P177: 175.4334356 | Q177: 175.9554167 | R177: 176.5143102 | S177: 0.8725311431 | T177: 0.851290257 | U177: 0.8294407189 | V177: 0.809385293 | W177: 0.7926958952 | X177: 0.7802965561 | Y177: 0.7726934923 | Z177: 0.7701344763 | AA177: 0.7726934923 | AB177: 0.7802965561 | AC177: 0.7926958952 | AD177: 0.809385293 | AE177: 0.8294407189 | AF177: 0.851290257 | AG177: 0.8725311431
C178: 23.68 | D178: 176.5225207 | E178: 175.9796892 | F178: 175.4727092 | G178: 175.0237382 | H178: 174.6523983 | I178: 174.374919 | J178: 174.2034273 | K178: 174.1454184 | L178: 174.2034273 | M178: 174.374919 | N178: 174.6523983 | O178: 175.0237382 | P178: 175.4727092 | Q178: 175.9796892 | R178: 176.5225207 | S178: 0.8733224907 | T178: 0.8526655161 | U178: 0.8313940105 | V178: 0.8118495551 | W178: 0.7955711701 | X178: 0.7834688276 | Y178: 0.7760443366 | Z178: 0.7735448167 | AA178: 0.7760443366 | AB178: 0.7834688276 | AC178: 0.7955711701 | AD178: 0.8118495551 | AE178: 0.8313940105 | AF178: 0.8526655161 | AG178: 0.8733224907
C179: 23.84 | D179: 176.5304951 | E179: 176.003264 | F179: 175.5108541 | G179: 175.0747861 | H179: 174.7141181 | I179: 174.4446133 | J179: 174.2780501 | K179: 174.2217082 | L179: 174.2780501 | M179: 174.4446133 | N179: 174.7141181 | O179: 175.0747861 | P179: 175.5108541 | Q179: 176.003264 | R179: 176.5304951 | S179: 0.8740914142 | T179: 0.8540033614 | U179: 0.8332962875 | V179: 0.8142518403 | W179: 0.7983764127 | X179: 0.7865656936 | Y179: 0.779316734 | Z179: 0.7768757294 | AA179: 0.779316734 | AB179: 0.7865656936 | AC179: 0.7983764127 | AD179: 0.8142518403 | AE179: 0.8332962875 | AF179: 0.8540033614 | AG179: 0.8740914142
C180: 24 | D180: 176.5382404 | E180: 176.0261614 | F180: 175.5479028 | G180: 175.1243669 | H180: 174.7740642 | I180: 174.5123046 | J180: 174.3505283 | K180: 174.2958056 | L180: 174.3505283 | M180: 174.5123046 | N180: 174.7740642 | O180: 175.1243669 | P180: 175.5479028 | Q180: 176.0261614 | R180: 176.5382404 | S180: 0.8748385278 | T180: 0.8553047317 | U180: 0.8351487145 | V180: 0.816593435 | W180: 0.8011129542 | X180: 0.7895884877 | Y180: 0.7825120073 | Z180: 0.7801285317 | AA180: 0.7825120073 | AB180: 0.7895884877 | AC180: 0.8011129542 | AD180: 0.816593435 | AE180: 0.8351487145 | AF180: 0.8553047317 | AG180: 0.8748385278
C181: 24.16 | D181: 176.5457631 | E181: 176.0484007 | F181: 175.5838868 | G181: 175.1725228 | H181: 174.8322874 | I181: 174.5780505 | J181: 174.4209235 | K181: 174.3677735 | L181: 174.4209235 | M181: 174.5780505 | N181: 174.8322874 | O181: 175.1725228 | P181: 175.5838868 | Q181: 176.0484007 | R181: 176.5457631 | S181: 0.8755644302 | T181: 0.8565705469 | U181: 0.8369524388 | V181: 0.8188756138 | W181: 0.8037821208 | X181: 0.7925385447 | Y181: 0.7856314849 | Z181: 0.7833045478 | AA181: 0.7856314849 | AB181: 0.7925385447 | AC181: 0.8037821208 | AD181: 0.8188756138 | AE181: 0.8369524388 | AF181: 0.8565705469 | AG181: 0.8755644302
C182: 24.32 | D182: 176.5530696 | E182: 176.0700008 | F182: 175.6188366 | G182: 175.2192948 | H182: 174.8888374 | I182: 174.641907 | J182: 174.4892956 | K182: 174.4376731 | L182: 174.4892956 | M182: 174.641907 | N182: 174.8888374 | O182: 175.2192948 | P182: 175.6188366 | Q182: 176.0700008 | R182: 176.5530696 | S182: 0.8762697046 | T182: 0.857801708 | U182: 0.8387085903 | V182: 0.8210996387 | W182: 0.8063852325 | X182: 0.7954171993 | Y182: 0.7886764989 | Z182: 0.7864051068 | AA182: 0.7886764989 | AB182: 0.7954171993 | AC182: 0.8063852325 | AD182: 0.8210996387 | AE182: 0.8387085903 | AF182: 0.857801708 | AG182: 0.8762697046
C183: 24.48 | D183: 176.5601661 | E183: 176.0909803 | F183: 175.6527819 | G183: 175.2647226 | H183: 174.9437622 | I183: 174.7039283 | J183: 174.5557028 | K183: 174.5055639 | L183: 174.5557028 | M183: 174.7039283 | N183: 174.9437622 | O183: 175.2647226 | P183: 175.6527819 | Q183: 176.0909803 | R183: 176.5601661 | S183: 0.8769549195 | T183: 0.8589990969 | U183: 0.8404182809 | V183: 0.8232667584 | W183: 0.8089236022 | X183: 0.7982257841 | Y183: 0.791648383 | Z183: 0.7894315414 | AA183: 0.791648383 | AB183: 0.7982257841 | AC183: 0.8089236022 | AD183: 0.8232667584 | AE183: 0.8404182809 | AF183: 0.8589990969 | AG183: 0.8769549195
C184: 24.64 | D184: 176.5670587 | E184: 176.1113567 | F184: 175.6857518 | G184: 175.3088448 | H184: 174.9971085 | I184: 174.7641672 | J184: 174.6202016 | K184: 174.5715036 | L184: 174.6202016 | M184: 174.7641672 | N184: 174.9971085 | O184: 175.3088448 | P184: 175.6857518 | Q184: 176.1113567 | R184: 176.5670587 | S184: 0.8776206285 | T184: 0.8601635769 | U184: 0.8420826043 | V184: 0.8253782078 | W184: 0.8113985339 | X184: 0.8009656286 | Y184: 0.7945484715 | Z184: 0.7923851853 | AA184: 0.7945484715 | AB184: 0.8009656286 | AC184: 0.8113985339 | AD184: 0.8253782078 | AE184: 0.8420826043 | AF184: 0.8601635769 | AG184: 0.8776206285
C185: 24.8 | D185: 176.5737532 | E185: 176.1311476 | F185: 175.7177741 | G185: 175.3516991 | H185: 175.0489217 | I185: 174.8226749 | J185: 174.6828467 | K185: 174.6355482 | L185: 174.6828467 | M185: 174.8226749 | N185: 175.0489217 | O185: 175.3516991 | P185: 175.7177741 | Q185: 176.1311476 | R185: 176.5737532 | S185: 0.878267371 | T185: 0.8612959926 | U185: 0.8437026362 | V185: 0.8274352068 | W185: 0.8138113225 | X185: 0.8036380573 | Y185: 0.797378097 | Z185: 0.7952673723 | AA185: 0.797378097 | AB185: 0.8036380573 | AC185: 0.8138113225 | AD185: 0.8274352068 | AE185: 0.8437026362 | AF185: 0.8612959926 | AG185: 0.878267371
C186: 24.96 | D186: 176.5802553 | E186: 176.1503697 | F186: 175.7488761 | G186: 175.3933217 | H186: 175.0992458 | I186: 174.8795011 | J186: 174.7436914 | K186: 174.6977523 | L186: 174.7436914 | M186: 174.8795011 | N186: 175.0992458 | O186: 175.3933217 | P186: 175.7488761 | Q186: 176.1503697 | R186: 176.5802553 | S186: 0.8788956723 | T186: 0.8623971706 | U186: 0.8452794339 | V186: 0.8294389606 | W186: 0.816163252 | X186: 0.8062443889 | Y186: 0.8001385894 | Z186: 0.7980794343 | AA186: 0.8001385894 | AB186: 0.8062443889 | AC186: 0.816163252 | AD186: 0.8294389606 | AE186: 0.8452794339 | AF186: 0.8623971706 | AG186: 0.8788956723
C187: 25.12 | D187: 176.5865705 | E187: 176.1690394 | F187: 175.7790843 | G187: 175.4337481 | H187: 175.1481237 | I187: 174.9346942 | J187: 174.8027875 | K187: 174.7581686 | L187: 174.8027875 | M187: 174.9346942 | N187: 175.1481237 | O187: 175.4337481 | P187: 175.7790843 | Q187: 176.1690394 | R187: 176.5865705 | S187: 0.8795060442 | T187: 0.8634679192 | U187: 0.846814036 | V187: 0.8313906584 | W187: 0.8184555954 | X187: 0.8087859349 | Y187: 0.8028312743 | Z187: 0.8008227001 | AA187: 0.8028312743 | AB187: 0.8087859349 | AC187: 0.8184555954 | AD187: 0.8313906584 | AE187: 0.846814036 | AF187: 0.8634679192 | AG187: 0.8795060442
C188: 25.28 | D188: 176.5927042 | E188: 176.1871725 | F188: 175.8084244 | G188: 175.4730128 | H188: 175.1955969 | I188: 174.9883011 | J188: 174.8601853 | K188: 174.8168487 | L188: 174.8601853 | M188: 174.9883011 | N188: 175.1955969 | O188: 175.4730128 | P188: 175.8084244 | Q188: 176.1871725 | R188: 176.5927042 | S188: 0.880098985 | T188: 0.8645090287 | U188: 0.8483074629 | V188: 0.8332914733 | W188: 0.8206896131 | X188: 0.8112639983 | Y188: 0.8054574715 | Z188: 0.8034984938 | AA188: 0.8054574715 | AB188: 0.8112639983 | AC188: 0.8206896131 | AD188: 0.8332914733 | AE188: 0.8483074629 | AF188: 0.8645090287 | AG188: 0.880098985
C189: 25.44 | D189: 176.5986617 | E189: 176.2047846 | F189: 175.8369212 | G189: 175.511149 | H189: 175.2417057 | I189: 175.0403675 | J189: 174.9159335 | K189: 174.8738424 | L189: 174.9159335 | M189: 175.0403675 | N189: 175.2417057 | O189: 175.511149 | P189: 175.8369212 | Q189: 176.2047846 | R189: 176.5986617 | S189: 0.8806749797 | T189: 0.8655212718 | U189: 0.8497607162 | V189: 0.8351425621 | W189: 0.8228665529 | X189: 0.8136798728 | Y189: 0.8080184944 | Z189: 0.8061081337 | AA189: 0.8080184944 | AB189: 0.8136798728 | AC189: 0.8228665529 | AD189: 0.8351425621 | AE189: 0.8497607162 | AF189: 0.8655212718 | AG189: 0.8806749797
C190: 25.6 | D190: 176.604448 | E190: 176.2218904 | F190: 175.8645991 | G190: 175.5481892 | H190: 175.2864895 | I190: 175.0909374 | J190: 174.9700796 | K190: 174.9291981 | L190: 174.9700796 | M190: 175.0909374 | N190: 175.2864895 | O190: 175.5481892 | P190: 175.8645991 | Q190: 176.2218904 | R190: 176.604448 | S190: 0.8812345009 | T190: 0.8665054038 | U190: 0.8511747787 | V190: 0.8369450645 | W190: 0.8249876486 | X190: 0.8160348419 | Y190: 0.810515648 | Z190: 0.8086529308 | AA190: 0.810515648 | AB190: 0.8160348419 | AC190: 0.8249876486 | AD190: 0.8369450645 | AE190: 0.8511747787 | AF190: 0.8665054038 | AG190: 0.8812345009
C191: 25.76 | D191: 176.6100679 | E191: 176.2385047 | F191: 175.8914815 | G191: 175.5841649 | H191: 175.3299862 | I191: 175.1400541 | J191: 175.0226696 | K191: 174.982963 | L191: 175.0226696 | M191: 175.1400541 | N191: 175.3299862 | O191: 175.5841649 | P191: 175.8914815 | Q191: 176.2385047 | R191: 176.6100679 | S191: 0.8817780084 | T191: 0.8674621626 | U191: 0.852550615 | V191: 0.838700103 | W191: 0.8270541198 | X191: 0.8183301774 | Y191: 0.8129502285 | Z191: 0.811134188 | AA191: 0.8129502285 | AB191: 0.8183301774 | AC191: 0.8270541198 | AD191: 0.838700103 | AE191: 0.852550615 | AF191: 0.8674621626 | AG191: 0.8817780084
C192: 25.92 | D192: 176.6155264 | E192: 176.2546415 | F192: 175.9175914 | G192: 175.6191067 | H192: 175.3722328 | I192: 175.1877592 | J192: 175.0737482 | K192: 175.0351827 | L192: 175.0737482 | M192: 175.1877592 | N192: 175.3722328 | O192: 175.6191067 | P192: 175.9175914 | Q192: 176.2546415 | R192: 176.6155264 | S192: 0.8823059499 | T192: 0.8683922694 | U192: 0.8538891709 | V192: 0.8404087828 | W192: 0.8290671713 | X192: 0.8205671394 | Y192: 0.815323522 | Z192: 0.8135531988 | AA192: 0.815323522 | AB192: 0.8205671394 | AC192: 0.8290671713 | AD192: 0.8404087828 | AE192: 0.8538891709 | AF192: 0.8683922694 | AG192: 0.8823059499
C193: 26.08 | D193: 176.6208279 | E193: 176.2703145 | F193: 175.9429508 | G193: 175.6530444 | H193: 175.4132653 | I193: 175.2340933 | J193: 175.1233588 | K193: 175.0859017 | L193: 175.1233588 | M193: 175.2340933 | N193: 175.4132653 | O193: 175.6530444 | P193: 175.9429508 | Q193: 176.2703145 | R193: 176.6208279 | S193: 0.8828187613 | T193: 0.8692964284 | U193: 0.8551913737 | V193: 0.8420721911 | W193: 0.8310279923 | X193: 0.822746975 | Y193: 0.8176368035 | Z193: 0.8159112466 | AA193: 0.8176368035 | AB193: 0.822746975 | AC193: 0.8310279923 | AD193: 0.8420721911 | AE193: 0.8551913737 | AF193: 0.8692964284 | AG193: 0.8828187613
C194: 26.24 | D194: 176.6259772 | E194: 176.2855371 | F194: 175.9675815 | G194: 175.6860066 | H194: 175.4531186 | I194: 175.2790958 | J194: 175.1715437 | K194: 175.1351631 | L194: 175.1715437 | M194: 175.2790958 | N194: 175.4531186 | O194: 175.6860066 | P194: 175.9675815 | Q194: 176.2855371 | R194: 176.6259772 | S194: 0.8833168666 | T194: 0.8701753276 | U194: 0.8564581322 | V194: 0.8436913976 | W194: 0.8329377562 | X194: 0.8248709176 | Y194: 0.8198913363 | Z194: 0.8182096033 | AA194: 0.8198913363 | AB194: 0.8248709176 | AC194: 0.8329377562 | AD194: 0.8436913976 | AE194: 0.8564581322 | AF194: 0.8701753276 | AG194: 0.8833168666
C195: 26.4 | D195: 176.6309784 | E195: 176.3003222 | F195: 175.9915044 | G195: 175.7180216 | H195: 175.4918266 | I195: 175.322805 | J195: 175.2183438 | K195: 175.1830087 | L195: 175.2183438 | M195: 175.322805 | N195: 175.4918266 | O195: 175.7180216 | P195: 175.9915044 | Q195: 176.3003222 | R195: 176.6309784 | S195: 0.8838006788 | T195: 0.8710296385 | U195: 0.8576903371 | V195: 0.8452674536 | W195: 0.8347976201 | X195: 0.8269401865 | Y195: 0.8220883711 | Z195: 0.8204495292 | AA195: 0.8220883711 | AB195: 0.8269401865 | AC195: 0.8347976201 | AD195: 0.8452674536 | AE195: 0.8576903371 | AF195: 0.8710296385 | AG195: 0.8838006788
C196: 26.56 | D196: 176.6358359 | E196: 176.3146824 | F196: 176.0147397 | G196: 175.7491166 | H196: 175.5294221 | I196: 175.365258 | J196: 175.263799 | K196: 175.2294793 | L196: 175.263799 | M196: 175.365258 | N196: 175.5294221 | O196: 175.7491166 | P196: 176.0147397 | Q196: 176.3146824 | R196: 176.6358359 | S196: 0.8842705995 | T196: 0.871860017 | U196: 0.8588888608 | V196: 0.8468013925 | W196: 0.8366087245 | X196: 0.8289559862 | Y196: 0.8242291451 | Z196: 0.8226322713 | AA196: 0.8242291451 | AB196: 0.8289559862 | AC196: 0.8366087245 | AD196: 0.8468013925 | AE196: 0.8588888608 | AF196: 0.871860017 | AG196: 0.8842705995
C197: 26.72 | D197: 176.6405538 | E197: 176.3286299 | F197: 176.0373072 | G197: 175.7793178 | H197: 175.5659372 | I197: 175.4064909 | J197: 175.3079478 | K197: 175.2746144 | L197: 175.3079478 | M197: 175.4064909 | N197: 175.5659372 | O197: 175.7793178 | P197: 176.0373072 | Q197: 176.3286299 | R197: 176.6405538 | S197: 0.8847270198 | T197: 0.872667103 | U197: 0.8600545573 | V197: 0.8482942293 | W197: 0.8383721926 | X197: 0.8309195058 | Y197: 0.8263148816 | Z197: 0.8247590634 | AA197: 0.8263148816 | AB197: 0.8309195058 | AC197: 0.8383721926 | AD197: 0.8482942293 | AE197: 0.8600545573 | AF197: 0.872667103 | AG197: 0.8847270198
C198: 26.88 | D198: 176.6451361 | E198: 176.3421766 | F198: 176.0592262 | G198: 175.8086512 | H198: 175.6014028 | I198: 175.4465389 | J198: 175.3508278 | K198: 175.3184524 | L198: 175.3508278 | M198: 175.4465389 | N198: 175.6014028 | O198: 175.8086512 | P198: 176.0592262 | Q198: 176.3421766 | R198: 176.6451361 | S198: 0.8851703199 | T198: 0.8734515213 | U198: 0.8611882631 | V198: 0.8497469607 | W198: 0.8400891306 | X198: 0.8328319186 | Y198: 0.8283467893 | Z198: 0.826831125 | AA198: 0.8283467893 | AB198: 0.8328319186 | AC198: 0.8400891306 | AD198: 0.8497469607 | AE198: 0.8611882631 | AF198: 0.8734515213 | AG198: 0.8851703199
C199: 27.04 | D199: 176.6495867 | E199: 176.355334 | F199: 176.0805153 | G199: 175.8371415 | H199: 175.6358492 | I199: 175.485436 | J199: 175.3924754 | K199: 175.3610305 | L199: 175.3924754 | M199: 175.485436 | N199: 175.6358492 | O199: 175.8371415 | P199: 176.0805153 | Q199: 176.355334 | R199: 176.6495867 | S199: 0.8856008699 | T199: 0.8742138813 | U199: 0.8622907967 | V199: 0.8511605652 | W199: 0.841760627 | X199: 0.8346943817 | Y199: 0.8303260616 | Z199: 0.828849661 | AA199: 0.8303260616 | AB199: 0.8346943817 | AC199: 0.841760627 | AD199: 0.8511605652 | AE199: 0.8622907967 | AF199: 0.8742138813 | AG199: 0.8856008699
C200: 27.2 | D200: 176.6539094 | E200: 176.3681132 | F200: 176.1011925 | G200: 175.864813 | H200: 175.6693057 | I200: 175.5232151 | J200: 175.4329262 | K200: 175.402385 | L200: 175.4329262 | M200: 175.5232151 | N200: 175.6693057 | O200: 175.864813 | P200: 176.1011925 | Q200: 176.3681132 | R200: 176.6539094 | S200: 0.8860190299 | T200: 0.8749547777 | U200: 0.863362959 | V200: 0.8525360027 | W200: 0.8433877526 | X200: 0.8365080355 | Y200: 0.8322538764 | Z200: 0.8308158608 | AA200: 0.8322538764 | AB200: 0.8365080355 | AC200: 0.8433877526 | AD200: 0.8525360027 | AE200: 0.863362959 | AF200: 0.8749547777 | AG200: 0.8860190299
C201: 27.36 | D201: 176.6581079 | E201: 176.3805252 | F201: 176.1212755 | G201: 175.8916893 | H201: 175.7018007 | I201: 175.5599086 | J201: 175.4722145 | K201: 175.442551 | L201: 175.4722145 | M201: 175.5599086 | N201: 175.7018007 | O201: 175.8916893 | P201: 176.1212755 | Q201: 176.3805252 | R201: 176.6581079 | S201: 0.8864251502 | T201: 0.8756747907 | U201: 0.8644055335 | V201: 0.8538742151 | W201: 0.8449715605 | X201: 0.8382740035 | Y201: 0.8341313954 | Z201: 0.8327308983 | AA201: 0.8341313954 | AB201: 0.8382740035 | AC201: 0.8449715605 | AD201: 0.8538742151 | AE201: 0.8644055335 | AF201: 0.8756747907 | AG201: 0.8864251502
C202: 27.52 | D202: 176.6621858 | E202: 176.3925804 | F202: 176.1407813 | G202: 175.9177932 | H202: 175.7333617 | I202: 175.5955475 | J202: 175.5103736 | K202: 175.4815626 | L202: 175.5103736 | M202: 175.5955475 | N202: 175.7333617 | O202: 175.9177932 | P202: 176.1407813 | Q202: 176.3925804 | R202: 176.6621858 | S202: 0.8868195714 | T202: 0.876374486 | U202: 0.8654192865 | V202: 0.8551761258 | W202: 0.8465130853 | X202: 0.839993392 | Y202: 0.8359597639 | Z202: 0.8345959309 | AA202: 0.8359597639 | AB202: 0.839993392 | AC202: 0.8465130853 | AD202: 0.8551761258 | AE202: 0.8654192865 | AF202: 0.876374486 | AG202: 0.8868195714
C203: 27.68 | D203: 176.6661464 | E203: 176.4042892 | F203: 176.1597265 | G203: 175.9431469 | H203: 175.7640158 | I203: 175.6301622 | J203: 175.5474361 | K203: 175.5194531 | L203: 175.5474361 | M203: 175.6301622 | N203: 175.7640158 | O203: 175.9431469 | P203: 176.1597265 | Q203: 176.4042892 | R203: 176.6661464 | S203: 0.887202625 | T203: 0.8770544153 | U203: 0.8664049671 | V203: 0.8564426401 | W203: 0.8480133439 | X203: 0.8416672898 | Y203: 0.8377401102 | Z203: 0.8364120995 | AA203: 0.8377401102 | AB203: 0.8416672898 | AC203: 0.8480133439 | AD203: 0.8564426401 | AE203: 0.8664049671 | AF203: 0.8770544153 | AG203: 0.887202625
C204: 27.84 | D204: 176.6699932 | E204: 176.4156616 | F204: 176.1781273 | G204: 175.9677719 | H204: 175.7937889 | I204: 175.6637821 | J204: 175.5834335 | K204: 175.5562547 | L204: 175.5834335 | M204: 175.6637821 | N204: 175.7937889 | O204: 175.9677719 | P204: 176.1781273 | Q204: 176.4156616 | R204: 176.6699932 | S204: 0.8875746334 | T204: 0.8777151166 | U204: 0.867363308 | V204: 0.857674645 | W204: 0.8494733349 | X204: 0.843296768 | Y204: 0.8394735457 | Z204: 0.8381805284 | AA204: 0.8394735457 | AB204: 0.843296768 | AC204: 0.8494733349 | AD204: 0.857674645 | AE204: 0.867363308 | AF204: 0.8777151166 | AG204: 0.8875746334
C205: 28 | D205: 176.6737295 | E205: 176.426707 | F205: 176.1959993 | G205: 175.9916893 | H205: 175.8227063 | I205: 175.6964358 | J205: 175.6183963 | K205: 175.5919986 | L205: 175.6183963 | M205: 175.6964358 | N205: 175.8227063 | O205: 175.9916893 | P205: 176.1959993 | Q205: 176.426707 | R205: 176.6737295 | S205: 0.88793591 | T205: 0.8783571145 | U205: 0.868295025 | V205: 0.8588730097 | W205: 0.8508940384 | X205: 0.8448828799 | Y205: 0.8411611642 | Z205: 0.8399023242 | AA205: 0.8411611642 | AB205: 0.8448828799 | AC205: 0.8508940384 | AD205: 0.8588730097 | AE205: 0.868295025 | AF205: 0.8783571145 | AG205: 0.88793591
... 325 more rows

Sheet Project HCR 325F
C1: Platinum Cured Silicone ONLY!
AE3: =1/(D24+273.15) -> 0.002450079628 | AF3: =LN(1/G24) -> -5.697093487 | AG3: =LN(1/F24) -> -5.105945474 | AH3: =SLOPE(AF3:AF5,AE3:AE5) -> -12233.64757 | AI3: =SLOPE(AG3:AG5,AE3:AE5) -> -11363.868
B4: Imp | C4: Metric | AE4: =1/(D25+273.15) -> 0.002369387513 | AF4: =LN(1/G25) -> -4.779123493 | AG4: =LN(1/F25) -> -4.110873864 | AH4: =INTERCEPT(AF3:AF5,AE3:AE5) -> 24.25376623 | AI4: =INTERCEPT(AG3:AG5,AE3:AE5) -> 22.76189044
B5: =C5/25.4 -> 0.1141732283 | C5: 2.9 | D5: in, mm | E5: Thickness | AE5: =1/(D26+273.15) -> 0.002293841037 | AF5: =LN(1/G26) -> -3.784189634 | AG5: =LN(1/F26) -> -3.33220451
C6: =0.0006*C8 - 0.4448 -> 0.2752 | D6: W/m-K | E6: Thermal Conductivity, k
C7: 1450 | D7: J/kg - K | E7: Heat Capacity, cp | Z7: 55.71428571
C8: 1200 | D8: kg/m3 | E8: Density, p | Z8: 20
Z9: 55.71428571
C10: 15 | D10: # | E10: Number of nodes
B12: =(C12*9/5)+32 -> 325.04 | C12: 162.8 | D12: F, C | E12: Mold Temperature, TmL
B13: =(C13*9/5)+32 -> 325.04 | C13: 162.8 | D13: F, C | E13: Mold Temperature, TmR
B14: 69.8 | C14: 21 | D14: F, C | E14: Initial Rubber Temperature, Tr
C16: 80 | D16: sec | E16: Total T
C18: =8.3144621*-AH3 -> 101716.1991 | D18: J/mole | E18: Ea2 | F18: Activation Energy
C19: =POWER(2.71828,AH4) -> 3.414049032e+10 | D19: s-1 | E19: A2 | F19: Arrhenius Constant
C20: =8.3144621*-AI3 -> 94484.44979 | D20: J/mole | E20: Ea1 | F20: Activation Energy
C21: =POWER(2.71828,AI4) -> 7679921244 | D21: s-1 | E21: A1 | F21: Arrhenius Constant
B22: 3 Temp Rheology Study (ASTM D5289)
C23: Cure Set | D23: Temperature, C | F23: ts(1), sec | G23: t(90), sec
C24: Low | D24: 135 | F24: 165 | G24: 298
C25: Med | D25: 148.9 | F25: 61 | G25: 119
C26: High | D26: 162.8 | F26: 28 | G26: 44
D28: Temperature (time, x), C | S28: 90% SOC (time, x), %
C29: time, s | D29: 0.09666666667 | E29: 0.29 | F29: 0.4833333333 | G29: 0.6766666667 | H29: 0.87 | I29: 1.063333333 | J29: 1.256666667 | K29: 1.45 | L29: 1.643333333 | M29: 1.836666667 | N29: 2.03 | O29: 2.223333333 | P29: 2.416666667 | Q29: 2.61 | R29: 2.803333333 | S29: 0.09666666667 | T29: 0.29 | U29: 0.4833333333 | V29: 0.6766666667 | W29: 0.87 | X29: 1.063333333 | Y29: 1.256666667 | Z29: 1.45 | AA29: 1.643333333 | AB29: 1.836666667 | AC29: 2.03 | AD29: 2.223333333 | AE29: 2.416666667 | AF29: 2.61 | AG29: 2.803333333
C30: 0 | D30: 21 | E30: 21 | F30: 21 | G30: 21 | H30: 21 | I30: 21 | J30: 21 | K30: 21 | L30: 21 | M30: 21 | N30: 21 | O30: 21 | P30: 21 | Q30: 21 | R30: 21 | S30: 0 | T30: 0 | U30: 0 | V30: 0 | W30: 0 | X30: 0 | Y30: 0 | Z30: 0 | AA30: 0 | AB30: 0 | AC30: 0 | AD30: 0 | AE30: 0 | AF30: 0 | AG30: 0
C31: 0.16 | D31: 89.16231508 | E31: 42.565888 | F31: 27.823291 | G31: 23.15901547 | H31: 21.68370724 | I31: 21.21826675 | J31: 21.07521651 | K31: 21.04326459 | L31: 21.07521651 | M31: 21.21826675 | N31: 21.68370724 | O31: 23.15901547 | P31: 27.823291 | Q31: 42.565888 | R31: 89.16231508 | S31: 2.631855266e-05 | T31: 2.566025399e-07 | U31: 4.398553472e-08 | V31: 2.427187309e-08 | W31: 2.003233987e-08 | X31: 1.884757946e-08 | Y31: 1.849700814e-08 | Z31: 1.841955326e-08 | AA31: 1.849700814e-08 | AB31: 1.884757946e-08 | AC31: 2.003233987e-08 | AD31: 2.427187309e-08 | AE31: 4.398553472e-08 | AF31: 2.566025399e-07 | AG31: 2.631855266e-05
C32: 0.32 | D32: 116.0519091 | E32: 62.27292131 | F32: 37.6021479 | G32: 27.37520569 | H32: 23.37577459 | I32: 21.87560648 | J32: 21.34636003 | K32: 21.21760531 | L32: 21.34636003 | M32: 21.87560648 | N32: 23.37577459 | O32: 27.37520569 | P32: 37.6021479 | Q32: 62.27292131 | R32: 116.0519091 | S32: 0.0002562551658 | T32: 2.3845745e-06 | U32: 1.883587777e-07 | V32: 6.584882682e-08 | W32: 4.499453183e-08 | X32: 3.938866233e-08 | Y32: 3.766384193e-08 | Z32: 3.726549705e-08 | AA32: 3.766384193e-08 | AB32: 3.938866233e-08 | AC32: 4.499453183e-08 | AD32: 6.584882682e-08 | AE32: 1.883587777e-07 | AF32: 2.3845745e-06 | AG32: 0.0002562551658
C33: 0.48 | D33: 128.2131098 | E33: 77.00199435 | F33: 47.546412 | G33: 32.77897508 | H33: 25.99315951 | I33: 23.07334446 | J33: 21.92264471 | K33: 21.62314449 | L33: 21.92264471 | M33: 23.07334446 | N33: 25.99315951 | O33: 32.77897508 | P33: 47.546412 | Q33: 77.00199435 | R33: 128.2131098 | S33: 0.0008132696353 | T33: 1.123713409e-05 | U33: 6.37214935e-07 | V33: 1.469487284e-07 | W33: 7.990509274e-08 | X33: 6.339271728e-08 | Y33: 5.83314836e-08 | Z33: 5.713977456e-08 | AA33: 5.83314836e-08 | AB33: 6.339271728e-08 | AC33: 7.990509274e-08 | AD33: 1.469487284e-07 | AE33: 6.37214935e-07 | AF33: 1.123713409e-05 | AG33: 0.0008132696353
C34: 0.64 | D34: 134.6098464 | E34: 87.67781957 | F34: 56.51448835 | G34: 38.59742737 | H34: 29.27449385 | I34: 24.79824538 | J34: 22.86975663 | K34: 22.34019672 | L34: 22.86975663 | M34: 24.79824538 | N34: 29.27449385 | O34: 38.59742737 | P34: 56.51448835 | Q34: 87.67781957 | R34: 134.6098464 | S34: 0.001681603177 | T34: 3.43685485e-05 | U34: 1.814491598e-06 | V34: 3.092068852e-07 | W34: 1.326306588e-07 | X34: 9.336845017e-08 | Y34: 8.171029237e-08 | Z34: 7.896373498e-08 | AA34: 8.171029237e-08 | AB34: 9.336845017e-08 | AC34: 1.326306588e-07 | AD34: 3.092068852e-07 | AE34: 1.814491598e-06 | AF34: 3.43685485e-05 | AG34: 0.001681603177
C35: 0.8 | D35: 138.4780359 | E35: 95.54760528 | F35: 64.24121805 | G35: 44.3475737 | H35: 32.94716572 | I35: 26.97146668 | J35: 24.20571762 | K35: 23.41324572 | L35: 24.20571762 | M35: 26.97146668 | N35: 32.94716572 | O35: 44.3475737 | P35: 64.24121805 | Q35: 95.54760528 | R35: 138.4780359 | S35: 0.002809482678 | T35: 7.96814899e-05 | U35: 4.407643332e-06 | V35: 6.232648362e-07 | W35: 2.154033841e-07 | X35: 1.328826666e-07 | Y35: 1.094915572e-07 | Z35: 1.040471318e-07 | AA35: 1.094915572e-07 | AB35: 1.328826666e-07 | AC35: 2.154033841e-07 | AD35: 6.232648362e-07 | AE35: 4.407643332e-06 | AF35: 7.96814899e-05 | AG35: 0.002809482678
C36: 0.96 | D36: 141.0906233 | E36: 101.5307842 | F36: 70.80838154 | G36: 49.78598801 | H36: 36.79638799 | I36: 29.49227015 | J36: 25.91149753 | K36: 24.85024201 | L36: 25.91149753 | M36: 29.49227015 | N36: 36.79638799 | O36: 49.78598801 | P36: 70.80838154 | Q36: 101.5307842 | R36: 141.0906233 | S36: 0.004151180991 | T36: 0.000153815926 | U36: 9.341594083e-06 | V36: 1.197203009e-06 | W36: 3.466796288e-07 | X36: 1.870538088e-07 | Y36: 1.440417391e-07 | Z36: 1.342230829e-07 | AA36: 1.440417391e-07 | AB36: 1.870538088e-07 | AC36: 3.466796288e-07 | AD36: 1.197203009e-06 | AE36: 9.341594083e-06 | AF36: 0.000153815926 | AG36: 0.004151180991
C37: 1.12 | D37: 143.0020616 | E37: 106.2294693 | F37: 76.39705555 | G37: 54.81937599 | H37: 40.67624705 | I37: 32.26385228 | J37: 27.94521457 | K37: 26.63047251 | L37: 27.94521457 | M37: 32.26385228 | N37: 40.67624705 | O37: 54.81937599 | P37: 76.39705555 | Q37: 106.2294693 | R37: 143.0020616 | S37: 0.005672088796 | T37: 0.0002617555004 | U37: 1.771046898e-05 | V37: 2.182300702e-06 | W37: 5.532681166e-07 | X37: 2.632270476e-07 | Y37: 1.88705162e-07 | Z37: 1.720710146e-07 | AA37: 1.88705162e-07 | AB37: 2.632270476e-07 | AC37: 5.532681166e-07 | AD37: 2.182300702e-06 | AE37: 1.771046898e-05 | AF37: 0.0002617555004 | AG37: 0.005672088796
C38: 1.28 | D38: 144.4815503 | E38: 110.029925 | F38: 81.19175163 | G38: 59.43556965 | H38: 44.49772264 | I38: 35.20437467 | J38: 30.25431645 | K38: 28.71491022 | L38: 30.25431645 | M38: 35.20437467 | N38: 44.49772264 | O38: 59.43556965 | P38: 81.19175163 | Q38: 110.029925 | R38: 144.4815503 | S38: 0.007346263246 | T38: 0.0004070371839 | U38: 3.070520374e-05 | V38: 3.775989301e-06 | W38: 8.726863047e-07 | X38: 3.718571816e-07 | Y38: 2.482356797e-07 | Z38: 2.212477589e-07 | AA38: 2.482356797e-07 | AB38: 3.718571816e-07 | AC38: 8.726863047e-07 | AD38: 3.775989301e-06 | AE38: 3.070520374e-05 | AF38: 0.0004070371839 | AG38: 0.007346263246
C39: 1.44 | D39: 145.674026 | E39: 113.1834208 | F39: 85.35067696 | G39: 63.66086131 | H39: 48.212 | I39: 38.24930092 | J39: 32.784101 | K39: 31.05551176 | L39: 32.784101 | M39: 38.24930092 | N39: 48.212 | O39: 63.66086131 | P39: 85.35067696 | Q39: 113.1834208 | R39: 145.674026 | S39: 0.009153846627 | T39: 0.0005921065806 | U39: 4.95584423e-05 | V39: 6.222881753e-06 | W39: 1.355734217e-06 | X39: 5.276339402e-07 | Y39: 3.293860756e-07 | Z39: 2.869522109e-07 | AA39: 3.293860756e-07 | AB39: 5.276339402e-07 | AC39: 1.355734217e-06 | AD39: 6.222881753e-06 | AE39: 4.95584423e-05 | AF39: 0.0005921065806 | AG39: 0.009153846627
C40: 1.6 | D40: 146.6648083 | E40: 115.8578567 | F40: 89.00117273 | G40: 67.53644257 | H40: 51.79612805 | I40: 41.34973912 | J40: 35.48284311 | K40: 33.60211602 | L40: 35.48284311 | M40: 41.34973912 | N40: 51.79612805 | O40: 67.53644257 | P40: 89.00117273 | Q40: 115.8578567 | R40: 146.6648083 | S40: 0.01107928666 | T40: 0.0008186427465 | U40: 7.551128877e-05 | V40: 9.815012528e-06 | W40: 2.069297706e-06 | X40: 7.508851279e-07 | Y40: 4.416902431e-07 | Z40: 3.765553614e-07 | AA40: 4.416902431e-07 | AB40: 7.508851279e-07 | AC40: 2.069297706e-06 | AD40: 9.815012528e-06 | AE40: 7.551128877e-05 | AF40: 0.0008186427465 | AG40: 0.01107928666
C41: 1.76 | D41: 147.5078694 | E41: 118.1688493 | F41: 92.24327376 | G41: 71.10643381 | H41: 55.2426387 | I41: 44.4695018 | J41: 38.304401 | K41: 36.30687382 | L41: 38.304401 | M41: 44.4695018 | N41: 55.2426387 | O41: 71.10643381 | P41: 92.24327376 | Q41: 118.1688493 | R41: 147.5078694 | S41: 0.01311017273 | T41: 0.001087812078 | U41: 0.0001097981604 | V41: 1.48921557e-05 | W41: 3.099399407e-06 | X41: 1.06928924e-06 | Y41: 5.984762727e-07 | Z41: 5.004322309e-07 | AA41: 5.984762727e-07 | AB41: 1.06928924e-06 | AC41: 3.099399407e-06 | AD41: 1.48921557e-05 | AE41: 0.0001097981604 | AF41: 0.001087812078 | AG41: 0.01311017273
C42: 1.92 | D42: 148.2393158 | E42: 120.198328 | F42: 95.15497576 | G42: 74.41234419 | H42: 58.55269762 | I42: 47.58216362 | J42: 41.20917741 | K42: 39.12668246 | L42: 41.20917741 | M42: 47.58216362 | N42: 58.55269762 | O42: 74.41234419 | P42: 95.15497576 | Q42: 120.198328 | R42: 148.2393158 | S42: 0.01523645685 | T42: 0.001400454902 | U42: 0.0001536439088 | V42: 2.184267507e-05 | W42: 4.554506714e-06 | X42: 1.519922081e-06 | Y42: 8.181483469e-07 | Z42: 6.73034215e-07 | AA42: 8.181483469e-07 | AB42: 1.519922081e-06 | AC42: 4.554506714e-06 | AD42: 2.184267507e-05 | AE42: 0.0001536439088 | AF42: 0.001400454902 | AG42: 0.01523645685
C43: 2.08 | D43: 148.8843597 | E43: 122.0058393 | F43: 97.79709798 | G43: 77.49089536 | H43: 61.73185748 | I43: 50.66858814 | J43: 44.16411287 | K43: 42.02421616 | L43: 44.16411287 | M43: 50.66858814 | N43: 61.73185748 | O43: 77.49089536 | P43: 97.79709798 | Q43: 122.0058393 | R43: 148.8843597 | S43: 0.01744991056 | T43: 0.001757218035 | U43: 0.0002082680334 | V43: 3.110501726e-05 | W43: 6.569088628e-06 | X43: 2.151652298e-06 | Y43: 1.125771907e-06 | Z43: 9.142392713e-07 | AA43: 1.125771907e-06 | AB43: 2.151652298e-06 | AC43: 6.569088628e-06 | AD43: 3.110501726e-05 | AE43: 0.0002082680334 | AF43: 0.001757218035 | AG43: 0.01744991056
C44: 2.24 | D44: 149.461195 | E44: 123.6355978 | F44: 100.2172305 | G44: 80.37351268 | H44: 64.78755612 | I44: 53.71501005 | J44: 47.14217231 | K44: 44.96806832 | L44: 47.14217231 | M44: 53.71501005 | N44: 64.78755612 | O44: 80.37351268 | P44: 100.2172305 | Q44: 123.6355978 | R44: 149.461195 | S44: 0.01974373122 | T44: 0.002158646279 | U44: 0.0002748921926 | V44: 4.316974768e-05 | W44: 9.307393612e-06 | X44: 3.027889224e-06 | Y44: 1.55499011e-06 | Z44: 1.251013205e-06 | AA44: 1.55499011e-06 | AB44: 3.027889224e-06 | AC44: 9.307393612e-06 | AD44: 4.316974768e-05 | AE44: 0.0002748921926 | AF44: 0.002158646279 | AG44: 0.01974373122
C45: 2.4 | D45: 149.983288 | E45: 125.1210198 | F45: 102.4527897 | G45: 83.08658569 | H45: 67.727718 | I45: 56.71160758 | J45: 50.12161255 | K45: 47.93239076 | L45: 50.12161255 | M45: 56.71160758 | N45: 67.727718 | O45: 83.08658569 | P45: 102.4527897 | Q45: 125.1210198 | R45: 149.983288 | S45: 0.0221122472 | T45: 0.002605243378 | U45: 0.0003547485289 | V45: 5.858193115e-05 | W45: 1.296740269e-05 | X45: 4.229673726e-06 | Y45: 2.150290509e-06 | Z45: 1.719408187e-06 | AA45: 2.150290509e-06 | AB45: 4.229673726e-06 | AC45: 1.296740269e-05 | AD45: 5.858193115e-05 | AE45: 0.0003547485289 | AF45: 0.002605243378 | AG45: 0.0221122472
C46: 2.56 | D46: 150.4608046 | E46: 126.4877282 | F46: 104.5333444 | G46: 85.65203776 | H46: 70.56002434 | I46: 59.6514605 | J46: 53.08519759 | K46: 50.89628905 | L46: 53.08519759 | M46: 59.6514605 | N46: 70.56002434 | O46: 85.65203776 | P46: 104.5333444 | Q46: 126.4877282 | R46: 150.4608046 | S46: 0.02455069143 | T46: 0.00309751061 | U46: 0.000449087323 | V46: 7.79436343e-05 | W46: 1.778489758e-05 | X46: 5.85908952e-06 | Y46: 2.969629646e-06 | Z46: 2.36691497e-06 | AA46: 2.969629646e-06 | AB46: 5.85908952e-06 | AC46: 1.778489758e-05 | AD46: 7.79436343e-05 | AE46: 0.000449087323 | AF46: 0.00309751061 | AG46: 0.02455069143
C47: 2.72 | D47: 150.9015394 | E47: 127.7556042 | F47: 106.4823815 | G47: 88.08797817 | H47: 73.29157326 | I47: 62.52979449 | J47: 56.01945027 | K47: 53.84313517 | L47: 56.01945027 | M47: 62.52979449 | N47: 73.29157326 | O47: 88.08797817 | P47: 106.4823815 | Q47: 127.7556042 | R47: 150.9015394 | S47: 0.02705502401 | T47: 0.00363596924 | U47: 0.0005591831957 | V47: 0.0001019163421 | W47: 2.403757311e-05 | X47: 8.042959366e-06 | Y47: 4.087410542e-06 | Z47: 3.255173568e-06 | AA47: 4.087410542e-06 | AB47: 8.042959366e-06 | AC47: 2.403757311e-05 | AD47: 0.0001019163421 | AE47: 0.0005591831957 | AF47: 0.00363596924 | AG47: 0.02705502401
C48: 2.88 | D48: 151.3115435 | E48: 128.940226 | F48: 108.3186506 | G48: 90.40933095 | H48: 75.92875844 | I48: 65.34343236 | J48: 58.91398165 | K48: 56.75988981 | L48: 58.91398165 | M48: 65.34343236 | N48: 75.92875844 | O48: 90.40933095 | P48: 108.3186506 | Q48: 128.940226 | R48: 151.3115435 | S48: 0.02962179151 | T48: 0.004221171518 | U48: 0.0006863395268 | V48: 0.0001312231123 | W48: 3.204911603e-05 | X48: 1.093677831e-05 | Y48: 5.597794636e-06 | Z48: 4.463034177e-06 | AA48: 5.597794636e-06 | AB48: 1.093677831e-05 | AC48: 3.204911603e-05 | AD48: 0.0001312231123 | AE48: 0.0006863395268 | AF48: 0.004221171518 | AG48: 0.02962179151
C49: 3.04 | D49: 151.6955627 | E49: 130.0539023 | F49: 110.0571942 | G49: 92.62839677 | H49: 78.47726379 | I49: 68.090393 | J49: 61.76091219 | K49: 59.63648157 | L49: 61.76091219 | M49: 68.090393 | N49: 78.47726379 | O49: 92.62839677 | P49: 110.0571942 | Q49: 130.0539023 | R49: 151.6955627 | S49: 0.0322480141 | T49: 0.004853703754 | U49: 0.0008318910387 | V49: 0.000166650328 | W49: 4.219316895e-05 | X49: 1.472882523e-05 | Y49: 7.618316208e-06 | Z49: 6.089946549e-06 | AA49: 7.618316208e-06 | AB49: 1.472882523e-05 | AC49: 4.219316895e-05 | AD49: 0.000166650328 | AE49: 0.0008318910387 | AF49: 0.004853703754 | AG49: 0.0322480141
C50: 3.2 | D50: 152.0573507 | E50: 131.1064299 | F50: 111.7101417 | G50: 94.75533463 | H50: 80.94211474 | I50: 70.76959553 | J50: 64.55438437 | K50: 62.46526289 | L50: 64.55438437 | M50: 70.76959553 | N50: 80.94211474 | O50: 94.75533463 | P50: 111.7101417 | Q50: 131.1064299 | R50: 152.0573507 | S50: 0.03493109458 | T50: 0.00553418408 | U50: 0.0009972046496 | V50: 0.000209048943 | W50: 5.489709698e-05 | X50: 1.964438474e-05 | Y50: 1.029375456e-05 | Z50: 8.2596426e-06 | AA50: 1.029375456e-05 | AB50: 1.964438474e-05 | AC50: 5.489709698e-05 | AD50: 0.000209048943 | AE50: 0.0009972046496 | AF50: 0.00553418408 | AG50: 0.03493109458
C51: 3.36 | D51: 152.3998993 | E51: 132.1056584 | F51: 113.2873249 | G51: 96.798565 | H51: 83.32775243 | I51: 73.38063885 | J51: 67.29015894 | K51: 65.24054666 | L51: 67.29015894 | M51: 73.38063885 | N51: 83.32775243 | O51: 96.798565 | P51: 113.2873249 | Q51: 132.1056584 | R51: 152.3998993 | S51: 0.03766874473 | T51: 0.006263256819 | U51: 0.001183678781 | V51: 0.0002593351439 | W51: 7.064547676e-05 | X51: 2.595000468e-05 | Y51: 1.380020768e-05 | Z51: 1.112406448e-05 | AA51: 1.380020768e-05 | AB51: 2.595000468e-05 | AC51: 7.064547676e-05 | AD51: 0.0002593351439 | AE51: 0.001183678781 | AF51: 0.006263256819 | AG51: 0.03766874473
C52: 3.52 | D52: 152.7256095 | E52: 133.0579178 | F52: 114.796758 | G52: 98.76510188 | H52: 85.63811316 | I52: 75.92363581 | J52: 69.9652845 | K52: 67.95821936 | L52: 69.9652845 | M52: 75.92363581 | N52: 85.63811316 | O52: 98.76510188 | P52: 114.796758 | Q52: 133.0579178 | R52: 152.7256095 | S52: 0.04045892549 | T52: 0.007041584865 | U52: 0.001392741339 | V52: 0.0003184903819 | W52: 8.998323157e-05 | X52: 3.395770935e-05 | Y52: 1.834930124e-05 | Z52: 1.486747916e-05 | AA52: 1.834930124e-05 | AB52: 3.395770935e-05 | AC52: 8.998323157e-05 | AD52: 0.0003184903819 | AE52: 0.001392741339 | AF52: 0.007041584865 | AG52: 0.04045892549
C53: 3.68 | D53: 153.0364208 | E53: 133.9683452 | F53: 116.2450136 | G53: 100.6608236 | H53: 87.87670374 | I53: 78.39908735 | J53: 72.5778292 | K53: 70.61542235 | L53: 72.5778292 | M53: 78.39908735 | N53: 87.87670374 | O53: 100.6608236 | P53: 116.2450136 | Q53: 133.9683452 | R53: 153.0364208 | S53: 0.04329979855 | T53: 0.007869841037 | U53: 0.001625846586 | V53: 0.0003875607461 | W53: 0.0001135183426 | X53: 4.402908663e-05 | Y53: 2.419245928e-05 | Z53: 1.971071118e-05 | AA53: 2.419245928e-05 | AB53: 4.402908663e-05 | AC53: 0.0001135183426 | AD53: 0.0003875607461 | AE53: 0.001625846586 | AF53: 0.007869841037 | AG53: 0.04329979855
C54: 3.84 | D54: 153.3339103 | E54: 134.8411368 | F54: 117.6375176 | G54: 102.4906923 | H54: 90.0466689 | I54: 80.80778605 | J54: 75.12666439 | K54: 73.21029211 | L54: 75.12666439 | M54: 80.80778605 | N54: 90.0466689 | O54: 102.4906923 | P54: 117.6375176 | Q54: 134.8411368 | R54: 153.3339103 | S54: 0.04618968696 | T54: 0.00874869914 | U54: 0.001884471127 | V54: 0.0004676556725 | W54: 0.0001419240741 | X54: 5.657916715e-05 | Y54: 3.16251572e-05 | Z54: 2.591541828e-05 | AA54: 3.16251572e-05 | AB54: 5.657916715e-05 | AC54: 0.0001419240741 | AD54: 0.0004676556725 | AE54: 0.001884471127 | AF54: 0.00874869914 | AG54: 0.04618968696
C55: 4 | D55: 153.6193693 | E55: 135.6797443 | F55: 118.978782 | G55: 104.2589304 | H55: 92.15084945 | I55: 83.15074209 | J55: 77.61129091 | K55: 75.74174987 | L55: 77.61129091 | M55: 83.15074209 | N55: 92.15084945 | O55: 104.2589304 | P55: 118.978782 | Q55: 135.6797443 | R55: 153.6193693 | S55: 0.04912704327 | T55: 0.009678825167 | U55: 0.002170109197 | V55: 0.0005599459945 | W55: 0.0001759406592 | X55: 7.208001572e-05 | Y55: 4.099107511e-05 | Z55: 3.378832953e-05 | AA55: 4.099107511e-05 | AB55: 7.208001572e-05 | AC55: 0.0001759406592 | AD55: 0.0005599459945 | AE55: 0.002170109197 | AF55: 0.009678825167 | AG55: 0.04912704327
C56: 4.16 | D56: 153.8938627 | E56: 136.4870279 | F56: 120.2725888 | G56: 105.969163 | H56: 94.19183133 | I56: 85.42912579 | J56: 80.03170006 | K56: 78.20933239 | L56: 80.03170006 | M56: 85.42912579 | N56: 94.19183133 | O56: 105.969163 | P56: 120.2725888 | Q56: 136.4870279 | R56: 153.8938627 | S56: 0.05211042384 | T56: 0.01066086897 | U56: 0.002484267421 | V56: 0.0006656613598 | W56: 0.0002163764051 | X56: 9.106396024e-05 | Y56: 5.26860687e-05 | Z56: 4.368536344e-05 | AA56: 5.26860687e-05 | AB56: 9.106396024e-05 | AC56: 0.0002163764051 | AD56: 0.0006656613598 | AE56: 0.002484267421 | AF56: 0.01066086897 | AG56: 0.05211042384
C57: 4.32 | D57: 154.1582755 | E57: 137.2653765 | F57: 121.522135 | G57: 107.6245319 | H57: 96.17198645 | I57: 87.64422315 | J57: 82.38826276 | K57: 80.61305622 | L57: 82.38826276 | M57: 87.64422315 | N57: 96.17198645 | O57: 107.6245319 | P57: 121.522135 | Q57: 137.2653765 | R57: 154.1582755 | S57: 0.05513846804 | T57: 0.01169545659 | U57: 0.002828459221 | V57: 0.000786087044 | W57: 0.0002641081842 | X57: 0.0001141263891 | Y57: 6.71618769e-05 | Z57: 5.601554363e-05 | AA57: 6.71618769e-05 | AB57: 0.0001141263891 | AC57: 0.0002641081842 | AD57: 0.000786087044 | AE57: 0.002828459221 | AF57: 0.01169545659 | AG57: 0.05513846804
C58: 4.48 | D58: 154.413349 | E58: 138.0168027 | F58: 122.7301483 | G58: 109.2277862 | H58: 98.09350621 | I58: 89.79740119 | J58: 84.68164132 | K58: 82.95330938 | L58: 84.68164132 | M58: 89.79740119 | N58: 98.09350621 | O58: 109.2277862 | P58: 122.7301483 | Q58: 138.0168027 | R58: 154.413349 | S58: 0.05820988161 | T58: 0.01278318336 | U58: 0.003204198977 | V58: 0.0009225602051 | W58: 0.0003200812923 | X58: 0.0001419280567 | Y58: 8.49294893e-05 | Z58: 7.124463179e-05 | AA58: 8.49294893e-05 | AB58: 0.0001419280567 | AC58: 0.0003200812923 | AD58: 0.0009225602051 | AE58: 0.003204198977 | AF58: 0.01278318336 | AG58: 0.05820988161
C59: 4.64 | D59: 154.6597102 | E59: 138.7430175 | F59: 123.8989783 | G59: 110.781356 | H59: 99.95842911 | I59: 91.89008103 | J59: 86.9127194 | K59: 85.23076495 | L59: 86.9127194 | M59: 91.89008103 | N59: 99.95842911 | O59: 110.781356 | P59: 123.8989783 | Q59: 138.7430175 | R59: 154.6597102 | S59: 0.06132342331 | T59: 0.01392460778 | U59: 0.003612996085 | V59: 0.001076465627 | W59: 0.0003853086646 | X59: 0.0001751968446 | Y59: 0.0001065621024 | Z59: 8.989840237e-05 | AA59: 0.0001065621024 | AB59: 0.0001751968446 | AC59: 0.0003853086646 | AD59: 0.001076465627 | AE59: 0.003612996085 | AF59: 0.01392460778 | AG59: 0.06132342331
C60: 4.8 | D60: 154.8978937 | E60: 139.4454895 | F60: 125.0306693 | G60: 112.2874099 | H60: 101.7686631 | I60: 93.92371689 | J60: 89.08254644 | K60: 87.44631251 | L60: 89.08254644 | M60: 93.92371689 | N60: 101.7686631 | O60: 112.2874099 | P60: 125.0306693 | Q60: 139.4454895 | R60: 154.8978937 | S60: 0.06447789434 | T60: 0.01512024628 | U60: 0.004056348989 | V60: 0.001249231011 | W60: 0.0004608694511 | X60: 0.0002147289384 | Y60: 0.0001326976013 | Z60: 0.0001125654897 | AA60: 0.0001326976013 | AB60: 0.0002147289384 | AC60: 0.0004608694511 | AD60: 0.001249231011 | AE60: 0.004056348989 | AF60: 0.01512024628 | AG60: 0.06447789434
C61: 4.96 | D61: 155.1283605 | E61: 140.1254916 | F61: 126.1270179 | G61: 113.7479027 | H61: 103.5260038 | I61: 95.89977987 | J61: 91.1922938 | K61: 89.60100371 | L61: 91.1922938 | M61: 95.89977987 | N61: 103.5260038 | O61: 113.7479027 | P61: 126.1270179 | Q61: 140.1254916 | R61: 155.1283605 | S61: 0.06767212988 | T61: 0.01637056871 | U61: 0.004535739296 | V61: 0.001442321869 | W61: 0.000547906965 | X61: 0.0002613893881 | Y61: 0.000164040512 | Z61: 0.0001398997462 | AA61: 0.000164040512 | AB61: 0.0002613893881 | AC61: 0.000547906965 | AD61: 0.001442321869 | AE61: 0.004535739296 | AF61: 0.01637056871 | AG61: 0.06767212988
C62: 5.12 | D62: 155.3515115 | E62: 140.7841389 | F62: 127.1896192 | G62: 115.1646116 | H62: 105.2321497 | I62: 97.81974528 | J62: 93.24322004 | K62: 91.69600923 | L62: 93.24322004 | M62: 97.81974528 | N62: 105.2321497 | O62: 115.1646116 | P62: 127.1896192 | Q62: 140.7841389 | R62: 155.3515115 | S62: 0.07090499253 | T62: 0.01767599462 | U62: 0.005052626017 | V62: 0.001657236085 | W62: 0.0006476260246 | X62: 0.0003161120338 | Y62: 0.0002013633803 | Z62: 0.0001726220593 | AA62: 0.0002013633803 | AB62: 0.0003161120338 | AC62: 0.0006476260246 | AD62: 0.001657236085 | AE62: 0.005052626017 | AF62: 0.01767599462 | AG62: 0.07090499253
C63: 5.28 | D63: 155.5676993 | E63: 141.4224175 | F63: 128.2199033 | G63: 116.539167 | H63: 106.8887136 | I63: 99.68508293 | J63: 95.23664366 | K63: 93.73258477 | L63: 95.23664366 | M63: 99.68508293 | N63: 106.8887136 | O63: 116.539167 | P63: 128.2199033 | Q63: 141.4224175 | R63: 155.5676993 | S63: 0.07417536709 | T63: 0.01903689032 | U63: 0.005608440026 | V63: 0.001895498213 | W63: 0.0007612897217 | X63: 0.0003798987865 | Y63: 0.0002455075421 | Z63: 0.0002115215851 | AA63: 0.0002455075421 | AB63: 0.0003798987865 | AC63: 0.0007612897217 | AD63: 0.001895498213 | AE63: 0.005608440026 | AF63: 0.01903689032 | AG63: 0.07417536709
C64: 5.44 | D64: 155.7772372 | E64: 142.0412089 | F64: 129.2191645 | G64: 117.8730758 | H64: 108.4972332 | I64: 101.4972497 | J64: 97.17392167 | K64: 95.7120443 | L64: 97.17392167 | M64: 101.4972497 | N64: 108.4972332 | O64: 117.8730758 | P64: 129.2191645 | Q64: 142.0412089 | R64: 155.7772372 | S64: 0.07748215666 | T64: 0.02045356643 | U64: 0.006204578758 | V64: 0.00215865356 | W64: 0.0008902156529 | X64: 0.0004538182682 | Y64: 0.0002973832644 | Z64: 0.0002574563678 | AA64: 0.0002973832644 | AB64: 0.0004538182682 | AC64: 0.0008902156529 | AD64: 0.00215865356 | AE64: 0.006204578758 | AF64: 0.02045356643 | AG64: 0.07748215666
C65: 5.6 | D65: 155.980406 | E65: 142.6413081 | F65: 130.1885849 | G65: 119.1677411 | H65: 110.0591789 | I65: 103.2576838 | J65: 99.05643275 | K65: 97.63573901 | L65: 99.05643275 | M65: 103.2576838 | N65: 110.0591789 | O65: 119.1677411 | P65: 130.1885849 | Q65: 142.6413081 | R65: 155.980406 | S65: 0.08082427952 | T65: 0.02192627625 | U65: 0.006842401201 | V65: 0.002448262138 | W65: 0.001035771661 | X65: 0.0005390038218 | Y65: 0.0003579692414 | Z65: 0.0003113533243 | AA65: 0.0003579692414 | AB65: 0.0005390038218 | AC65: 0.001035771661 | AD65: 0.002448262138 | AE65: 0.006842401201 | AF65: 0.02192627625 | AG65: 0.08082427952
C66: 5.76 | D66: 156.1774603 | E66: 143.2234391 | F66: 131.1292528 | G66: 120.4244773 | H66: 111.5759603 | I66: 104.9678008 | J66: 100.8855642 | K66: 99.50504088 | L66: 100.8855642 | M66: 104.9678008 | N66: 111.5759603 | O66: 120.4244773 | P66: 131.1292528 | Q66: 143.2234391 | R66: 156.1774603 | S66: 0.08420066688 | T66: 0.02345521449 | U66: 0.007523223211 | V66: 0.002765892529 | W66: 0.001199371137 | X66: 0.0006366509141 | Y66: 0.0004283114487 | Z66: 0.0003742075839 | AA66: 0.0004283114487 | AB66: 0.0006366509141 | AC66: 0.001199371137 | AD66: 0.002765892529 | AE66: 0.007523223211 | AF66: 0.02345521449 | AG66: 0.08420066688
C67: 5.92 | D67: 156.3686322 | E67: 143.7882667 | F67: 132.042178 | G67: 121.6445228 | H67: 113.0489321 | I67: 106.6289898 | J67: 102.6627019 | K67: 101.3213298 | L67: 102.6627019 | M67: 106.6289898 | N67: 113.0489321 | O67: 121.6445228 | P67: 132.042178 | Q67: 143.7882667 | R67: 156.3686322 | S67: 0.08761026122 | T67: 0.02504051659 | U67: 0.008248313167 | V67: 0.00311311573 | W67: 0.00138246793 | X67: 0.0007480139614 | Y67: 0.0005095213613 | Z67: 0.0004470811866 | AA67: 0.0005095213613 | AB67: 0.0007480139614 | AC67: 0.00138246793 | AD67: 0.00311311573 | AE67: 0.008248313167 | AF67: 0.02504051659 | AG67: 0.08761026122
C68: 6.08 | D68: 156.554136 | E68: 144.336406 | F68: 132.9283035 | G68: 122.8290498 | H68: 114.4793982 | I68: 108.2426122 | J68: 104.3892222 | K68: 103.0859838 | L68: 104.3892222 | M68: 108.2426122 | N68: 114.4793982 | O68: 122.8290498 | P68: 132.9283035 | Q68: 144.336406 | R68: 156.554136 | S68: 0.0910520151 | T68: 0.02668225848 | U68: 0.009018887998 | V68: 0.00349149903 | W68: 0.00158655094 | X68: 0.0008744026156 | Y68: 0.0006027735565 | Z68: 0.0005311011495 | AA68: 0.0006027735565 | AB68: 0.0008744026156 | AC68: 0.00158655094 | AD68: 0.00349149903 | AE68: 0.009018887998 | AF68: 0.02668225848 | AG68: 0.0910520151
C69: 6.24 | D69: 156.7341704 | E69: 144.8684303 | F69: 133.788515 | G69: 123.9791727 | H69: 115.8686159 | I69: 109.809999 | J69: 106.0664861 | K69: 104.8003709 | L69: 106.0664861 | M69: 109.809999 | N69: 115.8686159 | O69: 123.9791727 | P69: 133.788515 | Q69: 144.8684303 | R69: 156.7341704 | S69: 0.09452489032 | T69: 0.02838045667 | U69: 0.009836109573 | V69: 0.003902599976 | W69: 0.001813138429 | X69: 0.001017177556 | Y69: 0.0007093027286 | Z69: 0.0006274569231 | AA69: 0.0007093027286 | AB69: 0.001017177556 | AC69: 0.001813138429 | AD69: 0.003902599976 | AE69: 0.009836109573 | AF69: 0.02838045667 | AG69: 0.09452489032
C70: 6.4 | D70: 156.9089208 | E70: 145.384877 | F70: 134.6236494 | G70: 125.0959546 | H70: 117.2177991 | I70: 111.3324507 | J70: 107.6958349 | K70: 106.465844 | L70: 107.6958349 | M70: 111.3324507 | N70: 117.2177991 | O70: 125.0959546 | P70: 134.6236494 | Q70: 145.384877 | R70: 156.9089208 | S70: 0.09802785744 | T70: 0.03013506875 | U70: 0.01070108147 | V70: 0.004347960467 | W70: 0.002063772133 | X70: 0.001177745837 | Y70: 0.0008304001506 | Z70: 0.0007373972688 | AA70: 0.0008304001506 | AB70: 0.001177745837 | AC70: 0.002063772133 | AD70: 0.004347960467 | AE70: 0.01070108147 | AF70: 0.03013506875 | AG70: 0.09802785744
C71: 6.56 | D71: 157.0785618 | E71: 145.8862531 | F71: 135.4345004 | G71: 126.1804128 | H71: 118.528121 | I71: 112.811236 | J71: 109.2785865 | K71: 108.0837356 | L71: 109.2785865 | M71: 112.811236 | N71: 118.528121 | O71: 126.1804128 | P71: 135.4345004 | Q71: 145.8862531 | R71: 157.0785618 | S71: 0.1015598955 | T71: 0.03194599414 | U71: 0.01161484615 | V71: 0.004829101026 | W71: 0.002340011214 | X71: 0.001357555842 | Y71: 0.0009674096267 | Z71: 0.0008622265919 | AA71: 0.0009674096267 | AB71: 0.001357555842 | AC71: 0.002340011214 | AD71: 0.004829101026 | AE71: 0.01161484615 | AF71: 0.03194599414 | AG71: 0.1015598955
C72: 6.72 | D72: 157.2432581 | E72: 146.3730386 | F72: 136.221824 | G72: 127.2335233 | H72: 119.8007162 | I72: 114.247592 | J72: 110.8160331 | K72: 109.6553552 | L72: 110.8160331 | M72: 114.247592 | N72: 119.8007162 | O72: 127.2335233 | P72: 136.221824 | Q72: 146.3730386 | R72: 157.2432581 | S72: 0.1051199919 | T72: 0.0338130751 | U72: 0.01257838247 | V72: 0.00534751529 | W72: 0.002643426129 | X72: 0.001558091904 | Y72: 0.001121722982 | Z72: 0.001003300777 | AA72: 0.001121722982 | AB72: 0.001558091904 | AC72: 0.002643426129 | AD72: 0.00534751529 | AE72: 0.01257838247 | AF72: 0.0338130751 | AG72: 0.1051199919
C73: 6.88 | D73: 157.4031661 | E73: 146.84569 | F73: 136.9863423 | G73: 128.2562241 | H73: 121.0366832 | I73: 115.6427238 | J73: 112.3094394 | K73: 111.1819864 | L73: 112.3094394 | M73: 115.6427238 | N73: 121.0366832 | O73: 128.2562241 | P73: 136.9863423 | Q73: 146.84569 | R73: 157.4031661 | S73: 0.1087071426 | T73: 0.03573609806 | U73: 0.0135926036 | V73: 0.005904664737 | W73: 0.002975592464 | X73: 0.001780868654 | Y73: 0.001294775143 | Z73: 0.001162022574 | AA73: 0.001294775143 | AB73: 0.001780868654 | AC73: 0.002975592464 | AD73: 0.005904664737 | AE73: 0.0135926036 | AF73: 0.03573609806 | AG73: 0.1087071426
C74: 7.04 | D74: 157.5584348 | E74: 147.3046433 | F74: 137.7287475 | G74: 129.249419 | H74: 122.2370861 | I74: 116.9978047 | J74: 113.7600415 | K74: 112.6648856 | L74: 113.7600415 | M74: 116.9978047 | N74: 122.2370861 | O74: 129.249419 | P74: 137.7287475 | Q74: 147.3046433 | R74: 157.5584348 | S74: 0.1123203518 | T74: 0.03771479497 | U74: 0.01465835529 | V74: 0.006501973702 | W74: 0.003338084776 | X74: 0.002027425144 | Y74: 0.001488038863 | Z74: 0.001339836586 | AA74: 0.001488038863 | AB74: 0.002027425144 | AC74: 0.003338084776 | AD74: 0.006501973702 | AE74: 0.01465835529 | AF74: 0.03771479497 | AG74: 0.1123203518
C75: 7.2 | D75: 157.7092063 | E75: 147.7503157 | F75: 138.4497042 | G75: 130.2139795 | H75: 123.4029559 | I75: 118.3139768 | J75: 115.1690458 | K75: 114.1052804 | L75: 115.1690458 | M75: 118.3139768 | N75: 123.4029559 | O75: 130.2139795 | P75: 138.4497042 | Q75: 147.7503157 | R75: 157.7092063 | S75: 0.1159586329 | T75: 0.039748845 | U75: 0.01577641449 | V75: 0.007140824689 | W75: 0.003732470522 | X75: 0.002299318827 | Y75: 0.001703019157 | Z75: 0.001538223919 | AA75: 0.001703019157 | AB75: 0.002299318827 | AC75: 0.003732470522 | AD75: 0.007140824689 | AE75: 0.01577641449 | AF75: 0.039748845 | AG75: 0.1159586329
C76: 7.36 | D76: 157.8556173 | E76: 148.1831076 | F76: 139.1498518 | G76: 131.1507471 | H76: 124.5352922 | I76: 119.5923512 | J76: 116.5376292 | K76: 115.5043692 | L76: 116.5376292 | M76: 119.5923512 | N76: 124.5352922 | O76: 131.1507471 | P76: 139.1498518 | Q76: 148.1831076 | R76: 157.8556173 | S76: 0.1196210082 | T76: 0.04183787622 | U76: 0.01694748835 | V76: 0.007822554 | W76: 0.004160304087 | X76: 0.00259811942 | Y76: 0.001941247492 | Z76: 0.001758696552 | AA76: 0.001941247492 | AB76: 0.00259811942 | AC76: 0.004160304087 | AD76: 0.007822554 | AE76: 0.01694748835 | AF76: 0.04183787622 | AG76: 0.1196210082
C77: 7.52 | D77: 157.9977985 | E77: 148.603404 | F77: 139.8298069 | G77: 132.0605355 | H77: 125.6350644 | I77: 120.8340084 | J77: 117.8669385 | K77: 116.8633208 | L77: 117.8669385 | M77: 120.8340084 | N77: 125.6350644 | O77: 132.0605355 | P77: 139.8298069 | Q77: 148.603404 | R77: 157.9977985 | S77: 0.1233065092 | T77: 0.04398146749 | U77: 0.01817221346 | V77: 0.008548447709 | W77: 0.00462312099 | X77: 0.002925402745 | Y77: 0.002204275806 | Z77: 0.002002791479 | AA77: 0.002204275806 | AB77: 0.002925402745 | AC77: 0.00462312099 | AD77: 0.008548447709 | AE77: 0.01817221346 | AF77: 0.04398146749 | AG77: 0.1233065092
C78: 7.68 | D78: 158.1358762 | E78: 149.0115758 | F78: 140.4901644 | G78: 132.9441319 | H78: 126.7032128 | I78: 122.0399991 | J78: 119.1580905 | K78: 118.183274 | L78: 119.1580905 | M78: 122.0399991 | N78: 126.7032128 | O78: 132.9441319 | P78: 140.4901644 | Q78: 149.0115758 | R78: 158.1358762 | S78: 0.1270141773 | T78: 0.04617915043 | U78: 0.0194511555 | V78: 0.009319737975 | W78: 0.00512243227 | X78: 0.003282744565 | Y78: 0.002493670413 | Z78: 0.002272064699 | AA78: 0.002493670413 | AB78: 0.003282744565 | AC78: 0.00512243227 | AD78: 0.009319737975 | AE78: 0.0194511555 | AF78: 0.04617915043 | AG78: 0.1270141773
C79: 7.84 | D79: 158.2699718 | E79: 149.4079809 | F79: 141.131499 | G79: 133.8022983 | H79: 127.7406499 | I79: 123.2113448 | J79: 120.4121724 | K79: 119.465338 | L79: 120.4121724 | M79: 123.2113448 | N79: 127.7406499 | O79: 133.8022983 | P79: 141.131499 | Q79: 149.4079809 | R79: 158.2699718 | S79: 0.1307430641 | T79: 0.04843041139 | U79: 0.0207848091 | V79: 0.01013759972 | W79: 0.005659719125 | X79: 0.00367171449 | Y79: 0.002811005833 | Z79: 0.002568085091 | AA79: 0.002811005833 | AB79: 0.00367171449 | AC79: 0.005659719125 | AD79: 0.01013759972 | AE79: 0.0207848091 | AF79: 0.04843041139 | AG79: 0.1307430641
C80: 8 | D80: 158.4002026 | E80: 149.7929649 | F80: 141.7543666 | G80: 134.6357732 | H80: 128.7482612 | I80: 124.3490383 | J80: 121.6302422 | K80: 120.7105925 | L80: 121.6302422 | M80: 124.3490383 | N80: 128.7482612 | O80: 134.6357732 | P80: 141.7543666 | Q80: 149.7929649 | R80: 158.4002026 | S80: 0.1344922311 | T80: 0.05073469358 | U80: 0.02217359803 | V80: 0.01100314765 | W80: 0.0062364278 | X80: 0.004093869998 | Y80: 0.003157858632 | Z80: 0.002892428248 | AA80: 0.003157858632 | AB80: 0.004093869998 | AC80: 0.0062364278 | AD80: 0.01100314765 | AE80: 0.02217359803 | AF80: 0.05073469358 | AG80: 0.1344922311
C81: 8.16 | D81: 158.526682 | E81: 150.1668619 | F81: 142.3593054 | G81: 135.4452719 | H81: 129.726906 | I81: 125.4540445 | J81: 122.8133289 | K81: 121.9200881 | L81: 122.8133289 | M81: 125.4540445 | N81: 129.726906 | O81: 135.4452719 | P81: 142.3593054 | Q81: 150.1668619 | R81: 158.526682 | S81: 0.138260751 | T81: 0.05309139912 | U81: 0.02361787562 | V81: 0.01191743367 | W81: 0.006853964769 | X81: 0.004550750599 | Y81: 0.003535801296 | Z81: 0.003246670315 | AA81: 0.003535801296 | AB81: 0.004550750599 | AC81: 0.006853964769 | AD81: 0.01191743367 | AE81: 0.02361787562 | AF81: 0.05309139912 | AG81: 0.138260751
C82: 8.32 | D82: 158.6495195 | E82: 150.5299954 | F82: 142.9468364 | G82: 136.2314882 | H82: 130.6774186 | I82: 126.5273008 | J82: 123.9624332 | K82: 123.0948465 | L82: 123.9624332 | M82: 126.5273008 | N82: 130.6774186 | O82: 136.2314882 | P82: 142.9468364 | Q82: 150.5299954 | R82: 158.6495195 | S82: 0.1420477073 | T82: 0.05549989123 | U82: 0.02511792543 | V82: 0.01288144459 | W82: 0.007513692238 | X82: 0.005043872202 | Y82: 0.003946396208 | Z82: 0.00363238189 | AA82: 0.003946396208 | AB82: 0.005043872202 | AC82: 0.007513692238 | AD82: 0.01288144459 | AE82: 0.02511792543 | AF82: 0.05549989123 | AG82: 0.1420477073
C83: 8.48 | D83: 158.7688213 | E83: 150.8826783 | F83: 143.5174644 | G83: 136.9950951 | H83: 131.600609 | I83: 127.5697185 | J83: 125.0785278 | K83: 124.2358615 | L83: 125.0785278 | M83: 127.5697185 | N83: 131.600609 | O83: 136.9950951 | P83: 143.5174644 | Q83: 150.8826783 | R83: 158.7688213 | S83: 0.145852195 | T83: 0.05795949636 | U83: 0.02667396215 | V83: 0.01389610029 | W83: 0.008216923957 | X83: 0.005574721704 | Y83: 0.004391189758 | Z83: 0.004051122022 | AA83: 0.004391189758 | AB83: 0.005574721704 | AC83: 0.008216923957 | AD83: 0.01389610029 | AE83: 0.02667396215 | AF83: 0.05795949636 | AG83: 0.145852195
C84: 8.64 | D84: 158.8846901 | E84: 151.2252139 | F84: 144.0716791 | G84: 137.7367452 | H84: 132.4972635 | I84: 128.5821826 | J84: 126.1625586 | K84: 125.3440991 | L84: 126.1625586 | M84: 128.5821826 | N84: 132.4972635 | O84: 137.7367452 | P84: 144.0716791 | Q84: 151.2252139 | R84: 158.8846901 | S84: 0.1496733204 | T84: 0.06046950633 | U84: 0.02828613266 | V84: 0.01496225208 | W84: 0.008964921391 | X84: 0.006144751843 | Y84: 0.004871706635 | Z84: 0.004504432366 | AA84: 0.004871706635 | AB84: 0.006144751843 | AC84: 0.008964921391 | AD84: 0.01496225208 | AE84: 0.02828613266 | AF84: 0.06046950633 | AG84: 0.1496733204
C85: 8.8 | D85: 158.9972255 | E85: 151.5578964 | F85: 144.6099549 | G85: 138.457072 | H85: 133.3681456 | I85: 129.565553 | J85: 127.2154446 | K85: 126.4204984 | L85: 127.2154446 | M85: 129.565553 | N85: 133.3681456 | O85: 138.457072 | P85: 144.6099549 | Q85: 151.5578964 | R85: 158.9972255 | S85: 0.1535102022 | T85: 0.06302918044 | U85: 0.02995451732 | V85: 0.01608068156 | W85: 0.009758890232 | X85: 0.006755376336 | Y85: 0.005389444341 | Z85: 0.004993831526 | AA85: 0.005389444341 | AB85: 0.006755376336 | AC85: 0.009758890232 | AD85: 0.01608068156 | AE85: 0.02995451732 | AF85: 0.06302918044 | AG85: 0.1535102022
C86: 8.96 | D86: 159.1065239 | E86: 151.8810106 | F86: 145.1327522 | G86: 139.1566901 | H86: 134.2139967 | I86: 130.5206651 | J86: 128.2380791 | K86: 127.4659722 | L86: 128.2380791 | M86: 130.5206651 | N86: 134.2139967 | O86: 139.1566901 | P86: 145.1327522 | Q86: 151.8810106 | R86: 159.1065239 | S86: 0.1573619709 | T86: 0.06563774765 | U86: 0.03167913142 | V86: 0.01725209967 | W86: 0.01059997727 | X86: 0.007407965322 | Y86: 0.005945867948 | Z86: 0.005520809623 | AA86: 0.005945867948 | AB86: 0.007407965322 | AC86: 0.01059997727 | AD86: 0.01725209967 | AE86: 0.03167913142 | AF86: 0.06563774765 | AG86: 0.1573619709
C87: 9.12 | D87: 159.212679 | E87: 152.1948331 | F87: 145.6405178 | G87: 139.8361961 | H87: 135.0355367 | I87: 131.4483305 | J87: 129.2313298 | K87: 128.4814072 | L87: 129.2313298 | M87: 131.4483305 | N87: 135.0355367 | O87: 139.8361961 | P87: 145.6405178 | Q87: 152.1948331 | R87: 159.212679 | S87: 0.1612277697 | T87: 0.06829440863 | U87: 0.03345992674 | V87: 0.01847714612 | W87: 0.01148926761 | X87: 0.008103841132 | Y87: 0.006542405135 | Z87: 0.006086823118 | AA87: 0.006542405135 | AB87: 0.008103841132 | AC87: 0.01148926761 | AD87: 0.01847714612 | AE87: 0.03345992674 | AF87: 0.06829440863 | AG87: 0.1612277697
C88: 9.28 | D88: 159.3157816 | E88: 152.4996321 | F88: 146.133685 | G88: 140.4961692 | H88: 135.8334648 | I88: 132.3493376 | J88: 130.1960402 | K88: 129.4676654 | L88: 130.1960402 | M88: 132.3493376 | N88: 135.8334648 | O88: 140.4961692 | P88: 146.133685 | Q88: 152.4996321 | R88: 159.3157816 | S88: 0.1651067542 | T88: 0.07099833782 | U88: 0.03529679329 | V88: 0.0197563891 | W88: 0.01242778229 | X88: 0.008844274398 | Y88: 0.007180441525 | Z88: 0.006693289921 | AA88: 0.007180441525 | AB88: 0.008844274398 | AC88: 0.01242778229 | AD88: 0.0197563891 | AE88: 0.03529679329 | AF88: 0.07099833782 | AG88: 0.1651067542
C89: 9.44 | D89: 159.4159197 | E89: 152.7956678 | F89: 146.6126747 | G89: 141.1371718 | H89: 136.6084599 | I89: 133.2244521 | J89: 131.1330295 | K89: 130.425584 | L89: 131.1330295 | M89: 133.2244521 | N89: 136.6084599 | O89: 141.1371718 | P89: 146.6126747 | Q89: 152.7956678 | R89: 159.4159197 | S89: 0.1689980928 | T89: 0.07374868549 | U89: 0.03718956113 | V89: 0.02109032525 | W89: 0.01341647616 | X89: 0.009630480514 | Y89: 0.007861316344 | Z89: 0.007341584803 | AA89: 0.007861316344 | AB89: 0.009630480514 | AC89: 0.01341647616 | AD89: 0.02109032525 | AE89: 0.03718956113 | AF89: 0.07374868549 | AG89: 0.1689980928
C90: 9.6 | D90: 159.5131789 | E90: 153.083193 | F90: 147.0778951 | G90: 141.7597498 | H90: 137.3611813 | I90: 134.0744178 | J90: 132.0430935 | K90: 131.3559767 | L90: 132.0430935 | M90: 134.0744178 | N90: 137.3611813 | O90: 141.7597498 | P90: 147.0778951 | Q90: 153.083193 | R90: 159.5131789 | S90: 0.172900967 | T90: 0.07654457967 | U90: 0.03913800232 | V90: 0.02247937992 | W90: 0.01445623625 | X90: 0.01046361645 | Y90: 0.008586318412 | Z90: 0.008033035136 | AA90: 0.008586318412 | AB90: 0.01046361645 | AC90: 0.01445623625 | AD90: 0.02247937992 | AE90: 0.03913800232 | AF90: 0.07654457967 | AG90: 0.172900967
C91: 9.76 | D91: 159.607642 | E91: 153.3624526 | F91: 147.5297428 | G91: 142.3644332 | H91: 138.0922694 | I91: 134.8999572 | J91: 132.9270056 | K91: 132.2596337 | L91: 132.9270056 | M91: 134.8999572 | N91: 138.0922694 | O91: 142.3644332 | P91: 147.5297428 | Q91: 153.3624526 | R91: 159.607642 | S91: 0.1768145713 | T91: 0.07938512812 | U91: 0.04114183289 | V91: 0.02392390768 | W91: 0.01554788029 | X91: 0.01134477791 | Y91: 0.00935668248 | Z91: 0.008768916965 | AA91: 0.00935668248 | AB91: 0.01134477791 | AC91: 0.01554788029 | AD91: 0.02392390768 | AE91: 0.04114183289 | AF91: 0.07938512812 | AG91: 0.1768145713
C92: 9.92 | D92: 159.6993897 | E92: 153.6336848 | F92: 147.9686026 | G92: 142.9517368 | H92: 138.8023462 | I92: 135.7017723 | J92: 133.7855168 | K92: 133.1373228 | L92: 133.7855168 | M92: 135.7017723 | N92: 138.8023462 | O92: 142.9517368 | P92: 147.9686026 | Q92: 153.6336848 | R92: 159.6993897 | S92: 0.1807381137 | T92: 0.08226942019 | U92: 0.04320071501 | V92: 0.02542419301 | W92: 0.01669215576 | X92: 0.01227499689 | Y92: 0.01017358593 | Z92: 0.009550451432 | AA92: 0.01017358593 | AB92: 0.01227499689 | AC92: 0.01669215576 | AD92: 0.02542419301 | AE92: 0.04320071501 | AF92: 0.08226942019 | AG92: 0.1807381137
C93: 10.08 | D93: 159.7885001 | E93: 153.8971206 | F93: 148.3948482 | G93: 143.5221605 | H93: 139.4920155 | I93: 136.4805445 | J93: 134.6193568 | K93: 133.9897898 | L93: 134.6193568 | M93: 136.4805445 | N93: 139.4920155 | O93: 143.5221605 | P93: 148.3948482 | Q93: 153.8971206 | R93: 159.7885001 | S93: 0.1846708152 | T93: 0.08519652869 | U93: 0.04531425904 | V93: 0.02698045128 | W93: 0.01788973909 | X93: 0.01325523951 | Y93: 0.01103814579 | Z93: 0.01037880156 | AA93: 0.01103814579 | AB93: 0.01325523951 | AC93: 0.01788973909 | AD93: 0.02698045128 | AE93: 0.04531425904 | AF93: 0.08519652869 | AG93: 0.1846708152
C94: 10.24 | D94: 159.8750491 | E94: 154.1529844 | F94: 148.8088425 | G94: 144.0761897 | H94: 140.1618641 | I94: 137.2369362 | J94: 135.4292342 | K94: 134.8177593 | L94: 135.4292342 | M94: 137.2369362 | N94: 140.1618641 | O94: 144.0761897 | P94: 148.8088425 | Q94: 154.1529844 | R94: 159.8750491 | S94: 0.1886119105 | T94: 0.0881655116 | U94: 0.04748202581 | V94: 0.02859282983 | W94: 0.01914123524 | X94: 0.0142864043 | Y94: 0.01195141621 | Z94: 0.01125506936 | AA94: 0.01195141621 | AB94: 0.0142864043 | AC94: 0.01914123524 | AD94: 0.02859282983 | AE94: 0.04748202581 | AF94: 0.0881655116 | AG94: 0.1886119105
C95: 10.4 | D95: 159.9591105 | E95: 154.401494 | F95: 149.210938 | G95: 144.6142958 | H95: 140.8124615 | I95: 137.9715902 | J95: 136.2158375 | K95: 135.6219349 | L95: 136.2158375 | M95: 137.9715902 | N95: 140.8124615 | O95: 144.6142958 | P95: 149.210938 | Q95: 154.401494 | R95: 159.9591105 | S95: 0.1925606477 | T95: 0.09117541383 | U95: 0.04970352877 | V95: 0.03026140933 | W95: 0.02044717757 | X95: 0.01536932073 | Y95: 0.01291438615 | Z95: 0.01218029339 | AA95: 0.01291438615 | AB95: 0.01536932073 | AC95: 0.02044717757 | AD95: 0.03026140933 | AE95: 0.04970352877 | AF95: 0.09117541383 | AG95: 0.1925606477
C96: 10.56 | D96: 160.0407557 | E96: 154.642861 | F96: 149.6014767 | G96: 145.1369365 | H96: 141.4443612 | I96: 138.6851314 | J96: 136.9798355 | K96: 136.4030003 | L96: 136.9798355 | M96: 138.6851314 | N96: 141.4443612 | O96: 145.1369365 | P96: 149.6014767 | Q96: 154.642861 | R96: 160.0407557 | S96: 0.1965162885 | T96: 0.09422526889 | U96: 0.05197823627 | V96: 0.03198620523 | W96: 0.02180802795 | X96: 0.01650474811 | Y96: 0.01392797751 | Z96: 0.01315544651 | AA96: 0.01392797751 | AB96: 0.01650474811 | AC96: 0.02180802795 | AD96: 0.03198620523 | AE96: 0.05197823627 | AF96: 0.09422526889 | AG96: 0.1965162885
C97: 10.72 | D97: 160.1200543 | E97: 154.8772908 | F97: 149.9807911 | G97: 145.6445565 | H97: 142.0581005 | I97: 139.3781664 | J97: 137.7218774 | K97: 137.1616194 | L97: 137.7218774 | M97: 139.3781664 | N97: 142.0581005 | O97: 145.6445565 | P97: 149.9807911 | Q97: 154.8772908 | R97: 160.1200543 | S97: 0.2004781081 | T97: 0.09731410043 | U97: 0.05430557382 | V97: 0.03376716936 | W97: 0.02322417714 | X97: 0.01769337484 | Y97: 0.01499304361 | Z97: 0.01418143415 | AA97: 0.01499304361 | AB97: 0.01769337484 | AC97: 0.02322417714 | AD97: 0.03376716936 | AE97: 0.05430557382 | AF97: 0.09731410043 | AG97: 0.2004781081
C98: 10.88 | D98: 160.1970738 | E98: 155.1049829 | F98: 150.3492038 | G98: 146.1375876 | H98: 142.6542015 | I98: 140.0512844 | J98: 138.4425944 | K98: 137.8984372 | L98: 138.4425944 | M98: 140.0512844 | N98: 142.6542015 | O98: 146.1375876 | P98: 150.3492038 | Q98: 155.1049829 | R98: 160.1970738 | S98: 0.2044453955 | T98: 0.1004409238 | U98: 0.05668492632 | V98: 0.03560419168 | W98: 0.0246959454 | X98: 0.01893581786 | Y98: 0.01611036797 | Z98: 0.01525909281 | AA98: 0.01611036797 | AB98: 0.01893581786 | AC98: 0.0246959454 | AD98: 0.03560419168 | AE98: 0.05668492632 | AF98: 0.1004409238 | AG98: 0.2044453955
C99: 11.04 | D99: 160.2718797 | E99: 155.3261309 | F99: 150.7070282 | G99: 146.6164491 | H99: 143.2331709 | I99: 140.7050579 | J99: 139.1425991 | K99: 138.61408 | L99: 139.1425991 | M99: 140.7050579 | N99: 143.2331709 | O99: 146.6164491 | P99: 150.7070282 | Q99: 155.3261309 | R99: 160.2718797 | S99: 0.2084174531 | T99: 0.1036047477 | U99: 0.05911564037 | V99: 0.03749710216 | W99: 0.02622358335 | X99: 0.02023262254 | Y99: 0.01728066337 | Z99: 0.01638918893 | AA99: 0.01728066337 | AB99: 0.02023262254 | AC99: 0.02622358335 | AD99: 0.03749710216 | AE99: 0.05911564037 | AF99: 0.1036047477 | AG99: 0.2084174531
C100: 11.2 | D100: 160.3445356 | E100: 155.5409231 | F100: 151.0545689 | G100: 147.0815484 | H100: 143.7955013 | I100: 141.3400428 | J100: 139.8224866 | K100: 139.3091564 | L100: 139.8224866 | M100: 141.3400428 | N100: 143.7955013 | O100: 147.0815484 | P100: 151.0545689 | Q100: 155.5409231 | R100: 160.3445356 | S100: 0.2123935971 | T100: 0.1068045751 | U100: 0.06159702642 | V100: 0.03944567266 | W100: 0.02780727296 | X100: 0.02158426268 | Y100: 0.01850457135 | Z100: 0.0175724181 | AA100: 0.01850457135 | AB100: 0.02158426268 | AC100: 0.02780727296 | AD100: 0.03944567266 | AE100: 0.06159702642 | AF100: 0.1068045751 | AG100: 0.2123935971
C101: 11.36 | D101: 160.4151034 | E101: 155.7495422 | F101: 151.3921212 | G101: 147.5332809 | H101: 144.3416709 | I101: 141.9567789 | J101: 140.4828352 | K101: 139.9842573 | L101: 140.4828352 | M101: 141.9567789 | N101: 144.3416709 | O101: 147.5332809 | P101: 151.3921212 | Q101: 155.7495422 | R101: 160.4151034 | S101: 0.2163731571 | T101: 0.1100394053 | U101: 0.0641283611 | V101: 0.04144961903 | W101: 0.02944712884 | X101: 0.02299114093 | Y101: 0.01978266182 | Z101: 0.01880940449 | AA101: 0.01978266182 | AB101: 0.02299114093 | AC101: 0.02944712884 | AD101: 0.04144961903 | AE101: 0.0641283611 | AF101: 0.1100394053 | AG101: 0.2163731571
C102: 11.52 | D102: 160.4836431 | E102: 155.9521656 | F102: 151.7199725 | G102: 147.972031 | H102: 144.872144 | I102: 142.5557908 | J102: 141.1242062 | K102: 140.6399567 | L102: 141.1242062 | M102: 142.5557908 | N102: 144.872144 | O102: 147.972031 | P102: 151.7199725 | Q102: 155.9521656 | R102: 160.4836431 | S102: 0.2203554763 | T102: 0.1133082345 | U102: 0.0667088893 | V102: 0.04350860317 | W102: 0.03114319956 | X102: 0.02445358928 | Y102: 0.02111543315 | Z102: 0.02010070069 | AA102: 0.02111543315 | AB102: 0.02445358928 | AC102: 0.03114319956 | AD102: 0.04350860317 | AE102: 0.0667088893 | AF102: 0.1133082345 | AG102: 0.2203554763
C103: 11.68 | D103: 160.550213 | E103: 156.1489657 | F103: 152.0384014 | G103: 148.3981717 | H103: 145.3873718 | I103: 143.1375877 | J103: 141.747145 | K103: 141.2768123 | L103: 141.747145 | M103: 143.1375877 | N103: 145.3873718 | O103: 148.3981717 | P103: 152.0384014 | Q103: 156.1489657 | R103: 160.550213 | S103: 0.2243399114 | T103: 0.1166100576 | U103: 0.06933782642 | V103: 0.04562223521 | W103: 0.03289546925 | X103: 0.02597186994 | Y103: 0.02250331234 | Z103: 0.02144678773 | AA103: 0.02250331234 | AB103: 0.02597186994 | AC103: 0.03289546925 | AD103: 0.04562223521 | AE103: 0.06933782642 | AF103: 0.1166100576 | AG103: 0.2243399114
C104: 11.84 | D104: 160.6148696 | E104: 156.3401099 | F104: 152.347679 | G104: 148.8120655 | H104: 145.8877925 | I104: 143.7026645 | J104: 142.3521814 | K104: 141.8953654 | L104: 142.3521814 | M104: 143.7026645 | N104: 145.8877925 | O104: 148.8120655 | P104: 152.347679 | Q104: 156.3401099 | R104: 160.6148696 | S104: 0.2283258327 | T104: 0.119943869 | U104: 0.07201436044 | V104: 0.04779007567 | W104: 0.03470385927 | X104: 0.02754617628 | Y104: 0.02394665555 | Z104: 0.0228480754 | AA104: 0.02394665555 | AB104: 0.02754617628 | AC104: 0.03470385927 | AD104: 0.04779007567 | AE104: 0.07201436044 | AF104: 0.119943869 | AG104: 0.2283258327
C105: 12 | D105: 160.6776681 | E105: 156.5257606 | F105: 152.6480681 | G105: 149.2140643 | H105: 146.3738316 | I105: 144.2515016 | J105: 142.9398297 | K105: 142.496142 | L105: 142.9398297 | M105: 144.2515016 | N105: 146.3738316 | O105: 149.2140643 | P105: 152.6480681 | Q105: 156.5257606 | R105: 160.6776681 | S105: 0.2323126234 | T105: 0.1233086641 | U105: 0.07473765401 | V105: 0.05001163772 | W105: 0.03656822998 | X105: 0.02917663408 | Y105: 0.02544574884 | Z105: 0.0243049028 | AA105: 0.02544574884 | AB105: 0.02917663408 | AC105: 0.03656822998 | AD105: 0.05001163772 | AE105: 0.07473765401 | AF105: 0.1233086641 | AG105: 0.2323126234
C106: 12.16 | D106: 160.7386618 | E106: 156.7060759 | F106: 152.9398242 | G106: 149.60451 | H106: 146.8459025 | I106: 144.7845657 | J106: 143.5105897 | K106: 143.0796531 | L106: 143.5105897 | M106: 144.7845657 | N106: 146.8459025 | O106: 149.60451 | P106: 152.9398242 | Q106: 156.7060759 | R106: 160.7386618 | S106: 0.2362996805 | T106: 0.1267034398 | U106: 0.07750684646 | V106: 0.05228638944 | W106: 0.03848838266 | X106: 0.03086330286 | Y106: 0.02700080909 | Z106: 0.02581753914 | AA106: 0.02700080909 | AB106: 0.03086330286 | AC106: 0.03848838266 | AD106: 0.05228638944 | AE106: 0.07750684646 | AF106: 0.1267034398 | AG106: 0.2362996805
C107: 12.32 | D107: 160.7979026 | E107: 156.8812091 | F107: 153.2231955 | G107: 149.9837346 | H107: 147.3044064 | I107: 145.3023101 | J107: 144.0649467 | K107: 143.6463947 | L107: 144.0649467 | M107: 145.3023101 | N107: 147.3044064 | O107: 149.9837346 | P107: 153.2231955 | Q107: 156.8812091 | R107: 160.7979026 | S107: 0.2402864139 | T107: 0.130127196 | U107: 0.08032105583 | V107: 0.05461375603 | W107: 0.04046406151 | X107: 0.0326061774 | Y107: 0.02861198512 | Z107: 0.02738618468 | AA107: 0.02861198512 | AB107: 0.0326061774 | AC107: 0.04046406151 | AD107: 0.05461375603 | AE107: 0.08032105583 | AF107: 0.130127196 | AG107: 0.2402864139
C108: 12.48 | D108: 160.8554408 | E108: 157.051309 | F108: 153.4984229 | G108: 150.3520607 | H108: 147.7497335 | I108: 145.8051752 | J108: 144.6033722 | K108: 144.1968489 | L108: 144.6033722 | M108: 145.8051752 | N108: 147.7497335 | O108: 150.3520607 | P108: 153.4984229 | Q108: 157.051309 | R108: 160.8554408 | S108: 0.2442722464 | T108: 0.1335789362 | U108: 0.08317938077 | V108: 0.05699312212 | W108: 0.04249495571 | X108: 0.03440518945 | Y108: 0.03027935904 | Z108: 0.02901097197 | AA108: 0.03027935904 | AB108: 0.03440518945 | AC108: 0.04249495571 | AD108: 0.05699312212 | AE108: 0.08317938077 | AF108: 0.1335789362 | AG108: 0.2442722464
C109: 12.64 | D109: 160.9113254 | E109: 157.2165205 | F109: 153.7657406 | G109: 150.7098015 | H109: 148.1822623 | I109: 146.2935884 | J109: 145.1263239 | K109: 144.7314836 | L109: 145.1263239 | M109: 146.2935884 | N109: 148.1822623 | O109: 150.7098015 | P109: 153.7657406 | Q109: 157.2165205 | R109: 160.9113254 | S109: 0.2482566143 | T109: 0.1370576689 | U109: 0.08608090238 | V109: 0.05942383402 | W109: 0.04458070152 | X109: 0.03626020941 | Y109: 0.03200294766 | Z109: 0.03069196714 | AA109: 0.03200294766 | AB109: 0.03626020941 | AC109: 0.04458070152 | AD109: 0.05942383402 | AE109: 0.08608090238 | AF109: 0.1370576689 | AG109: 0.2482566143
C110: 12.8 | D110: 160.965604 | E110: 157.3769839 | F110: 154.0253758 | G110: 151.0572611 | H110: 148.6023606 | I110: 146.7679652 | J110: 145.6342465 | K110: 145.2507535 | L110: 145.6342465 | M110: 146.7679652 | N110: 148.6023606 | O110: 151.0572611 | P110: 154.0253758 | Q110: 157.3769839 | R110: 160.965604 | S110: 0.2522389662 | T110: 0.1405624076 | U110: 0.08902468609 | V110: 0.06190520195 | W110: 0.04672088453 | X110: 0.03817104832 | Y110: 0.03378270416 | Z110: 0.03242917145 | AA110: 0.03378270416 | AB110: 0.03817104832 | AC110: 0.04672088453 | AD110: 0.06190520195 | AE110: 0.08902468609 | AF110: 0.1405624076 | AG110: 0.2522389662
C111: 12.96 | D111: 161.0183226 | E111: 157.5328357 | F111: 154.2775493 | G111: 151.3947351 | H111: 149.0103858 | I111: 147.2287089 | J111: 146.127572 | K111: 145.7551002 | L111: 146.127572 | M111: 147.2287089 | N111: 149.0103858 | O111: 151.3947351 | P111: 154.2775493 | Q111: 157.5328357 | R111: 161.0183226 | S111: 0.2562187638 | T111: 0.1440921724 | U111: 0.09200978336 | V111: 0.06443650224 | W111: 0.04891504179 | X111: 0.04013745977 | Y111: 0.0356185198 | Z111: 0.0342225229 | AA111: 0.0356185198 | AB111: 0.04013745977 | AC111: 0.04891504179 | AD111: 0.06443650224 | AE111: 0.09200978336 | AF111: 0.1440921724 | AG111: 0.2562187638
C112: 13.12 | D112: 161.0695262 | E112: 157.6842085 | F112: 154.5224757 | G112: 151.7225104 | H112: 149.4066848 | I112: 147.6762113 | J112: 146.6067199 | K112: 146.2449525 | L112: 146.6067199 | M112: 147.6762113 | N112: 149.4066848 | O112: 151.7225104 | P112: 154.5224757 | Q112: 157.6842085 | R112: 161.0695262 | S112: 0.2601954813 | T112: 0.1476459904 | U112: 0.09503523342 | V112: 0.06701697958 | W112: 0.0511626641 | X112: 0.04215914198 | Y112: 0.03751022577 | Z112: 0.03607189802 | AA112: 0.03751022577 | AB112: 0.04215914198 | AC112: 0.0511626641 | AD112: 0.06701697958 | AE112: 0.09503523342 | AF112: 0.1476459904 | AG112: 0.2601954813
C113: 13.28 | D113: 161.1192582 | E113: 157.831231 | F113: 154.760363 | G113: 152.0408658 | H113: 149.7915945 | I113: 148.110853 | J113: 147.0720976 | K113: 146.720727 | L113: 147.0720976 | M113: 148.110853 | N113: 149.7915945 | O113: 152.0408658 | P113: 154.760363 | Q113: 157.831231 | R113: 161.1192582 | S113: 0.2641686053 | T113: 0.1512228961 | U113: 0.09810006485 | V113: 0.06964584913 | W113: 0.05346319827 | X113: 0.04423573994 | Y113: 0.03945759515 | Z113: 0.03797711374 | AA113: 0.03945759515 | AB113: 0.04423573994 | AC113: 0.05346319827 | AD113: 0.06964584913 | AE113: 0.09810006485 | AF113: 0.1512228961 | AG113: 0.2641686053
C114: 13.44 | D114: 161.1675609 | E114: 157.9740282 | F114: 154.9914137 | G114: 152.350072 | H114: 150.1654424 | I114: 148.5330035 | J114: 147.5241009 | K114: 147.1828282 | L114: 147.5241009 | M114: 148.5330035 | N114: 150.1654424 | O114: 152.350072 | P114: 154.9914137 | Q114: 157.9740282 | R114: 161.1675609 | S114: 0.2681376349 | T114: 0.1548219327 | U114: 0.1012032972 | V114: 0.07232229865 | W114: 0.05581604935 | X114: 0.04636684752 | Y114: 0.04146034493 | Z114: 0.03993792937 | AA114: 0.04146034493 | AB114: 0.04636684752 | AC114: 0.05581604935 | AD114: 0.07232229865 | AE114: 0.1012032972 | AF114: 0.1548219327 | AG114: 0.2681376349
C115: 13.6 | D115: 161.2144755 | E115: 158.1127216 | F115: 155.2158243 | G115: 152.6503919 | H115: 150.5285462 | I115: 148.9430219 | J115: 147.963114 | K115: 147.6316492 | L115: 147.963114 | M115: 148.9430219 | N115: 150.5285462 | O115: 152.6503919 | P115: 155.2158243 | Q115: 158.1127216 | R115: 161.2144755 | S115: 0.2721020813 | T115: 0.1584421521 | U115: 0.1043439426 | V115: 0.0750454906 | W115: 0.05822058292 | X115: 0.04855200974 | Y115: 0.04351813812 | Z115: 0.04195404861 | AA115: 0.04351813812 | AB115: 0.04855200974 | AC115: 0.05822058292 | AD115: 0.0750454906 | AE115: 0.1043439426 | AF115: 0.1584421521 | AG115: 0.2721020813
C116: 13.76 | D116: 161.2600418 | E116: 158.2474291 | F116: 155.4337855 | G116: 152.942081 | H116: 150.8812148 | I116: 149.3412568 | J116: 148.3895104 | K116: 148.0675715 | L116: 148.3895104 | M116: 149.3412568 | N116: 150.8812148 | O116: 152.942081 | P116: 155.4337855 | Q116: 158.2474291 | R116: 161.2600418 | S116: 0.2760614678 | T116: 0.1620826157 | U116: 0.1075210068 | V116: 0.07781456414 | W116: 0.06067612733 | X116: 0.05079072497 | Y116: 0.04563058588 | Z116: 0.04402512172 | AA116: 0.04563058588 | AB116: 0.05079072497 | AC116: 0.06067612733 | AD116: 0.07781456414 | AE116: 0.1075210068 | AF116: 0.1620826157 | AG116: 0.2760614678
C117: 13.92 | D117: 161.3042986 | E117: 158.3782652 | F117: 155.6454828 | G117: 153.2253872 | H117: 151.2237481 | I117: 149.7280468 | J117: 148.8036526 | K117: 148.4909659 | L117: 148.8036526 | M117: 149.7280468 | N117: 151.2237481 | O117: 153.2253872 | P117: 155.6454828 | Q117: 158.3782652 | R117: 161.3042986 | S117: 0.2800153294 | T117: 0.1657423951 | U117: 0.1107334911 | V117: 0.08062863715 | W117: 0.06318197593 | X117: 0.05308244722 | Y117: 0.04779724975 | Z117: 0.04615074763 | AA117: 0.04779724975 | AB117: 0.05308244722 | AC117: 0.06318197593 | AD117: 0.08062863715 | AE117: 0.1107334911 | AF117: 0.1657423951 | AG117: 0.2800153294
C118: 14.08 | D118: 161.3472835 | E118: 158.5053412 | F118: 155.851096 | G118: 153.5005514 | H118: 151.5564373 | I118: 150.1037209 | J118: 149.2058928 | K118: 148.9021924 | L118: 149.2058928 | M118: 150.1037209 | N118: 151.5564373 | O118: 153.5005514 | P118: 155.851096 | Q118: 158.5053412 | R118: 161.3472835 | S118: 0.2839632132 | T118: 0.1694205721 | U118: 0.1139803934 | V118: 0.08348680812 | W118: 0.06573738929 | X118: 0.05542658835 | Y118: 0.05001764387 | Z118: 0.0483304762 | AA118: 0.05001764387 | AB118: 0.05542658835 | AC118: 0.06573738929 | AD118: 0.08348680812 | AE118: 0.1139803934 | AF118: 0.1694205721 | AG118: 0.2839632132
C119: 14.24 | D119: 161.389033 | E119: 158.6287651 | F119: 156.0508002 | G119: 153.7678078 | H119: 151.8795655 | I119: 150.4685986 | J119: 149.5965731 | K119: 149.3016007 | L119: 149.5965731 | M119: 150.4685986 | N119: 151.8795655 | O119: 153.7678078 | P119: 156.0508002 | Q119: 158.6287651 | R119: 161.389033 | S119: 0.2879046776 | T119: 0.1731162397 | U119: 0.1172607094 | V119: 0.08638815804 | W119: 0.06834159736 | X119: 0.05782252038 | Y119: 0.05229123719 | Z119: 0.05056381039 | AA119: 0.05229123719 | AB119: 0.05782252038 | AC119: 0.06834159736 | AD119: 0.08638815804 | AE119: 0.1172607094 | AF119: 0.1731162397 | AG119: 0.2879046776
C120: 14.4 | D120: 161.4295827 | E120: 158.748642 | F120: 156.2447651 | G120: 154.0273834 | H120: 152.1934072 | I120: 150.82299 | J120: 149.9760256 | K120: 149.6895304 | L120: 149.9760256 | M120: 150.82299 | N120: 152.1934072 | O120: 154.0273834 | P120: 156.2447651 | Q120: 158.748642 | R120: 161.4295827 | S120: 0.2918392925 | T120: 0.1768285019 | U120: 0.120573434 | V120: 0.08933175221 | W120: 0.07099380162 | X120: 0.06026957774 | Y120: 0.05461745581 | Z120: 0.05285020858 | AA120: 0.05461745581 | AB120: 0.06026957774 | AC120: 0.07099380162 | AD120: 0.08933175221 | AE120: 0.120573434 | AF120: 0.1768285019 | AG120: 0.2918392925
C121: 14.56 | D121: 161.4689671 | E121: 158.8650738 | F121: 156.4331556 | G121: 154.2794992 | H121: 152.4982295 | I121: 151.1671966 | J121: 150.344573 | K121: 150.0663114 | L121: 150.344573 | M121: 151.1671966 | N121: 152.4982295 | O121: 154.2794992 | P121: 156.4331556 | Q121: 158.8650738 | R121: 161.4689671 | S121: 0.2957666392 | T121: 0.1805564746 | U121: 0.1239175621 | V121: 0.09231664201 | W121: 0.07369317719 | X121: 0.06276705946 | Y121: 0.05699568516 | Z121: 0.0551890868 | AA121: 0.05699568516 | AB121: 0.06276705946 | AC121: 0.07369317719 | AD121: 0.09231664201 | AE121: 0.1239175621 | AF121: 0.1805564746 | AG121: 0.2957666392
C122: 14.72 | D122: 161.5072196 | E122: 158.9781594 | F122: 156.616132 | G122: 154.5243693 | H122: 152.7942915 | I122: 151.5015111 | J122: 150.7025288 | K122: 150.4322641 | L122: 150.7025288 | M122: 151.5015111 | N122: 152.7942915 | O122: 154.5243693 | P122: 156.616132 | Q122: 158.9781594 | R122: 161.5072196 | S122: 0.2996863099 | T122: 0.1842992856 | U122: 0.1272920902 | V122: 0.09534186657 | W122: 0.07643887486 | X122: 0.06531423144 | Y122: 0.0594252723 | Z122: 0.05757982097 | AA122: 0.0594252723 | AB122: 0.06531423144 | AC122: 0.07643887486 | AD122: 0.09534186657 | AE122: 0.1272920902 | AF122: 0.1842992856 | AG122: 0.2996863099
C123: 14.88 | D123: 161.5443727 | E123: 159.0879951 | F123: 156.7938498 | G123: 154.7622022 | H123: 153.0818449 | I123: 151.8262177 | J123: 151.0501974 | K123: 150.7876998 | L123: 151.0501974 | M123: 151.8262177 | N123: 153.0818449 | O123: 154.7622022 | P123: 156.7938498 | Q123: 159.0879951 | R123: 161.5443727 | S123: 0.3035979079 | T123: 0.188056075 | U123: 0.130696017 | V123: 0.09840645443 | W123: 0.07923002313 | X123: 0.0679103286 | Y123: 0.06190552818 | Z123: 0.06002174922 | AA123: 0.06190552818 | AB123: 0.0679103286 | AC123: 0.07923002313 | AD123: 0.09840645443 | AE123: 0.130696017 | AF123: 0.188056075 | AG123: 0.3035979079
C124: 15.04 | D124: 161.5804581 | E124: 159.1946742 | F124: 156.9664603 | G124: 154.9932 | H124: 153.3611344 | I124: 152.1415926 | J124: 151.3878743 | K124: 151.1329206 | L124: 151.3878743 | M124: 152.1415926 | N124: 153.3611344 | O124: 154.9932 | P124: 156.9664603 | Q124: 159.1946742 | R124: 161.5804581 | S124: 0.3075010473 | T124: 0.1918259955 | U124: 0.1341283445 | V124: 0.1015094251 | W124: 0.08206573014 | X124: 0.07055455702 | Y124: 0.06443572981 | Z124: 0.06251417405 | AA124: 0.06443572981 | AB124: 0.07055455702 | AC124: 0.08206573014 | AD124: 0.1015094251 | AE124: 0.1341283445 | AF124: 0.1918259955 | AG124: 0.3075010473
C125: 15.2 | D125: 161.6155065 | E125: 159.2982874 | F125: 157.13411 | G125: 155.2175592 | H125: 153.6323975 | I125: 152.4479039 | J125: 151.7158467 | K125: 151.4682201 | L125: 151.7158467 | M125: 152.4479039 | N125: 153.6323975 | O125: 155.2175592 | P125: 157.13411 | Q125: 159.2982874 | R125: 161.6155065 | S125: 0.3113953526 | T125: 0.1956082125 | U125: 0.137588079 | V125: 0.1046497905 | W125: 0.08494508558 | X125: 0.07324609609 | Y125: 0.0670151225 | Z125: 0.0650563646 | AA125: 0.0670151225 | AB125: 0.07324609609 | AC125: 0.08494508558 | AD125: 0.1046497905 | AE125: 0.137588079 | AF125: 0.1956082125 | AG125: 0.3113953526
C126: 15.36 | D126: 161.6495475 | E126: 159.3989229 | F126: 157.2969417 | G126: 155.4354705 | H126: 153.8958647 | I126: 152.7454122 | J126: 152.0343935 | K126: 151.7938835 | L126: 152.0343935 | M126: 152.7454122 | N126: 153.8958647 | O126: 155.4354705 | P126: 157.2969417 | Q126: 159.3989229 | R126: 161.6495475 | S126: 0.3152804589 | T126: 0.1994019044 | U126: 0.1410742319 | V126: 0.1078265567 | W126: 0.08786716253 | X126: 0.07598410053 | Y126: 0.06964292199 | Z126: 0.06764755881 | AA126: 0.06964292199 | AB126: 0.07598410053 | AC126: 0.08786716253 | AD126: 0.1078265567 | AE126: 0.1410742319 | AF126: 0.1994019044 | AG126: 0.3152804589
C127: 15.52 | D127: 161.6826103 | E127: 159.4966663 | F127: 157.4550938 | G127: 155.6471193 | H127: 154.1517601 | I127: 153.0343704 | J127: 152.3437857 | K127: 152.1101876 | L127: 152.3437857 | M127: 153.0343704 | N127: 154.1517601 | O127: 155.6471193 | P127: 157.4550938 | Q127: 159.4966663 | R127: 161.6826103 | S127: 0.3191560116 | T127: 0.203206263 | U127: 0.1445858204 | V127: 0.1110387248 | W127: 0.09083101927 | X127: 0.07876770241 | Y127: 0.0723183166 | Z127: 0.07028696559 | AA127: 0.0723183166 | AB127: 0.07876770241 | AC127: 0.09083101927 | AD127: 0.1110387248 | AE127: 0.1445858204 | AF127: 0.203206263 | AG127: 0.3191560116
C128: 15.68 | D128: 161.7147229 | E128: 159.5916006 | F128: 157.6087007 | G128: 155.8526856 | H128: 154.4003014 | I128: 153.3150243 | J128: 152.6442862 | K128: 152.4174015 | L128: 152.6442862 | M128: 153.3150243 | N128: 154.4003014 | O128: 155.8526856 | P128: 157.6087007 | Q128: 159.5916006 | R128: 161.7147229 | S128: 0.3230216662 | T128: 0.2070204932 | U128: 0.1481218684 | V128: 0.1142852926 | W128: 0.09383570097 | X128: 0.08159601315 | Y128: 0.07504046927 | Z128: 0.07297376692 | AA128: 0.07504046927 | AB128: 0.08159601315 | AC128: 0.09383570097 | AD128: 0.1142852926 | AE128: 0.1481218684 | AF128: 0.2070204932 | AG128: 0.3230216662
C129: 15.84 | D129: 161.7459126 | E129: 159.6838066 | F129: 157.7578932 | G129: 156.052344 | H129: 154.6416998 | I129: 153.5876125 | J129: 152.9361507 | K129: 152.7157864 | L129: 152.9361507 | M129: 153.5876125 | N129: 154.6416998 | O129: 156.052344 | P129: 157.7578932 | Q129: 159.6838066 | R129: 161.7459126 | S129: 0.3268770879 | T129: 0.2108438134 | U129: 0.1516814074 | V129: 0.117565256 | W129: 0.09688024137 | X129: 0.08446812539 | Y129: 0.07780851964 | Z129: 0.07570711991 | AA129: 0.07780851964 | AB129: 0.08446812539 | AC129: 0.09688024137 | AD129: 0.117565256 | AE129: 0.1516814074 | AF129: 0.2108438134 | AG129: 0.3268770879
C130: 16 | D130: 161.776206 | E130: 159.7733627 | F130: 157.902798 | G130: 156.2462645 | H130: 154.8761608 | I130: 153.8523668 | J130: 153.2196273 | K130: 153.0055961 | L130: 153.2196273 | M130: 153.8523668 | N130: 154.8761608 | O130: 156.2462645 | P130: 157.902798 | Q130: 159.7733627 | R130: 161.776206 | S130: 0.330721952 | T130: 0.2146754558 | U130: 0.1552634766 | V130: 0.1208776098 | W130: 0.0999636644 | X130: 0.08738311487 | Y130: 0.08062158598 | Z130: 0.07848615884 | AA130: 0.08062158598 | AB130: 0.08738311487 | AC130: 0.0999636644 | AD130: 0.1208776098 | AE130: 0.1552634766 | AF130: 0.2146754558 | AG130: 0.330721952
C131: 16.16 | D131: 161.8056288 | E131: 159.8603451 | F131: 158.0435384 | G131: 156.434612 | H131: 155.1038835 | I131: 154.1095123 | J131: 153.4949571 | K131: 153.2870769 | L131: 153.4949571 | M131: 154.1095123 | N131: 155.1038835 | O131: 156.434612 | P131: 158.0435384 | Q131: 159.8603451 | R131: 161.8056288 | S131: 0.3345559431 | T131: 0.2185146658 | U131: 0.1588671241 | V131: 0.1242213491 | W131: 0.1030849857 | X131: 0.09034004221 | Y131: 0.08347876718 | Z131: 0.08130999711 | AA131: 0.08347876718 | AB131: 0.09034004221 | AC131: 0.1030849857 | AD131: 0.1242213491 | AE131: 0.1588671241 | AF131: 0.2185146658 | AG131: 0.3345559431
C132: 16.32 | D132: 161.8342059 | E132: 159.9448277 | F132: 158.1802341 | G132: 156.6175465 | H132: 155.3250618 | I132: 154.3592677 | J132: 153.7623742 | K132: 153.5604682 | L132: 153.7623742 | M132: 154.3592677 | N132: 155.3250618 | O132: 156.6175465 | P132: 158.1802341 | Q132: 159.9448277 | R132: 161.8342059 | S132: 0.3383787555 | T132: 0.2223607032 | U132: 0.1624914072 | V132: 0.1275954704 | W132: 0.1062432141 | X132: 0.09333795465 | Y132: 0.08637914456 | Z132: 0.08417772918 | AA132: 0.08637914456 | AB132: 0.09333795465 | AC132: 0.1062432141 | AD132: 0.1275954704 | AE132: 0.1624914072 | AF132: 0.2223607032 | AG132: 0.3383787555
C133: 16.48 | D133: 161.8619618 | E133: 160.0268823 | F133: 158.3130013 | G133: 156.7952237 | H133: 155.5398836 | I133: 154.6018454 | J133: 154.022106 | K133: 153.8260026 | L133: 154.022106 | M133: 154.6018454 | N133: 155.5398836 | O133: 156.7952237 | P133: 158.3130013 | Q133: 160.0268823 | R133: 161.8619618 | S133: 0.3421900927 | T133: 0.2262128409 | U133: 0.1661353929 | V133: 0.1309989724 | W133: 0.109437353 | X133: 0.09637588774 | Y133: 0.08932178374 | Z133: 0.08708843242 | AA133: 0.08932178374 | AB133: 0.09637588774 | AC133: 0.109437353 | AD133: 0.1309989724 | AE133: 0.1661353929 | AF133: 0.2262128409 | AG133: 0.3421900927
C134: 16.64 | D134: 161.8889201 | E134: 160.1065788 | F134: 158.4419529 | G134: 156.9677946 | H134: 155.7485317 | I134: 154.8374517 | J134: 154.2743734 | K134: 154.0839058 | L134: 154.2743734 | M134: 154.8374517 | N134: 155.7485317 | O134: 156.9677946 | P134: 158.4419529 | Q134: 160.1065788 | R134: 161.8889201 | S134: 0.345989667 | T134: 0.230070366 | U134: 0.1697981586 | V134: 0.1344308572 | W134: 0.112666402 | X134: 0.09945286693 | Y134: 0.09230573636 | Z134: 0.09004116887 | AA134: 0.09230573636 | AB134: 0.09945286693 | AC134: 0.112666402 | AD134: 0.1344308572 | AE134: 0.1697981586 | AF134: 0.230070366 | AG134: 0.345989667
C135: 16.8 | D135: 161.9151035 | E135: 160.1839848 | F135: 158.5671986 | G135: 157.135406 | H135: 155.9511834 | I135: 155.0662869 | J135: 154.5193909 | K135: 154.3343971 | L135: 154.5193909 | M135: 155.0662869 | N135: 155.9511834 | O135: 157.135406 | P135: 158.5671986 | Q135: 160.1839848 | R135: 161.9151035 | S135: 0.3497772001 | T135: 0.2339325794 | U135: 0.1734787922 | V135: 0.1378901313 | W135: 0.1159293575 | X135: 0.1025679091 | Y135: 0.09533004179 | Z135: 0.09303498707 | AA135: 0.09533004179 | AB135: 0.1025679091 | AC135: 0.1159293575 | AD135: 0.1378901313 | AE135: 0.1734787922 | AF135: 0.2339325794 | AG135: 0.3497772001
C136: 16.96 | D136: 161.9405345 | E136: 160.2591663 | F136: 158.6888448 | G136: 157.2982004 | H136: 156.1480111 | I136: 155.2885457 | J136: 154.7573668 | K136: 154.5776896 | L136: 154.7573668 | M136: 155.2885457 | N136: 156.1480111 | O136: 157.2982004 | P136: 158.6888448 | Q136: 160.2591663 | R136: 161.9405345 | S136: 0.3535524221 | T136: 0.2377987958 | U136: 0.1771763931 | V136: 0.141375806 | W136: 0.119225215 | X136: 0.1057200242 | Y136: 0.09839372877 | Z136: 0.09606892366 | AA136: 0.09839372877 | AB136: 0.1057200242 | AC136: 0.119225215 | AD136: 0.141375806 | AE136: 0.1771763931 | AF136: 0.2377987958 | AG136: 0.3535524221
C137: 17.12 | D137: 161.9652347 | E137: 160.3321872 | F137: 158.806995 | G137: 157.4563164 | H137: 156.3391823 | I137: 155.5044169 | J137: 154.9885036 | K137: 154.8139901 | L137: 154.9885036 | M137: 155.5044169 | N137: 156.3391823 | O137: 157.4563164 | P137: 158.806995 | Q137: 160.3321872 | R137: 161.9652347 | S137: 0.3573150718 | T137: 0.2416683436 | U137: 0.1808900718 | V137: 0.1448868987 | W137: 0.122552969 | X137: 0.1089082165 | Y137: 0.101495817 | Z137: 0.09914200505 | AA137: 0.101495817 | AB137: 0.1089082165 | AC137: 0.122552969 | AD137: 0.1448868987 | AE137: 0.1808900718 | AF137: 0.2416683436 | AG137: 0.3573150718
C138: 17.28 | D138: 161.9892249 | E138: 160.4031096 | F138: 158.9217498 | G138: 157.6098882 | H138: 156.5248593 | I138: 155.7140843 | J138: 155.2129977 | K138: 155.0434996 | L138: 155.2129977 | M138: 155.7140843 | N138: 156.5248593 | O138: 157.6098882 | P138: 158.9217498 | Q138: 160.4031096 | R138: 161.9892249 | S138: 0.3610648966 | T138: 0.245540565 | U138: 0.1846189509 | V138: 0.1484224336 | W138: 0.1259116155 | X138: 0.1121314859 | Y138: 0.1046353186 | Z138: 0.1022532489 | AA138: 0.1046353186 | AB138: 0.1121314859 | AC138: 0.1259116155 | AD138: 0.1484224336 | AE138: 0.1846189509 | AF138: 0.245540565 | AG138: 0.3610648966
C139: 17.44 | D139: 162.0125257 | E139: 160.4719936 | F139: 159.0332066 | G139: 157.7590465 | H139: 156.7052002 | I139: 155.917726 | J139: 155.4310401 | K139: 155.2664132 | L139: 155.4310401 | M139: 155.917726 | N139: 156.7052002 | O139: 157.7590465 | P139: 159.0332066 | Q139: 160.4719936 | R139: 162.0125257 | S139: 0.3648016519 | T139: 0.249414816 | U139: 0.1883621652 | V139: 0.1519814421 | W139: 0.1293001516 | X139: 0.1153888295 | Y139: 0.1078112395 | Z139: 0.1054016659 | AA139: 0.1078112395 | AB139: 0.1153888295 | AC139: 0.1293001516 | AD139: 0.1519814421 | AE139: 0.1883621652 | AF139: 0.249414816 | AG139: 0.3648016519
C140: 17.6 | D140: 162.0351569 | E140: 160.5388981 | F140: 159.1414603 | G140: 157.9039182 | H140: 156.8803583 | I140: 156.1155153 | J140: 155.6428163 | K140: 155.4829205 | L140: 155.6428163 | M140: 156.1155153 | N140: 156.8803583 | O140: 157.9039182 | P140: 159.1414603 | Q140: 160.5388981 | R140: 162.0351569 | S140: 0.3685251015 | T140: 0.2532904662 | U140: 0.1921188619 | V140: 0.1555629636 | W140: 0.1327175779 | X140: 0.1186792427 | Y140: 0.1110225812 | Z140: 0.1085862606 | AA140: 0.1110225812 | AB140: 0.1186792427 | AC140: 0.1327175779 | AD140: 0.1555629636 | AE140: 0.1921188619 | AF140: 0.2532904662 | AG140: 0.3685251015
C141: 17.76 | D141: 162.0571377 | E141: 160.6038798 | F141: 159.2466028 | G141: 158.0446264 | H141: 157.0504826 | I141: 156.3076203 | J141: 155.8485062 | K141: 155.6932056 | L141: 155.8485062 | M141: 156.3076203 | N141: 157.0504826 | O141: 158.0446264 | P141: 159.2466028 | Q141: 160.6038798 | R141: 162.0571377 | S141: 0.3722350169 | T141: 0.2571668989 | U141: 0.1958882007 | V141: 0.1591660465 | W141: 0.1361628983 | X141: 0.1220017202 | Y141: 0.1142683414 | Z141: 0.1118060334 | AA141: 0.1142683414 | AB141: 0.1220017202 | AC141: 0.1361628983 | AD141: 0.1591660465 | AE141: 0.1958882007 | AF141: 0.2571668989 | AG141: 0.3722350169
C142: 17.92 | D142: 162.0784868 | E142: 160.6669939 | F142: 159.3487237 | G142: 158.1812908 | H142: 157.2157176 | I142: 156.4942044 | J142: 156.0482847 | K142: 155.8974474 | L142: 156.0482847 | M142: 156.4942044 | N142: 157.2157176 | O142: 158.1812908 | P142: 159.3487237 | Q142: 160.6669939 | R142: 162.0784868 | S142: 0.3759311776 | T142: 0.2610435107 | U142: 0.1996693546 | V142: 0.162789748 | W142: 0.1396351217 | X142: 0.1253552576 | Y142: 0.1175475161 | Z142: 0.1150599817 | AA142: 0.1175475161 | AB142: 0.1253552576 | AC142: 0.1396351217 | AD142: 0.162789748 | AE142: 0.1996693546 | AF142: 0.2610435107 | AG142: 0.3759311776
C143: 18.08 | D143: 162.0992223 | E143: 160.7282943 | F143: 159.4479097 | G143: 158.3140276 | H143: 157.376204 | I143: 156.6754263 | J143: 156.2423219 | K143: 156.0958195 | L143: 156.2423219 | M143: 156.6754263 | N143: 157.376204 | O143: 158.3140276 | P143: 159.4479097 | Q143: 160.7282943 | R143: 162.0992223 | S143: 0.3796133707 | T143: 0.2649197118 | U143: 0.2034615093 | V143: 0.1664331354 | W143: 0.1431332623 | X143: 0.1287388518 | Y143: 0.1208591001 | Z143: 0.1183471009 | AA143: 0.1208591001 | AB143: 0.1287388518 | AC143: 0.1431332623 | AD143: 0.1664331354 | AE143: 0.2034615093 | AF143: 0.2649197118 | AG143: 0.3796133707
C144: 18.24 | D144: 162.1193619 | E144: 160.7878329 | F144: 159.5442453 | G144: 158.4429497 | H144: 157.5320782 | I144: 156.8514401 | J144: 156.4307826 | K144: 156.2884905 | L144: 156.4307826 | M144: 156.8514401 | N144: 157.5320782 | O144: 158.4429497 | P144: 159.5442453 | Q144: 160.7878329 | R144: 162.1193619 | S144: 0.3832813908 | T144: 0.2687949257 | U144: 0.2072638642 | V144: 0.1700952862 | W144: 0.1466563407 | X144: 0.1321515027 | Y144: 0.1242020884 | Z144: 0.1216663859 | AA144: 0.1242020884 | AB144: 0.1321515027 | AC144: 0.1466563407 | AD144: 0.1700952862 | AE144: 0.2072638642 | AF144: 0.2687949257 | AG144: 0.3832813908
C145: 18.4 | D145: 162.1389227 | E145: 160.8456605 | F145: 159.6378122 | G145: 158.5681667 | H145: 157.6834727 | I145: 157.0223954 | J145: 156.6138272 | K145: 156.4756244 | L145: 156.6138272 | M145: 157.0223954 | N145: 157.6834727 | O145: 158.5681667 | P145: 159.6378122 | Q145: 160.8456605 | R145: 162.1389227 | S145: 0.3869350397 | T145: 0.2726685891 | U145: 0.2110756319 | V145: 0.1737752886 | W145: 0.1502033845 | X145: 0.1355922137 | Y145: 0.1275754776 | Z145: 0.1250168319 | AA145: 0.1275754776 | AB145: 0.1355922137 | AC145: 0.1502033845 | AD145: 0.1737752886 | AE145: 0.2110756319 | AF145: 0.2726685891 | AG145: 0.3869350397
C146: 18.56 | D146: 162.1579214 | E146: 160.9018261 | F146: 159.7286901 | G146: 158.6897851 | H146: 157.8305163 | I146: 157.1884377 | J146: 156.7916113 | K146: 156.6573803 | L146: 156.7916113 | M146: 157.1884377 | N146: 157.8305163 | O146: 158.6897851 | P146: 159.7286901 | Q146: 160.9018261 | R146: 162.1579214 | S146: 0.3905741267 | T146: 0.2765401518 | U146: 0.2148960384 | V146: 0.1774722421 | W146: 0.153773429 | X146: 0.1390599926 | Y146: 0.1309782663 | Z146: 0.1283974359 | AA146: 0.1309782663 | AB146: 0.1390599926 | AC146: 0.153773429 | AD146: 0.1774722421 | AE146: 0.2148960384 | AF146: 0.2765401518 | AG146: 0.3905741267
C147: 18.72 | D147: 162.1763741 | E147: 160.9563776 | F147: 159.8169563 | G147: 158.8079084 | H147: 157.973334 | I147: 157.349708 | J147: 156.964286 | K147: 156.8339127 | L147: 156.964286 | M147: 157.349708 | N147: 157.973334 | O147: 158.8079084 | P147: 159.8169563 | Q147: 160.9563776 | R147: 162.1763741 | S147: 0.3941984678 | T147: 0.2804090765 | U147: 0.2187243237 | V147: 0.1811852574 | W147: 0.1573655179 | X147: 0.1425538528 | Y147: 0.1344094565 | Z147: 0.1318071972 | AA147: 0.1344094565 | AB147: 0.1425538528 | AC147: 0.1573655179 | AD147: 0.1811852574 | AE147: 0.2187243237 | AF147: 0.2804090765 | AG147: 0.3941984678
